Workbook

Sheet Cover
B2: CPUC RPS Calculator
B3: Version 6.2 (DRAFT)
B5: Prepared by:
B10: 101 Montgomery Street, Suite 1600
B11: San Francisco, CA 94104
B12: (415) 391-5100
B14: 2016-03-11
B16: All costs expressed in 2015 dollars
B18: Table of Contents
B19: Category | C19: Tab Name | D19: Description
B20: Dashboard | C20: Dashboard | D20: Main user interface for model
B21: Dashboard | C21: Set_Aside | D21: Secondary user interface allowing user to construct a portfolio through specified resource additions
B22: Results | C22: Active_Portfolio | D22: Resource-level detail for resources included in RPS portfolio
C23: Portfolio_Analytics | D23: Detailed charts and tables summarizing portfolio results
C24: Cost_Impacts | D24: Expected rate impacts associated with active RPS portfolio
B25: Inputs | C25: CAISO_Tx_Inputs | D25: CAISO inputs characterizing transmission cost and availability for fully deliverable & energy only resources
C26: CREZ_Tx_Inputs | D26: Input data for "conceptual" transmission line cost and availability
C27: Tx_Mapping | D27: Mapping between CREZs, transmission areas, and energy only zones
C28: Env_Screen | D28: Resource-specific multipliers (0-100%) that control the amount of each resource included in the supply curve
C29: Load_Forecast | D29: Annual forecasts of system peak demand, net energy for load, and retail sales
C30: Load_Shape | D30: 12x24 load shapes and ajdustment factors for load scenarios
C31: Generators | D31: List of non-renewable generators in the CAISO system/contracted to CAISO LSEs
C32: Hydro_Param | D32: Parameters that control the modeling of the hydroelectric fleet
C33: Storage_Input | D33: Assumptions regarding the addition of incremental energy storage resources to the system
C34: General_Inputs | D34: Additional general input parameters
C35: RPS_Policy | D35: Inputs related to the choice of an RPS policy
C36: ELCC_Table | D36: Table of total ELCCs provided by various renewable portfolios based on ELCC model runs
C37: Resource_Char | D37: Resource cost and performance inputs
B38: Calculations | C38: Supply_Curve | D38: Supply curve of resources available to fill the renewable net short
C39: Tx_Supply | D39: Calculation of the availability of transmission (and its cost) as the portfolio is built out
C40: Value_Inputs | D40: Intermediate calculations of annual generation by resource type for input into energy & capacity value calculations
C41: Util_Allocation | D41: Allocation of renewable resources and resource value among utilities
C42: Net_Short | D42: Calculation of utility-specific renewable net short for each year of analysis horizon
C43: System_Capacity | D43: Determination of need for system capacity and the value of avoided capacity in each year
C44: ELCC_Interp | D44: Calculation of total ELCC provided by renewable portfolios and marginal ELCCs for various technologies
C45: Energy | D45: Calculation of total production value associated with candidate renewable resources
C46: Dispatch_Curve | D46: Calculation of supply curves for thermal generation used to evaluate energy value
C47: Valuation | D47: Summary of 30-year forward looking energy and capacity value streams for new renewable resources
C48: Pro_Forma | D48: Cash flow model used to evaluate cost-based PPAs for resources based on cost & performance inputs
C49: Resource_Cost | D49: Vintaged estimates of cost-based PPA prices reflecting changes to financing, tax benefits, and technology costs over time
B50: Additional Tabs | C50: Scenarios | D50: Specification of multiple scenarios for main dropdown and batch runs
C51: Storage | D51: Hard-coded record of cost inputs used to calculate PPAs (not intended for user manipulation)
C52: Controls | D52: Lookup tables and ranges for dropdown menus (not intended for user manipulation)
C53: Input_Index | D53: Detailed references and documentation of input assumptions throughout model

Sheet Dashboard
A1: CPUC RPS Calculator
A2: Version 6.2 (DRAFT)
A3: Model Dashboard
B5: SCENARIO SELECTION | G5: OUTPUTS - Portfolio Summary
C7: Scenario | D7: Default | H7: Portfolio Metrics
I8: 2012 | J8: =I8+1 -> 2013 | K8: 2014 | L8: 2015 | M8: 2016 | N8: 2017 | O8: 2018 | P8: 2019 | Q8: 2020 | R8: 2021 | S8: 2022 | T8: 2023 | U8: 2024 | V8: 2025 | W8: 2026 | X8: 2027 | Y8: 2028 | Z8: 2029 | AA8: 2030
H9: Revenue Req. ($MM) | I9: =SUM(Cost_Impacts!F157,Cost_Impacts!Z157,Cost_Impacts!AT157) -> 27137.78439 | J9: =SUM(Cost_Impacts!G157,Cost_Impacts!AA157,Cost_Impacts!AU157) -> 26872.54858 | K9: =SUM(Cost_Impacts!H157,Cost_Impacts!AB157,Cost_Impacts!AV157) -> 28817.86394 | L9: =SUM(Cost_Impacts!I157,Cost_Impacts!AC157,Cost_Impacts!AW157) -> 29645.54939 | M9: =SUM(Cost_Impacts!J157,Cost_Impacts!AD157,Cost_Impacts!AX157) -> 30332.47466 | N9: =SUM(Cost_Impacts!K157,Cost_Impacts!AE157,Cost_Impacts!AY157) -> 30884.34461 | O9: =SUM(Cost_Impacts!L157,Cost_Impacts!AF157,Cost_Impacts!AZ157) -> 31423.86961 | P9: =SUM(Cost_Impacts!M157,Cost_Impacts!AG157,Cost_Impacts!BA157) -> 32015.46437 | Q9: =SUM(Cost_Impacts!N157,Cost_Impacts!AH157,Cost_Impacts!BB157) -> 32952.51698 | R9: =SUM(Cost_Impacts!O157,Cost_Impacts!AI157,Cost_Impacts!BC157) -> 33686.7692 | S9: =SUM(Cost_Impacts!P157,Cost_Impacts!AJ157,Cost_Impacts!BD157) -> 34660.45037 | T9: =SUM(Cost_Impacts!Q157,Cost_Impacts!AK157,Cost_Impacts!BE157) -> 35243.65818 | U9: =SUM(Cost_Impacts!R157,Cost_Impacts!AL157,Cost_Impacts!BF157) -> 35836.19042 | V9: =SUM(Cost_Impacts!S157,Cost_Impacts!AM157,Cost_Impacts!BG157) -> 37342.65924 | W9: =SUM(Cost_Impacts!T157,Cost_Impacts!AN157,Cost_Impacts!BH157) -> 37910.10441 | X9: =SUM(Cost_Impacts!U157,Cost_Impacts!AO157,Cost_Impacts!BI157) -> 38603.87377 | Y9: =SUM(Cost_Impacts!V157,Cost_Impacts!AP157,Cost_Impacts!BJ157) -> 39417.36713 | Z9: =SUM(Cost_Impacts!W157,Cost_Impacts!AQ157,Cost_Impacts!BK157) -> 40179.65861 | AA9: =SUM(Cost_Impacts!X157,Cost_Impacts!AR157,Cost_Impacts!BL157) -> 40805.59997
H10: Average Rate (c/kWh) | I10: =I9/SUM(Cost_Impacts!F158,Cost_Impacts!Z158,Cost_Impacts!AT158)*100 -> 16.21132481 | J10: =J9/SUM(Cost_Impacts!G158,Cost_Impacts!AA158,Cost_Impacts!AU158)*100 -> 16.22679648 | K10: =K9/SUM(Cost_Impacts!H158,Cost_Impacts!AB158,Cost_Impacts!AV158)*100 -> 17.17424265 | L10: =L9/SUM(Cost_Impacts!I158,Cost_Impacts!AC158,Cost_Impacts!AW158)*100 -> 18.09498182 | M10: =M9/SUM(Cost_Impacts!J158,Cost_Impacts!AD158,Cost_Impacts!AX158)*100 -> 18.75156676 | N10: =N9/SUM(Cost_Impacts!K158,Cost_Impacts!AE158,Cost_Impacts!AY158)*100 -> 19.23797166 | O10: =O9/SUM(Cost_Impacts!L158,Cost_Impacts!AF158,Cost_Impacts!AZ158)*100 -> 19.77000406 | P10: =P9/SUM(Cost_Impacts!M158,Cost_Impacts!AG158,Cost_Impacts!BA158)*100 -> 20.28490844 | Q10: =Q9/SUM(Cost_Impacts!N158,Cost_Impacts!AH158,Cost_Impacts!BB158)*100 -> 20.98250617 | R10: =R9/SUM(Cost_Impacts!O158,Cost_Impacts!AI158,Cost_Impacts!BC158)*100 -> 21.56524272 | S10: =S9/SUM(Cost_Impacts!P158,Cost_Impacts!AJ158,Cost_Impacts!BD158)*100 -> 22.21229713 | T10: =T9/SUM(Cost_Impacts!Q158,Cost_Impacts!AK158,Cost_Impacts!BE158)*100 -> 22.67496103 | U10: =U9/SUM(Cost_Impacts!R158,Cost_Impacts!AL158,Cost_Impacts!BF158)*100 -> 23.18285902 | V10: =V9/SUM(Cost_Impacts!S158,Cost_Impacts!AM158,Cost_Impacts!BG158)*100 -> 24.28291893 | W10: =W9/SUM(Cost_Impacts!T158,Cost_Impacts!AN158,Cost_Impacts!BH158)*100 -> 24.82224566 | X10: =X9/SUM(Cost_Impacts!U158,Cost_Impacts!AO158,Cost_Impacts!BI158)*100 -> 25.32337513 | Y10: =Y9/SUM(Cost_Impacts!V158,Cost_Impacts!AP158,Cost_Impacts!BJ158)*100 -> 25.90774903 | Z10: =Z9/SUM(Cost_Impacts!W158,Cost_Impacts!AQ158,Cost_Impacts!BK158)*100 -> 26.46354917 | AA10: =AA9/SUM(Cost_Impacts!X158,Cost_Impacts!AR158,Cost_Impacts!BL158)*100 -> 26.93461735
H11: RPS Penetration (%) | I11: =Net_Short!I53 -> 0.1973448912 | J11: =Net_Short!J53 -> 0.21870021 | K11: =Net_Short!K53 -> 0.2489280514 | L11: =Net_Short!L53 -> 0.2731304567 | M11: =Net_Short!M53 -> 0.2892286517 | N11: =Net_Short!N53 -> 0.3209808002 | O11: =Net_Short!O53 -> 0.375441207 | P11: =Net_Short!P53 -> 0.3965070171 | Q11: =Net_Short!Q53 -> 0.4250790787 | R11: =Net_Short!R53 -> 0.4525 | S11: =Net_Short!S53 -> 0.4791413972 | T11: =Net_Short!T53 -> 0.4793940346 | U11: =Net_Short!U53 -> 0.4795642471 | V11: =Net_Short!V53 -> 0.48 | W11: =Net_Short!W53 -> 0.4802559615 | X11: =Net_Short!X53 -> 0.5 | Y11: =Net_Short!Y53 -> 0.52 | Z11: =Net_Short!Z53 -> 0.54 | AA11: =Net_Short!AA53 -> 0.56
H12: Curtailment (%) | I12: =Net_Short!I54 -> 0 | J12: =Net_Short!J54 -> 0 | K12: =Net_Short!K54 -> 0 | L12: =Net_Short!L54 -> 0 | M12: =Net_Short!M54 -> 0 | N12: =Net_Short!N54 -> 0 | O12: =Net_Short!O54 -> 0 | P12: =Net_Short!P54 -> 0 | Q12: =Net_Short!Q54 -> 0 | R12: =Net_Short!R54 -> 0 | S12: =Net_Short!S54 -> 0 | T12: =Net_Short!T54 -> 0 | U12: =Net_Short!U54 -> 0 | V12: =Net_Short!V54 -> 0 | W12: =Net_Short!W54 -> 0 | X12: =Net_Short!X54 -> 0 | Y12: =Net_Short!Y54 -> 0 | Z12: =Net_Short!Z54 -> 0 | AA12: =Net_Short!AA54 -> 0
B14: ADVANCED INPUTS - Custom Scenario Selection | H14: Expected Total Renewable Generation by Year (GWh)
I15: 2012 | J15: =I15+1 -> 2013 | K15: 2014 | L15: 2015 | M15: 2016 | N15: 2017 | O15: 2018 | P15: 2019 | Q15: 2020 | R15: 2021 | S15: 2022 | T15: 2023 | U15: 2024 | V15: 2025 | W15: 2026 | X15: 2027 | Y15: 2028 | Z15: 2029 | AA15: 2030
C16: RPS Policy | D16: 50% by 2030 | H16: Biogas | I16: =SUMPRODUCT((OFFSET(Active_Portfolio!$X$12,1,0,ctPort,1)=1)*(YEAR(OFFSET(Active_Portfolio!$N$12,1,0,ctPort,1))<=I$8)*(YEAR(OFFSET(Active_Portfolio!$O$12,1,0,ctPort,1))>=I$8)*(OFFSET(Active_Portfolio!$K$12,1,0,ctPort,1)=$H16)*(OFFSET(Active_Portfolio!$Y$12,1,0,ctPort,1)=0)*OFFSET(Active_Portfolio!$AA$12,1,0,ctPort,1),OFFSET(Active_Portfolio!$AH$12,1,0,ctPort,1),IF(YEAR(OFFSET(Active_Portfolio!$N$12,1,0,ctPort,1))=I$8,(DATE(I$8+1,1,1)-OFFSET(Active_Portfolio!$N$12,1,0,ctPort,1))/(DATE(I$8+1,1,1)-DATE(I$8,1,1)),1),IF(YEAR(OFFSET(Active_Portfolio!$O$12,1,0,ctPort,1))=I$8,(OFFSET(Active_Portfolio!$O$12,1,0,ctPort,1)+1-DATE(I$8,1,1))/(DATE(I$8+1,1,1)-DATE(I$8,1,1)),1),(1-OFFSET(Active_Portfolio!$AG$12,1,0,ctPort,1))^(I$8-YEAR(OFFSET(Active_Portfolio!$N$12,1,0,ctPort,1)))) -> 614.5148934 | J16: =SUMPRODUCT((YEAR(OFFSET(Active_Portfolio!$N$12,1,0,ctPort,1))<=J$8)*(YEAR(OFFSET(Active_Portfolio!$O$12,1,0,ctPort,1))>=J$8)*(OFFSET(Active_Portfolio!$K$12,1,0,ctPort,1)=$H16)*(OFFSET(Active_Portfolio!$Y$12,1,0,ctPort,1)=0)*OFFSET(Active_Portfolio!$AA$12,1,0,ctPort,1),OFFSET(Active_Portfolio!$AH$12,1,0,ctPort,1),IF(YEAR(OFFSET(Active_Portfolio!$N$12,1,0,ctPort,1))=J$8,(DATE(J$8+1,1,1)-OFFSET(Active_Portfolio!$N$12,1,0,ctPort,1))/(DATE(J$8+1,1,1)-DATE(J$8,1,1)),1),IF(YEAR(OFFSET(Active_Portfolio!$O$12,1,0,ctPort,1))=J$8,(OFFSET(Active_Portfolio!$O$12,1,0,ctPort,1)+1-DATE(J$8,1,1))/(DATE(J$8+1,1,1)-DATE(J$8,1,1)),1),(1-OFFSET(Active_Portfolio!$AG$12,1,0,ctPort,1))^(J$8-YEAR(OFFSET(Active_Portfolio!$N$12,1,0,ctPort,1)))) -> 1557.798804 | K16: =SUMPRODUCT((YEAR(OFFSET(Active_Portfolio!$N$12,1,0,ctPort,1))<=K$8)*(YEAR(OFFSET(Active_Portfolio!$O$12,1,0,ctPort,1))>=K$8)*(OFFSET(Active_Portfolio!$K$12,1,0,ctPort,1)=$H16)*(OFFSET(Active_Portfolio!$Y$12,1,0,ctPort,1)=0)*OFFSET(Active_Portfolio!$AA$12,1,0,ctPort,1),OFFSET(Active_Portfolio!$AH$12,1,0,ctPort,1),IF(YEAR(OFFSET(Active_Portfolio!$N$12,1,0,ctPort,1))=K$8,(DATE(K$8+1,1,1)-OFFSET(Active_Portfolio!$N$12,1,0,ctPort,1))/(DATE(K$8+1,1,1)-DATE(K$8,1,1)),1),IF(YEAR(OFFSET(Active_Portfolio!$O$12,1,0,ctPort,1))=K$8,(OFFSET(Active_Portfolio!$O$12,1,0,ctPort,1)+1-DATE(K$8,1,1))/(DATE(K$8+1,1,1)-DATE(K$8,1,1)),1),(1-OFFSET(Active_Portfolio!$AG$12,1,0,ctPort,1))^(K$8-YEAR(OFFSET(Active_Portfolio!$N$12,1,0,ctPort,1)))) -> 1703.802211 | L16: =SUMPRODUCT((YEAR(OFFSET(Active_Portfolio!$N$12,1,0,ctPort,1))<=L$8)*(YEAR(OFFSET(Active_Portfolio!$O$12,1,0,ctPort,1))>=L$8)*(OFFSET(Active_Portfolio!$K$12,1,0,ctPort,1)=$H16)*(OFFSET(Active_Portfolio!$Y$12,1,0,ctPort,1)=0)*OFFSET(Active_Portfolio!$AA$12,1,0,ctPort,1),OFFSET(Active_Portfolio!$AH$12,1,0,ctPort,1),IF(YEAR(OFFSET(Active_Portfolio!$N$12,1,0,ctPort,1))=L$8,(DATE(L$8+1,1,1)-OFFSET(Active_Portfolio!$N$12,1,0,ctPort,1))/(DATE(L$8+1,1,1)-DATE(L$8,1,1)),1),IF(YEAR(OFFSET(Active_Portfolio!$O$12,1,0,ctPort,1))=L$8,(OFFSET(Active_Portfolio!$O$12,1,0,ctPort,1)+1-DATE(L$8,1,1))/(DATE(L$8+1,1,1)-DATE(L$8,1,1)),1),(1-OFFSET(Active_Portfolio!$AG$12,1,0,ctPort,1))^(L$8-YEAR(OFFSET(Active_Portfolio!$N$12,1,0,ctPort,1)))) -> 1800.848509 | M16: =SUMPRODUCT((YEAR(OFFSET(Active_Portfolio!$N$12,1,0,ctPort,1))<=M$8)*(YEAR(OFFSET(Active_Portfolio!$O$12,1,0,ctPort,1))>=M$8)*(OFFSET(Active_Portfolio!$K$12,1,0,ctPort,1)=$H16)*(OFFSET(Active_Portfolio!$Y$12,1,0,ctPort,1)=0)*OFFSET(Active_Portfolio!$AA$12,1,0,ctPort,1),OFFSET(Active_Portfolio!$AH$12,1,0,ctPort,1),IF(YEAR(OFFSET(Active_Portfolio!$N$12,1,0,ctPort,1))=M$8,(DATE(M$8+1,1,1)-OFFSET(Active_Portfolio!$N$12,1,0,ctPort,1))/(DATE(M$8+1,1,1)-DATE(M$8,1,1)),1),IF(YEAR(OFFSET(Active_Portfolio!$O$12,1,0,ctPort,1))=M$8,(OFFSET(Active_Portfolio!$O$12,1,0,ctPort,1)+1-DATE(M$8,1,1))/(DATE(M$8+1,1,1)-DATE(M$8,1,1)),1),(1-OFFSET(Active_Portfolio!$AG$12,1,0,ctPort,1))^(M$8-YEAR(OFFSET(Active_Portfolio!$N$12,1,0,ctPort,1)))) -> 1842.178575 | N16: =SUMPRODUCT((YEAR(OFFSET(Active_Portfolio!$N$12,1,0,ctPort,1))<=N$8)*(YEAR(OFFSET(Active_Portfolio!$O$12,1,0,ctPort,1))>=N$8)*(OFFSET(Active_Portfolio!$K$12,1,0,ctPort,1)=$H16)*(OFFSET(Active_Portfolio!$Y$12,1,0,ctPort,1)=0)*OFFSET(Active_Portfolio!$AA$12,1,0,ctPort,1),OFFSET(Active_Portfolio!$AH$12,1,0,ctPort,1),IF(YEAR(OFFSET(Active_Portfolio!$N$12,1,0,ctPort,1))=N$8,(DATE(N$8+1,1,1)-OFFSET(Active_Portfolio!$N$12,1,0,ctPort,1))/(DATE(N$8+1,1,1)-DATE(N$8,1,1)),1),IF(YEAR(OFFSET(Active_Portfolio!$O$12,1,0,ctPort,1))=N$8,(OFFSET(Active_Portfolio!$O$12,1,0,ctPort,1)+1-DATE(N$8,1,1))/(DATE(N$8+1,1,1)-DATE(N$8,1,1)),1),(1-OFFSET(Active_Portfolio!$AG$12,1,0,ctPort,1))^(N$8-YEAR(OFFSET(Active_Portfolio!$N$12,1,0,ctPort,1)))) -> 1801.935343 | O16: =SUMPRODUCT((YEAR(OFFSET(Active_Portfolio!$N$12,1,0,ctPort,1))<=O$8)*(YEAR(OFFSET(Active_Portfolio!$O$12,1,0,ctPort,1))>=O$8)*(OFFSET(Active_Portfolio!$K$12,1,0,ctPort,1)=$H16)*(OFFSET(Active_Portfolio!$Y$12,1,0,ctPort,1)=0)*OFFSET(Active_Portfolio!$AA$12,1,0,ctPort,1),OFFSET(Active_Portfolio!$AH$12,1,0,ctPort,1),IF(YEAR(OFFSET(Active_Portfolio!$N$12,1,0,ctPort,1))=O$8,(DATE(O$8+1,1,1)-OFFSET(Active_Portfolio!$N$12,1,0,ctPort,1))/(DATE(O$8+1,1,1)-DATE(O$8,1,1)),1),IF(YEAR(OFFSET(Active_Portfolio!$O$12,1,0,ctPort,1))=O$8,(OFFSET(Active_Portfolio!$O$12,1,0,ctPort,1)+1-DATE(O$8,1,1))/(DATE(O$8+1,1,1)-DATE(O$8,1,1)),1),(1-OFFSET(Active_Portfolio!$AG$12,1,0,ctPort,1))^(O$8-YEAR(OFFSET(Active_Portfolio!$N$12,1,0,ctPort,1)))) -> 1801.935343 | P16: =SUMPRODUCT((YEAR(OFFSET(Active_Portfolio!$N$12,1,0,ctPort,1))<=P$8)*(YEAR(OFFSET(Active_Portfolio!$O$12,1,0,ctPort,1))>=P$8)*(OFFSET(Active_Portfolio!$K$12,1,0,ctPort,1)=$H16)*(OFFSET(Active_Portfolio!$Y$12,1,0,ctPort,1)=0)*OFFSET(Active_Portfolio!$AA$12,1,0,ctPort,1),OFFSET(Active_Portfolio!$AH$12,1,0,ctPort,1),IF(YEAR(OFFSET(Active_Portfolio!$N$12,1,0,ctPort,1))=P$8,(DATE(P$8+1,1,1)-OFFSET(Active_Portfolio!$N$12,1,0,ctPort,1))/(DATE(P$8+1,1,1)-DATE(P$8,1,1)),1),IF(YEAR(OFFSET(Active_Portfolio!$O$12,1,0,ctPort,1))=P$8,(OFFSET(Active_Portfolio!$O$12,1,0,ctPort,1)+1-DATE(P$8,1,1))/(DATE(P$8+1,1,1)-DATE(P$8,1,1)),1),(1-OFFSET(Active_Portfolio!$AG$12,1,0,ctPort,1))^(P$8-YEAR(OFFSET(Active_Portfolio!$N$12,1,0,ctPort,1)))) -> 1801.935343 | Q16: =SUMPRODUCT((YEAR(OFFSET(Active_Portfolio!$N$12,1,0,ctPort,1))<=Q$8)*(YEAR(OFFSET(Active_Portfolio!$O$12,1,0,ctPort,1))>=Q$8)*(OFFSET(Active_Portfolio!$K$12,1,0,ctPort,1)=$H16)*(OFFSET(Active_Portfolio!$Y$12,1,0,ctPort,1)=0)*OFFSET(Active_Portfolio!$AA$12,1,0,ctPort,1),OFFSET(Active_Portfolio!$AH$12,1,0,ctPort,1),IF(YEAR(OFFSET(Active_Portfolio!$N$12,1,0,ctPort,1))=Q$8,(DATE(Q$8+1,1,1)-OFFSET(Active_Portfolio!$N$12,1,0,ctPort,1))/(DATE(Q$8+1,1,1)-DATE(Q$8,1,1)),1),IF(YEAR(OFFSET(Active_Portfolio!$O$12,1,0,ctPort,1))=Q$8,(OFFSET(Active_Portfolio!$O$12,1,0,ctPort,1)+1-DATE(Q$8,1,1))/(DATE(Q$8+1,1,1)-DATE(Q$8,1,1)),1),(1-OFFSET(Active_Portfolio!$AG$12,1,0,ctPort,1))^(Q$8-YEAR(OFFSET(Active_Portfolio!$N$12,1,0,ctPort,1)))) -> 1801.935343 | R16: =SUMPRODUCT((YEAR(OFFSET(Active_Portfolio!$N$12,1,0,ctPort,1))<=R$8)*(YEAR(OFFSET(Active_Portfolio!$O$12,1,0,ctPort,1))>=R$8)*(OFFSET(Active_Portfolio!$K$12,1,0,ctPort,1)=$H16)*(OFFSET(Active_Portfolio!$Y$12,1,0,ctPort,1)=0)*OFFSET(Active_Portfolio!$AA$12,1,0,ctPort,1),OFFSET(Active_Portfolio!$AH$12,1,0,ctPort,1),IF(YEAR(OFFSET(Active_Portfolio!$N$12,1,0,ctPort,1))=R$8,(DATE(R$8+1,1,1)-OFFSET(Active_Portfolio!$N$12,1,0,ctPort,1))/(DATE(R$8+1,1,1)-DATE(R$8,1,1)),1),IF(YEAR(OFFSET(Active_Portfolio!$O$12,1,0,ctPort,1))=R$8,(OFFSET(Active_Portfolio!$O$12,1,0,ctPort,1)+1-DATE(R$8,1,1))/(DATE(R$8+1,1,1)-DATE(R$8,1,1)),1),(1-OFFSET(Active_Portfolio!$AG$12,1,0,ctPort,1))^(R$8-YEAR(OFFSET(Active_Portfolio!$N$12,1,0,ctPort,1)))) -> 1801.935343 | S16: =SUMPRODUCT((YEAR(OFFSET(Active_Portfolio!$N$12,1,0,ctPort,1))<=S$8)*(YEAR(OFFSET(Active_Portfolio!$O$12,1,0,ctPort,1))>=S$8)*(OFFSET(Active_Portfolio!$K$12,1,0,ctPort,1)=$H16)*(OFFSET(Active_Portfolio!$Y$12,1,0,ctPort,1)=0)*OFFSET(Active_Portfolio!$AA$12,1,0,ctPort,1),OFFSET(Active_Portfolio!$AH$12,1,0,ctPort,1),IF(YEAR(OFFSET(Active_Portfolio!$N$12,1,0,ctPort,1))=S$8,(DATE(S$8+1,1,1)-OFFSET(Active_Portfolio!$N$12,1,0,ctPort,1))/(DATE(S$8+1,1,1)-DATE(S$8,1,1)),1),IF(YEAR(OFFSET(Active_Portfolio!$O$12,1,0,ctPort,1))=S$8,(OFFSET(Active_Portfolio!$O$12,1,0,ctPort,1)+1-DATE(S$8,1,1))/(DATE(S$8+1,1,1)-DATE(S$8,1,1)),1),(1-OFFSET(Active_Portfolio!$AG$12,1,0,ctPort,1))^(S$8-YEAR(OFFSET(Active_Portfolio!$N$12,1,0,ctPort,1)))) -> 1801.935343 | T16: =SUMPRODUCT((YEAR(OFFSET(Active_Portfolio!$N$12,1,0,ctPort,1))<=T$8)*(YEAR(OFFSET(Active_Portfolio!$O$12,1,0,ctPort,1))>=T$8)*(OFFSET(Active_Portfolio!$K$12,1,0,ctPort,1)=$H16)*(OFFSET(Active_Portfolio!$Y$12,1,0,ctPort,1)=0)*OFFSET(Active_Portfolio!$AA$12,1,0,ctPort,1),OFFSET(Active_Portfolio!$AH$12,1,0,ctPort,1),IF(YEAR(OFFSET(Active_Portfolio!$N$12,1,0,ctPort,1))=T$8,(DATE(T$8+1,1,1)-OFFSET(Active_Portfolio!$N$12,1,0,ctPort,1))/(DATE(T$8+1,1,1)-DATE(T$8,1,1)),1),IF(YEAR(OFFSET(Active_Portfolio!$O$12,1,0,ctPort,1))=T$8,(OFFSET(Active_Portfolio!$O$12,1,0,ctPort,1)+1-DATE(T$8,1,1))/(DATE(T$8+1,1,1)-DATE(T$8,1,1)),1),(1-OFFSET(Active_Portfolio!$AG$12,1,0,ctPort,1))^(T$8-YEAR(OFFSET(Active_Portfolio!$N$12,1,0,ctPort,1)))) -> 1801.935343 | U16: =SUMPRODUCT((YEAR(OFFSET(Active_Portfolio!$N$12,1,0,ctPort,1))<=U$8)*(YEAR(OFFSET(Active_Portfolio!$O$12,1,0,ctPort,1))>=U$8)*(OFFSET(Active_Portfolio!$K$12,1,0,ctPort,1)=$H16)*(OFFSET(Active_Portfolio!$Y$12,1,0,ctPort,1)=0)*OFFSET(Active_Portfolio!$AA$12,1,0,ctPort,1),OFFSET(Active_Portfolio!$AH$12,1,0,ctPort,1),IF(YEAR(OFFSET(Active_Portfolio!$N$12,1,0,ctPort,1))=U$8,(DATE(U$8+1,1,1)-OFFSET(Active_Portfolio!$N$12,1,0,ctPort,1))/(DATE(U$8+1,1,1)-DATE(U$8,1,1)),1),IF(YEAR(OFFSET(Active_Portfolio!$O$12,1,0,ctPort,1))=U$8,(OFFSET(Active_Portfolio!$O$12,1,0,ctPort,1)+1-DATE(U$8,1,1))/(DATE(U$8+1,1,1)-DATE(U$8,1,1)),1),(1-OFFSET(Active_Portfolio!$AG$12,1,0,ctPort,1))^(U$8-YEAR(OFFSET(Active_Portfolio!$N$12,1,0,ctPort,1)))) -> 1801.935343 | V16: =SUMPRODUCT((YEAR(OFFSET(Active_Portfolio!$N$12,1,0,ctPort,1))<=V$8)*(YEAR(OFFSET(Active_Portfolio!$O$12,1,0,ctPort,1))>=V$8)*(OFFSET(Active_Portfolio!$K$12,1,0,ctPort,1)=$H16)*(OFFSET(Active_Portfolio!$Y$12,1,0,ctPort,1)=0)*OFFSET(Active_Portfolio!$AA$12,1,0,ctPort,1),OFFSET(Active_Portfolio!$AH$12,1,0,ctPort,1),IF(YEAR(OFFSET(Active_Portfolio!$N$12,1,0,ctPort,1))=V$8,(DATE(V$8+1,1,1)-OFFSET(Active_Portfolio!$N$12,1,0,ctPort,1))/(DATE(V$8+1,1,1)-DATE(V$8,1,1)),1),IF(YEAR(OFFSET(Active_Portfolio!$O$12,1,0,ctPort,1))=V$8,(OFFSET(Active_Portfolio!$O$12,1,0,ctPort,1)+1-DATE(V$8,1,1))/(DATE(V$8+1,1,1)-DATE(V$8,1,1)),1),(1-OFFSET(Active_Portfolio!$AG$12,1,0,ctPort,1))^(V$8-YEAR(OFFSET(Active_Portfolio!$N$12,1,0,ctPort,1)))) -> 1801.935343 | W16: =SUMPRODUCT((YEAR(OFFSET(Active_Portfolio!$N$12,1,0,ctPort,1))<=W$8)*(YEAR(OFFSET(Active_Portfolio!$O$12,1,0,ctPort,1))>=W$8)*(OFFSET(Active_Portfolio!$K$12,1,0,ctPort,1)=$H16)*(OFFSET(Active_Portfolio!$Y$12,1,0,ctPort,1)=0)*OFFSET(Active_Portfolio!$AA$12,1,0,ctPort,1),OFFSET(Active_Portfolio!$AH$12,1,0,ctPort,1),IF(YEAR(OFFSET(Active_Portfolio!$N$12,1,0,ctPort,1))=W$8,(DATE(W$8+1,1,1)-OFFSET(Active_Portfolio!$N$12,1,0,ctPort,1))/(DATE(W$8+1,1,1)-DATE(W$8,1,1)),1),IF(YEAR(OFFSET(Active_Portfolio!$O$12,1,0,ctPort,1))=W$8,(OFFSET(Active_Portfolio!$O$12,1,0,ctPort,1)+1-DATE(W$8,1,1))/(DATE(W$8+1,1,1)-DATE(W$8,1,1)),1),(1-OFFSET(Active_Portfolio!$AG$12,1,0,ctPort,1))^(W$8-YEAR(OFFSET(Active_Portfolio!$N$12,1,0,ctPort,1)))) -> 1801.935343 | X16: =SUMPRODUCT((YEAR(OFFSET(Active_Portfolio!$N$12,1,0,ctPort,1))<=X$8)*(YEAR(OFFSET(Active_Portfolio!$O$12,1,0,ctPort,1))>=X$8)*(OFFSET(Active_Portfolio!$K$12,1,0,ctPort,1)=$H16)*(OFFSET(Active_Portfolio!$Y$12,1,0,ctPort,1)=0)*OFFSET(Active_Portfolio!$AA$12,1,0,ctPort,1),OFFSET(Active_Portfolio!$AH$12,1,0,ctPort,1),IF(YEAR(OFFSET(Active_Portfolio!$N$12,1,0,ctPort,1))=X$8,(DATE(X$8+1,1,1)-OFFSET(Active_Portfolio!$N$12,1,0,ctPort,1))/(DATE(X$8+1,1,1)-DATE(X$8,1,1)),1),IF(YEAR(OFFSET(Active_Portfolio!$O$12,1,0,ctPort,1))=X$8,(OFFSET(Active_Portfolio!$O$12,1,0,ctPort,1)+1-DATE(X$8,1,1))/(DATE(X$8+1,1,1)-DATE(X$8,1,1)),1),(1-OFFSET(Active_Portfolio!$AG$12,1,0,ctPort,1))^(X$8-YEAR(OFFSET(Active_Portfolio!$N$12,1,0,ctPort,1)))) -> 1801.935343 | Y16: =SUMPRODUCT((YEAR(OFFSET(Active_Portfolio!$N$12,1,0,ctPort,1))<=Y$8)*(YEAR(OFFSET(Active_Portfolio!$O$12,1,0,ctPort,1))>=Y$8)*(OFFSET(Active_Portfolio!$K$12,1,0,ctPort,1)=$H16)*(OFFSET(Active_Portfolio!$Y$12,1,0,ctPort,1)=0)*OFFSET(Active_Portfolio!$AA$12,1,0,ctPort,1),OFFSET(Active_Portfolio!$AH$12,1,0,ctPort,1),IF(YEAR(OFFSET(Active_Portfolio!$N$12,1,0,ctPort,1))=Y$8,(DATE(Y$8+1,1,1)-OFFSET(Active_Portfolio!$N$12,1,0,ctPort,1))/(DATE(Y$8+1,1,1)-DATE(Y$8,1,1)),1),IF(YEAR(OFFSET(Active_Portfolio!$O$12,1,0,ctPort,1))=Y$8,(OFFSET(Active_Portfolio!$O$12,1,0,ctPort,1)+1-DATE(Y$8,1,1))/(DATE(Y$8+1,1,1)-DATE(Y$8,1,1)),1),(1-OFFSET(Active_Portfolio!$AG$12,1,0,ctPort,1))^(Y$8-YEAR(OFFSET(Active_Portfolio!$N$12,1,0,ctPort,1)))) -> 1801.935343 | Z16: =SUMPRODUCT((YEAR(OFFSET(Active_Portfolio!$N$12,1,0,ctPort,1))<=Z$8)*(YEAR(OFFSET(Active_Portfolio!$O$12,1,0,ctPort,1))>=Z$8)*(OFFSET(Active_Portfolio!$K$12,1,0,ctPort,1)=$H16)*(OFFSET(Active_Portfolio!$Y$12,1,0,ctPort,1)=0)*OFFSET(Active_Portfolio!$AA$12,1,0,ctPort,1),OFFSET(Active_Portfolio!$AH$12,1,0,ctPort,1),IF(YEAR(OFFSET(Active_Portfolio!$N$12,1,0,ctPort,1))=Z$8,(DATE(Z$8+1,1,1)-OFFSET(Active_Portfolio!$N$12,1,0,ctPort,1))/(DATE(Z$8+1,1,1)-DATE(Z$8,1,1)),1),IF(YEAR(OFFSET(Active_Portfolio!$O$12,1,0,ctPort,1))=Z$8,(OFFSET(Active_Portfolio!$O$12,1,0,ctPort,1)+1-DATE(Z$8,1,1))/(DATE(Z$8+1,1,1)-DATE(Z$8,1,1)),1),(1-OFFSET(Active_Portfolio!$AG$12,1,0,ctPort,1))^(Z$8-YEAR(OFFSET(Active_Portfolio!$N$12,1,0,ctPort,1)))) -> 1801.935343 | AA16: =SUMPRODUCT((YEAR(OFFSET(Active_Portfolio!$N$12,1,0,ctPort,1))<=AA$8)*(YEAR(OFFSET(Active_Portfolio!$O$12,1,0,ctPort,1))>=AA$8)*(OFFSET(Active_Portfolio!$K$12,1,0,ctPort,1)=$H16)*(OFFSET(Active_Portfolio!$Y$12,1,0,ctPort,1)=0)*OFFSET(Active_Portfolio!$AA$12,1,0,ctPort,1),OFFSET(Active_Portfolio!$AH$12,1,0,ctPort,1),IF(YEAR(OFFSET(Active_Portfolio!$N$12,1,0,ctPort,1))=AA$8,(DATE(AA$8+1,1,1)-OFFSET(Active_Portfolio!$N$12,1,0,ctPort,1))/(DATE(AA$8+1,1,1)-DATE(AA$8,1,1)),1),IF(YEAR(OFFSET(Active_Portfolio!$O$12,1,0,ctPort,1))=AA$8,(OFFSET(Active_Portfolio!$O$12,1,0,ctPort,1)+1-DATE(AA$8,1,1))/(DATE(AA$8+1,1,1)-DATE(AA$8,1,1)),1),(1-OFFSET(Active_Portfolio!$AG$12,1,0,ctPort,1))^(AA$8-YEAR(OFFSET(Active_Portfolio!$N$12,1,0,ctPort,1)))) -> 1801.935343
H17: Biomass | I17: =SUMPRODUCT((OFFSET(Active_Portfolio!$X$12,1,0,ctPort,1)=1)*(YEAR(OFFSET(Active_Portfolio!$N$12,1,0,ctPort,1))<=I$8)*(YEAR(OFFSET(Active_Portfolio!$O$12,1,0,ctPort,1))>=I$8)*(OFFSET(Active_Portfolio!$K$12,1,0,ctPort,1)=$H17)*(OFFSET(Active_Portfolio!$Y$12,1,0,ctPort,1)=0)*OFFSET(Active_Portfolio!$AA$12,1,0,ctPort,1),OFFSET(Active_Portfolio!$AH$12,1,0,ctPort,1),IF(YEAR(OFFSET(Active_Portfolio!$N$12,1,0,ctPort,1))=I$8,(DATE(I$8+1,1,1)-OFFSET(Active_Portfolio!$N$12,1,0,ctPort,1))/(DATE(I$8+1,1,1)-DATE(I$8,1,1)),1),IF(YEAR(OFFSET(Active_Portfolio!$O$12,1,0,ctPort,1))=I$8,(OFFSET(Active_Portfolio!$O$12,1,0,ctPort,1)+1-DATE(I$8,1,1))/(DATE(I$8+1,1,1)-DATE(I$8,1,1)),1),(1-OFFSET(Active_Portfolio!$AG$12,1,0,ctPort,1))^(I$8-YEAR(OFFSET(Active_Portfolio!$N$12,1,0,ctPort,1)))) -> 230.9844019 | J17: =SUMPRODUCT((YEAR(OFFSET(Active_Portfolio!$N$12,1,0,ctPort,1))<=J$8)*(YEAR(OFFSET(Active_Portfolio!$O$12,1,0,ctPort,1))>=J$8)*(OFFSET(Active_Portfolio!$K$12,1,0,ctPort,1)=$H17)*(OFFSET(Active_Portfolio!$Y$12,1,0,ctPort,1)=0)*OFFSET(Active_Portfolio!$AA$12,1,0,ctPort,1),OFFSET(Active_Portfolio!$AH$12,1,0,ctPort,1),IF(YEAR(OFFSET(Active_Portfolio!$N$12,1,0,ctPort,1))=J$8,(DATE(J$8+1,1,1)-OFFSET(Active_Portfolio!$N$12,1,0,ctPort,1))/(DATE(J$8+1,1,1)-DATE(J$8,1,1)),1),IF(YEAR(OFFSET(Active_Portfolio!$O$12,1,0,ctPort,1))=J$8,(OFFSET(Active_Portfolio!$O$12,1,0,ctPort,1)+1-DATE(J$8,1,1))/(DATE(J$8+1,1,1)-DATE(J$8,1,1)),1),(1-OFFSET(Active_Portfolio!$AG$12,1,0,ctPort,1))^(J$8-YEAR(OFFSET(Active_Portfolio!$N$12,1,0,ctPort,1)))) -> 3719.04769 | K17: =SUMPRODUCT((YEAR(OFFSET(Active_Portfolio!$N$12,1,0,ctPort,1))<=K$8)*(YEAR(OFFSET(Active_Portfolio!$O$12,1,0,ctPort,1))>=K$8)*(OFFSET(Active_Portfolio!$K$12,1,0,ctPort,1)=$H17)*(OFFSET(Active_Portfolio!$Y$12,1,0,ctPort,1)=0)*OFFSET(Active_Portfolio!$AA$12,1,0,ctPort,1),OFFSET(Active_Portfolio!$AH$12,1,0,ctPort,1),IF(YEAR(OFFSET(Active_Portfolio!$N$12,1,0,ctPort,1))=K$8,(DATE(K$8+1,1,1)-OFFSET(Active_Portfolio!$N$12,1,0,ctPort,1))/(DATE(K$8+1,1,1)-DATE(K$8,1,1)),1),IF(YEAR(OFFSET(Active_Portfolio!$O$12,1,0,ctPort,1))=K$8,(OFFSET(Active_Portfolio!$O$12,1,0,ctPort,1)+1-DATE(K$8,1,1))/(DATE(K$8+1,1,1)-DATE(K$8,1,1)),1),(1-OFFSET(Active_Portfolio!$AG$12,1,0,ctPort,1))^(K$8-YEAR(OFFSET(Active_Portfolio!$N$12,1,0,ctPort,1)))) -> 4005.239025 | L17: =SUMPRODUCT((YEAR(OFFSET(Active_Portfolio!$N$12,1,0,ctPort,1))<=L$8)*(YEAR(OFFSET(Active_Portfolio!$O$12,1,0,ctPort,1))>=L$8)*(OFFSET(Active_Portfolio!$K$12,1,0,ctPort,1)=$H17)*(OFFSET(Active_Portfolio!$Y$12,1,0,ctPort,1)=0)*OFFSET(Active_Portfolio!$AA$12,1,0,ctPort,1),OFFSET(Active_Portfolio!$AH$12,1,0,ctPort,1),IF(YEAR(OFFSET(Active_Portfolio!$N$12,1,0,ctPort,1))=L$8,(DATE(L$8+1,1,1)-OFFSET(Active_Portfolio!$N$12,1,0,ctPort,1))/(DATE(L$8+1,1,1)-DATE(L$8,1,1)),1),IF(YEAR(OFFSET(Active_Portfolio!$O$12,1,0,ctPort,1))=L$8,(OFFSET(Active_Portfolio!$O$12,1,0,ctPort,1)+1-DATE(L$8,1,1))/(DATE(L$8+1,1,1)-DATE(L$8,1,1)),1),(1-OFFSET(Active_Portfolio!$AG$12,1,0,ctPort,1))^(L$8-YEAR(OFFSET(Active_Portfolio!$N$12,1,0,ctPort,1)))) -> 4158.266422 | M17: =SUMPRODUCT((YEAR(OFFSET(Active_Portfolio!$N$12,1,0,ctPort,1))<=M$8)*(YEAR(OFFSET(Active_Portfolio!$O$12,1,0,ctPort,1))>=M$8)*(OFFSET(Active_Portfolio!$K$12,1,0,ctPort,1)=$H17)*(OFFSET(Active_Portfolio!$Y$12,1,0,ctPort,1)=0)*OFFSET(Active_Portfolio!$AA$12,1,0,ctPort,1),OFFSET(Active_Portfolio!$AH$12,1,0,ctPort,1),IF(YEAR(OFFSET(Active_Portfolio!$N$12,1,0,ctPort,1))=M$8,(DATE(M$8+1,1,1)-OFFSET(Active_Portfolio!$N$12,1,0,ctPort,1))/(DATE(M$8+1,1,1)-DATE(M$8,1,1)),1),IF(YEAR(OFFSET(Active_Portfolio!$O$12,1,0,ctPort,1))=M$8,(OFFSET(Active_Portfolio!$O$12,1,0,ctPort,1)+1-DATE(M$8,1,1))/(DATE(M$8+1,1,1)-DATE(M$8,1,1)),1),(1-OFFSET(Active_Portfolio!$AG$12,1,0,ctPort,1))^(M$8-YEAR(OFFSET(Active_Portfolio!$N$12,1,0,ctPort,1)))) -> 4395.252723 | N17: =SUMPRODUCT((YEAR(OFFSET(Active_Portfolio!$N$12,1,0,ctPort,1))<=N$8)*(YEAR(OFFSET(Active_Portfolio!$O$12,1,0,ctPort,1))>=N$8)*(OFFSET(Active_Portfolio!$K$12,1,0,ctPort,1)=$H17)*(OFFSET(Active_Portfolio!$Y$12,1,0,ctPort,1)=0)*OFFSET(Active_Portfolio!$AA$12,1,0,ctPort,1),OFFSET(Active_Portfolio!$AH$12,1,0,ctPort,1),IF(YEAR(OFFSET(Active_Portfolio!$N$12,1,0,ctPort,1))=N$8,(DATE(N$8+1,1,1)-OFFSET(Active_Portfolio!$N$12,1,0,ctPort,1))/(DATE(N$8+1,1,1)-DATE(N$8,1,1)),1),IF(YEAR(OFFSET(Active_Portfolio!$O$12,1,0,ctPort,1))=N$8,(OFFSET(Active_Portfolio!$O$12,1,0,ctPort,1)+1-DATE(N$8,1,1))/(DATE(N$8+1,1,1)-DATE(N$8,1,1)),1),(1-OFFSET(Active_Portfolio!$AG$12,1,0,ctPort,1))^(N$8-YEAR(OFFSET(Active_Portfolio!$N$12,1,0,ctPort,1)))) -> 4395.252723 | O17: =SUMPRODUCT((YEAR(OFFSET(Active_Portfolio!$N$12,1,0,ctPort,1))<=O$8)*(YEAR(OFFSET(Active_Portfolio!$O$12,1,0,ctPort,1))>=O$8)*(OFFSET(Active_Portfolio!$K$12,1,0,ctPort,1)=$H17)*(OFFSET(Active_Portfolio!$Y$12,1,0,ctPort,1)=0)*OFFSET(Active_Portfolio!$AA$12,1,0,ctPort,1),OFFSET(Active_Portfolio!$AH$12,1,0,ctPort,1),IF(YEAR(OFFSET(Active_Portfolio!$N$12,1,0,ctPort,1))=O$8,(DATE(O$8+1,1,1)-OFFSET(Active_Portfolio!$N$12,1,0,ctPort,1))/(DATE(O$8+1,1,1)-DATE(O$8,1,1)),1),IF(YEAR(OFFSET(Active_Portfolio!$O$12,1,0,ctPort,1))=O$8,(OFFSET(Active_Portfolio!$O$12,1,0,ctPort,1)+1-DATE(O$8,1,1))/(DATE(O$8+1,1,1)-DATE(O$8,1,1)),1),(1-OFFSET(Active_Portfolio!$AG$12,1,0,ctPort,1))^(O$8-YEAR(OFFSET(Active_Portfolio!$N$12,1,0,ctPort,1)))) -> 4307.58149 | P17: =SUMPRODUCT((YEAR(OFFSET(Active_Portfolio!$N$12,1,0,ctPort,1))<=P$8)*(YEAR(OFFSET(Active_Portfolio!$O$12,1,0,ctPort,1))>=P$8)*(OFFSET(Active_Portfolio!$K$12,1,0,ctPort,1)=$H17)*(OFFSET(Active_Portfolio!$Y$12,1,0,ctPort,1)=0)*OFFSET(Active_Portfolio!$AA$12,1,0,ctPort,1),OFFSET(Active_Portfolio!$AH$12,1,0,ctPort,1),IF(YEAR(OFFSET(Active_Portfolio!$N$12,1,0,ctPort,1))=P$8,(DATE(P$8+1,1,1)-OFFSET(Active_Portfolio!$N$12,1,0,ctPort,1))/(DATE(P$8+1,1,1)-DATE(P$8,1,1)),1),IF(YEAR(OFFSET(Active_Portfolio!$O$12,1,0,ctPort,1))=P$8,(OFFSET(Active_Portfolio!$O$12,1,0,ctPort,1)+1-DATE(P$8,1,1))/(DATE(P$8+1,1,1)-DATE(P$8,1,1)),1),(1-OFFSET(Active_Portfolio!$AG$12,1,0,ctPort,1))^(P$8-YEAR(OFFSET(Active_Portfolio!$N$12,1,0,ctPort,1)))) -> 4295.252723 | Q17: =SUMPRODUCT((YEAR(OFFSET(Active_Portfolio!$N$12,1,0,ctPort,1))<=Q$8)*(YEAR(OFFSET(Active_Portfolio!$O$12,1,0,ctPort,1))>=Q$8)*(OFFSET(Active_Portfolio!$K$12,1,0,ctPort,1)=$H17)*(OFFSET(Active_Portfolio!$Y$12,1,0,ctPort,1)=0)*OFFSET(Active_Portfolio!$AA$12,1,0,ctPort,1),OFFSET(Active_Portfolio!$AH$12,1,0,ctPort,1),IF(YEAR(OFFSET(Active_Portfolio!$N$12,1,0,ctPort,1))=Q$8,(DATE(Q$8+1,1,1)-OFFSET(Active_Portfolio!$N$12,1,0,ctPort,1))/(DATE(Q$8+1,1,1)-DATE(Q$8,1,1)),1),IF(YEAR(OFFSET(Active_Portfolio!$O$12,1,0,ctPort,1))=Q$8,(OFFSET(Active_Portfolio!$O$12,1,0,ctPort,1)+1-DATE(Q$8,1,1))/(DATE(Q$8+1,1,1)-DATE(Q$8,1,1)),1),(1-OFFSET(Active_Portfolio!$AG$12,1,0,ctPort,1))^(Q$8-YEAR(OFFSET(Active_Portfolio!$N$12,1,0,ctPort,1)))) -> 4295.252723 | R17: =SUMPRODUCT((YEAR(OFFSET(Active_Portfolio!$N$12,1,0,ctPort,1))<=R$8)*(YEAR(OFFSET(Active_Portfolio!$O$12,1,0,ctPort,1))>=R$8)*(OFFSET(Active_Portfolio!$K$12,1,0,ctPort,1)=$H17)*(OFFSET(Active_Portfolio!$Y$12,1,0,ctPort,1)=0)*OFFSET(Active_Portfolio!$AA$12,1,0,ctPort,1),OFFSET(Active_Portfolio!$AH$12,1,0,ctPort,1),IF(YEAR(OFFSET(Active_Portfolio!$N$12,1,0,ctPort,1))=R$8,(DATE(R$8+1,1,1)-OFFSET(Active_Portfolio!$N$12,1,0,ctPort,1))/(DATE(R$8+1,1,1)-DATE(R$8,1,1)),1),IF(YEAR(OFFSET(Active_Portfolio!$O$12,1,0,ctPort,1))=R$8,(OFFSET(Active_Portfolio!$O$12,1,0,ctPort,1)+1-DATE(R$8,1,1))/(DATE(R$8+1,1,1)-DATE(R$8,1,1)),1),(1-OFFSET(Active_Portfolio!$AG$12,1,0,ctPort,1))^(R$8-YEAR(OFFSET(Active_Portfolio!$N$12,1,0,ctPort,1)))) -> 4532.902723 | S17: =SUMPRODUCT((YEAR(OFFSET(Active_Portfolio!$N$12,1,0,ctPort,1))<=S$8)*(YEAR(OFFSET(Active_Portfolio!$O$12,1,0,ctPort,1))>=S$8)*(OFFSET(Active_Portfolio!$K$12,1,0,ctPort,1)=$H17)*(OFFSET(Active_Portfolio!$Y$12,1,0,ctPort,1)=0)*OFFSET(Active_Portfolio!$AA$12,1,0,ctPort,1),OFFSET(Active_Portfolio!$AH$12,1,0,ctPort,1),IF(YEAR(OFFSET(Active_Portfolio!$N$12,1,0,ctPort,1))=S$8,(DATE(S$8+1,1,1)-OFFSET(Active_Portfolio!$N$12,1,0,ctPort,1))/(DATE(S$8+1,1,1)-DATE(S$8,1,1)),1),IF(YEAR(OFFSET(Active_Portfolio!$O$12,1,0,ctPort,1))=S$8,(OFFSET(Active_Portfolio!$O$12,1,0,ctPort,1)+1-DATE(S$8,1,1))/(DATE(S$8+1,1,1)-DATE(S$8,1,1)),1),(1-OFFSET(Active_Portfolio!$AG$12,1,0,ctPort,1))^(S$8-YEAR(OFFSET(Active_Portfolio!$N$12,1,0,ctPort,1)))) -> 4649.302723 | T17: =SUMPRODUCT((YEAR(OFFSET(Active_Portfolio!$N$12,1,0,ctPort,1))<=T$8)*(YEAR(OFFSET(Active_Portfolio!$O$12,1,0,ctPort,1))>=T$8)*(OFFSET(Active_Portfolio!$K$12,1,0,ctPort,1)=$H17)*(OFFSET(Active_Portfolio!$Y$12,1,0,ctPort,1)=0)*OFFSET(Active_Portfolio!$AA$12,1,0,ctPort,1),OFFSET(Active_Portfolio!$AH$12,1,0,ctPort,1),IF(YEAR(OFFSET(Active_Portfolio!$N$12,1,0,ctPort,1))=T$8,(DATE(T$8+1,1,1)-OFFSET(Active_Portfolio!$N$12,1,0,ctPort,1))/(DATE(T$8+1,1,1)-DATE(T$8,1,1)),1),IF(YEAR(OFFSET(Active_Portfolio!$O$12,1,0,ctPort,1))=T$8,(OFFSET(Active_Portfolio!$O$12,1,0,ctPort,1)+1-DATE(T$8,1,1))/(DATE(T$8+1,1,1)-DATE(T$8,1,1)),1),(1-OFFSET(Active_Portfolio!$AG$12,1,0,ctPort,1))^(T$8-YEAR(OFFSET(Active_Portfolio!$N$12,1,0,ctPort,1)))) -> 4649.302723 | U17: =SUMPRODUCT((YEAR(OFFSET(Active_Portfolio!$N$12,1,0,ctPort,1))<=U$8)*(YEAR(OFFSET(Active_Portfolio!$O$12,1,0,ctPort,1))>=U$8)*(OFFSET(Active_Portfolio!$K$12,1,0,ctPort,1)=$H17)*(OFFSET(Active_Portfolio!$Y$12,1,0,ctPort,1)=0)*OFFSET(Active_Portfolio!$AA$12,1,0,ctPort,1),OFFSET(Active_Portfolio!$AH$12,1,0,ctPort,1),IF(YEAR(OFFSET(Active_Portfolio!$N$12,1,0,ctPort,1))=U$8,(DATE(U$8+1,1,1)-OFFSET(Active_Portfolio!$N$12,1,0,ctPort,1))/(DATE(U$8+1,1,1)-DATE(U$8,1,1)),1),IF(YEAR(OFFSET(Active_Portfolio!$O$12,1,0,ctPort,1))=U$8,(OFFSET(Active_Portfolio!$O$12,1,0,ctPort,1)+1-DATE(U$8,1,1))/(DATE(U$8+1,1,1)-DATE(U$8,1,1)),1),(1-OFFSET(Active_Portfolio!$AG$12,1,0,ctPort,1))^(U$8-YEAR(OFFSET(Active_Portfolio!$N$12,1,0,ctPort,1)))) -> 4649.302723 | V17: =SUMPRODUCT((YEAR(OFFSET(Active_Portfolio!$N$12,1,0,ctPort,1))<=V$8)*(YEAR(OFFSET(Active_Portfolio!$O$12,1,0,ctPort,1))>=V$8)*(OFFSET(Active_Portfolio!$K$12,1,0,ctPort,1)=$H17)*(OFFSET(Active_Portfolio!$Y$12,1,0,ctPort,1)=0)*OFFSET(Active_Portfolio!$AA$12,1,0,ctPort,1),OFFSET(Active_Portfolio!$AH$12,1,0,ctPort,1),IF(YEAR(OFFSET(Active_Portfolio!$N$12,1,0,ctPort,1))=V$8,(DATE(V$8+1,1,1)-OFFSET(Active_Portfolio!$N$12,1,0,ctPort,1))/(DATE(V$8+1,1,1)-DATE(V$8,1,1)),1),IF(YEAR(OFFSET(Active_Portfolio!$O$12,1,0,ctPort,1))=V$8,(OFFSET(Active_Portfolio!$O$12,1,0,ctPort,1)+1-DATE(V$8,1,1))/(DATE(V$8+1,1,1)-DATE(V$8,1,1)),1),(1-OFFSET(Active_Portfolio!$AG$12,1,0,ctPort,1))^(V$8-YEAR(OFFSET(Active_Portfolio!$N$12,1,0,ctPort,1)))) -> 4649.302723 | W17: =SUMPRODUCT((YEAR(OFFSET(Active_Portfolio!$N$12,1,0,ctPort,1))<=W$8)*(YEAR(OFFSET(Active_Portfolio!$O$12,1,0,ctPort,1))>=W$8)*(OFFSET(Active_Portfolio!$K$12,1,0,ctPort,1)=$H17)*(OFFSET(Active_Portfolio!$Y$12,1,0,ctPort,1)=0)*OFFSET(Active_Portfolio!$AA$12,1,0,ctPort,1),OFFSET(Active_Portfolio!$AH$12,1,0,ctPort,1),IF(YEAR(OFFSET(Active_Portfolio!$N$12,1,0,ctPort,1))=W$8,(DATE(W$8+1,1,1)-OFFSET(Active_Portfolio!$N$12,1,0,ctPort,1))/(DATE(W$8+1,1,1)-DATE(W$8,1,1)),1),IF(YEAR(OFFSET(Active_Portfolio!$O$12,1,0,ctPort,1))=W$8,(OFFSET(Active_Portfolio!$O$12,1,0,ctPort,1)+1-DATE(W$8,1,1))/(DATE(W$8+1,1,1)-DATE(W$8,1,1)),1),(1-OFFSET(Active_Portfolio!$AG$12,1,0,ctPort,1))^(W$8-YEAR(OFFSET(Active_Portfolio!$N$12,1,0,ctPort,1)))) -> 4649.302723 | X17: =SUMPRODUCT((YEAR(OFFSET(Active_Portfolio!$N$12,1,0,ctPort,1))<=X$8)*(YEAR(OFFSET(Active_Portfolio!$O$12,1,0,ctPort,1))>=X$8)*(OFFSET(Active_Portfolio!$K$12,1,0,ctPort,1)=$H17)*(OFFSET(Active_Portfolio!$Y$12,1,0,ctPort,1)=0)*OFFSET(Active_Portfolio!$AA$12,1,0,ctPort,1),OFFSET(Active_Portfolio!$AH$12,1,0,ctPort,1),IF(YEAR(OFFSET(Active_Portfolio!$N$12,1,0,ctPort,1))=X$8,(DATE(X$8+1,1,1)-OFFSET(Active_Portfolio!$N$12,1,0,ctPort,1))/(DATE(X$8+1,1,1)-DATE(X$8,1,1)),1),IF(YEAR(OFFSET(Active_Portfolio!$O$12,1,0,ctPort,1))=X$8,(OFFSET(Active_Portfolio!$O$12,1,0,ctPort,1)+1-DATE(X$8,1,1))/(DATE(X$8+1,1,1)-DATE(X$8,1,1)),1),(1-OFFSET(Active_Portfolio!$AG$12,1,0,ctPort,1))^(X$8-YEAR(OFFSET(Active_Portfolio!$N$12,1,0,ctPort,1)))) -> 4649.302723 | Y17: =SUMPRODUCT((YEAR(OFFSET(Active_Portfolio!$N$12,1,0,ctPort,1))<=Y$8)*(YEAR(OFFSET(Active_Portfolio!$O$12,1,0,ctPort,1))>=Y$8)*(OFFSET(Active_Portfolio!$K$12,1,0,ctPort,1)=$H17)*(OFFSET(Active_Portfolio!$Y$12,1,0,ctPort,1)=0)*OFFSET(Active_Portfolio!$AA$12,1,0,ctPort,1),OFFSET(Active_Portfolio!$AH$12,1,0,ctPort,1),IF(YEAR(OFFSET(Active_Portfolio!$N$12,1,0,ctPort,1))=Y$8,(DATE(Y$8+1,1,1)-OFFSET(Active_Portfolio!$N$12,1,0,ctPort,1))/(DATE(Y$8+1,1,1)-DATE(Y$8,1,1)),1),IF(YEAR(OFFSET(Active_Portfolio!$O$12,1,0,ctPort,1))=Y$8,(OFFSET(Active_Portfolio!$O$12,1,0,ctPort,1)+1-DATE(Y$8,1,1))/(DATE(Y$8+1,1,1)-DATE(Y$8,1,1)),1),(1-OFFSET(Active_Portfolio!$AG$12,1,0,ctPort,1))^(Y$8-YEAR(OFFSET(Active_Portfolio!$N$12,1,0,ctPort,1)))) -> 4649.302723 | Z17: =SUMPRODUCT((YEAR(OFFSET(Active_Portfolio!$N$12,1,0,ctPort,1))<=Z$8)*(YEAR(OFFSET(Active_Portfolio!$O$12,1,0,ctPort,1))>=Z$8)*(OFFSET(Active_Portfolio!$K$12,1,0,ctPort,1)=$H17)*(OFFSET(Active_Portfolio!$Y$12,1,0,ctPort,1)=0)*OFFSET(Active_Portfolio!$AA$12,1,0,ctPort,1),OFFSET(Active_Portfolio!$AH$12,1,0,ctPort,1),IF(YEAR(OFFSET(Active_Portfolio!$N$12,1,0,ctPort,1))=Z$8,(DATE(Z$8+1,1,1)-OFFSET(Active_Portfolio!$N$12,1,0,ctPort,1))/(DATE(Z$8+1,1,1)-DATE(Z$8,1,1)),1),IF(YEAR(OFFSET(Active_Portfolio!$O$12,1,0,ctPort,1))=Z$8,(OFFSET(Active_Portfolio!$O$12,1,0,ctPort,1)+1-DATE(Z$8,1,1))/(DATE(Z$8+1,1,1)-DATE(Z$8,1,1)),1),(1-OFFSET(Active_Portfolio!$AG$12,1,0,ctPort,1))^(Z$8-YEAR(OFFSET(Active_Portfolio!$N$12,1,0,ctPort,1)))) -> 4649.302723 | AA17: =SUMPRODUCT((YEAR(OFFSET(Active_Portfolio!$N$12,1,0,ctPort,1))<=AA$8)*(YEAR(OFFSET(Active_Portfolio!$O$12,1,0,ctPort,1))>=AA$8)*(OFFSET(Active_Portfolio!$K$12,1,0,ctPort,1)=$H17)*(OFFSET(Active_Portfolio!$Y$12,1,0,ctPort,1)=0)*OFFSET(Active_Portfolio!$AA$12,1,0,ctPort,1),OFFSET(Active_Portfolio!$AH$12,1,0,ctPort,1),IF(YEAR(OFFSET(Active_Portfolio!$N$12,1,0,ctPort,1))=AA$8,(DATE(AA$8+1,1,1)-OFFSET(Active_Portfolio!$N$12,1,0,ctPort,1))/(DATE(AA$8+1,1,1)-DATE(AA$8,1,1)),1),IF(YEAR(OFFSET(Active_Portfolio!$O$12,1,0,ctPort,1))=AA$8,(OFFSET(Active_Portfolio!$O$12,1,0,ctPort,1)+1-DATE(AA$8,1,1))/(DATE(AA$8+1,1,1)-DATE(AA$8,1,1)),1),(1-OFFSET(Active_Portfolio!$AG$12,1,0,ctPort,1))^(AA$8-YEAR(OFFSET(Active_Portfolio!$N$12,1,0,ctPort,1)))) -> 4649.302723
C18: Deliverability Type | D18: FCDS Only | H18: Geothermal | I18: =SUMPRODUCT((OFFSET(Active_Portfolio!$X$12,1,0,ctPort,1)=1)*(YEAR(OFFSET(Active_Portfolio!$N$12,1,0,ctPort,1))<=I$8)*(YEAR(OFFSET(Active_Portfolio!$O$12,1,0,ctPort,1))>=I$8)*(OFFSET(Active_Portfolio!$K$12,1,0,ctPort,1)=$H18)*(OFFSET(Active_Portfolio!$Y$12,1,0,ctPort,1)=0)*OFFSET(Active_Portfolio!$AA$12,1,0,ctPort,1),OFFSET(Active_Portfolio!$AH$12,1,0,ctPort,1),IF(YEAR(OFFSET(Active_Portfolio!$N$12,1,0,ctPort,1))=I$8,(DATE(I$8+1,1,1)-OFFSET(Active_Portfolio!$N$12,1,0,ctPort,1))/(DATE(I$8+1,1,1)-DATE(I$8,1,1)),1),IF(YEAR(OFFSET(Active_Portfolio!$O$12,1,0,ctPort,1))=I$8,(OFFSET(Active_Portfolio!$O$12,1,0,ctPort,1)+1-DATE(I$8,1,1))/(DATE(I$8+1,1,1)-DATE(I$8,1,1)),1),(1-OFFSET(Active_Portfolio!$AG$12,1,0,ctPort,1))^(I$8-YEAR(OFFSET(Active_Portfolio!$N$12,1,0,ctPort,1)))) -> 1381.964752 | J18: =SUMPRODUCT((YEAR(OFFSET(Active_Portfolio!$N$12,1,0,ctPort,1))<=J$8)*(YEAR(OFFSET(Active_Portfolio!$O$12,1,0,ctPort,1))>=J$8)*(OFFSET(Active_Portfolio!$K$12,1,0,ctPort,1)=$H18)*(OFFSET(Active_Portfolio!$Y$12,1,0,ctPort,1)=0)*OFFSET(Active_Portfolio!$AA$12,1,0,ctPort,1),OFFSET(Active_Portfolio!$AH$12,1,0,ctPort,1),IF(YEAR(OFFSET(Active_Portfolio!$N$12,1,0,ctPort,1))=J$8,(DATE(J$8+1,1,1)-OFFSET(Active_Portfolio!$N$12,1,0,ctPort,1))/(DATE(J$8+1,1,1)-DATE(J$8,1,1)),1),IF(YEAR(OFFSET(Active_Portfolio!$O$12,1,0,ctPort,1))=J$8,(OFFSET(Active_Portfolio!$O$12,1,0,ctPort,1)+1-DATE(J$8,1,1))/(DATE(J$8+1,1,1)-DATE(J$8,1,1)),1),(1-OFFSET(Active_Portfolio!$AG$12,1,0,ctPort,1))^(J$8-YEAR(OFFSET(Active_Portfolio!$N$12,1,0,ctPort,1)))) -> 12189.56832 | K18: =SUMPRODUCT((YEAR(OFFSET(Active_Portfolio!$N$12,1,0,ctPort,1))<=K$8)*(YEAR(OFFSET(Active_Portfolio!$O$12,1,0,ctPort,1))>=K$8)*(OFFSET(Active_Portfolio!$K$12,1,0,ctPort,1)=$H18)*(OFFSET(Active_Portfolio!$Y$12,1,0,ctPort,1)=0)*OFFSET(Active_Portfolio!$AA$12,1,0,ctPort,1),OFFSET(Active_Portfolio!$AH$12,1,0,ctPort,1),IF(YEAR(OFFSET(Active_Portfolio!$N$12,1,0,ctPort,1))=K$8,(DATE(K$8+1,1,1)-OFFSET(Active_Portfolio!$N$12,1,0,ctPort,1))/(DATE(K$8+1,1,1)-DATE(K$8,1,1)),1),IF(YEAR(OFFSET(Active_Portfolio!$O$12,1,0,ctPort,1))=K$8,(OFFSET(Active_Portfolio!$O$12,1,0,ctPort,1)+1-DATE(K$8,1,1))/(DATE(K$8+1,1,1)-DATE(K$8,1,1)),1),(1-OFFSET(Active_Portfolio!$AG$12,1,0,ctPort,1))^(K$8-YEAR(OFFSET(Active_Portfolio!$N$12,1,0,ctPort,1)))) -> 12268.72525 | L18: =SUMPRODUCT((YEAR(OFFSET(Active_Portfolio!$N$12,1,0,ctPort,1))<=L$8)*(YEAR(OFFSET(Active_Portfolio!$O$12,1,0,ctPort,1))>=L$8)*(OFFSET(Active_Portfolio!$K$12,1,0,ctPort,1)=$H18)*(OFFSET(Active_Portfolio!$Y$12,1,0,ctPort,1)=0)*OFFSET(Active_Portfolio!$AA$12,1,0,ctPort,1),OFFSET(Active_Portfolio!$AH$12,1,0,ctPort,1),IF(YEAR(OFFSET(Active_Portfolio!$N$12,1,0,ctPort,1))=L$8,(DATE(L$8+1,1,1)-OFFSET(Active_Portfolio!$N$12,1,0,ctPort,1))/(DATE(L$8+1,1,1)-DATE(L$8,1,1)),1),IF(YEAR(OFFSET(Active_Portfolio!$O$12,1,0,ctPort,1))=L$8,(OFFSET(Active_Portfolio!$O$12,1,0,ctPort,1)+1-DATE(L$8,1,1))/(DATE(L$8+1,1,1)-DATE(L$8,1,1)),1),(1-OFFSET(Active_Portfolio!$AG$12,1,0,ctPort,1))^(L$8-YEAR(OFFSET(Active_Portfolio!$N$12,1,0,ctPort,1)))) -> 12268.72525 | M18: =SUMPRODUCT((YEAR(OFFSET(Active_Portfolio!$N$12,1,0,ctPort,1))<=M$8)*(YEAR(OFFSET(Active_Portfolio!$O$12,1,0,ctPort,1))>=M$8)*(OFFSET(Active_Portfolio!$K$12,1,0,ctPort,1)=$H18)*(OFFSET(Active_Portfolio!$Y$12,1,0,ctPort,1)=0)*OFFSET(Active_Portfolio!$AA$12,1,0,ctPort,1),OFFSET(Active_Portfolio!$AH$12,1,0,ctPort,1),IF(YEAR(OFFSET(Active_Portfolio!$N$12,1,0,ctPort,1))=M$8,(DATE(M$8+1,1,1)-OFFSET(Active_Portfolio!$N$12,1,0,ctPort,1))/(DATE(M$8+1,1,1)-DATE(M$8,1,1)),1),IF(YEAR(OFFSET(Active_Portfolio!$O$12,1,0,ctPort,1))=M$8,(OFFSET(Active_Portfolio!$O$12,1,0,ctPort,1)+1-DATE(M$8,1,1))/(DATE(M$8+1,1,1)-DATE(M$8,1,1)),1),(1-OFFSET(Active_Portfolio!$AG$12,1,0,ctPort,1))^(M$8-YEAR(OFFSET(Active_Portfolio!$N$12,1,0,ctPort,1)))) -> 11463.02426 | N18: =SUMPRODUCT((YEAR(OFFSET(Active_Portfolio!$N$12,1,0,ctPort,1))<=N$8)*(YEAR(OFFSET(Active_Portfolio!$O$12,1,0,ctPort,1))>=N$8)*(OFFSET(Active_Portfolio!$K$12,1,0,ctPort,1)=$H18)*(OFFSET(Active_Portfolio!$Y$12,1,0,ctPort,1)=0)*OFFSET(Active_Portfolio!$AA$12,1,0,ctPort,1),OFFSET(Active_Portfolio!$AH$12,1,0,ctPort,1),IF(YEAR(OFFSET(Active_Portfolio!$N$12,1,0,ctPort,1))=N$8,(DATE(N$8+1,1,1)-OFFSET(Active_Portfolio!$N$12,1,0,ctPort,1))/(DATE(N$8+1,1,1)-DATE(N$8,1,1)),1),IF(YEAR(OFFSET(Active_Portfolio!$O$12,1,0,ctPort,1))=N$8,(OFFSET(Active_Portfolio!$O$12,1,0,ctPort,1)+1-DATE(N$8,1,1))/(DATE(N$8+1,1,1)-DATE(N$8,1,1)),1),(1-OFFSET(Active_Portfolio!$AG$12,1,0,ctPort,1))^(N$8-YEAR(OFFSET(Active_Portfolio!$N$12,1,0,ctPort,1)))) -> 11331.66026 | O18: =SUMPRODUCT((YEAR(OFFSET(Active_Portfolio!$N$12,1,0,ctPort,1))<=O$8)*(YEAR(OFFSET(Active_Portfolio!$O$12,1,0,ctPort,1))>=O$8)*(OFFSET(Active_Portfolio!$K$12,1,0,ctPort,1)=$H18)*(OFFSET(Active_Portfolio!$Y$12,1,0,ctPort,1)=0)*OFFSET(Active_Portfolio!$AA$12,1,0,ctPort,1),OFFSET(Active_Portfolio!$AH$12,1,0,ctPort,1),IF(YEAR(OFFSET(Active_Portfolio!$N$12,1,0,ctPort,1))=O$8,(DATE(O$8+1,1,1)-OFFSET(Active_Portfolio!$N$12,1,0,ctPort,1))/(DATE(O$8+1,1,1)-DATE(O$8,1,1)),1),IF(YEAR(OFFSET(Active_Portfolio!$O$12,1,0,ctPort,1))=O$8,(OFFSET(Active_Portfolio!$O$12,1,0,ctPort,1)+1-DATE(O$8,1,1))/(DATE(O$8+1,1,1)-DATE(O$8,1,1)),1),(1-OFFSET(Active_Portfolio!$AG$12,1,0,ctPort,1))^(O$8-YEAR(OFFSET(Active_Portfolio!$N$12,1,0,ctPort,1)))) -> 11690.44141 | P18: =SUMPRODUCT((YEAR(OFFSET(Active_Portfolio!$N$12,1,0,ctPort,1))<=P$8)*(YEAR(OFFSET(Active_Portfolio!$O$12,1,0,ctPort,1))>=P$8)*(OFFSET(Active_Portfolio!$K$12,1,0,ctPort,1)=$H18)*(OFFSET(Active_Portfolio!$Y$12,1,0,ctPort,1)=0)*OFFSET(Active_Portfolio!$AA$12,1,0,ctPort,1),OFFSET(Active_Portfolio!$AH$12,1,0,ctPort,1),IF(YEAR(OFFSET(Active_Portfolio!$N$12,1,0,ctPort,1))=P$8,(DATE(P$8+1,1,1)-OFFSET(Active_Portfolio!$N$12,1,0,ctPort,1))/(DATE(P$8+1,1,1)-DATE(P$8,1,1)),1),IF(YEAR(OFFSET(Active_Portfolio!$O$12,1,0,ctPort,1))=P$8,(OFFSET(Active_Portfolio!$O$12,1,0,ctPort,1)+1-DATE(P$8,1,1))/(DATE(P$8+1,1,1)-DATE(P$8,1,1)),1),(1-OFFSET(Active_Portfolio!$AG$12,1,0,ctPort,1))^(P$8-YEAR(OFFSET(Active_Portfolio!$N$12,1,0,ctPort,1)))) -> 11049.2116 | Q18: =SUMPRODUCT((YEAR(OFFSET(Active_Portfolio!$N$12,1,0,ctPort,1))<=Q$8)*(YEAR(OFFSET(Active_Portfolio!$O$12,1,0,ctPort,1))>=Q$8)*(OFFSET(Active_Portfolio!$K$12,1,0,ctPort,1)=$H18)*(OFFSET(Active_Portfolio!$Y$12,1,0,ctPort,1)=0)*OFFSET(Active_Portfolio!$AA$12,1,0,ctPort,1),OFFSET(Active_Portfolio!$AH$12,1,0,ctPort,1),IF(YEAR(OFFSET(Active_Portfolio!$N$12,1,0,ctPort,1))=Q$8,(DATE(Q$8+1,1,1)-OFFSET(Active_Portfolio!$N$12,1,0,ctPort,1))/(DATE(Q$8+1,1,1)-DATE(Q$8,1,1)),1),IF(YEAR(OFFSET(Active_Portfolio!$O$12,1,0,ctPort,1))=Q$8,(OFFSET(Active_Portfolio!$O$12,1,0,ctPort,1)+1-DATE(Q$8,1,1))/(DATE(Q$8+1,1,1)-DATE(Q$8,1,1)),1),(1-OFFSET(Active_Portfolio!$AG$12,1,0,ctPort,1))^(Q$8-YEAR(OFFSET(Active_Portfolio!$N$12,1,0,ctPort,1)))) -> 10740.75193 | R18: =SUMPRODUCT((YEAR(OFFSET(Active_Portfolio!$N$12,1,0,ctPort,1))<=R$8)*(YEAR(OFFSET(Active_Portfolio!$O$12,1,0,ctPort,1))>=R$8)*(OFFSET(Active_Portfolio!$K$12,1,0,ctPort,1)=$H18)*(OFFSET(Active_Portfolio!$Y$12,1,0,ctPort,1)=0)*OFFSET(Active_Portfolio!$AA$12,1,0,ctPort,1),OFFSET(Active_Portfolio!$AH$12,1,0,ctPort,1),IF(YEAR(OFFSET(Active_Portfolio!$N$12,1,0,ctPort,1))=R$8,(DATE(R$8+1,1,1)-OFFSET(Active_Portfolio!$N$12,1,0,ctPort,1))/(DATE(R$8+1,1,1)-DATE(R$8,1,1)),1),IF(YEAR(OFFSET(Active_Portfolio!$O$12,1,0,ctPort,1))=R$8,(OFFSET(Active_Portfolio!$O$12,1,0,ctPort,1)+1-DATE(R$8,1,1))/(DATE(R$8+1,1,1)-DATE(R$8,1,1)),1),(1-OFFSET(Active_Portfolio!$AG$12,1,0,ctPort,1))^(R$8-YEAR(OFFSET(Active_Portfolio!$N$12,1,0,ctPort,1)))) -> 10578.10158 | S18: =SUMPRODUCT((YEAR(OFFSET(Active_Portfolio!$N$12,1,0,ctPort,1))<=S$8)*(YEAR(OFFSET(Active_Portfolio!$O$12,1,0,ctPort,1))>=S$8)*(OFFSET(Active_Portfolio!$K$12,1,0,ctPort,1)=$H18)*(OFFSET(Active_Portfolio!$Y$12,1,0,ctPort,1)=0)*OFFSET(Active_Portfolio!$AA$12,1,0,ctPort,1),OFFSET(Active_Portfolio!$AH$12,1,0,ctPort,1),IF(YEAR(OFFSET(Active_Portfolio!$N$12,1,0,ctPort,1))=S$8,(DATE(S$8+1,1,1)-OFFSET(Active_Portfolio!$N$12,1,0,ctPort,1))/(DATE(S$8+1,1,1)-DATE(S$8,1,1)),1),IF(YEAR(OFFSET(Active_Portfolio!$O$12,1,0,ctPort,1))=S$8,(OFFSET(Active_Portfolio!$O$12,1,0,ctPort,1)+1-DATE(S$8,1,1))/(DATE(S$8+1,1,1)-DATE(S$8,1,1)),1),(1-OFFSET(Active_Portfolio!$AG$12,1,0,ctPort,1))^(S$8-YEAR(OFFSET(Active_Portfolio!$N$12,1,0,ctPort,1)))) -> 10578.10158 | T18: =SUMPRODUCT((YEAR(OFFSET(Active_Portfolio!$N$12,1,0,ctPort,1))<=T$8)*(YEAR(OFFSET(Active_Portfolio!$O$12,1,0,ctPort,1))>=T$8)*(OFFSET(Active_Portfolio!$K$12,1,0,ctPort,1)=$H18)*(OFFSET(Active_Portfolio!$Y$12,1,0,ctPort,1)=0)*OFFSET(Active_Portfolio!$AA$12,1,0,ctPort,1),OFFSET(Active_Portfolio!$AH$12,1,0,ctPort,1),IF(YEAR(OFFSET(Active_Portfolio!$N$12,1,0,ctPort,1))=T$8,(DATE(T$8+1,1,1)-OFFSET(Active_Portfolio!$N$12,1,0,ctPort,1))/(DATE(T$8+1,1,1)-DATE(T$8,1,1)),1),IF(YEAR(OFFSET(Active_Portfolio!$O$12,1,0,ctPort,1))=T$8,(OFFSET(Active_Portfolio!$O$12,1,0,ctPort,1)+1-DATE(T$8,1,1))/(DATE(T$8+1,1,1)-DATE(T$8,1,1)),1),(1-OFFSET(Active_Portfolio!$AG$12,1,0,ctPort,1))^(T$8-YEAR(OFFSET(Active_Portfolio!$N$12,1,0,ctPort,1)))) -> 10578.10158 | U18: =SUMPRODUCT((YEAR(OFFSET(Active_Portfolio!$N$12,1,0,ctPort,1))<=U$8)*(YEAR(OFFSET(Active_Portfolio!$O$12,1,0,ctPort,1))>=U$8)*(OFFSET(Active_Portfolio!$K$12,1,0,ctPort,1)=$H18)*(OFFSET(Active_Portfolio!$Y$12,1,0,ctPort,1)=0)*OFFSET(Active_Portfolio!$AA$12,1,0,ctPort,1),OFFSET(Active_Portfolio!$AH$12,1,0,ctPort,1),IF(YEAR(OFFSET(Active_Portfolio!$N$12,1,0,ctPort,1))=U$8,(DATE(U$8+1,1,1)-OFFSET(Active_Portfolio!$N$12,1,0,ctPort,1))/(DATE(U$8+1,1,1)-DATE(U$8,1,1)),1),IF(YEAR(OFFSET(Active_Portfolio!$O$12,1,0,ctPort,1))=U$8,(OFFSET(Active_Portfolio!$O$12,1,0,ctPort,1)+1-DATE(U$8,1,1))/(DATE(U$8+1,1,1)-DATE(U$8,1,1)),1),(1-OFFSET(Active_Portfolio!$AG$12,1,0,ctPort,1))^(U$8-YEAR(OFFSET(Active_Portfolio!$N$12,1,0,ctPort,1)))) -> 10578.10158 | V18: =SUMPRODUCT((YEAR(OFFSET(Active_Portfolio!$N$12,1,0,ctPort,1))<=V$8)*(YEAR(OFFSET(Active_Portfolio!$O$12,1,0,ctPort,1))>=V$8)*(OFFSET(Active_Portfolio!$K$12,1,0,ctPort,1)=$H18)*(OFFSET(Active_Portfolio!$Y$12,1,0,ctPort,1)=0)*OFFSET(Active_Portfolio!$AA$12,1,0,ctPort,1),OFFSET(Active_Portfolio!$AH$12,1,0,ctPort,1),IF(YEAR(OFFSET(Active_Portfolio!$N$12,1,0,ctPort,1))=V$8,(DATE(V$8+1,1,1)-OFFSET(Active_Portfolio!$N$12,1,0,ctPort,1))/(DATE(V$8+1,1,1)-DATE(V$8,1,1)),1),IF(YEAR(OFFSET(Active_Portfolio!$O$12,1,0,ctPort,1))=V$8,(OFFSET(Active_Portfolio!$O$12,1,0,ctPort,1)+1-DATE(V$8,1,1))/(DATE(V$8+1,1,1)-DATE(V$8,1,1)),1),(1-OFFSET(Active_Portfolio!$AG$12,1,0,ctPort,1))^(V$8-YEAR(OFFSET(Active_Portfolio!$N$12,1,0,ctPort,1)))) -> 10578.10158 | W18: =SUMPRODUCT((YEAR(OFFSET(Active_Portfolio!$N$12,1,0,ctPort,1))<=W$8)*(YEAR(OFFSET(Active_Portfolio!$O$12,1,0,ctPort,1))>=W$8)*(OFFSET(Active_Portfolio!$K$12,1,0,ctPort,1)=$H18)*(OFFSET(Active_Portfolio!$Y$12,1,0,ctPort,1)=0)*OFFSET(Active_Portfolio!$AA$12,1,0,ctPort,1),OFFSET(Active_Portfolio!$AH$12,1,0,ctPort,1),IF(YEAR(OFFSET(Active_Portfolio!$N$12,1,0,ctPort,1))=W$8,(DATE(W$8+1,1,1)-OFFSET(Active_Portfolio!$N$12,1,0,ctPort,1))/(DATE(W$8+1,1,1)-DATE(W$8,1,1)),1),IF(YEAR(OFFSET(Active_Portfolio!$O$12,1,0,ctPort,1))=W$8,(OFFSET(Active_Portfolio!$O$12,1,0,ctPort,1)+1-DATE(W$8,1,1))/(DATE(W$8+1,1,1)-DATE(W$8,1,1)),1),(1-OFFSET(Active_Portfolio!$AG$12,1,0,ctPort,1))^(W$8-YEAR(OFFSET(Active_Portfolio!$N$12,1,0,ctPort,1)))) -> 10419.0031 | X18: =SUMPRODUCT((YEAR(OFFSET(Active_Portfolio!$N$12,1,0,ctPort,1))<=X$8)*(YEAR(OFFSET(Active_Portfolio!$O$12,1,0,ctPort,1))>=X$8)*(OFFSET(Active_Portfolio!$K$12,1,0,ctPort,1)=$H18)*(OFFSET(Active_Portfolio!$Y$12,1,0,ctPort,1)=0)*OFFSET(Active_Portfolio!$AA$12,1,0,ctPort,1),OFFSET(Active_Portfolio!$AH$12,1,0,ctPort,1),IF(YEAR(OFFSET(Active_Portfolio!$N$12,1,0,ctPort,1))=X$8,(DATE(X$8+1,1,1)-OFFSET(Active_Portfolio!$N$12,1,0,ctPort,1))/(DATE(X$8+1,1,1)-DATE(X$8,1,1)),1),IF(YEAR(OFFSET(Active_Portfolio!$O$12,1,0,ctPort,1))=X$8,(OFFSET(Active_Portfolio!$O$12,1,0,ctPort,1)+1-DATE(X$8,1,1))/(DATE(X$8+1,1,1)-DATE(X$8,1,1)),1),(1-OFFSET(Active_Portfolio!$AG$12,1,0,ctPort,1))^(X$8-YEAR(OFFSET(Active_Portfolio!$N$12,1,0,ctPort,1)))) -> 10316.52074 | Y18: =SUMPRODUCT((YEAR(OFFSET(Active_Portfolio!$N$12,1,0,ctPort,1))<=Y$8)*(YEAR(OFFSET(Active_Portfolio!$O$12,1,0,ctPort,1))>=Y$8)*(OFFSET(Active_Portfolio!$K$12,1,0,ctPort,1)=$H18)*(OFFSET(Active_Portfolio!$Y$12,1,0,ctPort,1)=0)*OFFSET(Active_Portfolio!$AA$12,1,0,ctPort,1),OFFSET(Active_Portfolio!$AH$12,1,0,ctPort,1),IF(YEAR(OFFSET(Active_Portfolio!$N$12,1,0,ctPort,1))=Y$8,(DATE(Y$8+1,1,1)-OFFSET(Active_Portfolio!$N$12,1,0,ctPort,1))/(DATE(Y$8+1,1,1)-DATE(Y$8,1,1)),1),IF(YEAR(OFFSET(Active_Portfolio!$O$12,1,0,ctPort,1))=Y$8,(OFFSET(Active_Portfolio!$O$12,1,0,ctPort,1)+1-DATE(Y$8,1,1))/(DATE(Y$8+1,1,1)-DATE(Y$8,1,1)),1),(1-OFFSET(Active_Portfolio!$AG$12,1,0,ctPort,1))^(Y$8-YEAR(OFFSET(Active_Portfolio!$N$12,1,0,ctPort,1)))) -> 10316.52074 | Z18: =SUMPRODUCT((YEAR(OFFSET(Active_Portfolio!$N$12,1,0,ctPort,1))<=Z$8)*(YEAR(OFFSET(Active_Portfolio!$O$12,1,0,ctPort,1))>=Z$8)*(OFFSET(Active_Portfolio!$K$12,1,0,ctPort,1)=$H18)*(OFFSET(Active_Portfolio!$Y$12,1,0,ctPort,1)=0)*OFFSET(Active_Portfolio!$AA$12,1,0,ctPort,1),OFFSET(Active_Portfolio!$AH$12,1,0,ctPort,1),IF(YEAR(OFFSET(Active_Portfolio!$N$12,1,0,ctPort,1))=Z$8,(DATE(Z$8+1,1,1)-OFFSET(Active_Portfolio!$N$12,1,0,ctPort,1))/(DATE(Z$8+1,1,1)-DATE(Z$8,1,1)),1),IF(YEAR(OFFSET(Active_Portfolio!$O$12,1,0,ctPort,1))=Z$8,(OFFSET(Active_Portfolio!$O$12,1,0,ctPort,1)+1-DATE(Z$8,1,1))/(DATE(Z$8+1,1,1)-DATE(Z$8,1,1)),1),(1-OFFSET(Active_Portfolio!$AG$12,1,0,ctPort,1))^(Z$8-YEAR(OFFSET(Active_Portfolio!$N$12,1,0,ctPort,1)))) -> 10316.52074 | AA18: =SUMPRODUCT((YEAR(OFFSET(Active_Portfolio!$N$12,1,0,ctPort,1))<=AA$8)*(YEAR(OFFSET(Active_Portfolio!$O$12,1,0,ctPort,1))>=AA$8)*(OFFSET(Active_Portfolio!$K$12,1,0,ctPort,1)=$H18)*(OFFSET(Active_Portfolio!$Y$12,1,0,ctPort,1)=0)*OFFSET(Active_Portfolio!$AA$12,1,0,ctPort,1),OFFSET(Active_Portfolio!$AH$12,1,0,ctPort,1),IF(YEAR(OFFSET(Active_Portfolio!$N$12,1,0,ctPort,1))=AA$8,(DATE(AA$8+1,1,1)-OFFSET(Active_Portfolio!$N$12,1,0,ctPort,1))/(DATE(AA$8+1,1,1)-DATE(AA$8,1,1)),1),IF(YEAR(OFFSET(Active_Portfolio!$O$12,1,0,ctPort,1))=AA$8,(OFFSET(Active_Portfolio!$O$12,1,0,ctPort,1)+1-DATE(AA$8,1,1))/(DATE(AA$8+1,1,1)-DATE(AA$8,1,1)),1),(1-OFFSET(Active_Portfolio!$AG$12,1,0,ctPort,1))^(AA$8-YEAR(OFFSET(Active_Portfolio!$N$12,1,0,ctPort,1)))) -> 10316.52074
H19: Hydro | I19: =SUMPRODUCT((OFFSET(Active_Portfolio!$X$12,1,0,ctPort,1)=1)*(YEAR(OFFSET(Active_Portfolio!$N$12,1,0,ctPort,1))<=I$8)*(YEAR(OFFSET(Active_Portfolio!$O$12,1,0,ctPort,1))>=I$8)*(OFFSET(Active_Portfolio!$K$12,1,0,ctPort,1)=$H19)*(OFFSET(Active_Portfolio!$Y$12,1,0,ctPort,1)=0)*OFFSET(Active_Portfolio!$AA$12,1,0,ctPort,1),OFFSET(Active_Portfolio!$AH$12,1,0,ctPort,1),IF(YEAR(OFFSET(Active_Portfolio!$N$12,1,0,ctPort,1))=I$8,(DATE(I$8+1,1,1)-OFFSET(Active_Portfolio!$N$12,1,0,ctPort,1))/(DATE(I$8+1,1,1)-DATE(I$8,1,1)),1),IF(YEAR(OFFSET(Active_Portfolio!$O$12,1,0,ctPort,1))=I$8,(OFFSET(Active_Portfolio!$O$12,1,0,ctPort,1)+1-DATE(I$8,1,1))/(DATE(I$8+1,1,1)-DATE(I$8,1,1)),1),(1-OFFSET(Active_Portfolio!$AG$12,1,0,ctPort,1))^(I$8-YEAR(OFFSET(Active_Portfolio!$N$12,1,0,ctPort,1)))) -> 830.7052278 | J19: =SUMPRODUCT((YEAR(OFFSET(Active_Portfolio!$N$12,1,0,ctPort,1))<=J$8)*(YEAR(OFFSET(Active_Portfolio!$O$12,1,0,ctPort,1))>=J$8)*(OFFSET(Active_Portfolio!$K$12,1,0,ctPort,1)=$H19)*(OFFSET(Active_Portfolio!$Y$12,1,0,ctPort,1)=0)*OFFSET(Active_Portfolio!$AA$12,1,0,ctPort,1),OFFSET(Active_Portfolio!$AH$12,1,0,ctPort,1),IF(YEAR(OFFSET(Active_Portfolio!$N$12,1,0,ctPort,1))=J$8,(DATE(J$8+1,1,1)-OFFSET(Active_Portfolio!$N$12,1,0,ctPort,1))/(DATE(J$8+1,1,1)-DATE(J$8,1,1)),1),IF(YEAR(OFFSET(Active_Portfolio!$O$12,1,0,ctPort,1))=J$8,(OFFSET(Active_Portfolio!$O$12,1,0,ctPort,1)+1-DATE(J$8,1,1))/(DATE(J$8+1,1,1)-DATE(J$8,1,1)),1),(1-OFFSET(Active_Portfolio!$AG$12,1,0,ctPort,1))^(J$8-YEAR(OFFSET(Active_Portfolio!$N$12,1,0,ctPort,1)))) -> 3689.359093 | K19: =SUMPRODUCT((YEAR(OFFSET(Active_Portfolio!$N$12,1,0,ctPort,1))<=K$8)*(YEAR(OFFSET(Active_Portfolio!$O$12,1,0,ctPort,1))>=K$8)*(OFFSET(Active_Portfolio!$K$12,1,0,ctPort,1)=$H19)*(OFFSET(Active_Portfolio!$Y$12,1,0,ctPort,1)=0)*OFFSET(Active_Portfolio!$AA$12,1,0,ctPort,1),OFFSET(Active_Portfolio!$AH$12,1,0,ctPort,1),IF(YEAR(OFFSET(Active_Portfolio!$N$12,1,0,ctPort,1))=K$8,(DATE(K$8+1,1,1)-OFFSET(Active_Portfolio!$N$12,1,0,ctPort,1))/(DATE(K$8+1,1,1)-DATE(K$8,1,1)),1),IF(YEAR(OFFSET(Active_Portfolio!$O$12,1,0,ctPort,1))=K$8,(OFFSET(Active_Portfolio!$O$12,1,0,ctPort,1)+1-DATE(K$8,1,1))/(DATE(K$8+1,1,1)-DATE(K$8,1,1)),1),(1-OFFSET(Active_Portfolio!$AG$12,1,0,ctPort,1))^(K$8-YEAR(OFFSET(Active_Portfolio!$N$12,1,0,ctPort,1)))) -> 3808.257028 | L19: =SUMPRODUCT((YEAR(OFFSET(Active_Portfolio!$N$12,1,0,ctPort,1))<=L$8)*(YEAR(OFFSET(Active_Portfolio!$O$12,1,0,ctPort,1))>=L$8)*(OFFSET(Active_Portfolio!$K$12,1,0,ctPort,1)=$H19)*(OFFSET(Active_Portfolio!$Y$12,1,0,ctPort,1)=0)*OFFSET(Active_Portfolio!$AA$12,1,0,ctPort,1),OFFSET(Active_Portfolio!$AH$12,1,0,ctPort,1),IF(YEAR(OFFSET(Active_Portfolio!$N$12,1,0,ctPort,1))=L$8,(DATE(L$8+1,1,1)-OFFSET(Active_Portfolio!$N$12,1,0,ctPort,1))/(DATE(L$8+1,1,1)-DATE(L$8,1,1)),1),IF(YEAR(OFFSET(Active_Portfolio!$O$12,1,0,ctPort,1))=L$8,(OFFSET(Active_Portfolio!$O$12,1,0,ctPort,1)+1-DATE(L$8,1,1))/(DATE(L$8+1,1,1)-DATE(L$8,1,1)),1),(1-OFFSET(Active_Portfolio!$AG$12,1,0,ctPort,1))^(L$8-YEAR(OFFSET(Active_Portfolio!$N$12,1,0,ctPort,1)))) -> 3898.045373 | M19: =SUMPRODUCT((YEAR(OFFSET(Active_Portfolio!$N$12,1,0,ctPort,1))<=M$8)*(YEAR(OFFSET(Active_Portfolio!$O$12,1,0,ctPort,1))>=M$8)*(OFFSET(Active_Portfolio!$K$12,1,0,ctPort,1)=$H19)*(OFFSET(Active_Portfolio!$Y$12,1,0,ctPort,1)=0)*OFFSET(Active_Portfolio!$AA$12,1,0,ctPort,1),OFFSET(Active_Portfolio!$AH$12,1,0,ctPort,1),IF(YEAR(OFFSET(Active_Portfolio!$N$12,1,0,ctPort,1))=M$8,(DATE(M$8+1,1,1)-OFFSET(Active_Portfolio!$N$12,1,0,ctPort,1))/(DATE(M$8+1,1,1)-DATE(M$8,1,1)),1),IF(YEAR(OFFSET(Active_Portfolio!$O$12,1,0,ctPort,1))=M$8,(OFFSET(Active_Portfolio!$O$12,1,0,ctPort,1)+1-DATE(M$8,1,1))/(DATE(M$8+1,1,1)-DATE(M$8,1,1)),1),(1-OFFSET(Active_Portfolio!$AG$12,1,0,ctPort,1))^(M$8-YEAR(OFFSET(Active_Portfolio!$N$12,1,0,ctPort,1)))) -> 3984.550477 | N19: =SUMPRODUCT((YEAR(OFFSET(Active_Portfolio!$N$12,1,0,ctPort,1))<=N$8)*(YEAR(OFFSET(Active_Portfolio!$O$12,1,0,ctPort,1))>=N$8)*(OFFSET(Active_Portfolio!$K$12,1,0,ctPort,1)=$H19)*(OFFSET(Active_Portfolio!$Y$12,1,0,ctPort,1)=0)*OFFSET(Active_Portfolio!$AA$12,1,0,ctPort,1),OFFSET(Active_Portfolio!$AH$12,1,0,ctPort,1),IF(YEAR(OFFSET(Active_Portfolio!$N$12,1,0,ctPort,1))=N$8,(DATE(N$8+1,1,1)-OFFSET(Active_Portfolio!$N$12,1,0,ctPort,1))/(DATE(N$8+1,1,1)-DATE(N$8,1,1)),1),IF(YEAR(OFFSET(Active_Portfolio!$O$12,1,0,ctPort,1))=N$8,(OFFSET(Active_Portfolio!$O$12,1,0,ctPort,1)+1-DATE(N$8,1,1))/(DATE(N$8+1,1,1)-DATE(N$8,1,1)),1),(1-OFFSET(Active_Portfolio!$AG$12,1,0,ctPort,1))^(N$8-YEAR(OFFSET(Active_Portfolio!$N$12,1,0,ctPort,1)))) -> 3999.686121 | O19: =SUMPRODUCT((YEAR(OFFSET(Active_Portfolio!$N$12,1,0,ctPort,1))<=O$8)*(YEAR(OFFSET(Active_Portfolio!$O$12,1,0,ctPort,1))>=O$8)*(OFFSET(Active_Portfolio!$K$12,1,0,ctPort,1)=$H19)*(OFFSET(Active_Portfolio!$Y$12,1,0,ctPort,1)=0)*OFFSET(Active_Portfolio!$AA$12,1,0,ctPort,1),OFFSET(Active_Portfolio!$AH$12,1,0,ctPort,1),IF(YEAR(OFFSET(Active_Portfolio!$N$12,1,0,ctPort,1))=O$8,(DATE(O$8+1,1,1)-OFFSET(Active_Portfolio!$N$12,1,0,ctPort,1))/(DATE(O$8+1,1,1)-DATE(O$8,1,1)),1),IF(YEAR(OFFSET(Active_Portfolio!$O$12,1,0,ctPort,1))=O$8,(OFFSET(Active_Portfolio!$O$12,1,0,ctPort,1)+1-DATE(O$8,1,1))/(DATE(O$8+1,1,1)-DATE(O$8,1,1)),1),(1-OFFSET(Active_Portfolio!$AG$12,1,0,ctPort,1))^(O$8-YEAR(OFFSET(Active_Portfolio!$N$12,1,0,ctPort,1)))) -> 3999.686121 | P19: =SUMPRODUCT((YEAR(OFFSET(Active_Portfolio!$N$12,1,0,ctPort,1))<=P$8)*(YEAR(OFFSET(Active_Portfolio!$O$12,1,0,ctPort,1))>=P$8)*(OFFSET(Active_Portfolio!$K$12,1,0,ctPort,1)=$H19)*(OFFSET(Active_Portfolio!$Y$12,1,0,ctPort,1)=0)*OFFSET(Active_Portfolio!$AA$12,1,0,ctPort,1),OFFSET(Active_Portfolio!$AH$12,1,0,ctPort,1),IF(YEAR(OFFSET(Active_Portfolio!$N$12,1,0,ctPort,1))=P$8,(DATE(P$8+1,1,1)-OFFSET(Active_Portfolio!$N$12,1,0,ctPort,1))/(DATE(P$8+1,1,1)-DATE(P$8,1,1)),1),IF(YEAR(OFFSET(Active_Portfolio!$O$12,1,0,ctPort,1))=P$8,(OFFSET(Active_Portfolio!$O$12,1,0,ctPort,1)+1-DATE(P$8,1,1))/(DATE(P$8+1,1,1)-DATE(P$8,1,1)),1),(1-OFFSET(Active_Portfolio!$AG$12,1,0,ctPort,1))^(P$8-YEAR(OFFSET(Active_Portfolio!$N$12,1,0,ctPort,1)))) -> 3999.686121 | Q19: =SUMPRODUCT((YEAR(OFFSET(Active_Portfolio!$N$12,1,0,ctPort,1))<=Q$8)*(YEAR(OFFSET(Active_Portfolio!$O$12,1,0,ctPort,1))>=Q$8)*(OFFSET(Active_Portfolio!$K$12,1,0,ctPort,1)=$H19)*(OFFSET(Active_Portfolio!$Y$12,1,0,ctPort,1)=0)*OFFSET(Active_Portfolio!$AA$12,1,0,ctPort,1),OFFSET(Active_Portfolio!$AH$12,1,0,ctPort,1),IF(YEAR(OFFSET(Active_Portfolio!$N$12,1,0,ctPort,1))=Q$8,(DATE(Q$8+1,1,1)-OFFSET(Active_Portfolio!$N$12,1,0,ctPort,1))/(DATE(Q$8+1,1,1)-DATE(Q$8,1,1)),1),IF(YEAR(OFFSET(Active_Portfolio!$O$12,1,0,ctPort,1))=Q$8,(OFFSET(Active_Portfolio!$O$12,1,0,ctPort,1)+1-DATE(Q$8,1,1))/(DATE(Q$8+1,1,1)-DATE(Q$8,1,1)),1),(1-OFFSET(Active_Portfolio!$AG$12,1,0,ctPort,1))^(Q$8-YEAR(OFFSET(Active_Portfolio!$N$12,1,0,ctPort,1)))) -> 3999.686121 | R19: =SUMPRODUCT((YEAR(OFFSET(Active_Portfolio!$N$12,1,0,ctPort,1))<=R$8)*(YEAR(OFFSET(Active_Portfolio!$O$12,1,0,ctPort,1))>=R$8)*(OFFSET(Active_Portfolio!$K$12,1,0,ctPort,1)=$H19)*(OFFSET(Active_Portfolio!$Y$12,1,0,ctPort,1)=0)*OFFSET(Active_Portfolio!$AA$12,1,0,ctPort,1),OFFSET(Active_Portfolio!$AH$12,1,0,ctPort,1),IF(YEAR(OFFSET(Active_Portfolio!$N$12,1,0,ctPort,1))=R$8,(DATE(R$8+1,1,1)-OFFSET(Active_Portfolio!$N$12,1,0,ctPort,1))/(DATE(R$8+1,1,1)-DATE(R$8,1,1)),1),IF(YEAR(OFFSET(Active_Portfolio!$O$12,1,0,ctPort,1))=R$8,(OFFSET(Active_Portfolio!$O$12,1,0,ctPort,1)+1-DATE(R$8,1,1))/(DATE(R$8+1,1,1)-DATE(R$8,1,1)),1),(1-OFFSET(Active_Portfolio!$AG$12,1,0,ctPort,1))^(R$8-YEAR(OFFSET(Active_Portfolio!$N$12,1,0,ctPort,1)))) -> 3999.686121 | S19: =SUMPRODUCT((YEAR(OFFSET(Active_Portfolio!$N$12,1,0,ctPort,1))<=S$8)*(YEAR(OFFSET(Active_Portfolio!$O$12,1,0,ctPort,1))>=S$8)*(OFFSET(Active_Portfolio!$K$12,1,0,ctPort,1)=$H19)*(OFFSET(Active_Portfolio!$Y$12,1,0,ctPort,1)=0)*OFFSET(Active_Portfolio!$AA$12,1,0,ctPort,1),OFFSET(Active_Portfolio!$AH$12,1,0,ctPort,1),IF(YEAR(OFFSET(Active_Portfolio!$N$12,1,0,ctPort,1))=S$8,(DATE(S$8+1,1,1)-OFFSET(Active_Portfolio!$N$12,1,0,ctPort,1))/(DATE(S$8+1,1,1)-DATE(S$8,1,1)),1),IF(YEAR(OFFSET(Active_Portfolio!$O$12,1,0,ctPort,1))=S$8,(OFFSET(Active_Portfolio!$O$12,1,0,ctPort,1)+1-DATE(S$8,1,1))/(DATE(S$8+1,1,1)-DATE(S$8,1,1)),1),(1-OFFSET(Active_Portfolio!$AG$12,1,0,ctPort,1))^(S$8-YEAR(OFFSET(Active_Portfolio!$N$12,1,0,ctPort,1)))) -> 3999.686121 | T19: =SUMPRODUCT((YEAR(OFFSET(Active_Portfolio!$N$12,1,0,ctPort,1))<=T$8)*(YEAR(OFFSET(Active_Portfolio!$O$12,1,0,ctPort,1))>=T$8)*(OFFSET(Active_Portfolio!$K$12,1,0,ctPort,1)=$H19)*(OFFSET(Active_Portfolio!$Y$12,1,0,ctPort,1)=0)*OFFSET(Active_Portfolio!$AA$12,1,0,ctPort,1),OFFSET(Active_Portfolio!$AH$12,1,0,ctPort,1),IF(YEAR(OFFSET(Active_Portfolio!$N$12,1,0,ctPort,1))=T$8,(DATE(T$8+1,1,1)-OFFSET(Active_Portfolio!$N$12,1,0,ctPort,1))/(DATE(T$8+1,1,1)-DATE(T$8,1,1)),1),IF(YEAR(OFFSET(Active_Portfolio!$O$12,1,0,ctPort,1))=T$8,(OFFSET(Active_Portfolio!$O$12,1,0,ctPort,1)+1-DATE(T$8,1,1))/(DATE(T$8+1,1,1)-DATE(T$8,1,1)),1),(1-OFFSET(Active_Portfolio!$AG$12,1,0,ctPort,1))^(T$8-YEAR(OFFSET(Active_Portfolio!$N$12,1,0,ctPort,1)))) -> 3999.686121 | U19: =SUMPRODUCT((YEAR(OFFSET(Active_Portfolio!$N$12,1,0,ctPort,1))<=U$8)*(YEAR(OFFSET(Active_Portfolio!$O$12,1,0,ctPort,1))>=U$8)*(OFFSET(Active_Portfolio!$K$12,1,0,ctPort,1)=$H19)*(OFFSET(Active_Portfolio!$Y$12,1,0,ctPort,1)=0)*OFFSET(Active_Portfolio!$AA$12,1,0,ctPort,1),OFFSET(Active_Portfolio!$AH$12,1,0,ctPort,1),IF(YEAR(OFFSET(Active_Portfolio!$N$12,1,0,ctPort,1))=U$8,(DATE(U$8+1,1,1)-OFFSET(Active_Portfolio!$N$12,1,0,ctPort,1))/(DATE(U$8+1,1,1)-DATE(U$8,1,1)),1),IF(YEAR(OFFSET(Active_Portfolio!$O$12,1,0,ctPort,1))=U$8,(OFFSET(Active_Portfolio!$O$12,1,0,ctPort,1)+1-DATE(U$8,1,1))/(DATE(U$8+1,1,1)-DATE(U$8,1,1)),1),(1-OFFSET(Active_Portfolio!$AG$12,1,0,ctPort,1))^(U$8-YEAR(OFFSET(Active_Portfolio!$N$12,1,0,ctPort,1)))) -> 3999.686121 | V19: =SUMPRODUCT((YEAR(OFFSET(Active_Portfolio!$N$12,1,0,ctPort,1))<=V$8)*(YEAR(OFFSET(Active_Portfolio!$O$12,1,0,ctPort,1))>=V$8)*(OFFSET(Active_Portfolio!$K$12,1,0,ctPort,1)=$H19)*(OFFSET(Active_Portfolio!$Y$12,1,0,ctPort,1)=0)*OFFSET(Active_Portfolio!$AA$12,1,0,ctPort,1),OFFSET(Active_Portfolio!$AH$12,1,0,ctPort,1),IF(YEAR(OFFSET(Active_Portfolio!$N$12,1,0,ctPort,1))=V$8,(DATE(V$8+1,1,1)-OFFSET(Active_Portfolio!$N$12,1,0,ctPort,1))/(DATE(V$8+1,1,1)-DATE(V$8,1,1)),1),IF(YEAR(OFFSET(Active_Portfolio!$O$12,1,0,ctPort,1))=V$8,(OFFSET(Active_Portfolio!$O$12,1,0,ctPort,1)+1-DATE(V$8,1,1))/(DATE(V$8+1,1,1)-DATE(V$8,1,1)),1),(1-OFFSET(Active_Portfolio!$AG$12,1,0,ctPort,1))^(V$8-YEAR(OFFSET(Active_Portfolio!$N$12,1,0,ctPort,1)))) -> 3999.68612 | W19: =SUMPRODUCT((YEAR(OFFSET(Active_Portfolio!$N$12,1,0,ctPort,1))<=W$8)*(YEAR(OFFSET(Active_Portfolio!$O$12,1,0,ctPort,1))>=W$8)*(OFFSET(Active_Portfolio!$K$12,1,0,ctPort,1)=$H19)*(OFFSET(Active_Portfolio!$Y$12,1,0,ctPort,1)=0)*OFFSET(Active_Portfolio!$AA$12,1,0,ctPort,1),OFFSET(Active_Portfolio!$AH$12,1,0,ctPort,1),IF(YEAR(OFFSET(Active_Portfolio!$N$12,1,0,ctPort,1))=W$8,(DATE(W$8+1,1,1)-OFFSET(Active_Portfolio!$N$12,1,0,ctPort,1))/(DATE(W$8+1,1,1)-DATE(W$8,1,1)),1),IF(YEAR(OFFSET(Active_Portfolio!$O$12,1,0,ctPort,1))=W$8,(OFFSET(Active_Portfolio!$O$12,1,0,ctPort,1)+1-DATE(W$8,1,1))/(DATE(W$8+1,1,1)-DATE(W$8,1,1)),1),(1-OFFSET(Active_Portfolio!$AG$12,1,0,ctPort,1))^(W$8-YEAR(OFFSET(Active_Portfolio!$N$12,1,0,ctPort,1)))) -> 3999.68612 | X19: =SUMPRODUCT((YEAR(OFFSET(Active_Portfolio!$N$12,1,0,ctPort,1))<=X$8)*(YEAR(OFFSET(Active_Portfolio!$O$12,1,0,ctPort,1))>=X$8)*(OFFSET(Active_Portfolio!$K$12,1,0,ctPort,1)=$H19)*(OFFSET(Active_Portfolio!$Y$12,1,0,ctPort,1)=0)*OFFSET(Active_Portfolio!$AA$12,1,0,ctPort,1),OFFSET(Active_Portfolio!$AH$12,1,0,ctPort,1),IF(YEAR(OFFSET(Active_Portfolio!$N$12,1,0,ctPort,1))=X$8,(DATE(X$8+1,1,1)-OFFSET(Active_Portfolio!$N$12,1,0,ctPort,1))/(DATE(X$8+1,1,1)-DATE(X$8,1,1)),1),IF(YEAR(OFFSET(Active_Portfolio!$O$12,1,0,ctPort,1))=X$8,(OFFSET(Active_Portfolio!$O$12,1,0,ctPort,1)+1-DATE(X$8,1,1))/(DATE(X$8+1,1,1)-DATE(X$8,1,1)),1),(1-OFFSET(Active_Portfolio!$AG$12,1,0,ctPort,1))^(X$8-YEAR(OFFSET(Active_Portfolio!$N$12,1,0,ctPort,1)))) -> 3999.68612 | Y19: =SUMPRODUCT((YEAR(OFFSET(Active_Portfolio!$N$12,1,0,ctPort,1))<=Y$8)*(YEAR(OFFSET(Active_Portfolio!$O$12,1,0,ctPort,1))>=Y$8)*(OFFSET(Active_Portfolio!$K$12,1,0,ctPort,1)=$H19)*(OFFSET(Active_Portfolio!$Y$12,1,0,ctPort,1)=0)*OFFSET(Active_Portfolio!$AA$12,1,0,ctPort,1),OFFSET(Active_Portfolio!$AH$12,1,0,ctPort,1),IF(YEAR(OFFSET(Active_Portfolio!$N$12,1,0,ctPort,1))=Y$8,(DATE(Y$8+1,1,1)-OFFSET(Active_Portfolio!$N$12,1,0,ctPort,1))/(DATE(Y$8+1,1,1)-DATE(Y$8,1,1)),1),IF(YEAR(OFFSET(Active_Portfolio!$O$12,1,0,ctPort,1))=Y$8,(OFFSET(Active_Portfolio!$O$12,1,0,ctPort,1)+1-DATE(Y$8,1,1))/(DATE(Y$8+1,1,1)-DATE(Y$8,1,1)),1),(1-OFFSET(Active_Portfolio!$AG$12,1,0,ctPort,1))^(Y$8-YEAR(OFFSET(Active_Portfolio!$N$12,1,0,ctPort,1)))) -> 3999.68612 | Z19: =SUMPRODUCT((YEAR(OFFSET(Active_Portfolio!$N$12,1,0,ctPort,1))<=Z$8)*(YEAR(OFFSET(Active_Portfolio!$O$12,1,0,ctPort,1))>=Z$8)*(OFFSET(Active_Portfolio!$K$12,1,0,ctPort,1)=$H19)*(OFFSET(Active_Portfolio!$Y$12,1,0,ctPort,1)=0)*OFFSET(Active_Portfolio!$AA$12,1,0,ctPort,1),OFFSET(Active_Portfolio!$AH$12,1,0,ctPort,1),IF(YEAR(OFFSET(Active_Portfolio!$N$12,1,0,ctPort,1))=Z$8,(DATE(Z$8+1,1,1)-OFFSET(Active_Portfolio!$N$12,1,0,ctPort,1))/(DATE(Z$8+1,1,1)-DATE(Z$8,1,1)),1),IF(YEAR(OFFSET(Active_Portfolio!$O$12,1,0,ctPort,1))=Z$8,(OFFSET(Active_Portfolio!$O$12,1,0,ctPort,1)+1-DATE(Z$8,1,1))/(DATE(Z$8+1,1,1)-DATE(Z$8,1,1)),1),(1-OFFSET(Active_Portfolio!$AG$12,1,0,ctPort,1))^(Z$8-YEAR(OFFSET(Active_Portfolio!$N$12,1,0,ctPort,1)))) -> 3999.686121 | AA19: =SUMPRODUCT((YEAR(OFFSET(Active_Portfolio!$N$12,1,0,ctPort,1))<=AA$8)*(YEAR(OFFSET(Active_Portfolio!$O$12,1,0,ctPort,1))>=AA$8)*(OFFSET(Active_Portfolio!$K$12,1,0,ctPort,1)=$H19)*(OFFSET(Active_Portfolio!$Y$12,1,0,ctPort,1)=0)*OFFSET(Active_Portfolio!$AA$12,1,0,ctPort,1),OFFSET(Active_Portfolio!$AH$12,1,0,ctPort,1),IF(YEAR(OFFSET(Active_Portfolio!$N$12,1,0,ctPort,1))=AA$8,(DATE(AA$8+1,1,1)-OFFSET(Active_Portfolio!$N$12,1,0,ctPort,1))/(DATE(AA$8+1,1,1)-DATE(AA$8,1,1)),1),IF(YEAR(OFFSET(Active_Portfolio!$O$12,1,0,ctPort,1))=AA$8,(OFFSET(Active_Portfolio!$O$12,1,0,ctPort,1)+1-DATE(AA$8,1,1))/(DATE(AA$8+1,1,1)-DATE(AA$8,1,1)),1),(1-OFFSET(Active_Portfolio!$AG$12,1,0,ctPort,1))^(AA$8-YEAR(OFFSET(Active_Portfolio!$N$12,1,0,ctPort,1)))) -> 3999.686121
C20: Geography | D20: In-State | H20: Solar PV | I20: =SUMPRODUCT((OFFSET(Active_Portfolio!$X$12,1,0,ctPort,1)=1)*(YEAR(OFFSET(Active_Portfolio!$N$12,1,0,ctPort,1))<=I$8)*(YEAR(OFFSET(Active_Portfolio!$O$12,1,0,ctPort,1))>=I$8)*(OFFSET(Active_Portfolio!$K$12,1,0,ctPort,1)=$H20)*(OFFSET(Active_Portfolio!$Y$12,1,0,ctPort,1)=0)*OFFSET(Active_Portfolio!$AA$12,1,0,ctPort,1),OFFSET(Active_Portfolio!$AH$12,1,0,ctPort,1),IF(YEAR(OFFSET(Active_Portfolio!$N$12,1,0,ctPort,1))=I$8,(DATE(I$8+1,1,1)-OFFSET(Active_Portfolio!$N$12,1,0,ctPort,1))/(DATE(I$8+1,1,1)-DATE(I$8,1,1)),1),IF(YEAR(OFFSET(Active_Portfolio!$O$12,1,0,ctPort,1))=I$8,(OFFSET(Active_Portfolio!$O$12,1,0,ctPort,1)+1-DATE(I$8,1,1))/(DATE(I$8+1,1,1)-DATE(I$8,1,1)),1),(1-OFFSET(Active_Portfolio!$AG$12,1,0,ctPort,1))^(I$8-YEAR(OFFSET(Active_Portfolio!$N$12,1,0,ctPort,1)))) -> 33.09923636 | J20: =SUMPRODUCT((YEAR(OFFSET(Active_Portfolio!$N$12,1,0,ctPort,1))<=J$8)*(YEAR(OFFSET(Active_Portfolio!$O$12,1,0,ctPort,1))>=J$8)*(OFFSET(Active_Portfolio!$K$12,1,0,ctPort,1)=$H20)*(OFFSET(Active_Portfolio!$Y$12,1,0,ctPort,1)=0)*OFFSET(Active_Portfolio!$AA$12,1,0,ctPort,1),OFFSET(Active_Portfolio!$AH$12,1,0,ctPort,1),IF(YEAR(OFFSET(Active_Portfolio!$N$12,1,0,ctPort,1))=J$8,(DATE(J$8+1,1,1)-OFFSET(Active_Portfolio!$N$12,1,0,ctPort,1))/(DATE(J$8+1,1,1)-DATE(J$8,1,1)),1),IF(YEAR(OFFSET(Active_Portfolio!$O$12,1,0,ctPort,1))=J$8,(OFFSET(Active_Portfolio!$O$12,1,0,ctPort,1)+1-DATE(J$8,1,1))/(DATE(J$8+1,1,1)-DATE(J$8,1,1)),1),(1-OFFSET(Active_Portfolio!$AG$12,1,0,ctPort,1))^(J$8-YEAR(OFFSET(Active_Portfolio!$N$12,1,0,ctPort,1)))) -> 1893.033422 | K20: =SUMPRODUCT((YEAR(OFFSET(Active_Portfolio!$N$12,1,0,ctPort,1))<=K$8)*(YEAR(OFFSET(Active_Portfolio!$O$12,1,0,ctPort,1))>=K$8)*(OFFSET(Active_Portfolio!$K$12,1,0,ctPort,1)=$H20)*(OFFSET(Active_Portfolio!$Y$12,1,0,ctPort,1)=0)*OFFSET(Active_Portfolio!$AA$12,1,0,ctPort,1),OFFSET(Active_Portfolio!$AH$12,1,0,ctPort,1),IF(YEAR(OFFSET(Active_Portfolio!$N$12,1,0,ctPort,1))=K$8,(DATE(K$8+1,1,1)-OFFSET(Active_Portfolio!$N$12,1,0,ctPort,1))/(DATE(K$8+1,1,1)-DATE(K$8,1,1)),1),IF(YEAR(OFFSET(Active_Portfolio!$O$12,1,0,ctPort,1))=K$8,(OFFSET(Active_Portfolio!$O$12,1,0,ctPort,1)+1-DATE(K$8,1,1))/(DATE(K$8+1,1,1)-DATE(K$8,1,1)),1),(1-OFFSET(Active_Portfolio!$AG$12,1,0,ctPort,1))^(K$8-YEAR(OFFSET(Active_Portfolio!$N$12,1,0,ctPort,1)))) -> 5501.576337 | L20: =SUMPRODUCT((YEAR(OFFSET(Active_Portfolio!$N$12,1,0,ctPort,1))<=L$8)*(YEAR(OFFSET(Active_Portfolio!$O$12,1,0,ctPort,1))>=L$8)*(OFFSET(Active_Portfolio!$K$12,1,0,ctPort,1)=$H20)*(OFFSET(Active_Portfolio!$Y$12,1,0,ctPort,1)=0)*OFFSET(Active_Portfolio!$AA$12,1,0,ctPort,1),OFFSET(Active_Portfolio!$AH$12,1,0,ctPort,1),IF(YEAR(OFFSET(Active_Portfolio!$N$12,1,0,ctPort,1))=L$8,(DATE(L$8+1,1,1)-OFFSET(Active_Portfolio!$N$12,1,0,ctPort,1))/(DATE(L$8+1,1,1)-DATE(L$8,1,1)),1),IF(YEAR(OFFSET(Active_Portfolio!$O$12,1,0,ctPort,1))=L$8,(OFFSET(Active_Portfolio!$O$12,1,0,ctPort,1)+1-DATE(L$8,1,1))/(DATE(L$8+1,1,1)-DATE(L$8,1,1)),1),(1-OFFSET(Active_Portfolio!$AG$12,1,0,ctPort,1))^(L$8-YEAR(OFFSET(Active_Portfolio!$N$12,1,0,ctPort,1)))) -> 11532.58538 | M20: =SUMPRODUCT((YEAR(OFFSET(Active_Portfolio!$N$12,1,0,ctPort,1))<=M$8)*(YEAR(OFFSET(Active_Portfolio!$O$12,1,0,ctPort,1))>=M$8)*(OFFSET(Active_Portfolio!$K$12,1,0,ctPort,1)=$H20)*(OFFSET(Active_Portfolio!$Y$12,1,0,ctPort,1)=0)*OFFSET(Active_Portfolio!$AA$12,1,0,ctPort,1),OFFSET(Active_Portfolio!$AH$12,1,0,ctPort,1),IF(YEAR(OFFSET(Active_Portfolio!$N$12,1,0,ctPort,1))=M$8,(DATE(M$8+1,1,1)-OFFSET(Active_Portfolio!$N$12,1,0,ctPort,1))/(DATE(M$8+1,1,1)-DATE(M$8,1,1)),1),IF(YEAR(OFFSET(Active_Portfolio!$O$12,1,0,ctPort,1))=M$8,(OFFSET(Active_Portfolio!$O$12,1,0,ctPort,1)+1-DATE(M$8,1,1))/(DATE(M$8+1,1,1)-DATE(M$8,1,1)),1),(1-OFFSET(Active_Portfolio!$AG$12,1,0,ctPort,1))^(M$8-YEAR(OFFSET(Active_Portfolio!$N$12,1,0,ctPort,1)))) -> 15169.15344 | N20: =SUMPRODUCT((YEAR(OFFSET(Active_Portfolio!$N$12,1,0,ctPort,1))<=N$8)*(YEAR(OFFSET(Active_Portfolio!$O$12,1,0,ctPort,1))>=N$8)*(OFFSET(Active_Portfolio!$K$12,1,0,ctPort,1)=$H20)*(OFFSET(Active_Portfolio!$Y$12,1,0,ctPort,1)=0)*OFFSET(Active_Portfolio!$AA$12,1,0,ctPort,1),OFFSET(Active_Portfolio!$AH$12,1,0,ctPort,1),IF(YEAR(OFFSET(Active_Portfolio!$N$12,1,0,ctPort,1))=N$8,(DATE(N$8+1,1,1)-OFFSET(Active_Portfolio!$N$12,1,0,ctPort,1))/(DATE(N$8+1,1,1)-DATE(N$8,1,1)),1),IF(YEAR(OFFSET(Active_Portfolio!$O$12,1,0,ctPort,1))=N$8,(OFFSET(Active_Portfolio!$O$12,1,0,ctPort,1)+1-DATE(N$8,1,1))/(DATE(N$8+1,1,1)-DATE(N$8,1,1)),1),(1-OFFSET(Active_Portfolio!$AG$12,1,0,ctPort,1))^(N$8-YEAR(OFFSET(Active_Portfolio!$N$12,1,0,ctPort,1)))) -> 19075.35719 | O20: =SUMPRODUCT((YEAR(OFFSET(Active_Portfolio!$N$12,1,0,ctPort,1))<=O$8)*(YEAR(OFFSET(Active_Portfolio!$O$12,1,0,ctPort,1))>=O$8)*(OFFSET(Active_Portfolio!$K$12,1,0,ctPort,1)=$H20)*(OFFSET(Active_Portfolio!$Y$12,1,0,ctPort,1)=0)*OFFSET(Active_Portfolio!$AA$12,1,0,ctPort,1),OFFSET(Active_Portfolio!$AH$12,1,0,ctPort,1),IF(YEAR(OFFSET(Active_Portfolio!$N$12,1,0,ctPort,1))=O$8,(DATE(O$8+1,1,1)-OFFSET(Active_Portfolio!$N$12,1,0,ctPort,1))/(DATE(O$8+1,1,1)-DATE(O$8,1,1)),1),IF(YEAR(OFFSET(Active_Portfolio!$O$12,1,0,ctPort,1))=O$8,(OFFSET(Active_Portfolio!$O$12,1,0,ctPort,1)+1-DATE(O$8,1,1))/(DATE(O$8+1,1,1)-DATE(O$8,1,1)),1),(1-OFFSET(Active_Portfolio!$AG$12,1,0,ctPort,1))^(O$8-YEAR(OFFSET(Active_Portfolio!$N$12,1,0,ctPort,1)))) -> 25518.16598 | P20: =SUMPRODUCT((YEAR(OFFSET(Active_Portfolio!$N$12,1,0,ctPort,1))<=P$8)*(YEAR(OFFSET(Active_Portfolio!$O$12,1,0,ctPort,1))>=P$8)*(OFFSET(Active_Portfolio!$K$12,1,0,ctPort,1)=$H20)*(OFFSET(Active_Portfolio!$Y$12,1,0,ctPort,1)=0)*OFFSET(Active_Portfolio!$AA$12,1,0,ctPort,1),OFFSET(Active_Portfolio!$AH$12,1,0,ctPort,1),IF(YEAR(OFFSET(Active_Portfolio!$N$12,1,0,ctPort,1))=P$8,(DATE(P$8+1,1,1)-OFFSET(Active_Portfolio!$N$12,1,0,ctPort,1))/(DATE(P$8+1,1,1)-DATE(P$8,1,1)),1),IF(YEAR(OFFSET(Active_Portfolio!$O$12,1,0,ctPort,1))=P$8,(OFFSET(Active_Portfolio!$O$12,1,0,ctPort,1)+1-DATE(P$8,1,1))/(DATE(P$8+1,1,1)-DATE(P$8,1,1)),1),(1-OFFSET(Active_Portfolio!$AG$12,1,0,ctPort,1))^(P$8-YEAR(OFFSET(Active_Portfolio!$N$12,1,0,ctPort,1)))) -> 28948.10764 | Q20: =SUMPRODUCT((YEAR(OFFSET(Active_Portfolio!$N$12,1,0,ctPort,1))<=Q$8)*(YEAR(OFFSET(Active_Portfolio!$O$12,1,0,ctPort,1))>=Q$8)*(OFFSET(Active_Portfolio!$K$12,1,0,ctPort,1)=$H20)*(OFFSET(Active_Portfolio!$Y$12,1,0,ctPort,1)=0)*OFFSET(Active_Portfolio!$AA$12,1,0,ctPort,1),OFFSET(Active_Portfolio!$AH$12,1,0,ctPort,1),IF(YEAR(OFFSET(Active_Portfolio!$N$12,1,0,ctPort,1))=Q$8,(DATE(Q$8+1,1,1)-OFFSET(Active_Portfolio!$N$12,1,0,ctPort,1))/(DATE(Q$8+1,1,1)-DATE(Q$8,1,1)),1),IF(YEAR(OFFSET(Active_Portfolio!$O$12,1,0,ctPort,1))=Q$8,(OFFSET(Active_Portfolio!$O$12,1,0,ctPort,1)+1-DATE(Q$8,1,1))/(DATE(Q$8+1,1,1)-DATE(Q$8,1,1)),1),(1-OFFSET(Active_Portfolio!$AG$12,1,0,ctPort,1))^(Q$8-YEAR(OFFSET(Active_Portfolio!$N$12,1,0,ctPort,1)))) -> 33188.59834 | R20: =SUMPRODUCT((YEAR(OFFSET(Active_Portfolio!$N$12,1,0,ctPort,1))<=R$8)*(YEAR(OFFSET(Active_Portfolio!$O$12,1,0,ctPort,1))>=R$8)*(OFFSET(Active_Portfolio!$K$12,1,0,ctPort,1)=$H20)*(OFFSET(Active_Portfolio!$Y$12,1,0,ctPort,1)=0)*OFFSET(Active_Portfolio!$AA$12,1,0,ctPort,1),OFFSET(Active_Portfolio!$AH$12,1,0,ctPort,1),IF(YEAR(OFFSET(Active_Portfolio!$N$12,1,0,ctPort,1))=R$8,(DATE(R$8+1,1,1)-OFFSET(Active_Portfolio!$N$12,1,0,ctPort,1))/(DATE(R$8+1,1,1)-DATE(R$8,1,1)),1),IF(YEAR(OFFSET(Active_Portfolio!$O$12,1,0,ctPort,1))=R$8,(OFFSET(Active_Portfolio!$O$12,1,0,ctPort,1)+1-DATE(R$8,1,1))/(DATE(R$8+1,1,1)-DATE(R$8,1,1)),1),(1-OFFSET(Active_Portfolio!$AG$12,1,0,ctPort,1))^(R$8-YEAR(OFFSET(Active_Portfolio!$N$12,1,0,ctPort,1)))) -> 37891.06718 | S20: =SUMPRODUCT((YEAR(OFFSET(Active_Portfolio!$N$12,1,0,ctPort,1))<=S$8)*(YEAR(OFFSET(Active_Portfolio!$O$12,1,0,ctPort,1))>=S$8)*(OFFSET(Active_Portfolio!$K$12,1,0,ctPort,1)=$H20)*(OFFSET(Active_Portfolio!$Y$12,1,0,ctPort,1)=0)*OFFSET(Active_Portfolio!$AA$12,1,0,ctPort,1),OFFSET(Active_Portfolio!$AH$12,1,0,ctPort,1),IF(YEAR(OFFSET(Active_Portfolio!$N$12,1,0,ctPort,1))=S$8,(DATE(S$8+1,1,1)-OFFSET(Active_Portfolio!$N$12,1,0,ctPort,1))/(DATE(S$8+1,1,1)-DATE(S$8,1,1)),1),IF(YEAR(OFFSET(Active_Portfolio!$O$12,1,0,ctPort,1))=S$8,(OFFSET(Active_Portfolio!$O$12,1,0,ctPort,1)+1-DATE(S$8,1,1))/(DATE(S$8+1,1,1)-DATE(S$8,1,1)),1),(1-OFFSET(Active_Portfolio!$AG$12,1,0,ctPort,1))^(S$8-YEAR(OFFSET(Active_Portfolio!$N$12,1,0,ctPort,1)))) -> 41611.94395 | T20: =SUMPRODUCT((YEAR(OFFSET(Active_Portfolio!$N$12,1,0,ctPort,1))<=T$8)*(YEAR(OFFSET(Active_Portfolio!$O$12,1,0,ctPort,1))>=T$8)*(OFFSET(Active_Portfolio!$K$12,1,0,ctPort,1)=$H20)*(OFFSET(Active_Portfolio!$Y$12,1,0,ctPort,1)=0)*OFFSET(Active_Portfolio!$AA$12,1,0,ctPort,1),OFFSET(Active_Portfolio!$AH$12,1,0,ctPort,1),IF(YEAR(OFFSET(Active_Portfolio!$N$12,1,0,ctPort,1))=T$8,(DATE(T$8+1,1,1)-OFFSET(Active_Portfolio!$N$12,1,0,ctPort,1))/(DATE(T$8+1,1,1)-DATE(T$8,1,1)),1),IF(YEAR(OFFSET(Active_Portfolio!$O$12,1,0,ctPort,1))=T$8,(OFFSET(Active_Portfolio!$O$12,1,0,ctPort,1)+1-DATE(T$8,1,1))/(DATE(T$8+1,1,1)-DATE(T$8,1,1)),1),(1-OFFSET(Active_Portfolio!$AG$12,1,0,ctPort,1))^(T$8-YEAR(OFFSET(Active_Portfolio!$N$12,1,0,ctPort,1)))) -> 41320.6682 | U20: =SUMPRODUCT((YEAR(OFFSET(Active_Portfolio!$N$12,1,0,ctPort,1))<=U$8)*(YEAR(OFFSET(Active_Portfolio!$O$12,1,0,ctPort,1))>=U$8)*(OFFSET(Active_Portfolio!$K$12,1,0,ctPort,1)=$H20)*(OFFSET(Active_Portfolio!$Y$12,1,0,ctPort,1)=0)*OFFSET(Active_Portfolio!$AA$12,1,0,ctPort,1),OFFSET(Active_Portfolio!$AH$12,1,0,ctPort,1),IF(YEAR(OFFSET(Active_Portfolio!$N$12,1,0,ctPort,1))=U$8,(DATE(U$8+1,1,1)-OFFSET(Active_Portfolio!$N$12,1,0,ctPort,1))/(DATE(U$8+1,1,1)-DATE(U$8,1,1)),1),IF(YEAR(OFFSET(Active_Portfolio!$O$12,1,0,ctPort,1))=U$8,(OFFSET(Active_Portfolio!$O$12,1,0,ctPort,1)+1-DATE(U$8,1,1))/(DATE(U$8+1,1,1)-DATE(U$8,1,1)),1),(1-OFFSET(Active_Portfolio!$AG$12,1,0,ctPort,1))^(U$8-YEAR(OFFSET(Active_Portfolio!$N$12,1,0,ctPort,1)))) -> 41031.42353 | V20: =SUMPRODUCT((YEAR(OFFSET(Active_Portfolio!$N$12,1,0,ctPort,1))<=V$8)*(YEAR(OFFSET(Active_Portfolio!$O$12,1,0,ctPort,1))>=V$8)*(OFFSET(Active_Portfolio!$K$12,1,0,ctPort,1)=$H20)*(OFFSET(Active_Portfolio!$Y$12,1,0,ctPort,1)=0)*OFFSET(Active_Portfolio!$AA$12,1,0,ctPort,1),OFFSET(Active_Portfolio!$AH$12,1,0,ctPort,1),IF(YEAR(OFFSET(Active_Portfolio!$N$12,1,0,ctPort,1))=V$8,(DATE(V$8+1,1,1)-OFFSET(Active_Portfolio!$N$12,1,0,ctPort,1))/(DATE(V$8+1,1,1)-DATE(V$8,1,1)),1),IF(YEAR(OFFSET(Active_Portfolio!$O$12,1,0,ctPort,1))=V$8,(OFFSET(Active_Portfolio!$O$12,1,0,ctPort,1)+1-DATE(V$8,1,1))/(DATE(V$8+1,1,1)-DATE(V$8,1,1)),1),(1-OFFSET(Active_Portfolio!$AG$12,1,0,ctPort,1))^(V$8-YEAR(OFFSET(Active_Portfolio!$N$12,1,0,ctPort,1)))) -> 40827.08011 | W20: =SUMPRODUCT((YEAR(OFFSET(Active_Portfolio!$N$12,1,0,ctPort,1))<=W$8)*(YEAR(OFFSET(Active_Portfolio!$O$12,1,0,ctPort,1))>=W$8)*(OFFSET(Active_Portfolio!$K$12,1,0,ctPort,1)=$H20)*(OFFSET(Active_Portfolio!$Y$12,1,0,ctPort,1)=0)*OFFSET(Active_Portfolio!$AA$12,1,0,ctPort,1),OFFSET(Active_Portfolio!$AH$12,1,0,ctPort,1),IF(YEAR(OFFSET(Active_Portfolio!$N$12,1,0,ctPort,1))=W$8,(DATE(W$8+1,1,1)-OFFSET(Active_Portfolio!$N$12,1,0,ctPort,1))/(DATE(W$8+1,1,1)-DATE(W$8,1,1)),1),IF(YEAR(OFFSET(Active_Portfolio!$O$12,1,0,ctPort,1))=W$8,(OFFSET(Active_Portfolio!$O$12,1,0,ctPort,1)+1-DATE(W$8,1,1))/(DATE(W$8+1,1,1)-DATE(W$8,1,1)),1),(1-OFFSET(Active_Portfolio!$AG$12,1,0,ctPort,1))^(W$8-YEAR(OFFSET(Active_Portfolio!$N$12,1,0,ctPort,1)))) -> 40754.28246 | X20: =SUMPRODUCT((YEAR(OFFSET(Active_Portfolio!$N$12,1,0,ctPort,1))<=X$8)*(YEAR(OFFSET(Active_Portfolio!$O$12,1,0,ctPort,1))>=X$8)*(OFFSET(Active_Portfolio!$K$12,1,0,ctPort,1)=$H20)*(OFFSET(Active_Portfolio!$Y$12,1,0,ctPort,1)=0)*OFFSET(Active_Portfolio!$AA$12,1,0,ctPort,1),OFFSET(Active_Portfolio!$AH$12,1,0,ctPort,1),IF(YEAR(OFFSET(Active_Portfolio!$N$12,1,0,ctPort,1))=X$8,(DATE(X$8+1,1,1)-OFFSET(Active_Portfolio!$N$12,1,0,ctPort,1))/(DATE(X$8+1,1,1)-DATE(X$8,1,1)),1),IF(YEAR(OFFSET(Active_Portfolio!$O$12,1,0,ctPort,1))=X$8,(OFFSET(Active_Portfolio!$O$12,1,0,ctPort,1)+1-DATE(X$8,1,1))/(DATE(X$8+1,1,1)-DATE(X$8,1,1)),1),(1-OFFSET(Active_Portfolio!$AG$12,1,0,ctPort,1))^(X$8-YEAR(OFFSET(Active_Portfolio!$N$12,1,0,ctPort,1)))) -> 44912.55743 | Y20: =SUMPRODUCT((YEAR(OFFSET(Active_Portfolio!$N$12,1,0,ctPort,1))<=Y$8)*(YEAR(OFFSET(Active_Portfolio!$O$12,1,0,ctPort,1))>=Y$8)*(OFFSET(Active_Portfolio!$K$12,1,0,ctPort,1)=$H20)*(OFFSET(Active_Portfolio!$Y$12,1,0,ctPort,1)=0)*OFFSET(Active_Portfolio!$AA$12,1,0,ctPort,1),OFFSET(Active_Portfolio!$AH$12,1,0,ctPort,1),IF(YEAR(OFFSET(Active_Portfolio!$N$12,1,0,ctPort,1))=Y$8,(DATE(Y$8+1,1,1)-OFFSET(Active_Portfolio!$N$12,1,0,ctPort,1))/(DATE(Y$8+1,1,1)-DATE(Y$8,1,1)),1),IF(YEAR(OFFSET(Active_Portfolio!$O$12,1,0,ctPort,1))=Y$8,(OFFSET(Active_Portfolio!$O$12,1,0,ctPort,1)+1-DATE(Y$8,1,1))/(DATE(Y$8+1,1,1)-DATE(Y$8,1,1)),1),(1-OFFSET(Active_Portfolio!$AG$12,1,0,ctPort,1))^(Y$8-YEAR(OFFSET(Active_Portfolio!$N$12,1,0,ctPort,1)))) -> 45946.25907 | Z20: =SUMPRODUCT((YEAR(OFFSET(Active_Portfolio!$N$12,1,0,ctPort,1))<=Z$8)*(YEAR(OFFSET(Active_Portfolio!$O$12,1,0,ctPort,1))>=Z$8)*(OFFSET(Active_Portfolio!$K$12,1,0,ctPort,1)=$H20)*(OFFSET(Active_Portfolio!$Y$12,1,0,ctPort,1)=0)*OFFSET(Active_Portfolio!$AA$12,1,0,ctPort,1),OFFSET(Active_Portfolio!$AH$12,1,0,ctPort,1),IF(YEAR(OFFSET(Active_Portfolio!$N$12,1,0,ctPort,1))=Z$8,(DATE(Z$8+1,1,1)-OFFSET(Active_Portfolio!$N$12,1,0,ctPort,1))/(DATE(Z$8+1,1,1)-DATE(Z$8,1,1)),1),IF(YEAR(OFFSET(Active_Portfolio!$O$12,1,0,ctPort,1))=Z$8,(OFFSET(Active_Portfolio!$O$12,1,0,ctPort,1)+1-DATE(Z$8,1,1))/(DATE(Z$8+1,1,1)-DATE(Z$8,1,1)),1),(1-OFFSET(Active_Portfolio!$AG$12,1,0,ctPort,1))^(Z$8-YEAR(OFFSET(Active_Portfolio!$N$12,1,0,ctPort,1)))) -> 49323.92 | AA20: =SUMPRODUCT((YEAR(OFFSET(Active_Portfolio!$N$12,1,0,ctPort,1))<=AA$8)*(YEAR(OFFSET(Active_Portfolio!$O$12,1,0,ctPort,1))>=AA$8)*(OFFSET(Active_Portfolio!$K$12,1,0,ctPort,1)=$H20)*(OFFSET(Active_Portfolio!$Y$12,1,0,ctPort,1)=0)*OFFSET(Active_Portfolio!$AA$12,1,0,ctPort,1),OFFSET(Active_Portfolio!$AH$12,1,0,ctPort,1),IF(YEAR(OFFSET(Active_Portfolio!$N$12,1,0,ctPort,1))=AA$8,(DATE(AA$8+1,1,1)-OFFSET(Active_Portfolio!$N$12,1,0,ctPort,1))/(DATE(AA$8+1,1,1)-DATE(AA$8,1,1)),1),IF(YEAR(OFFSET(Active_Portfolio!$O$12,1,0,ctPort,1))=AA$8,(OFFSET(Active_Portfolio!$O$12,1,0,ctPort,1)+1-DATE(AA$8,1,1))/(DATE(AA$8+1,1,1)-DATE(AA$8,1,1)),1),(1-OFFSET(Active_Portfolio!$AG$12,1,0,ctPort,1))^(AA$8-YEAR(OFFSET(Active_Portfolio!$N$12,1,0,ctPort,1)))) -> 52836.06466
H21: Solar Thermal | I21: =SUMPRODUCT((OFFSET(Active_Portfolio!$X$12,1,0,ctPort,1)=1)*(YEAR(OFFSET(Active_Portfolio!$N$12,1,0,ctPort,1))<=I$8)*(YEAR(OFFSET(Active_Portfolio!$O$12,1,0,ctPort,1))>=I$8)*(OFFSET(Active_Portfolio!$K$12,1,0,ctPort,1)=$H21)*(OFFSET(Active_Portfolio!$Y$12,1,0,ctPort,1)=0)*OFFSET(Active_Portfolio!$AA$12,1,0,ctPort,1),OFFSET(Active_Portfolio!$AH$12,1,0,ctPort,1),IF(YEAR(OFFSET(Active_Portfolio!$N$12,1,0,ctPort,1))=I$8,(DATE(I$8+1,1,1)-OFFSET(Active_Portfolio!$N$12,1,0,ctPort,1))/(DATE(I$8+1,1,1)-DATE(I$8,1,1)),1),IF(YEAR(OFFSET(Active_Portfolio!$O$12,1,0,ctPort,1))=I$8,(OFFSET(Active_Portfolio!$O$12,1,0,ctPort,1)+1-DATE(I$8,1,1))/(DATE(I$8+1,1,1)-DATE(I$8,1,1)),1),(1-OFFSET(Active_Portfolio!$AG$12,1,0,ctPort,1))^(I$8-YEAR(OFFSET(Active_Portfolio!$N$12,1,0,ctPort,1)))) -> 0 | J21: =SUMPRODUCT((YEAR(OFFSET(Active_Portfolio!$N$12,1,0,ctPort,1))<=J$8)*(YEAR(OFFSET(Active_Portfolio!$O$12,1,0,ctPort,1))>=J$8)*(OFFSET(Active_Portfolio!$K$12,1,0,ctPort,1)=$H21)*(OFFSET(Active_Portfolio!$Y$12,1,0,ctPort,1)=0)*OFFSET(Active_Portfolio!$AA$12,1,0,ctPort,1),OFFSET(Active_Portfolio!$AH$12,1,0,ctPort,1),IF(YEAR(OFFSET(Active_Portfolio!$N$12,1,0,ctPort,1))=J$8,(DATE(J$8+1,1,1)-OFFSET(Active_Portfolio!$N$12,1,0,ctPort,1))/(DATE(J$8+1,1,1)-DATE(J$8,1,1)),1),IF(YEAR(OFFSET(Active_Portfolio!$O$12,1,0,ctPort,1))=J$8,(OFFSET(Active_Portfolio!$O$12,1,0,ctPort,1)+1-DATE(J$8,1,1))/(DATE(J$8+1,1,1)-DATE(J$8,1,1)),1),(1-OFFSET(Active_Portfolio!$AG$12,1,0,ctPort,1))^(J$8-YEAR(OFFSET(Active_Portfolio!$N$12,1,0,ctPort,1)))) -> 638.405 | K21: =SUMPRODUCT((YEAR(OFFSET(Active_Portfolio!$N$12,1,0,ctPort,1))<=K$8)*(YEAR(OFFSET(Active_Portfolio!$O$12,1,0,ctPort,1))>=K$8)*(OFFSET(Active_Portfolio!$K$12,1,0,ctPort,1)=$H21)*(OFFSET(Active_Portfolio!$Y$12,1,0,ctPort,1)=0)*OFFSET(Active_Portfolio!$AA$12,1,0,ctPort,1),OFFSET(Active_Portfolio!$AH$12,1,0,ctPort,1),IF(YEAR(OFFSET(Active_Portfolio!$N$12,1,0,ctPort,1))=K$8,(DATE(K$8+1,1,1)-OFFSET(Active_Portfolio!$N$12,1,0,ctPort,1))/(DATE(K$8+1,1,1)-DATE(K$8,1,1)),1),IF(YEAR(OFFSET(Active_Portfolio!$O$12,1,0,ctPort,1))=K$8,(OFFSET(Active_Portfolio!$O$12,1,0,ctPort,1)+1-DATE(K$8,1,1))/(DATE(K$8+1,1,1)-DATE(K$8,1,1)),1),(1-OFFSET(Active_Portfolio!$AG$12,1,0,ctPort,1))^(K$8-YEAR(OFFSET(Active_Portfolio!$N$12,1,0,ctPort,1)))) -> 2025.071219 | L21: =SUMPRODUCT((YEAR(OFFSET(Active_Portfolio!$N$12,1,0,ctPort,1))<=L$8)*(YEAR(OFFSET(Active_Portfolio!$O$12,1,0,ctPort,1))>=L$8)*(OFFSET(Active_Portfolio!$K$12,1,0,ctPort,1)=$H21)*(OFFSET(Active_Portfolio!$Y$12,1,0,ctPort,1)=0)*OFFSET(Active_Portfolio!$AA$12,1,0,ctPort,1),OFFSET(Active_Portfolio!$AH$12,1,0,ctPort,1),IF(YEAR(OFFSET(Active_Portfolio!$N$12,1,0,ctPort,1))=L$8,(DATE(L$8+1,1,1)-OFFSET(Active_Portfolio!$N$12,1,0,ctPort,1))/(DATE(L$8+1,1,1)-DATE(L$8,1,1)),1),IF(YEAR(OFFSET(Active_Portfolio!$O$12,1,0,ctPort,1))=L$8,(OFFSET(Active_Portfolio!$O$12,1,0,ctPort,1)+1-DATE(L$8,1,1))/(DATE(L$8+1,1,1)-DATE(L$8,1,1)),1),(1-OFFSET(Active_Portfolio!$AG$12,1,0,ctPort,1))^(L$8-YEAR(OFFSET(Active_Portfolio!$N$12,1,0,ctPort,1)))) -> 2735.595 | M21: =SUMPRODUCT((YEAR(OFFSET(Active_Portfolio!$N$12,1,0,ctPort,1))<=M$8)*(YEAR(OFFSET(Active_Portfolio!$O$12,1,0,ctPort,1))>=M$8)*(OFFSET(Active_Portfolio!$K$12,1,0,ctPort,1)=$H21)*(OFFSET(Active_Portfolio!$Y$12,1,0,ctPort,1)=0)*OFFSET(Active_Portfolio!$AA$12,1,0,ctPort,1),OFFSET(Active_Portfolio!$AH$12,1,0,ctPort,1),IF(YEAR(OFFSET(Active_Portfolio!$N$12,1,0,ctPort,1))=M$8,(DATE(M$8+1,1,1)-OFFSET(Active_Portfolio!$N$12,1,0,ctPort,1))/(DATE(M$8+1,1,1)-DATE(M$8,1,1)),1),IF(YEAR(OFFSET(Active_Portfolio!$O$12,1,0,ctPort,1))=M$8,(OFFSET(Active_Portfolio!$O$12,1,0,ctPort,1)+1-DATE(M$8,1,1))/(DATE(M$8+1,1,1)-DATE(M$8,1,1)),1),(1-OFFSET(Active_Portfolio!$AG$12,1,0,ctPort,1))^(M$8-YEAR(OFFSET(Active_Portfolio!$N$12,1,0,ctPort,1)))) -> 2735.595 | N21: =SUMPRODUCT((YEAR(OFFSET(Active_Portfolio!$N$12,1,0,ctPort,1))<=N$8)*(YEAR(OFFSET(Active_Portfolio!$O$12,1,0,ctPort,1))>=N$8)*(OFFSET(Active_Portfolio!$K$12,1,0,ctPort,1)=$H21)*(OFFSET(Active_Portfolio!$Y$12,1,0,ctPort,1)=0)*OFFSET(Active_Portfolio!$AA$12,1,0,ctPort,1),OFFSET(Active_Portfolio!$AH$12,1,0,ctPort,1),IF(YEAR(OFFSET(Active_Portfolio!$N$12,1,0,ctPort,1))=N$8,(DATE(N$8+1,1,1)-OFFSET(Active_Portfolio!$N$12,1,0,ctPort,1))/(DATE(N$8+1,1,1)-DATE(N$8,1,1)),1),IF(YEAR(OFFSET(Active_Portfolio!$O$12,1,0,ctPort,1))=N$8,(OFFSET(Active_Portfolio!$O$12,1,0,ctPort,1)+1-DATE(N$8,1,1))/(DATE(N$8+1,1,1)-DATE(N$8,1,1)),1),(1-OFFSET(Active_Portfolio!$AG$12,1,0,ctPort,1))^(N$8-YEAR(OFFSET(Active_Portfolio!$N$12,1,0,ctPort,1)))) -> 2733.296589 | O21: =SUMPRODUCT((YEAR(OFFSET(Active_Portfolio!$N$12,1,0,ctPort,1))<=O$8)*(YEAR(OFFSET(Active_Portfolio!$O$12,1,0,ctPort,1))>=O$8)*(OFFSET(Active_Portfolio!$K$12,1,0,ctPort,1)=$H21)*(OFFSET(Active_Portfolio!$Y$12,1,0,ctPort,1)=0)*OFFSET(Active_Portfolio!$AA$12,1,0,ctPort,1),OFFSET(Active_Portfolio!$AH$12,1,0,ctPort,1),IF(YEAR(OFFSET(Active_Portfolio!$N$12,1,0,ctPort,1))=O$8,(DATE(O$8+1,1,1)-OFFSET(Active_Portfolio!$N$12,1,0,ctPort,1))/(DATE(O$8+1,1,1)-DATE(O$8,1,1)),1),IF(YEAR(OFFSET(Active_Portfolio!$O$12,1,0,ctPort,1))=O$8,(OFFSET(Active_Portfolio!$O$12,1,0,ctPort,1)+1-DATE(O$8,1,1))/(DATE(O$8+1,1,1)-DATE(O$8,1,1)),1),(1-OFFSET(Active_Portfolio!$AG$12,1,0,ctPort,1))^(O$8-YEAR(OFFSET(Active_Portfolio!$N$12,1,0,ctPort,1)))) -> 2745.69163 | P21: =SUMPRODUCT((YEAR(OFFSET(Active_Portfolio!$N$12,1,0,ctPort,1))<=P$8)*(YEAR(OFFSET(Active_Portfolio!$O$12,1,0,ctPort,1))>=P$8)*(OFFSET(Active_Portfolio!$K$12,1,0,ctPort,1)=$H21)*(OFFSET(Active_Portfolio!$Y$12,1,0,ctPort,1)=0)*OFFSET(Active_Portfolio!$AA$12,1,0,ctPort,1),OFFSET(Active_Portfolio!$AH$12,1,0,ctPort,1),IF(YEAR(OFFSET(Active_Portfolio!$N$12,1,0,ctPort,1))=P$8,(DATE(P$8+1,1,1)-OFFSET(Active_Portfolio!$N$12,1,0,ctPort,1))/(DATE(P$8+1,1,1)-DATE(P$8,1,1)),1),IF(YEAR(OFFSET(Active_Portfolio!$O$12,1,0,ctPort,1))=P$8,(OFFSET(Active_Portfolio!$O$12,1,0,ctPort,1)+1-DATE(P$8,1,1))/(DATE(P$8+1,1,1)-DATE(P$8,1,1)),1),(1-OFFSET(Active_Portfolio!$AG$12,1,0,ctPort,1))^(P$8-YEAR(OFFSET(Active_Portfolio!$N$12,1,0,ctPort,1)))) -> 2751.495 | Q21: =SUMPRODUCT((YEAR(OFFSET(Active_Portfolio!$N$12,1,0,ctPort,1))<=Q$8)*(YEAR(OFFSET(Active_Portfolio!$O$12,1,0,ctPort,1))>=Q$8)*(OFFSET(Active_Portfolio!$K$12,1,0,ctPort,1)=$H21)*(OFFSET(Active_Portfolio!$Y$12,1,0,ctPort,1)=0)*OFFSET(Active_Portfolio!$AA$12,1,0,ctPort,1),OFFSET(Active_Portfolio!$AH$12,1,0,ctPort,1),IF(YEAR(OFFSET(Active_Portfolio!$N$12,1,0,ctPort,1))=Q$8,(DATE(Q$8+1,1,1)-OFFSET(Active_Portfolio!$N$12,1,0,ctPort,1))/(DATE(Q$8+1,1,1)-DATE(Q$8,1,1)),1),IF(YEAR(OFFSET(Active_Portfolio!$O$12,1,0,ctPort,1))=Q$8,(OFFSET(Active_Portfolio!$O$12,1,0,ctPort,1)+1-DATE(Q$8,1,1))/(DATE(Q$8+1,1,1)-DATE(Q$8,1,1)),1),(1-OFFSET(Active_Portfolio!$AG$12,1,0,ctPort,1))^(Q$8-YEAR(OFFSET(Active_Portfolio!$N$12,1,0,ctPort,1)))) -> 2751.495 | R21: =SUMPRODUCT((YEAR(OFFSET(Active_Portfolio!$N$12,1,0,ctPort,1))<=R$8)*(YEAR(OFFSET(Active_Portfolio!$O$12,1,0,ctPort,1))>=R$8)*(OFFSET(Active_Portfolio!$K$12,1,0,ctPort,1)=$H21)*(OFFSET(Active_Portfolio!$Y$12,1,0,ctPort,1)=0)*OFFSET(Active_Portfolio!$AA$12,1,0,ctPort,1),OFFSET(Active_Portfolio!$AH$12,1,0,ctPort,1),IF(YEAR(OFFSET(Active_Portfolio!$N$12,1,0,ctPort,1))=R$8,(DATE(R$8+1,1,1)-OFFSET(Active_Portfolio!$N$12,1,0,ctPort,1))/(DATE(R$8+1,1,1)-DATE(R$8,1,1)),1),IF(YEAR(OFFSET(Active_Portfolio!$O$12,1,0,ctPort,1))=R$8,(OFFSET(Active_Portfolio!$O$12,1,0,ctPort,1)+1-DATE(R$8,1,1))/(DATE(R$8+1,1,1)-DATE(R$8,1,1)),1),(1-OFFSET(Active_Portfolio!$AG$12,1,0,ctPort,1))^(R$8-YEAR(OFFSET(Active_Portfolio!$N$12,1,0,ctPort,1)))) -> 2751.495 | S21: =SUMPRODUCT((YEAR(OFFSET(Active_Portfolio!$N$12,1,0,ctPort,1))<=S$8)*(YEAR(OFFSET(Active_Portfolio!$O$12,1,0,ctPort,1))>=S$8)*(OFFSET(Active_Portfolio!$K$12,1,0,ctPort,1)=$H21)*(OFFSET(Active_Portfolio!$Y$12,1,0,ctPort,1)=0)*OFFSET(Active_Portfolio!$AA$12,1,0,ctPort,1),OFFSET(Active_Portfolio!$AH$12,1,0,ctPort,1),IF(YEAR(OFFSET(Active_Portfolio!$N$12,1,0,ctPort,1))=S$8,(DATE(S$8+1,1,1)-OFFSET(Active_Portfolio!$N$12,1,0,ctPort,1))/(DATE(S$8+1,1,1)-DATE(S$8,1,1)),1),IF(YEAR(OFFSET(Active_Portfolio!$O$12,1,0,ctPort,1))=S$8,(OFFSET(Active_Portfolio!$O$12,1,0,ctPort,1)+1-DATE(S$8,1,1))/(DATE(S$8+1,1,1)-DATE(S$8,1,1)),1),(1-OFFSET(Active_Portfolio!$AG$12,1,0,ctPort,1))^(S$8-YEAR(OFFSET(Active_Portfolio!$N$12,1,0,ctPort,1)))) -> 2751.495 | T21: =SUMPRODUCT((YEAR(OFFSET(Active_Portfolio!$N$12,1,0,ctPort,1))<=T$8)*(YEAR(OFFSET(Active_Portfolio!$O$12,1,0,ctPort,1))>=T$8)*(OFFSET(Active_Portfolio!$K$12,1,0,ctPort,1)=$H21)*(OFFSET(Active_Portfolio!$Y$12,1,0,ctPort,1)=0)*OFFSET(Active_Portfolio!$AA$12,1,0,ctPort,1),OFFSET(Active_Portfolio!$AH$12,1,0,ctPort,1),IF(YEAR(OFFSET(Active_Portfolio!$N$12,1,0,ctPort,1))=T$8,(DATE(T$8+1,1,1)-OFFSET(Active_Portfolio!$N$12,1,0,ctPort,1))/(DATE(T$8+1,1,1)-DATE(T$8,1,1)),1),IF(YEAR(OFFSET(Active_Portfolio!$O$12,1,0,ctPort,1))=T$8,(OFFSET(Active_Portfolio!$O$12,1,0,ctPort,1)+1-DATE(T$8,1,1))/(DATE(T$8+1,1,1)-DATE(T$8,1,1)),1),(1-OFFSET(Active_Portfolio!$AG$12,1,0,ctPort,1))^(T$8-YEAR(OFFSET(Active_Portfolio!$N$12,1,0,ctPort,1)))) -> 2751.495 | U21: =SUMPRODUCT((YEAR(OFFSET(Active_Portfolio!$N$12,1,0,ctPort,1))<=U$8)*(YEAR(OFFSET(Active_Portfolio!$O$12,1,0,ctPort,1))>=U$8)*(OFFSET(Active_Portfolio!$K$12,1,0,ctPort,1)=$H21)*(OFFSET(Active_Portfolio!$Y$12,1,0,ctPort,1)=0)*OFFSET(Active_Portfolio!$AA$12,1,0,ctPort,1),OFFSET(Active_Portfolio!$AH$12,1,0,ctPort,1),IF(YEAR(OFFSET(Active_Portfolio!$N$12,1,0,ctPort,1))=U$8,(DATE(U$8+1,1,1)-OFFSET(Active_Portfolio!$N$12,1,0,ctPort,1))/(DATE(U$8+1,1,1)-DATE(U$8,1,1)),1),IF(YEAR(OFFSET(Active_Portfolio!$O$12,1,0,ctPort,1))=U$8,(OFFSET(Active_Portfolio!$O$12,1,0,ctPort,1)+1-DATE(U$8,1,1))/(DATE(U$8+1,1,1)-DATE(U$8,1,1)),1),(1-OFFSET(Active_Portfolio!$AG$12,1,0,ctPort,1))^(U$8-YEAR(OFFSET(Active_Portfolio!$N$12,1,0,ctPort,1)))) -> 2751.495 | V21: =SUMPRODUCT((YEAR(OFFSET(Active_Portfolio!$N$12,1,0,ctPort,1))<=V$8)*(YEAR(OFFSET(Active_Portfolio!$O$12,1,0,ctPort,1))>=V$8)*(OFFSET(Active_Portfolio!$K$12,1,0,ctPort,1)=$H21)*(OFFSET(Active_Portfolio!$Y$12,1,0,ctPort,1)=0)*OFFSET(Active_Portfolio!$AA$12,1,0,ctPort,1),OFFSET(Active_Portfolio!$AH$12,1,0,ctPort,1),IF(YEAR(OFFSET(Active_Portfolio!$N$12,1,0,ctPort,1))=V$8,(DATE(V$8+1,1,1)-OFFSET(Active_Portfolio!$N$12,1,0,ctPort,1))/(DATE(V$8+1,1,1)-DATE(V$8,1,1)),1),IF(YEAR(OFFSET(Active_Portfolio!$O$12,1,0,ctPort,1))=V$8,(OFFSET(Active_Portfolio!$O$12,1,0,ctPort,1)+1-DATE(V$8,1,1))/(DATE(V$8+1,1,1)-DATE(V$8,1,1)),1),(1-OFFSET(Active_Portfolio!$AG$12,1,0,ctPort,1))^(V$8-YEAR(OFFSET(Active_Portfolio!$N$12,1,0,ctPort,1)))) -> 2751.495 | W21: =SUMPRODUCT((YEAR(OFFSET(Active_Portfolio!$N$12,1,0,ctPort,1))<=W$8)*(YEAR(OFFSET(Active_Portfolio!$O$12,1,0,ctPort,1))>=W$8)*(OFFSET(Active_Portfolio!$K$12,1,0,ctPort,1)=$H21)*(OFFSET(Active_Portfolio!$Y$12,1,0,ctPort,1)=0)*OFFSET(Active_Portfolio!$AA$12,1,0,ctPort,1),OFFSET(Active_Portfolio!$AH$12,1,0,ctPort,1),IF(YEAR(OFFSET(Active_Portfolio!$N$12,1,0,ctPort,1))=W$8,(DATE(W$8+1,1,1)-OFFSET(Active_Portfolio!$N$12,1,0,ctPort,1))/(DATE(W$8+1,1,1)-DATE(W$8,1,1)),1),IF(YEAR(OFFSET(Active_Portfolio!$O$12,1,0,ctPort,1))=W$8,(OFFSET(Active_Portfolio!$O$12,1,0,ctPort,1)+1-DATE(W$8,1,1))/(DATE(W$8+1,1,1)-DATE(W$8,1,1)),1),(1-OFFSET(Active_Portfolio!$AG$12,1,0,ctPort,1))^(W$8-YEAR(OFFSET(Active_Portfolio!$N$12,1,0,ctPort,1)))) -> 2751.495 | X21: =SUMPRODUCT((YEAR(OFFSET(Active_Portfolio!$N$12,1,0,ctPort,1))<=X$8)*(YEAR(OFFSET(Active_Portfolio!$O$12,1,0,ctPort,1))>=X$8)*(OFFSET(Active_Portfolio!$K$12,1,0,ctPort,1)=$H21)*(OFFSET(Active_Portfolio!$Y$12,1,0,ctPort,1)=0)*OFFSET(Active_Portfolio!$AA$12,1,0,ctPort,1),OFFSET(Active_Portfolio!$AH$12,1,0,ctPort,1),IF(YEAR(OFFSET(Active_Portfolio!$N$12,1,0,ctPort,1))=X$8,(DATE(X$8+1,1,1)-OFFSET(Active_Portfolio!$N$12,1,0,ctPort,1))/(DATE(X$8+1,1,1)-DATE(X$8,1,1)),1),IF(YEAR(OFFSET(Active_Portfolio!$O$12,1,0,ctPort,1))=X$8,(OFFSET(Active_Portfolio!$O$12,1,0,ctPort,1)+1-DATE(X$8,1,1))/(DATE(X$8+1,1,1)-DATE(X$8,1,1)),1),(1-OFFSET(Active_Portfolio!$AG$12,1,0,ctPort,1))^(X$8-YEAR(OFFSET(Active_Portfolio!$N$12,1,0,ctPort,1)))) -> 2751.495 | Y21: =SUMPRODUCT((YEAR(OFFSET(Active_Portfolio!$N$12,1,0,ctPort,1))<=Y$8)*(YEAR(OFFSET(Active_Portfolio!$O$12,1,0,ctPort,1))>=Y$8)*(OFFSET(Active_Portfolio!$K$12,1,0,ctPort,1)=$H21)*(OFFSET(Active_Portfolio!$Y$12,1,0,ctPort,1)=0)*OFFSET(Active_Portfolio!$AA$12,1,0,ctPort,1),OFFSET(Active_Portfolio!$AH$12,1,0,ctPort,1),IF(YEAR(OFFSET(Active_Portfolio!$N$12,1,0,ctPort,1))=Y$8,(DATE(Y$8+1,1,1)-OFFSET(Active_Portfolio!$N$12,1,0,ctPort,1))/(DATE(Y$8+1,1,1)-DATE(Y$8,1,1)),1),IF(YEAR(OFFSET(Active_Portfolio!$O$12,1,0,ctPort,1))=Y$8,(OFFSET(Active_Portfolio!$O$12,1,0,ctPort,1)+1-DATE(Y$8,1,1))/(DATE(Y$8+1,1,1)-DATE(Y$8,1,1)),1),(1-OFFSET(Active_Portfolio!$AG$12,1,0,ctPort,1))^(Y$8-YEAR(OFFSET(Active_Portfolio!$N$12,1,0,ctPort,1)))) -> 2751.495 | Z21: =SUMPRODUCT((YEAR(OFFSET(Active_Portfolio!$N$12,1,0,ctPort,1))<=Z$8)*(YEAR(OFFSET(Active_Portfolio!$O$12,1,0,ctPort,1))>=Z$8)*(OFFSET(Active_Portfolio!$K$12,1,0,ctPort,1)=$H21)*(OFFSET(Active_Portfolio!$Y$12,1,0,ctPort,1)=0)*OFFSET(Active_Portfolio!$AA$12,1,0,ctPort,1),OFFSET(Active_Portfolio!$AH$12,1,0,ctPort,1),IF(YEAR(OFFSET(Active_Portfolio!$N$12,1,0,ctPort,1))=Z$8,(DATE(Z$8+1,1,1)-OFFSET(Active_Portfolio!$N$12,1,0,ctPort,1))/(DATE(Z$8+1,1,1)-DATE(Z$8,1,1)),1),IF(YEAR(OFFSET(Active_Portfolio!$O$12,1,0,ctPort,1))=Z$8,(OFFSET(Active_Portfolio!$O$12,1,0,ctPort,1)+1-DATE(Z$8,1,1))/(DATE(Z$8+1,1,1)-DATE(Z$8,1,1)),1),(1-OFFSET(Active_Portfolio!$AG$12,1,0,ctPort,1))^(Z$8-YEAR(OFFSET(Active_Portfolio!$N$12,1,0,ctPort,1)))) -> 2751.495 | AA21: =SUMPRODUCT((YEAR(OFFSET(Active_Portfolio!$N$12,1,0,ctPort,1))<=AA$8)*(YEAR(OFFSET(Active_Portfolio!$O$12,1,0,ctPort,1))>=AA$8)*(OFFSET(Active_Portfolio!$K$12,1,0,ctPort,1)=$H21)*(OFFSET(Active_Portfolio!$Y$12,1,0,ctPort,1)=0)*OFFSET(Active_Portfolio!$AA$12,1,0,ctPort,1),OFFSET(Active_Portfolio!$AH$12,1,0,ctPort,1),IF(YEAR(OFFSET(Active_Portfolio!$N$12,1,0,ctPort,1))=AA$8,(DATE(AA$8+1,1,1)-OFFSET(Active_Portfolio!$N$12,1,0,ctPort,1))/(DATE(AA$8+1,1,1)-DATE(AA$8,1,1)),1),IF(YEAR(OFFSET(Active_Portfolio!$O$12,1,0,ctPort,1))=AA$8,(OFFSET(Active_Portfolio!$O$12,1,0,ctPort,1)+1-DATE(AA$8,1,1))/(DATE(AA$8+1,1,1)-DATE(AA$8,1,1)),1),(1-OFFSET(Active_Portfolio!$AG$12,1,0,ctPort,1))^(AA$8-YEAR(OFFSET(Active_Portfolio!$N$12,1,0,ctPort,1)))) -> 2751.495
C22: Land Use Exclusions | D22: Base | H22: Wind | I22: =SUMPRODUCT((OFFSET(Active_Portfolio!$X$12,1,0,ctPort,1)=1)*(YEAR(OFFSET(Active_Portfolio!$N$12,1,0,ctPort,1))<=I$8)*(YEAR(OFFSET(Active_Portfolio!$O$12,1,0,ctPort,1))>=I$8)*(OFFSET(Active_Portfolio!$K$12,1,0,ctPort,1)=$H22)*(OFFSET(Active_Portfolio!$Y$12,1,0,ctPort,1)=0)*OFFSET(Active_Portfolio!$AA$12,1,0,ctPort,1),OFFSET(Active_Portfolio!$AH$12,1,0,ctPort,1),IF(YEAR(OFFSET(Active_Portfolio!$N$12,1,0,ctPort,1))=I$8,(DATE(I$8+1,1,1)-OFFSET(Active_Portfolio!$N$12,1,0,ctPort,1))/(DATE(I$8+1,1,1)-DATE(I$8,1,1)),1),IF(YEAR(OFFSET(Active_Portfolio!$O$12,1,0,ctPort,1))=I$8,(OFFSET(Active_Portfolio!$O$12,1,0,ctPort,1)+1-DATE(I$8,1,1))/(DATE(I$8+1,1,1)-DATE(I$8,1,1)),1),(1-OFFSET(Active_Portfolio!$AG$12,1,0,ctPort,1))^(I$8-YEAR(OFFSET(Active_Portfolio!$N$12,1,0,ctPort,1)))) -> 946.5080575 | J22: =SUMPRODUCT((YEAR(OFFSET(Active_Portfolio!$N$12,1,0,ctPort,1))<=J$8)*(YEAR(OFFSET(Active_Portfolio!$O$12,1,0,ctPort,1))>=J$8)*(OFFSET(Active_Portfolio!$K$12,1,0,ctPort,1)=$H22)*(OFFSET(Active_Portfolio!$Y$12,1,0,ctPort,1)=0)*OFFSET(Active_Portfolio!$AA$12,1,0,ctPort,1),OFFSET(Active_Portfolio!$AH$12,1,0,ctPort,1),IF(YEAR(OFFSET(Active_Portfolio!$N$12,1,0,ctPort,1))=J$8,(DATE(J$8+1,1,1)-OFFSET(Active_Portfolio!$N$12,1,0,ctPort,1))/(DATE(J$8+1,1,1)-DATE(J$8,1,1)),1),IF(YEAR(OFFSET(Active_Portfolio!$O$12,1,0,ctPort,1))=J$8,(OFFSET(Active_Portfolio!$O$12,1,0,ctPort,1)+1-DATE(J$8,1,1))/(DATE(J$8+1,1,1)-DATE(J$8,1,1)),1),(1-OFFSET(Active_Portfolio!$AG$12,1,0,ctPort,1))^(J$8-YEAR(OFFSET(Active_Portfolio!$N$12,1,0,ctPort,1)))) -> 16524.28582 | K22: =SUMPRODUCT((YEAR(OFFSET(Active_Portfolio!$N$12,1,0,ctPort,1))<=K$8)*(YEAR(OFFSET(Active_Portfolio!$O$12,1,0,ctPort,1))>=K$8)*(OFFSET(Active_Portfolio!$K$12,1,0,ctPort,1)=$H22)*(OFFSET(Active_Portfolio!$Y$12,1,0,ctPort,1)=0)*OFFSET(Active_Portfolio!$AA$12,1,0,ctPort,1),OFFSET(Active_Portfolio!$AH$12,1,0,ctPort,1),IF(YEAR(OFFSET(Active_Portfolio!$N$12,1,0,ctPort,1))=K$8,(DATE(K$8+1,1,1)-OFFSET(Active_Portfolio!$N$12,1,0,ctPort,1))/(DATE(K$8+1,1,1)-DATE(K$8,1,1)),1),IF(YEAR(OFFSET(Active_Portfolio!$O$12,1,0,ctPort,1))=K$8,(OFFSET(Active_Portfolio!$O$12,1,0,ctPort,1)+1-DATE(K$8,1,1))/(DATE(K$8+1,1,1)-DATE(K$8,1,1)),1),(1-OFFSET(Active_Portfolio!$AG$12,1,0,ctPort,1))^(K$8-YEAR(OFFSET(Active_Portfolio!$N$12,1,0,ctPort,1)))) -> 18079.87084 | L22: =SUMPRODUCT((YEAR(OFFSET(Active_Portfolio!$N$12,1,0,ctPort,1))<=L$8)*(YEAR(OFFSET(Active_Portfolio!$O$12,1,0,ctPort,1))>=L$8)*(OFFSET(Active_Portfolio!$K$12,1,0,ctPort,1)=$H22)*(OFFSET(Active_Portfolio!$Y$12,1,0,ctPort,1)=0)*OFFSET(Active_Portfolio!$AA$12,1,0,ctPort,1),OFFSET(Active_Portfolio!$AH$12,1,0,ctPort,1),IF(YEAR(OFFSET(Active_Portfolio!$N$12,1,0,ctPort,1))=L$8,(DATE(L$8+1,1,1)-OFFSET(Active_Portfolio!$N$12,1,0,ctPort,1))/(DATE(L$8+1,1,1)-DATE(L$8,1,1)),1),IF(YEAR(OFFSET(Active_Portfolio!$O$12,1,0,ctPort,1))=L$8,(OFFSET(Active_Portfolio!$O$12,1,0,ctPort,1)+1-DATE(L$8,1,1))/(DATE(L$8+1,1,1)-DATE(L$8,1,1)),1),(1-OFFSET(Active_Portfolio!$AG$12,1,0,ctPort,1))^(L$8-YEAR(OFFSET(Active_Portfolio!$N$12,1,0,ctPort,1)))) -> 18796.53454 | M22: =SUMPRODUCT((YEAR(OFFSET(Active_Portfolio!$N$12,1,0,ctPort,1))<=M$8)*(YEAR(OFFSET(Active_Portfolio!$O$12,1,0,ctPort,1))>=M$8)*(OFFSET(Active_Portfolio!$K$12,1,0,ctPort,1)=$H22)*(OFFSET(Active_Portfolio!$Y$12,1,0,ctPort,1)=0)*OFFSET(Active_Portfolio!$AA$12,1,0,ctPort,1),OFFSET(Active_Portfolio!$AH$12,1,0,ctPort,1),IF(YEAR(OFFSET(Active_Portfolio!$N$12,1,0,ctPort,1))=M$8,(DATE(M$8+1,1,1)-OFFSET(Active_Portfolio!$N$12,1,0,ctPort,1))/(DATE(M$8+1,1,1)-DATE(M$8,1,1)),1),IF(YEAR(OFFSET(Active_Portfolio!$O$12,1,0,ctPort,1))=M$8,(OFFSET(Active_Portfolio!$O$12,1,0,ctPort,1)+1-DATE(M$8,1,1))/(DATE(M$8+1,1,1)-DATE(M$8,1,1)),1),(1-OFFSET(Active_Portfolio!$AG$12,1,0,ctPort,1))^(M$8-YEAR(OFFSET(Active_Portfolio!$N$12,1,0,ctPort,1)))) -> 19920.97307 | N22: =SUMPRODUCT((YEAR(OFFSET(Active_Portfolio!$N$12,1,0,ctPort,1))<=N$8)*(YEAR(OFFSET(Active_Portfolio!$O$12,1,0,ctPort,1))>=N$8)*(OFFSET(Active_Portfolio!$K$12,1,0,ctPort,1)=$H22)*(OFFSET(Active_Portfolio!$Y$12,1,0,ctPort,1)=0)*OFFSET(Active_Portfolio!$AA$12,1,0,ctPort,1),OFFSET(Active_Portfolio!$AH$12,1,0,ctPort,1),IF(YEAR(OFFSET(Active_Portfolio!$N$12,1,0,ctPort,1))=N$8,(DATE(N$8+1,1,1)-OFFSET(Active_Portfolio!$N$12,1,0,ctPort,1))/(DATE(N$8+1,1,1)-DATE(N$8,1,1)),1),IF(YEAR(OFFSET(Active_Portfolio!$O$12,1,0,ctPort,1))=N$8,(OFFSET(Active_Portfolio!$O$12,1,0,ctPort,1)+1-DATE(N$8,1,1))/(DATE(N$8+1,1,1)-DATE(N$8,1,1)),1),(1-OFFSET(Active_Portfolio!$AG$12,1,0,ctPort,1))^(N$8-YEAR(OFFSET(Active_Portfolio!$N$12,1,0,ctPort,1)))) -> 22340.12681 | O22: =SUMPRODUCT((YEAR(OFFSET(Active_Portfolio!$N$12,1,0,ctPort,1))<=O$8)*(YEAR(OFFSET(Active_Portfolio!$O$12,1,0,ctPort,1))>=O$8)*(OFFSET(Active_Portfolio!$K$12,1,0,ctPort,1)=$H22)*(OFFSET(Active_Portfolio!$Y$12,1,0,ctPort,1)=0)*OFFSET(Active_Portfolio!$AA$12,1,0,ctPort,1),OFFSET(Active_Portfolio!$AH$12,1,0,ctPort,1),IF(YEAR(OFFSET(Active_Portfolio!$N$12,1,0,ctPort,1))=O$8,(DATE(O$8+1,1,1)-OFFSET(Active_Portfolio!$N$12,1,0,ctPort,1))/(DATE(O$8+1,1,1)-DATE(O$8,1,1)),1),IF(YEAR(OFFSET(Active_Portfolio!$O$12,1,0,ctPort,1))=O$8,(OFFSET(Active_Portfolio!$O$12,1,0,ctPort,1)+1-DATE(O$8,1,1))/(DATE(O$8+1,1,1)-DATE(O$8,1,1)),1),(1-OFFSET(Active_Portfolio!$AG$12,1,0,ctPort,1))^(O$8-YEAR(OFFSET(Active_Portfolio!$N$12,1,0,ctPort,1)))) -> 24015.2555 | P22: =SUMPRODUCT((YEAR(OFFSET(Active_Portfolio!$N$12,1,0,ctPort,1))<=P$8)*(YEAR(OFFSET(Active_Portfolio!$O$12,1,0,ctPort,1))>=P$8)*(OFFSET(Active_Portfolio!$K$12,1,0,ctPort,1)=$H22)*(OFFSET(Active_Portfolio!$Y$12,1,0,ctPort,1)=0)*OFFSET(Active_Portfolio!$AA$12,1,0,ctPort,1),OFFSET(Active_Portfolio!$AH$12,1,0,ctPort,1),IF(YEAR(OFFSET(Active_Portfolio!$N$12,1,0,ctPort,1))=P$8,(DATE(P$8+1,1,1)-OFFSET(Active_Portfolio!$N$12,1,0,ctPort,1))/(DATE(P$8+1,1,1)-DATE(P$8,1,1)),1),IF(YEAR(OFFSET(Active_Portfolio!$O$12,1,0,ctPort,1))=P$8,(OFFSET(Active_Portfolio!$O$12,1,0,ctPort,1)+1-DATE(P$8,1,1))/(DATE(P$8+1,1,1)-DATE(P$8,1,1)),1),(1-OFFSET(Active_Portfolio!$AG$12,1,0,ctPort,1))^(P$8-YEAR(OFFSET(Active_Portfolio!$N$12,1,0,ctPort,1)))) -> 24321.57228 | Q22: =SUMPRODUCT((YEAR(OFFSET(Active_Portfolio!$N$12,1,0,ctPort,1))<=Q$8)*(YEAR(OFFSET(Active_Portfolio!$O$12,1,0,ctPort,1))>=Q$8)*(OFFSET(Active_Portfolio!$K$12,1,0,ctPort,1)=$H22)*(OFFSET(Active_Portfolio!$Y$12,1,0,ctPort,1)=0)*OFFSET(Active_Portfolio!$AA$12,1,0,ctPort,1),OFFSET(Active_Portfolio!$AH$12,1,0,ctPort,1),IF(YEAR(OFFSET(Active_Portfolio!$N$12,1,0,ctPort,1))=Q$8,(DATE(Q$8+1,1,1)-OFFSET(Active_Portfolio!$N$12,1,0,ctPort,1))/(DATE(Q$8+1,1,1)-DATE(Q$8,1,1)),1),IF(YEAR(OFFSET(Active_Portfolio!$O$12,1,0,ctPort,1))=Q$8,(OFFSET(Active_Portfolio!$O$12,1,0,ctPort,1)+1-DATE(Q$8,1,1))/(DATE(Q$8+1,1,1)-DATE(Q$8,1,1)),1),(1-OFFSET(Active_Portfolio!$AG$12,1,0,ctPort,1))^(Q$8-YEAR(OFFSET(Active_Portfolio!$N$12,1,0,ctPort,1)))) -> 25863.88155 | R22: =SUMPRODUCT((YEAR(OFFSET(Active_Portfolio!$N$12,1,0,ctPort,1))<=R$8)*(YEAR(OFFSET(Active_Portfolio!$O$12,1,0,ctPort,1))>=R$8)*(OFFSET(Active_Portfolio!$K$12,1,0,ctPort,1)=$H22)*(OFFSET(Active_Portfolio!$Y$12,1,0,ctPort,1)=0)*OFFSET(Active_Portfolio!$AA$12,1,0,ctPort,1),OFFSET(Active_Portfolio!$AH$12,1,0,ctPort,1),IF(YEAR(OFFSET(Active_Portfolio!$N$12,1,0,ctPort,1))=R$8,(DATE(R$8+1,1,1)-OFFSET(Active_Portfolio!$N$12,1,0,ctPort,1))/(DATE(R$8+1,1,1)-DATE(R$8,1,1)),1),IF(YEAR(OFFSET(Active_Portfolio!$O$12,1,0,ctPort,1))=R$8,(OFFSET(Active_Portfolio!$O$12,1,0,ctPort,1)+1-DATE(R$8,1,1))/(DATE(R$8+1,1,1)-DATE(R$8,1,1)),1),(1-OFFSET(Active_Portfolio!$AG$12,1,0,ctPort,1))^(R$8-YEAR(OFFSET(Active_Portfolio!$N$12,1,0,ctPort,1)))) -> 25863.88155 | S22: =SUMPRODUCT((YEAR(OFFSET(Active_Portfolio!$N$12,1,0,ctPort,1))<=S$8)*(YEAR(OFFSET(Active_Portfolio!$O$12,1,0,ctPort,1))>=S$8)*(OFFSET(Active_Portfolio!$K$12,1,0,ctPort,1)=$H22)*(OFFSET(Active_Portfolio!$Y$12,1,0,ctPort,1)=0)*OFFSET(Active_Portfolio!$AA$12,1,0,ctPort,1),OFFSET(Active_Portfolio!$AH$12,1,0,ctPort,1),IF(YEAR(OFFSET(Active_Portfolio!$N$12,1,0,ctPort,1))=S$8,(DATE(S$8+1,1,1)-OFFSET(Active_Portfolio!$N$12,1,0,ctPort,1))/(DATE(S$8+1,1,1)-DATE(S$8,1,1)),1),IF(YEAR(OFFSET(Active_Portfolio!$O$12,1,0,ctPort,1))=S$8,(OFFSET(Active_Portfolio!$O$12,1,0,ctPort,1)+1-DATE(S$8,1,1))/(DATE(S$8+1,1,1)-DATE(S$8,1,1)),1),(1-OFFSET(Active_Portfolio!$AG$12,1,0,ctPort,1))^(S$8-YEAR(OFFSET(Active_Portfolio!$N$12,1,0,ctPort,1)))) -> 26904.69921 | T22: =SUMPRODUCT((YEAR(OFFSET(Active_Portfolio!$N$12,1,0,ctPort,1))<=T$8)*(YEAR(OFFSET(Active_Portfolio!$O$12,1,0,ctPort,1))>=T$8)*(OFFSET(Active_Portfolio!$K$12,1,0,ctPort,1)=$H22)*(OFFSET(Active_Portfolio!$Y$12,1,0,ctPort,1)=0)*OFFSET(Active_Portfolio!$AA$12,1,0,ctPort,1),OFFSET(Active_Portfolio!$AH$12,1,0,ctPort,1),IF(YEAR(OFFSET(Active_Portfolio!$N$12,1,0,ctPort,1))=T$8,(DATE(T$8+1,1,1)-OFFSET(Active_Portfolio!$N$12,1,0,ctPort,1))/(DATE(T$8+1,1,1)-DATE(T$8,1,1)),1),IF(YEAR(OFFSET(Active_Portfolio!$O$12,1,0,ctPort,1))=T$8,(OFFSET(Active_Portfolio!$O$12,1,0,ctPort,1)+1-DATE(T$8,1,1))/(DATE(T$8+1,1,1)-DATE(T$8,1,1)),1),(1-OFFSET(Active_Portfolio!$AG$12,1,0,ctPort,1))^(T$8-YEAR(OFFSET(Active_Portfolio!$N$12,1,0,ctPort,1)))) -> 26988.18512 | U22: =SUMPRODUCT((YEAR(OFFSET(Active_Portfolio!$N$12,1,0,ctPort,1))<=U$8)*(YEAR(OFFSET(Active_Portfolio!$O$12,1,0,ctPort,1))>=U$8)*(OFFSET(Active_Portfolio!$K$12,1,0,ctPort,1)=$H22)*(OFFSET(Active_Portfolio!$Y$12,1,0,ctPort,1)=0)*OFFSET(Active_Portfolio!$AA$12,1,0,ctPort,1),OFFSET(Active_Portfolio!$AH$12,1,0,ctPort,1),IF(YEAR(OFFSET(Active_Portfolio!$N$12,1,0,ctPort,1))=U$8,(DATE(U$8+1,1,1)-OFFSET(Active_Portfolio!$N$12,1,0,ctPort,1))/(DATE(U$8+1,1,1)-DATE(U$8,1,1)),1),IF(YEAR(OFFSET(Active_Portfolio!$O$12,1,0,ctPort,1))=U$8,(OFFSET(Active_Portfolio!$O$12,1,0,ctPort,1)+1-DATE(U$8,1,1))/(DATE(U$8+1,1,1)-DATE(U$8,1,1)),1),(1-OFFSET(Active_Portfolio!$AG$12,1,0,ctPort,1))^(U$8-YEAR(OFFSET(Active_Portfolio!$N$12,1,0,ctPort,1)))) -> 26686.4901 | V22: =SUMPRODUCT((YEAR(OFFSET(Active_Portfolio!$N$12,1,0,ctPort,1))<=V$8)*(YEAR(OFFSET(Active_Portfolio!$O$12,1,0,ctPort,1))>=V$8)*(OFFSET(Active_Portfolio!$K$12,1,0,ctPort,1)=$H22)*(OFFSET(Active_Portfolio!$Y$12,1,0,ctPort,1)=0)*OFFSET(Active_Portfolio!$AA$12,1,0,ctPort,1),OFFSET(Active_Portfolio!$AH$12,1,0,ctPort,1),IF(YEAR(OFFSET(Active_Portfolio!$N$12,1,0,ctPort,1))=V$8,(DATE(V$8+1,1,1)-OFFSET(Active_Portfolio!$N$12,1,0,ctPort,1))/(DATE(V$8+1,1,1)-DATE(V$8,1,1)),1),IF(YEAR(OFFSET(Active_Portfolio!$O$12,1,0,ctPort,1))=V$8,(OFFSET(Active_Portfolio!$O$12,1,0,ctPort,1)+1-DATE(V$8,1,1))/(DATE(V$8+1,1,1)-DATE(V$8,1,1)),1),(1-OFFSET(Active_Portfolio!$AG$12,1,0,ctPort,1))^(V$8-YEAR(OFFSET(Active_Portfolio!$N$12,1,0,ctPort,1)))) -> 26639.65528 | W22: =SUMPRODUCT((YEAR(OFFSET(Active_Portfolio!$N$12,1,0,ctPort,1))<=W$8)*(YEAR(OFFSET(Active_Portfolio!$O$12,1,0,ctPort,1))>=W$8)*(OFFSET(Active_Portfolio!$K$12,1,0,ctPort,1)=$H22)*(OFFSET(Active_Portfolio!$Y$12,1,0,ctPort,1)=0)*OFFSET(Active_Portfolio!$AA$12,1,0,ctPort,1),OFFSET(Active_Portfolio!$AH$12,1,0,ctPort,1),IF(YEAR(OFFSET(Active_Portfolio!$N$12,1,0,ctPort,1))=W$8,(DATE(W$8+1,1,1)-OFFSET(Active_Portfolio!$N$12,1,0,ctPort,1))/(DATE(W$8+1,1,1)-DATE(W$8,1,1)),1),IF(YEAR(OFFSET(Active_Portfolio!$O$12,1,0,ctPort,1))=W$8,(OFFSET(Active_Portfolio!$O$12,1,0,ctPort,1)+1-DATE(W$8,1,1))/(DATE(W$8+1,1,1)-DATE(W$8,1,1)),1),(1-OFFSET(Active_Portfolio!$AG$12,1,0,ctPort,1))^(W$8-YEAR(OFFSET(Active_Portfolio!$N$12,1,0,ctPort,1)))) -> 26563.94241 | X22: =SUMPRODUCT((YEAR(OFFSET(Active_Portfolio!$N$12,1,0,ctPort,1))<=X$8)*(YEAR(OFFSET(Active_Portfolio!$O$12,1,0,ctPort,1))>=X$8)*(OFFSET(Active_Portfolio!$K$12,1,0,ctPort,1)=$H22)*(OFFSET(Active_Portfolio!$Y$12,1,0,ctPort,1)=0)*OFFSET(Active_Portfolio!$AA$12,1,0,ctPort,1),OFFSET(Active_Portfolio!$AH$12,1,0,ctPort,1),IF(YEAR(OFFSET(Active_Portfolio!$N$12,1,0,ctPort,1))=X$8,(DATE(X$8+1,1,1)-OFFSET(Active_Portfolio!$N$12,1,0,ctPort,1))/(DATE(X$8+1,1,1)-DATE(X$8,1,1)),1),IF(YEAR(OFFSET(Active_Portfolio!$O$12,1,0,ctPort,1))=X$8,(OFFSET(Active_Portfolio!$O$12,1,0,ctPort,1)+1-DATE(X$8,1,1))/(DATE(X$8+1,1,1)-DATE(X$8,1,1)),1),(1-OFFSET(Active_Portfolio!$AG$12,1,0,ctPort,1))^(X$8-YEAR(OFFSET(Active_Portfolio!$N$12,1,0,ctPort,1)))) -> 26339.27268 | Y22: =SUMPRODUCT((YEAR(OFFSET(Active_Portfolio!$N$12,1,0,ctPort,1))<=Y$8)*(YEAR(OFFSET(Active_Portfolio!$O$12,1,0,ctPort,1))>=Y$8)*(OFFSET(Active_Portfolio!$K$12,1,0,ctPort,1)=$H22)*(OFFSET(Active_Portfolio!$Y$12,1,0,ctPort,1)=0)*OFFSET(Active_Portfolio!$AA$12,1,0,ctPort,1),OFFSET(Active_Portfolio!$AH$12,1,0,ctPort,1),IF(YEAR(OFFSET(Active_Portfolio!$N$12,1,0,ctPort,1))=Y$8,(DATE(Y$8+1,1,1)-OFFSET(Active_Portfolio!$N$12,1,0,ctPort,1))/(DATE(Y$8+1,1,1)-DATE(Y$8,1,1)),1),IF(YEAR(OFFSET(Active_Portfolio!$O$12,1,0,ctPort,1))=Y$8,(OFFSET(Active_Portfolio!$O$12,1,0,ctPort,1)+1-DATE(Y$8,1,1))/(DATE(Y$8+1,1,1)-DATE(Y$8,1,1)),1),(1-OFFSET(Active_Portfolio!$AG$12,1,0,ctPort,1))^(Y$8-YEAR(OFFSET(Active_Portfolio!$N$12,1,0,ctPort,1)))) -> 31485.65371 | Z22: =SUMPRODUCT((YEAR(OFFSET(Active_Portfolio!$N$12,1,0,ctPort,1))<=Z$8)*(YEAR(OFFSET(Active_Portfolio!$O$12,1,0,ctPort,1))>=Z$8)*(OFFSET(Active_Portfolio!$K$12,1,0,ctPort,1)=$H22)*(OFFSET(Active_Portfolio!$Y$12,1,0,ctPort,1)=0)*OFFSET(Active_Portfolio!$AA$12,1,0,ctPort,1),OFFSET(Active_Portfolio!$AH$12,1,0,ctPort,1),IF(YEAR(OFFSET(Active_Portfolio!$N$12,1,0,ctPort,1))=Z$8,(DATE(Z$8+1,1,1)-OFFSET(Active_Portfolio!$N$12,1,0,ctPort,1))/(DATE(Z$8+1,1,1)-DATE(Z$8,1,1)),1),IF(YEAR(OFFSET(Active_Portfolio!$O$12,1,0,ctPort,1))=Z$8,(OFFSET(Active_Portfolio!$O$12,1,0,ctPort,1)+1-DATE(Z$8,1,1))/(DATE(Z$8+1,1,1)-DATE(Z$8,1,1)),1),(1-OFFSET(Active_Portfolio!$AG$12,1,0,ctPort,1))^(Z$8-YEAR(OFFSET(Active_Portfolio!$N$12,1,0,ctPort,1)))) -> 32920.04755 | AA22: =SUMPRODUCT((YEAR(OFFSET(Active_Portfolio!$N$12,1,0,ctPort,1))<=AA$8)*(YEAR(OFFSET(Active_Portfolio!$O$12,1,0,ctPort,1))>=AA$8)*(OFFSET(Active_Portfolio!$K$12,1,0,ctPort,1)=$H22)*(OFFSET(Active_Portfolio!$Y$12,1,0,ctPort,1)=0)*OFFSET(Active_Portfolio!$AA$12,1,0,ctPort,1),OFFSET(Active_Portfolio!$AH$12,1,0,ctPort,1),IF(YEAR(OFFSET(Active_Portfolio!$N$12,1,0,ctPort,1))=AA$8,(DATE(AA$8+1,1,1)-OFFSET(Active_Portfolio!$N$12,1,0,ctPort,1))/(DATE(AA$8+1,1,1)-DATE(AA$8,1,1)),1),IF(YEAR(OFFSET(Active_Portfolio!$O$12,1,0,ctPort,1))=AA$8,(OFFSET(Active_Portfolio!$O$12,1,0,ctPort,1)+1-DATE(AA$8,1,1))/(DATE(AA$8+1,1,1)-DATE(AA$8,1,1)),1),(1-OFFSET(Active_Portfolio!$AG$12,1,0,ctPort,1))^(AA$8-YEAR(OFFSET(Active_Portfolio!$N$12,1,0,ctPort,1)))) -> 33461.90345
H23: Total RPS Generation | I23: =SUM(I16:I22) -> 4037.776569 | J23: 40211.49814 | K23: 47392.54191 | L23: 55190.60047 | M23: 59510.72754 | N23: 65677.31504 | O23: 74078.75748 | P23: 77167.26071 | Q23: 82641.601 | R23: 87419.0695 | S23: 92297.16393 | T23: 92089.37409 | U23: 91498.43439 | V23: 91247.25616 | W23: 90939.64715 | X23: 94770.77003 | Y23: 100950.8527 | Z23: 105762.9075 | AA23: 109816.908
C24: Dist Gen Set-Aside | D24: None | H24: Behind-the-Meter PV | I24: =Load_Forecast!F179 -> 2102.21491 | J24: =Load_Forecast!G179 -> 2855.71719 | K24: =Load_Forecast!H179 -> 3994.45797 | L24: =Load_Forecast!I179 -> 5405.97482 | M24: =Load_Forecast!J179 -> 6708.26981 | N24: =Load_Forecast!K179 -> 7802.9117 | O24: =Load_Forecast!L179 -> 8635.7779 | P24: =Load_Forecast!M179 -> 9492.932 | Q24: =Load_Forecast!N179 -> 10333.0785 | R24: =Load_Forecast!O179 -> 11358.91 | S24: =Load_Forecast!P179 -> 12576.1735 | T24: =Load_Forecast!Q179 -> 13974.2407 | U24: =Load_Forecast!R179 -> 15534.6039 | V24: =Load_Forecast!S179 -> 17248.5071 | W24: =Load_Forecast!T179 -> 19105.4595 | X24: =Load_Forecast!U179 -> 19105.4595 | Y24: =Load_Forecast!V179 -> 19105.4595 | Z24: =Load_Forecast!W179 -> 19105.4595 | AA24: =Load_Forecast!X179 -> 19105.4595
H25: Total Renewable Gen | I25: =SUM(I23:I24) -> 6139.991479 | J25: =SUM(J23:J24) -> 43067.21533 | K25: 51386.99988 | L25: 60596.57529 | M25: 66218.99735 | N25: 73480.22674 | O25: 82714.53538 | P25: 86660.19271 | Q25: 92974.6795 | R25: 98777.9795 | S25: 104873.3374 | T25: 106063.6148 | U25: 107033.0383 | V25: 108495.7633 | W25: 110045.1067 | X25: 113876.2295 | Y25: 120056.3122 | Z25: 124868.367 | AA25: 128922.3675
C26: Load Forecast | D26: Mid Demand - Low AAEE
H27: Total Renewable Installed Capacity by Year (MW)
C28: BTM PV Forecast | D28: Mid Demand (Mid PV) | I28: 2012 | J28: =I28+1 -> 2013 | K28: 2014 | L28: 2015 | M28: 2016 | N28: 2017 | O28: 2018 | P28: 2019 | Q28: 2020 | R28: 2021 | S28: 2022 | T28: 2023 | U28: 2024 | V28: 2025 | W28: 2026 | X28: 2027 | Y28: 2028 | Z28: 2029 | AA28: 2030
H29: Biogas | I29: =SUMPRODUCT((OFFSET(Active_Portfolio!$N$12,1,0,ctPort,1)<=DATE(I$8,12,31))*(OFFSET(Active_Portfolio!$O$12,1,0,ctPort,1)>DATE(I$8,12,31))*(OFFSET(Active_Portfolio!$K$12,1,0,ctPort,1)=$H29)*(OFFSET(Active_Portfolio!$Y$12,1,0,ctPort,1)=0)*OFFSET(Active_Portfolio!$Z$12,1,0,ctPort,1),OFFSET(Active_Portfolio!$AH$12,1,0,ctPort,1)) -> 222.0716667 | J29: =SUMPRODUCT((OFFSET(Active_Portfolio!$N$12,1,0,ctPort,1)<=DATE(J$8,12,31))*(OFFSET(Active_Portfolio!$O$12,1,0,ctPort,1)>DATE(J$8,12,31))*(OFFSET(Active_Portfolio!$K$12,1,0,ctPort,1)=$H29)*(OFFSET(Active_Portfolio!$Y$12,1,0,ctPort,1)=0)*OFFSET(Active_Portfolio!$Z$12,1,0,ctPort,1),OFFSET(Active_Portfolio!$AH$12,1,0,ctPort,1)) -> 304.5416667 | K29: =SUMPRODUCT((OFFSET(Active_Portfolio!$N$12,1,0,ctPort,1)<=DATE(K$8,12,31))*(OFFSET(Active_Portfolio!$O$12,1,0,ctPort,1)>DATE(K$8,12,31))*(OFFSET(Active_Portfolio!$K$12,1,0,ctPort,1)=$H29)*(OFFSET(Active_Portfolio!$Y$12,1,0,ctPort,1)=0)*OFFSET(Active_Portfolio!$Z$12,1,0,ctPort,1),OFFSET(Active_Portfolio!$AH$12,1,0,ctPort,1)) -> 331.6396667 | L29: =SUMPRODUCT((OFFSET(Active_Portfolio!$N$12,1,0,ctPort,1)<=DATE(L$8,12,31))*(OFFSET(Active_Portfolio!$O$12,1,0,ctPort,1)>DATE(L$8,12,31))*(OFFSET(Active_Portfolio!$K$12,1,0,ctPort,1)=$H29)*(OFFSET(Active_Portfolio!$Y$12,1,0,ctPort,1)=0)*OFFSET(Active_Portfolio!$Z$12,1,0,ctPort,1),OFFSET(Active_Portfolio!$AH$12,1,0,ctPort,1)) -> 308.4396667 | M29: =SUMPRODUCT((OFFSET(Active_Portfolio!$N$12,1,0,ctPort,1)<=DATE(M$8,12,31))*(OFFSET(Active_Portfolio!$O$12,1,0,ctPort,1)>DATE(M$8,12,31))*(OFFSET(Active_Portfolio!$K$12,1,0,ctPort,1)=$H29)*(OFFSET(Active_Portfolio!$Y$12,1,0,ctPort,1)=0)*OFFSET(Active_Portfolio!$Z$12,1,0,ctPort,1),OFFSET(Active_Portfolio!$AH$12,1,0,ctPort,1)) -> 256.5996667 | N29: =SUMPRODUCT((OFFSET(Active_Portfolio!$N$12,1,0,ctPort,1)<=DATE(N$8,12,31))*(OFFSET(Active_Portfolio!$O$12,1,0,ctPort,1)>DATE(N$8,12,31))*(OFFSET(Active_Portfolio!$K$12,1,0,ctPort,1)=$H29)*(OFFSET(Active_Portfolio!$Y$12,1,0,ctPort,1)=0)*OFFSET(Active_Portfolio!$Z$12,1,0,ctPort,1),OFFSET(Active_Portfolio!$AH$12,1,0,ctPort,1)) -> 327.0996667 | O29: =SUMPRODUCT((OFFSET(Active_Portfolio!$N$12,1,0,ctPort,1)<=DATE(O$8,12,31))*(OFFSET(Active_Portfolio!$O$12,1,0,ctPort,1)>DATE(O$8,12,31))*(OFFSET(Active_Portfolio!$K$12,1,0,ctPort,1)=$H29)*(OFFSET(Active_Portfolio!$Y$12,1,0,ctPort,1)=0)*OFFSET(Active_Portfolio!$Z$12,1,0,ctPort,1),OFFSET(Active_Portfolio!$AH$12,1,0,ctPort,1)) -> 332.2996667 | P29: =SUMPRODUCT((OFFSET(Active_Portfolio!$N$12,1,0,ctPort,1)<=DATE(P$8,12,31))*(OFFSET(Active_Portfolio!$O$12,1,0,ctPort,1)>DATE(P$8,12,31))*(OFFSET(Active_Portfolio!$K$12,1,0,ctPort,1)=$H29)*(OFFSET(Active_Portfolio!$Y$12,1,0,ctPort,1)=0)*OFFSET(Active_Portfolio!$Z$12,1,0,ctPort,1),OFFSET(Active_Portfolio!$AH$12,1,0,ctPort,1)) -> 332.2996667 | Q29: =SUMPRODUCT((OFFSET(Active_Portfolio!$N$12,1,0,ctPort,1)<=DATE(Q$8,12,31))*(OFFSET(Active_Portfolio!$O$12,1,0,ctPort,1)>DATE(Q$8,12,31))*(OFFSET(Active_Portfolio!$K$12,1,0,ctPort,1)=$H29)*(OFFSET(Active_Portfolio!$Y$12,1,0,ctPort,1)=0)*OFFSET(Active_Portfolio!$Z$12,1,0,ctPort,1),OFFSET(Active_Portfolio!$AH$12,1,0,ctPort,1)) -> 332.2996667 | R29: =SUMPRODUCT((OFFSET(Active_Portfolio!$N$12,1,0,ctPort,1)<=DATE(R$8,12,31))*(OFFSET(Active_Portfolio!$O$12,1,0,ctPort,1)>DATE(R$8,12,31))*(OFFSET(Active_Portfolio!$K$12,1,0,ctPort,1)=$H29)*(OFFSET(Active_Portfolio!$Y$12,1,0,ctPort,1)=0)*OFFSET(Active_Portfolio!$Z$12,1,0,ctPort,1),OFFSET(Active_Portfolio!$AH$12,1,0,ctPort,1)) -> 332.2996667 | S29: =SUMPRODUCT((OFFSET(Active_Portfolio!$N$12,1,0,ctPort,1)<=DATE(S$8,12,31))*(OFFSET(Active_Portfolio!$O$12,1,0,ctPort,1)>DATE(S$8,12,31))*(OFFSET(Active_Portfolio!$K$12,1,0,ctPort,1)=$H29)*(OFFSET(Active_Portfolio!$Y$12,1,0,ctPort,1)=0)*OFFSET(Active_Portfolio!$Z$12,1,0,ctPort,1),OFFSET(Active_Portfolio!$AH$12,1,0,ctPort,1)) -> 332.2996667 | T29: =SUMPRODUCT((OFFSET(Active_Portfolio!$N$12,1,0,ctPort,1)<=DATE(T$8,12,31))*(OFFSET(Active_Portfolio!$O$12,1,0,ctPort,1)>DATE(T$8,12,31))*(OFFSET(Active_Portfolio!$K$12,1,0,ctPort,1)=$H29)*(OFFSET(Active_Portfolio!$Y$12,1,0,ctPort,1)=0)*OFFSET(Active_Portfolio!$Z$12,1,0,ctPort,1),OFFSET(Active_Portfolio!$AH$12,1,0,ctPort,1)) -> 306.2996667 | U29: =SUMPRODUCT((OFFSET(Active_Portfolio!$N$12,1,0,ctPort,1)<=DATE(U$8,12,31))*(OFFSET(Active_Portfolio!$O$12,1,0,ctPort,1)>DATE(U$8,12,31))*(OFFSET(Active_Portfolio!$K$12,1,0,ctPort,1)=$H29)*(OFFSET(Active_Portfolio!$Y$12,1,0,ctPort,1)=0)*OFFSET(Active_Portfolio!$Z$12,1,0,ctPort,1),OFFSET(Active_Portfolio!$AH$12,1,0,ctPort,1)) -> 332.2996667 | V29: =SUMPRODUCT((OFFSET(Active_Portfolio!$N$12,1,0,ctPort,1)<=DATE(V$8,12,31))*(OFFSET(Active_Portfolio!$O$12,1,0,ctPort,1)>DATE(V$8,12,31))*(OFFSET(Active_Portfolio!$K$12,1,0,ctPort,1)=$H29)*(OFFSET(Active_Portfolio!$Y$12,1,0,ctPort,1)=0)*OFFSET(Active_Portfolio!$Z$12,1,0,ctPort,1),OFFSET(Active_Portfolio!$AH$12,1,0,ctPort,1)) -> 332.2996667 | W29: =SUMPRODUCT((OFFSET(Active_Portfolio!$N$12,1,0,ctPort,1)<=DATE(W$8,12,31))*(OFFSET(Active_Portfolio!$O$12,1,0,ctPort,1)>DATE(W$8,12,31))*(OFFSET(Active_Portfolio!$K$12,1,0,ctPort,1)=$H29)*(OFFSET(Active_Portfolio!$Y$12,1,0,ctPort,1)=0)*OFFSET(Active_Portfolio!$Z$12,1,0,ctPort,1),OFFSET(Active_Portfolio!$AH$12,1,0,ctPort,1)) -> 332.2996667 | X29: =SUMPRODUCT((OFFSET(Active_Portfolio!$N$12,1,0,ctPort,1)<=DATE(X$8,12,31))*(OFFSET(Active_Portfolio!$O$12,1,0,ctPort,1)>DATE(X$8,12,31))*(OFFSET(Active_Portfolio!$K$12,1,0,ctPort,1)=$H29)*(OFFSET(Active_Portfolio!$Y$12,1,0,ctPort,1)=0)*OFFSET(Active_Portfolio!$Z$12,1,0,ctPort,1),OFFSET(Active_Portfolio!$AH$12,1,0,ctPort,1)) -> 332.2996667 | Y29: =SUMPRODUCT((OFFSET(Active_Portfolio!$N$12,1,0,ctPort,1)<=DATE(Y$8,12,31))*(OFFSET(Active_Portfolio!$O$12,1,0,ctPort,1)>DATE(Y$8,12,31))*(OFFSET(Active_Portfolio!$K$12,1,0,ctPort,1)=$H29)*(OFFSET(Active_Portfolio!$Y$12,1,0,ctPort,1)=0)*OFFSET(Active_Portfolio!$Z$12,1,0,ctPort,1),OFFSET(Active_Portfolio!$AH$12,1,0,ctPort,1)) -> 332.2996667 | Z29: =SUMPRODUCT((OFFSET(Active_Portfolio!$N$12,1,0,ctPort,1)<=DATE(Z$8,12,31))*(OFFSET(Active_Portfolio!$O$12,1,0,ctPort,1)>DATE(Z$8,12,31))*(OFFSET(Active_Portfolio!$K$12,1,0,ctPort,1)=$H29)*(OFFSET(Active_Portfolio!$Y$12,1,0,ctPort,1)=0)*OFFSET(Active_Portfolio!$Z$12,1,0,ctPort,1),OFFSET(Active_Portfolio!$AH$12,1,0,ctPort,1)) -> 332.2996667 | AA29: =SUMPRODUCT((OFFSET(Active_Portfolio!$N$12,1,0,ctPort,1)<=DATE(AA$8,12,31))*(OFFSET(Active_Portfolio!$O$12,1,0,ctPort,1)>DATE(AA$8,12,31))*(OFFSET(Active_Portfolio!$K$12,1,0,ctPort,1)=$H29)*(OFFSET(Active_Portfolio!$Y$12,1,0,ctPort,1)=0)*OFFSET(Active_Portfolio!$Z$12,1,0,ctPort,1),OFFSET(Active_Portfolio!$AH$12,1,0,ctPort,1)) -> 332.2996667
C30: PATHWAYS Load Modifiers | D30: None | H30: Biomass | I30: =SUMPRODUCT((OFFSET(Active_Portfolio!$N$12,1,0,ctPort,1)<=DATE(I$8,12,31))*(OFFSET(Active_Portfolio!$O$12,1,0,ctPort,1)>DATE(I$8,12,31))*(OFFSET(Active_Portfolio!$K$12,1,0,ctPort,1)=$H30)*(OFFSET(Active_Portfolio!$Y$12,1,0,ctPort,1)=0)*OFFSET(Active_Portfolio!$Z$12,1,0,ctPort,1),OFFSET(Active_Portfolio!$AH$12,1,0,ctPort,1)) -> 602.19 | J30: =SUMPRODUCT((OFFSET(Active_Portfolio!$N$12,1,0,ctPort,1)<=DATE(J$8,12,31))*(OFFSET(Active_Portfolio!$O$12,1,0,ctPort,1)>DATE(J$8,12,31))*(OFFSET(Active_Portfolio!$K$12,1,0,ctPort,1)=$H30)*(OFFSET(Active_Portfolio!$Y$12,1,0,ctPort,1)=0)*OFFSET(Active_Portfolio!$Z$12,1,0,ctPort,1),OFFSET(Active_Portfolio!$AH$12,1,0,ctPort,1)) -> 578.19 | K30: =SUMPRODUCT((OFFSET(Active_Portfolio!$N$12,1,0,ctPort,1)<=DATE(K$8,12,31))*(OFFSET(Active_Portfolio!$O$12,1,0,ctPort,1)>DATE(K$8,12,31))*(OFFSET(Active_Portfolio!$K$12,1,0,ctPort,1)=$H30)*(OFFSET(Active_Portfolio!$Y$12,1,0,ctPort,1)=0)*OFFSET(Active_Portfolio!$Z$12,1,0,ctPort,1),OFFSET(Active_Portfolio!$AH$12,1,0,ctPort,1)) -> 661.09 | L30: =SUMPRODUCT((OFFSET(Active_Portfolio!$N$12,1,0,ctPort,1)<=DATE(L$8,12,31))*(OFFSET(Active_Portfolio!$O$12,1,0,ctPort,1)>DATE(L$8,12,31))*(OFFSET(Active_Portfolio!$K$12,1,0,ctPort,1)=$H30)*(OFFSET(Active_Portfolio!$Y$12,1,0,ctPort,1)=0)*OFFSET(Active_Portfolio!$Z$12,1,0,ctPort,1),OFFSET(Active_Portfolio!$AH$12,1,0,ctPort,1)) -> 670.09 | M30: =SUMPRODUCT((OFFSET(Active_Portfolio!$N$12,1,0,ctPort,1)<=DATE(M$8,12,31))*(OFFSET(Active_Portfolio!$O$12,1,0,ctPort,1)>DATE(M$8,12,31))*(OFFSET(Active_Portfolio!$K$12,1,0,ctPort,1)=$H30)*(OFFSET(Active_Portfolio!$Y$12,1,0,ctPort,1)=0)*OFFSET(Active_Portfolio!$Z$12,1,0,ctPort,1),OFFSET(Active_Portfolio!$AH$12,1,0,ctPort,1)) -> 680.69 | N30: =SUMPRODUCT((OFFSET(Active_Portfolio!$N$12,1,0,ctPort,1)<=DATE(N$8,12,31))*(OFFSET(Active_Portfolio!$O$12,1,0,ctPort,1)>DATE(N$8,12,31))*(OFFSET(Active_Portfolio!$K$12,1,0,ctPort,1)=$H30)*(OFFSET(Active_Portfolio!$Y$12,1,0,ctPort,1)=0)*OFFSET(Active_Portfolio!$Z$12,1,0,ctPort,1),OFFSET(Active_Portfolio!$AH$12,1,0,ctPort,1)) -> 719.09 | O30: =SUMPRODUCT((OFFSET(Active_Portfolio!$N$12,1,0,ctPort,1)<=DATE(O$8,12,31))*(OFFSET(Active_Portfolio!$O$12,1,0,ctPort,1)>DATE(O$8,12,31))*(OFFSET(Active_Portfolio!$K$12,1,0,ctPort,1)=$H30)*(OFFSET(Active_Portfolio!$Y$12,1,0,ctPort,1)=0)*OFFSET(Active_Portfolio!$Z$12,1,0,ctPort,1),OFFSET(Active_Portfolio!$AH$12,1,0,ctPort,1)) -> 719.09 | P30: =SUMPRODUCT((OFFSET(Active_Portfolio!$N$12,1,0,ctPort,1)<=DATE(P$8,12,31))*(OFFSET(Active_Portfolio!$O$12,1,0,ctPort,1)>DATE(P$8,12,31))*(OFFSET(Active_Portfolio!$K$12,1,0,ctPort,1)=$H30)*(OFFSET(Active_Portfolio!$Y$12,1,0,ctPort,1)=0)*OFFSET(Active_Portfolio!$Z$12,1,0,ctPort,1),OFFSET(Active_Portfolio!$AH$12,1,0,ctPort,1)) -> 719.09 | Q30: =SUMPRODUCT((OFFSET(Active_Portfolio!$N$12,1,0,ctPort,1)<=DATE(Q$8,12,31))*(OFFSET(Active_Portfolio!$O$12,1,0,ctPort,1)>DATE(Q$8,12,31))*(OFFSET(Active_Portfolio!$K$12,1,0,ctPort,1)=$H30)*(OFFSET(Active_Portfolio!$Y$12,1,0,ctPort,1)=0)*OFFSET(Active_Portfolio!$Z$12,1,0,ctPort,1),OFFSET(Active_Portfolio!$AH$12,1,0,ctPort,1)) -> 719.09 | R30: =SUMPRODUCT((OFFSET(Active_Portfolio!$N$12,1,0,ctPort,1)<=DATE(R$8,12,31))*(OFFSET(Active_Portfolio!$O$12,1,0,ctPort,1)>DATE(R$8,12,31))*(OFFSET(Active_Portfolio!$K$12,1,0,ctPort,1)=$H30)*(OFFSET(Active_Portfolio!$Y$12,1,0,ctPort,1)=0)*OFFSET(Active_Portfolio!$Z$12,1,0,ctPort,1),OFFSET(Active_Portfolio!$AH$12,1,0,ctPort,1)) -> 768.99 | S30: =SUMPRODUCT((OFFSET(Active_Portfolio!$N$12,1,0,ctPort,1)<=DATE(S$8,12,31))*(OFFSET(Active_Portfolio!$O$12,1,0,ctPort,1)>DATE(S$8,12,31))*(OFFSET(Active_Portfolio!$K$12,1,0,ctPort,1)=$H30)*(OFFSET(Active_Portfolio!$Y$12,1,0,ctPort,1)=0)*OFFSET(Active_Portfolio!$Z$12,1,0,ctPort,1),OFFSET(Active_Portfolio!$AH$12,1,0,ctPort,1)) -> 768.99 | T30: =SUMPRODUCT((OFFSET(Active_Portfolio!$N$12,1,0,ctPort,1)<=DATE(T$8,12,31))*(OFFSET(Active_Portfolio!$O$12,1,0,ctPort,1)>DATE(T$8,12,31))*(OFFSET(Active_Portfolio!$K$12,1,0,ctPort,1)=$H30)*(OFFSET(Active_Portfolio!$Y$12,1,0,ctPort,1)=0)*OFFSET(Active_Portfolio!$Z$12,1,0,ctPort,1),OFFSET(Active_Portfolio!$AH$12,1,0,ctPort,1)) -> 768.99 | U30: =SUMPRODUCT((OFFSET(Active_Portfolio!$N$12,1,0,ctPort,1)<=DATE(U$8,12,31))*(OFFSET(Active_Portfolio!$O$12,1,0,ctPort,1)>DATE(U$8,12,31))*(OFFSET(Active_Portfolio!$K$12,1,0,ctPort,1)=$H30)*(OFFSET(Active_Portfolio!$Y$12,1,0,ctPort,1)=0)*OFFSET(Active_Portfolio!$Z$12,1,0,ctPort,1),OFFSET(Active_Portfolio!$AH$12,1,0,ctPort,1)) -> 768.99 | V30: =SUMPRODUCT((OFFSET(Active_Portfolio!$N$12,1,0,ctPort,1)<=DATE(V$8,12,31))*(OFFSET(Active_Portfolio!$O$12,1,0,ctPort,1)>DATE(V$8,12,31))*(OFFSET(Active_Portfolio!$K$12,1,0,ctPort,1)=$H30)*(OFFSET(Active_Portfolio!$Y$12,1,0,ctPort,1)=0)*OFFSET(Active_Portfolio!$Z$12,1,0,ctPort,1),OFFSET(Active_Portfolio!$AH$12,1,0,ctPort,1)) -> 768.99 | W30: =SUMPRODUCT((OFFSET(Active_Portfolio!$N$12,1,0,ctPort,1)<=DATE(W$8,12,31))*(OFFSET(Active_Portfolio!$O$12,1,0,ctPort,1)>DATE(W$8,12,31))*(OFFSET(Active_Portfolio!$K$12,1,0,ctPort,1)=$H30)*(OFFSET(Active_Portfolio!$Y$12,1,0,ctPort,1)=0)*OFFSET(Active_Portfolio!$Z$12,1,0,ctPort,1),OFFSET(Active_Portfolio!$AH$12,1,0,ctPort,1)) -> 768.99 | X30: =SUMPRODUCT((OFFSET(Active_Portfolio!$N$12,1,0,ctPort,1)<=DATE(X$8,12,31))*(OFFSET(Active_Portfolio!$O$12,1,0,ctPort,1)>DATE(X$8,12,31))*(OFFSET(Active_Portfolio!$K$12,1,0,ctPort,1)=$H30)*(OFFSET(Active_Portfolio!$Y$12,1,0,ctPort,1)=0)*OFFSET(Active_Portfolio!$Z$12,1,0,ctPort,1),OFFSET(Active_Portfolio!$AH$12,1,0,ctPort,1)) -> 768.99 | Y30: =SUMPRODUCT((OFFSET(Active_Portfolio!$N$12,1,0,ctPort,1)<=DATE(Y$8,12,31))*(OFFSET(Active_Portfolio!$O$12,1,0,ctPort,1)>DATE(Y$8,12,31))*(OFFSET(Active_Portfolio!$K$12,1,0,ctPort,1)=$H30)*(OFFSET(Active_Portfolio!$Y$12,1,0,ctPort,1)=0)*OFFSET(Active_Portfolio!$Z$12,1,0,ctPort,1),OFFSET(Active_Portfolio!$AH$12,1,0,ctPort,1)) -> 768.99 | Z30: =SUMPRODUCT((OFFSET(Active_Portfolio!$N$12,1,0,ctPort,1)<=DATE(Z$8,12,31))*(OFFSET(Active_Portfolio!$O$12,1,0,ctPort,1)>DATE(Z$8,12,31))*(OFFSET(Active_Portfolio!$K$12,1,0,ctPort,1)=$H30)*(OFFSET(Active_Portfolio!$Y$12,1,0,ctPort,1)=0)*OFFSET(Active_Portfolio!$Z$12,1,0,ctPort,1),OFFSET(Active_Portfolio!$AH$12,1,0,ctPort,1)) -> 768.99 | AA30: =SUMPRODUCT((OFFSET(Active_Portfolio!$N$12,1,0,ctPort,1)<=DATE(AA$8,12,31))*(OFFSET(Active_Portfolio!$O$12,1,0,ctPort,1)>DATE(AA$8,12,31))*(OFFSET(Active_Portfolio!$K$12,1,0,ctPort,1)=$H30)*(OFFSET(Active_Portfolio!$Y$12,1,0,ctPort,1)=0)*OFFSET(Active_Portfolio!$Z$12,1,0,ctPort,1),OFFSET(Active_Portfolio!$AH$12,1,0,ctPort,1)) -> 768.99
H31: Geothermal | I31: =SUMPRODUCT((OFFSET(Active_Portfolio!$N$12,1,0,ctPort,1)<=DATE(I$8,12,31))*(OFFSET(Active_Portfolio!$O$12,1,0,ctPort,1)>DATE(I$8,12,31))*(OFFSET(Active_Portfolio!$K$12,1,0,ctPort,1)=$H31)*(OFFSET(Active_Portfolio!$Y$12,1,0,ctPort,1)=0)*OFFSET(Active_Portfolio!$Z$12,1,0,ctPort,1),OFFSET(Active_Portfolio!$AH$12,1,0,ctPort,1)) -> 1670.17955 | J31: =SUMPRODUCT((OFFSET(Active_Portfolio!$N$12,1,0,ctPort,1)<=DATE(J$8,12,31))*(OFFSET(Active_Portfolio!$O$12,1,0,ctPort,1)>DATE(J$8,12,31))*(OFFSET(Active_Portfolio!$K$12,1,0,ctPort,1)=$H31)*(OFFSET(Active_Portfolio!$Y$12,1,0,ctPort,1)=0)*OFFSET(Active_Portfolio!$Z$12,1,0,ctPort,1),OFFSET(Active_Portfolio!$AH$12,1,0,ctPort,1)) -> 1692.36955 | K31: =SUMPRODUCT((OFFSET(Active_Portfolio!$N$12,1,0,ctPort,1)<=DATE(K$8,12,31))*(OFFSET(Active_Portfolio!$O$12,1,0,ctPort,1)>DATE(K$8,12,31))*(OFFSET(Active_Portfolio!$K$12,1,0,ctPort,1)=$H31)*(OFFSET(Active_Portfolio!$Y$12,1,0,ctPort,1)=0)*OFFSET(Active_Portfolio!$Z$12,1,0,ctPort,1),OFFSET(Active_Portfolio!$AH$12,1,0,ctPort,1)) -> 1517.36955 | L31: =SUMPRODUCT((OFFSET(Active_Portfolio!$N$12,1,0,ctPort,1)<=DATE(L$8,12,31))*(OFFSET(Active_Portfolio!$O$12,1,0,ctPort,1)>DATE(L$8,12,31))*(OFFSET(Active_Portfolio!$K$12,1,0,ctPort,1)=$H31)*(OFFSET(Active_Portfolio!$Y$12,1,0,ctPort,1)=0)*OFFSET(Active_Portfolio!$Z$12,1,0,ctPort,1),OFFSET(Active_Portfolio!$AH$12,1,0,ctPort,1)) -> 1679.36955 | M31: =SUMPRODUCT((OFFSET(Active_Portfolio!$N$12,1,0,ctPort,1)<=DATE(M$8,12,31))*(OFFSET(Active_Portfolio!$O$12,1,0,ctPort,1)>DATE(M$8,12,31))*(OFFSET(Active_Portfolio!$K$12,1,0,ctPort,1)=$H31)*(OFFSET(Active_Portfolio!$Y$12,1,0,ctPort,1)=0)*OFFSET(Active_Portfolio!$Z$12,1,0,ctPort,1),OFFSET(Active_Portfolio!$AH$12,1,0,ctPort,1)) -> 1582.36955 | N31: =SUMPRODUCT((OFFSET(Active_Portfolio!$N$12,1,0,ctPort,1)<=DATE(N$8,12,31))*(OFFSET(Active_Portfolio!$O$12,1,0,ctPort,1)>DATE(N$8,12,31))*(OFFSET(Active_Portfolio!$K$12,1,0,ctPort,1)=$H31)*(OFFSET(Active_Portfolio!$Y$12,1,0,ctPort,1)=0)*OFFSET(Active_Portfolio!$Z$12,1,0,ctPort,1),OFFSET(Active_Portfolio!$AH$12,1,0,ctPort,1)) -> 1572.36955 | O31: =SUMPRODUCT((OFFSET(Active_Portfolio!$N$12,1,0,ctPort,1)<=DATE(O$8,12,31))*(OFFSET(Active_Portfolio!$O$12,1,0,ctPort,1)>DATE(O$8,12,31))*(OFFSET(Active_Portfolio!$K$12,1,0,ctPort,1)=$H31)*(OFFSET(Active_Portfolio!$Y$12,1,0,ctPort,1)=0)*OFFSET(Active_Portfolio!$Z$12,1,0,ctPort,1),OFFSET(Active_Portfolio!$AH$12,1,0,ctPort,1)) -> 1578.36955 | P31: =SUMPRODUCT((OFFSET(Active_Portfolio!$N$12,1,0,ctPort,1)<=DATE(P$8,12,31))*(OFFSET(Active_Portfolio!$O$12,1,0,ctPort,1)>DATE(P$8,12,31))*(OFFSET(Active_Portfolio!$K$12,1,0,ctPort,1)=$H31)*(OFFSET(Active_Portfolio!$Y$12,1,0,ctPort,1)=0)*OFFSET(Active_Portfolio!$Z$12,1,0,ctPort,1),OFFSET(Active_Portfolio!$AH$12,1,0,ctPort,1)) -> 1528.56955 | Q31: =SUMPRODUCT((OFFSET(Active_Portfolio!$N$12,1,0,ctPort,1)<=DATE(Q$8,12,31))*(OFFSET(Active_Portfolio!$O$12,1,0,ctPort,1)>DATE(Q$8,12,31))*(OFFSET(Active_Portfolio!$K$12,1,0,ctPort,1)=$H31)*(OFFSET(Active_Portfolio!$Y$12,1,0,ctPort,1)=0)*OFFSET(Active_Portfolio!$Z$12,1,0,ctPort,1),OFFSET(Active_Portfolio!$AH$12,1,0,ctPort,1)) -> 1458.66955 | R31: =SUMPRODUCT((OFFSET(Active_Portfolio!$N$12,1,0,ctPort,1)<=DATE(R$8,12,31))*(OFFSET(Active_Portfolio!$O$12,1,0,ctPort,1)>DATE(R$8,12,31))*(OFFSET(Active_Portfolio!$K$12,1,0,ctPort,1)=$H31)*(OFFSET(Active_Portfolio!$Y$12,1,0,ctPort,1)=0)*OFFSET(Active_Portfolio!$Z$12,1,0,ctPort,1),OFFSET(Active_Portfolio!$AH$12,1,0,ctPort,1)) -> 1208.66955 | S31: =SUMPRODUCT((OFFSET(Active_Portfolio!$N$12,1,0,ctPort,1)<=DATE(S$8,12,31))*(OFFSET(Active_Portfolio!$O$12,1,0,ctPort,1)>DATE(S$8,12,31))*(OFFSET(Active_Portfolio!$K$12,1,0,ctPort,1)=$H31)*(OFFSET(Active_Portfolio!$Y$12,1,0,ctPort,1)=0)*OFFSET(Active_Portfolio!$Z$12,1,0,ctPort,1),OFFSET(Active_Portfolio!$AH$12,1,0,ctPort,1)) -> 1458.66955 | T31: =SUMPRODUCT((OFFSET(Active_Portfolio!$N$12,1,0,ctPort,1)<=DATE(T$8,12,31))*(OFFSET(Active_Portfolio!$O$12,1,0,ctPort,1)>DATE(T$8,12,31))*(OFFSET(Active_Portfolio!$K$12,1,0,ctPort,1)=$H31)*(OFFSET(Active_Portfolio!$Y$12,1,0,ctPort,1)=0)*OFFSET(Active_Portfolio!$Z$12,1,0,ctPort,1),OFFSET(Active_Portfolio!$AH$12,1,0,ctPort,1)) -> 1458.66955 | U31: =SUMPRODUCT((OFFSET(Active_Portfolio!$N$12,1,0,ctPort,1)<=DATE(U$8,12,31))*(OFFSET(Active_Portfolio!$O$12,1,0,ctPort,1)>DATE(U$8,12,31))*(OFFSET(Active_Portfolio!$K$12,1,0,ctPort,1)=$H31)*(OFFSET(Active_Portfolio!$Y$12,1,0,ctPort,1)=0)*OFFSET(Active_Portfolio!$Z$12,1,0,ctPort,1),OFFSET(Active_Portfolio!$AH$12,1,0,ctPort,1)) -> 1458.66955 | V31: =SUMPRODUCT((OFFSET(Active_Portfolio!$N$12,1,0,ctPort,1)<=DATE(V$8,12,31))*(OFFSET(Active_Portfolio!$O$12,1,0,ctPort,1)>DATE(V$8,12,31))*(OFFSET(Active_Portfolio!$K$12,1,0,ctPort,1)=$H31)*(OFFSET(Active_Portfolio!$Y$12,1,0,ctPort,1)=0)*OFFSET(Active_Portfolio!$Z$12,1,0,ctPort,1),OFFSET(Active_Portfolio!$AH$12,1,0,ctPort,1)) -> 1458.66955 | W31: =SUMPRODUCT((OFFSET(Active_Portfolio!$N$12,1,0,ctPort,1)<=DATE(W$8,12,31))*(OFFSET(Active_Portfolio!$O$12,1,0,ctPort,1)>DATE(W$8,12,31))*(OFFSET(Active_Portfolio!$K$12,1,0,ctPort,1)=$H31)*(OFFSET(Active_Portfolio!$Y$12,1,0,ctPort,1)=0)*OFFSET(Active_Portfolio!$Z$12,1,0,ctPort,1),OFFSET(Active_Portfolio!$AH$12,1,0,ctPort,1)) -> 1422.66955 | X31: =SUMPRODUCT((OFFSET(Active_Portfolio!$N$12,1,0,ctPort,1)<=DATE(X$8,12,31))*(OFFSET(Active_Portfolio!$O$12,1,0,ctPort,1)>DATE(X$8,12,31))*(OFFSET(Active_Portfolio!$K$12,1,0,ctPort,1)=$H31)*(OFFSET(Active_Portfolio!$Y$12,1,0,ctPort,1)=0)*OFFSET(Active_Portfolio!$Z$12,1,0,ctPort,1),OFFSET(Active_Portfolio!$AH$12,1,0,ctPort,1)) -> 1372.66955 | Y31: =SUMPRODUCT((OFFSET(Active_Portfolio!$N$12,1,0,ctPort,1)<=DATE(Y$8,12,31))*(OFFSET(Active_Portfolio!$O$12,1,0,ctPort,1)>DATE(Y$8,12,31))*(OFFSET(Active_Portfolio!$K$12,1,0,ctPort,1)=$H31)*(OFFSET(Active_Portfolio!$Y$12,1,0,ctPort,1)=0)*OFFSET(Active_Portfolio!$Z$12,1,0,ctPort,1),OFFSET(Active_Portfolio!$AH$12,1,0,ctPort,1)) -> 1422.66955 | Z31: =SUMPRODUCT((OFFSET(Active_Portfolio!$N$12,1,0,ctPort,1)<=DATE(Z$8,12,31))*(OFFSET(Active_Portfolio!$O$12,1,0,ctPort,1)>DATE(Z$8,12,31))*(OFFSET(Active_Portfolio!$K$12,1,0,ctPort,1)=$H31)*(OFFSET(Active_Portfolio!$Y$12,1,0,ctPort,1)=0)*OFFSET(Active_Portfolio!$Z$12,1,0,ctPort,1),OFFSET(Active_Portfolio!$AH$12,1,0,ctPort,1)) -> 1422.66955 | AA31: =SUMPRODUCT((OFFSET(Active_Portfolio!$N$12,1,0,ctPort,1)<=DATE(AA$8,12,31))*(OFFSET(Active_Portfolio!$O$12,1,0,ctPort,1)>DATE(AA$8,12,31))*(OFFSET(Active_Portfolio!$K$12,1,0,ctPort,1)=$H31)*(OFFSET(Active_Portfolio!$Y$12,1,0,ctPort,1)=0)*OFFSET(Active_Portfolio!$Z$12,1,0,ctPort,1),OFFSET(Active_Portfolio!$AH$12,1,0,ctPort,1)) -> 1422.66955
C32: Analysis Horizon | H32: Hydro | I32: =SUMPRODUCT((OFFSET(Active_Portfolio!$N$12,1,0,ctPort,1)<=DATE(I$8,12,31))*(OFFSET(Active_Portfolio!$O$12,1,0,ctPort,1)>DATE(I$8,12,31))*(OFFSET(Active_Portfolio!$K$12,1,0,ctPort,1)=$H32)*(OFFSET(Active_Portfolio!$Y$12,1,0,ctPort,1)=0)*OFFSET(Active_Portfolio!$Z$12,1,0,ctPort,1),OFFSET(Active_Portfolio!$AH$12,1,0,ctPort,1)) -> 883.3806867 | J32: =SUMPRODUCT((OFFSET(Active_Portfolio!$N$12,1,0,ctPort,1)<=DATE(J$8,12,31))*(OFFSET(Active_Portfolio!$O$12,1,0,ctPort,1)>DATE(J$8,12,31))*(OFFSET(Active_Portfolio!$K$12,1,0,ctPort,1)=$H32)*(OFFSET(Active_Portfolio!$Y$12,1,0,ctPort,1)=0)*OFFSET(Active_Portfolio!$Z$12,1,0,ctPort,1),OFFSET(Active_Portfolio!$AH$12,1,0,ctPort,1)) -> 951.2806868 | K32: =SUMPRODUCT((OFFSET(Active_Portfolio!$N$12,1,0,ctPort,1)<=DATE(K$8,12,31))*(OFFSET(Active_Portfolio!$O$12,1,0,ctPort,1)>DATE(K$8,12,31))*(OFFSET(Active_Portfolio!$K$12,1,0,ctPort,1)=$H32)*(OFFSET(Active_Portfolio!$Y$12,1,0,ctPort,1)=0)*OFFSET(Active_Portfolio!$Z$12,1,0,ctPort,1),OFFSET(Active_Portfolio!$AH$12,1,0,ctPort,1)) -> 954.4396868 | L32: =SUMPRODUCT((OFFSET(Active_Portfolio!$N$12,1,0,ctPort,1)<=DATE(L$8,12,31))*(OFFSET(Active_Portfolio!$O$12,1,0,ctPort,1)>DATE(L$8,12,31))*(OFFSET(Active_Portfolio!$K$12,1,0,ctPort,1)=$H32)*(OFFSET(Active_Portfolio!$Y$12,1,0,ctPort,1)=0)*OFFSET(Active_Portfolio!$Z$12,1,0,ctPort,1),OFFSET(Active_Portfolio!$AH$12,1,0,ctPort,1)) -> 967.5146868 | M32: =SUMPRODUCT((OFFSET(Active_Portfolio!$N$12,1,0,ctPort,1)<=DATE(M$8,12,31))*(OFFSET(Active_Portfolio!$O$12,1,0,ctPort,1)>DATE(M$8,12,31))*(OFFSET(Active_Portfolio!$K$12,1,0,ctPort,1)=$H32)*(OFFSET(Active_Portfolio!$Y$12,1,0,ctPort,1)=0)*OFFSET(Active_Portfolio!$Z$12,1,0,ctPort,1),OFFSET(Active_Portfolio!$AH$12,1,0,ctPort,1)) -> 990.0516468 | N32: =SUMPRODUCT((OFFSET(Active_Portfolio!$N$12,1,0,ctPort,1)<=DATE(N$8,12,31))*(OFFSET(Active_Portfolio!$O$12,1,0,ctPort,1)>DATE(N$8,12,31))*(OFFSET(Active_Portfolio!$K$12,1,0,ctPort,1)=$H32)*(OFFSET(Active_Portfolio!$Y$12,1,0,ctPort,1)=0)*OFFSET(Active_Portfolio!$Z$12,1,0,ctPort,1),OFFSET(Active_Portfolio!$AH$12,1,0,ctPort,1)) -> 986.3016468 | O32: =SUMPRODUCT((OFFSET(Active_Portfolio!$N$12,1,0,ctPort,1)<=DATE(O$8,12,31))*(OFFSET(Active_Portfolio!$O$12,1,0,ctPort,1)>DATE(O$8,12,31))*(OFFSET(Active_Portfolio!$K$12,1,0,ctPort,1)=$H32)*(OFFSET(Active_Portfolio!$Y$12,1,0,ctPort,1)=0)*OFFSET(Active_Portfolio!$Z$12,1,0,ctPort,1),OFFSET(Active_Portfolio!$AH$12,1,0,ctPort,1)) -> 1010.901647 | P32: =SUMPRODUCT((OFFSET(Active_Portfolio!$N$12,1,0,ctPort,1)<=DATE(P$8,12,31))*(OFFSET(Active_Portfolio!$O$12,1,0,ctPort,1)>DATE(P$8,12,31))*(OFFSET(Active_Portfolio!$K$12,1,0,ctPort,1)=$H32)*(OFFSET(Active_Portfolio!$Y$12,1,0,ctPort,1)=0)*OFFSET(Active_Portfolio!$Z$12,1,0,ctPort,1),OFFSET(Active_Portfolio!$AH$12,1,0,ctPort,1)) -> 1009.301647 | Q32: =SUMPRODUCT((OFFSET(Active_Portfolio!$N$12,1,0,ctPort,1)<=DATE(Q$8,12,31))*(OFFSET(Active_Portfolio!$O$12,1,0,ctPort,1)>DATE(Q$8,12,31))*(OFFSET(Active_Portfolio!$K$12,1,0,ctPort,1)=$H32)*(OFFSET(Active_Portfolio!$Y$12,1,0,ctPort,1)=0)*OFFSET(Active_Portfolio!$Z$12,1,0,ctPort,1),OFFSET(Active_Portfolio!$AH$12,1,0,ctPort,1)) -> 1010.901647 | R32: =SUMPRODUCT((OFFSET(Active_Portfolio!$N$12,1,0,ctPort,1)<=DATE(R$8,12,31))*(OFFSET(Active_Portfolio!$O$12,1,0,ctPort,1)>DATE(R$8,12,31))*(OFFSET(Active_Portfolio!$K$12,1,0,ctPort,1)=$H32)*(OFFSET(Active_Portfolio!$Y$12,1,0,ctPort,1)=0)*OFFSET(Active_Portfolio!$Z$12,1,0,ctPort,1),OFFSET(Active_Portfolio!$AH$12,1,0,ctPort,1)) -> 1010.901647 | S32: =SUMPRODUCT((OFFSET(Active_Portfolio!$N$12,1,0,ctPort,1)<=DATE(S$8,12,31))*(OFFSET(Active_Portfolio!$O$12,1,0,ctPort,1)>DATE(S$8,12,31))*(OFFSET(Active_Portfolio!$K$12,1,0,ctPort,1)=$H32)*(OFFSET(Active_Portfolio!$Y$12,1,0,ctPort,1)=0)*OFFSET(Active_Portfolio!$Z$12,1,0,ctPort,1),OFFSET(Active_Portfolio!$AH$12,1,0,ctPort,1)) -> 1010.901647 | T32: =SUMPRODUCT((OFFSET(Active_Portfolio!$N$12,1,0,ctPort,1)<=DATE(T$8,12,31))*(OFFSET(Active_Portfolio!$O$12,1,0,ctPort,1)>DATE(T$8,12,31))*(OFFSET(Active_Portfolio!$K$12,1,0,ctPort,1)=$H32)*(OFFSET(Active_Portfolio!$Y$12,1,0,ctPort,1)=0)*OFFSET(Active_Portfolio!$Z$12,1,0,ctPort,1),OFFSET(Active_Portfolio!$AH$12,1,0,ctPort,1)) -> 966.7333548 | U32: =SUMPRODUCT((OFFSET(Active_Portfolio!$N$12,1,0,ctPort,1)<=DATE(U$8,12,31))*(OFFSET(Active_Portfolio!$O$12,1,0,ctPort,1)>DATE(U$8,12,31))*(OFFSET(Active_Portfolio!$K$12,1,0,ctPort,1)=$H32)*(OFFSET(Active_Portfolio!$Y$12,1,0,ctPort,1)=0)*OFFSET(Active_Portfolio!$Z$12,1,0,ctPort,1),OFFSET(Active_Portfolio!$AH$12,1,0,ctPort,1)) -> 981.544852 | V32: =SUMPRODUCT((OFFSET(Active_Portfolio!$N$12,1,0,ctPort,1)<=DATE(V$8,12,31))*(OFFSET(Active_Portfolio!$O$12,1,0,ctPort,1)>DATE(V$8,12,31))*(OFFSET(Active_Portfolio!$K$12,1,0,ctPort,1)=$H32)*(OFFSET(Active_Portfolio!$Y$12,1,0,ctPort,1)=0)*OFFSET(Active_Portfolio!$Z$12,1,0,ctPort,1),OFFSET(Active_Portfolio!$AH$12,1,0,ctPort,1)) -> 1010.901647 | W32: =SUMPRODUCT((OFFSET(Active_Portfolio!$N$12,1,0,ctPort,1)<=DATE(W$8,12,31))*(OFFSET(Active_Portfolio!$O$12,1,0,ctPort,1)>DATE(W$8,12,31))*(OFFSET(Active_Portfolio!$K$12,1,0,ctPort,1)=$H32)*(OFFSET(Active_Portfolio!$Y$12,1,0,ctPort,1)=0)*OFFSET(Active_Portfolio!$Z$12,1,0,ctPort,1),OFFSET(Active_Portfolio!$AH$12,1,0,ctPort,1)) -> 1010.901647 | X32: =SUMPRODUCT((OFFSET(Active_Portfolio!$N$12,1,0,ctPort,1)<=DATE(X$8,12,31))*(OFFSET(Active_Portfolio!$O$12,1,0,ctPort,1)>DATE(X$8,12,31))*(OFFSET(Active_Portfolio!$K$12,1,0,ctPort,1)=$H32)*(OFFSET(Active_Portfolio!$Y$12,1,0,ctPort,1)=0)*OFFSET(Active_Portfolio!$Z$12,1,0,ctPort,1),OFFSET(Active_Portfolio!$AH$12,1,0,ctPort,1)) -> 1010.901647 | Y32: =SUMPRODUCT((OFFSET(Active_Portfolio!$N$12,1,0,ctPort,1)<=DATE(Y$8,12,31))*(OFFSET(Active_Portfolio!$O$12,1,0,ctPort,1)>DATE(Y$8,12,31))*(OFFSET(Active_Portfolio!$K$12,1,0,ctPort,1)=$H32)*(OFFSET(Active_Portfolio!$Y$12,1,0,ctPort,1)=0)*OFFSET(Active_Portfolio!$Z$12,1,0,ctPort,1),OFFSET(Active_Portfolio!$AH$12,1,0,ctPort,1)) -> 1010.901647 | Z32: =SUMPRODUCT((OFFSET(Active_Portfolio!$N$12,1,0,ctPort,1)<=DATE(Z$8,12,31))*(OFFSET(Active_Portfolio!$O$12,1,0,ctPort,1)>DATE(Z$8,12,31))*(OFFSET(Active_Portfolio!$K$12,1,0,ctPort,1)=$H32)*(OFFSET(Active_Portfolio!$Y$12,1,0,ctPort,1)=0)*OFFSET(Active_Portfolio!$Z$12,1,0,ctPort,1),OFFSET(Active_Portfolio!$AH$12,1,0,ctPort,1)) -> 1010.901647 | AA32: =SUMPRODUCT((OFFSET(Active_Portfolio!$N$12,1,0,ctPort,1)<=DATE(AA$8,12,31))*(OFFSET(Active_Portfolio!$O$12,1,0,ctPort,1)>DATE(AA$8,12,31))*(OFFSET(Active_Portfolio!$K$12,1,0,ctPort,1)=$H32)*(OFFSET(Active_Portfolio!$Y$12,1,0,ctPort,1)=0)*OFFSET(Active_Portfolio!$Z$12,1,0,ctPort,1),OFFSET(Active_Portfolio!$AH$12,1,0,ctPort,1)) -> 987.1016468
C33: First Year | D33: 2014 | H33: Solar PV | I33: =SUMPRODUCT((OFFSET(Active_Portfolio!$N$12,1,0,ctPort,1)<=DATE(I$8,12,31))*(OFFSET(Active_Portfolio!$O$12,1,0,ctPort,1)>DATE(I$8,12,31))*(OFFSET(Active_Portfolio!$K$12,1,0,ctPort,1)=$H33)*(OFFSET(Active_Portfolio!$Y$12,1,0,ctPort,1)=0)*OFFSET(Active_Portfolio!$Z$12,1,0,ctPort,1),OFFSET(Active_Portfolio!$AH$12,1,0,ctPort,1)) -> 345.643328 | J33: =SUMPRODUCT((OFFSET(Active_Portfolio!$N$12,1,0,ctPort,1)<=DATE(J$8,12,31))*(OFFSET(Active_Portfolio!$O$12,1,0,ctPort,1)>DATE(J$8,12,31))*(OFFSET(Active_Portfolio!$K$12,1,0,ctPort,1)=$H33)*(OFFSET(Active_Portfolio!$Y$12,1,0,ctPort,1)=0)*OFFSET(Active_Portfolio!$Z$12,1,0,ctPort,1),OFFSET(Active_Portfolio!$AH$12,1,0,ctPort,1)) -> 1865.751528 | K33: =SUMPRODUCT((OFFSET(Active_Portfolio!$N$12,1,0,ctPort,1)<=DATE(K$8,12,31))*(OFFSET(Active_Portfolio!$O$12,1,0,ctPort,1)>DATE(K$8,12,31))*(OFFSET(Active_Portfolio!$K$12,1,0,ctPort,1)=$H33)*(OFFSET(Active_Portfolio!$Y$12,1,0,ctPort,1)=0)*OFFSET(Active_Portfolio!$Z$12,1,0,ctPort,1),OFFSET(Active_Portfolio!$AH$12,1,0,ctPort,1)) -> 4259.445528 | L33: =SUMPRODUCT((OFFSET(Active_Portfolio!$N$12,1,0,ctPort,1)<=DATE(L$8,12,31))*(OFFSET(Active_Portfolio!$O$12,1,0,ctPort,1)>DATE(L$8,12,31))*(OFFSET(Active_Portfolio!$K$12,1,0,ctPort,1)=$H33)*(OFFSET(Active_Portfolio!$Y$12,1,0,ctPort,1)=0)*OFFSET(Active_Portfolio!$Z$12,1,0,ctPort,1),OFFSET(Active_Portfolio!$AH$12,1,0,ctPort,1)) -> 5726.170528 | M33: =SUMPRODUCT((OFFSET(Active_Portfolio!$N$12,1,0,ctPort,1)<=DATE(M$8,12,31))*(OFFSET(Active_Portfolio!$O$12,1,0,ctPort,1)>DATE(M$8,12,31))*(OFFSET(Active_Portfolio!$K$12,1,0,ctPort,1)=$H33)*(OFFSET(Active_Portfolio!$Y$12,1,0,ctPort,1)=0)*OFFSET(Active_Portfolio!$Z$12,1,0,ctPort,1),OFFSET(Active_Portfolio!$AH$12,1,0,ctPort,1)) -> 7705.898008 | N33: =SUMPRODUCT((OFFSET(Active_Portfolio!$N$12,1,0,ctPort,1)<=DATE(N$8,12,31))*(OFFSET(Active_Portfolio!$O$12,1,0,ctPort,1)>DATE(N$8,12,31))*(OFFSET(Active_Portfolio!$K$12,1,0,ctPort,1)=$H33)*(OFFSET(Active_Portfolio!$Y$12,1,0,ctPort,1)=0)*OFFSET(Active_Portfolio!$Z$12,1,0,ctPort,1),OFFSET(Active_Portfolio!$AH$12,1,0,ctPort,1)) -> 7958.121008 | O33: =SUMPRODUCT((OFFSET(Active_Portfolio!$N$12,1,0,ctPort,1)<=DATE(O$8,12,31))*(OFFSET(Active_Portfolio!$O$12,1,0,ctPort,1)>DATE(O$8,12,31))*(OFFSET(Active_Portfolio!$K$12,1,0,ctPort,1)=$H33)*(OFFSET(Active_Portfolio!$Y$12,1,0,ctPort,1)=0)*OFFSET(Active_Portfolio!$Z$12,1,0,ctPort,1),OFFSET(Active_Portfolio!$AH$12,1,0,ctPort,1)) -> 10186.72661 | P33: =SUMPRODUCT((OFFSET(Active_Portfolio!$N$12,1,0,ctPort,1)<=DATE(P$8,12,31))*(OFFSET(Active_Portfolio!$O$12,1,0,ctPort,1)>DATE(P$8,12,31))*(OFFSET(Active_Portfolio!$K$12,1,0,ctPort,1)=$H33)*(OFFSET(Active_Portfolio!$Y$12,1,0,ctPort,1)=0)*OFFSET(Active_Portfolio!$Z$12,1,0,ctPort,1),OFFSET(Active_Portfolio!$AH$12,1,0,ctPort,1)) -> 11793.57192 | Q33: =SUMPRODUCT((OFFSET(Active_Portfolio!$N$12,1,0,ctPort,1)<=DATE(Q$8,12,31))*(OFFSET(Active_Portfolio!$O$12,1,0,ctPort,1)>DATE(Q$8,12,31))*(OFFSET(Active_Portfolio!$K$12,1,0,ctPort,1)=$H33)*(OFFSET(Active_Portfolio!$Y$12,1,0,ctPort,1)=0)*OFFSET(Active_Portfolio!$Z$12,1,0,ctPort,1),OFFSET(Active_Portfolio!$AH$12,1,0,ctPort,1)) -> 12936.96469 | R33: =SUMPRODUCT((OFFSET(Active_Portfolio!$N$12,1,0,ctPort,1)<=DATE(R$8,12,31))*(OFFSET(Active_Portfolio!$O$12,1,0,ctPort,1)>DATE(R$8,12,31))*(OFFSET(Active_Portfolio!$K$12,1,0,ctPort,1)=$H33)*(OFFSET(Active_Portfolio!$Y$12,1,0,ctPort,1)=0)*OFFSET(Active_Portfolio!$Z$12,1,0,ctPort,1),OFFSET(Active_Portfolio!$AH$12,1,0,ctPort,1)) -> 14722.05602 | S33: =SUMPRODUCT((OFFSET(Active_Portfolio!$N$12,1,0,ctPort,1)<=DATE(S$8,12,31))*(OFFSET(Active_Portfolio!$O$12,1,0,ctPort,1)>DATE(S$8,12,31))*(OFFSET(Active_Portfolio!$K$12,1,0,ctPort,1)=$H33)*(OFFSET(Active_Portfolio!$Y$12,1,0,ctPort,1)=0)*OFFSET(Active_Portfolio!$Z$12,1,0,ctPort,1),OFFSET(Active_Portfolio!$AH$12,1,0,ctPort,1)) -> 16216.13486 | T33: =SUMPRODUCT((OFFSET(Active_Portfolio!$N$12,1,0,ctPort,1)<=DATE(T$8,12,31))*(OFFSET(Active_Portfolio!$O$12,1,0,ctPort,1)>DATE(T$8,12,31))*(OFFSET(Active_Portfolio!$K$12,1,0,ctPort,1)=$H33)*(OFFSET(Active_Portfolio!$Y$12,1,0,ctPort,1)=0)*OFFSET(Active_Portfolio!$Z$12,1,0,ctPort,1),OFFSET(Active_Portfolio!$AH$12,1,0,ctPort,1)) -> 16216.06186 | U33: =SUMPRODUCT((OFFSET(Active_Portfolio!$N$12,1,0,ctPort,1)<=DATE(U$8,12,31))*(OFFSET(Active_Portfolio!$O$12,1,0,ctPort,1)>DATE(U$8,12,31))*(OFFSET(Active_Portfolio!$K$12,1,0,ctPort,1)=$H33)*(OFFSET(Active_Portfolio!$Y$12,1,0,ctPort,1)=0)*OFFSET(Active_Portfolio!$Z$12,1,0,ctPort,1),OFFSET(Active_Portfolio!$AH$12,1,0,ctPort,1)) -> 16216.06186 | V33: =SUMPRODUCT((OFFSET(Active_Portfolio!$N$12,1,0,ctPort,1)<=DATE(V$8,12,31))*(OFFSET(Active_Portfolio!$O$12,1,0,ctPort,1)>DATE(V$8,12,31))*(OFFSET(Active_Portfolio!$K$12,1,0,ctPort,1)=$H33)*(OFFSET(Active_Portfolio!$Y$12,1,0,ctPort,1)=0)*OFFSET(Active_Portfolio!$Z$12,1,0,ctPort,1),OFFSET(Active_Portfolio!$AH$12,1,0,ctPort,1)) -> 16243.5106 | W33: =SUMPRODUCT((OFFSET(Active_Portfolio!$N$12,1,0,ctPort,1)<=DATE(W$8,12,31))*(OFFSET(Active_Portfolio!$O$12,1,0,ctPort,1)>DATE(W$8,12,31))*(OFFSET(Active_Portfolio!$K$12,1,0,ctPort,1)=$H33)*(OFFSET(Active_Portfolio!$Y$12,1,0,ctPort,1)=0)*OFFSET(Active_Portfolio!$Z$12,1,0,ctPort,1),OFFSET(Active_Portfolio!$AH$12,1,0,ctPort,1)) -> 16313.57002 | X33: =SUMPRODUCT((OFFSET(Active_Portfolio!$N$12,1,0,ctPort,1)<=DATE(X$8,12,31))*(OFFSET(Active_Portfolio!$O$12,1,0,ctPort,1)>DATE(X$8,12,31))*(OFFSET(Active_Portfolio!$K$12,1,0,ctPort,1)=$H33)*(OFFSET(Active_Portfolio!$Y$12,1,0,ctPort,1)=0)*OFFSET(Active_Portfolio!$Z$12,1,0,ctPort,1),OFFSET(Active_Portfolio!$AH$12,1,0,ctPort,1)) -> 17795.78661 | Y33: =SUMPRODUCT((OFFSET(Active_Portfolio!$N$12,1,0,ctPort,1)<=DATE(Y$8,12,31))*(OFFSET(Active_Portfolio!$O$12,1,0,ctPort,1)>DATE(Y$8,12,31))*(OFFSET(Active_Portfolio!$K$12,1,0,ctPort,1)=$H33)*(OFFSET(Active_Portfolio!$Y$12,1,0,ctPort,1)=0)*OFFSET(Active_Portfolio!$Z$12,1,0,ctPort,1),OFFSET(Active_Portfolio!$AH$12,1,0,ctPort,1)) -> 18237.18465 | Z33: =SUMPRODUCT((OFFSET(Active_Portfolio!$N$12,1,0,ctPort,1)<=DATE(Z$8,12,31))*(OFFSET(Active_Portfolio!$O$12,1,0,ctPort,1)>DATE(Z$8,12,31))*(OFFSET(Active_Portfolio!$K$12,1,0,ctPort,1)=$H33)*(OFFSET(Active_Portfolio!$Y$12,1,0,ctPort,1)=0)*OFFSET(Active_Portfolio!$Z$12,1,0,ctPort,1),OFFSET(Active_Portfolio!$AH$12,1,0,ctPort,1)) -> 19419.40145 | AA33: =SUMPRODUCT((OFFSET(Active_Portfolio!$N$12,1,0,ctPort,1)<=DATE(AA$8,12,31))*(OFFSET(Active_Portfolio!$O$12,1,0,ctPort,1)>DATE(AA$8,12,31))*(OFFSET(Active_Portfolio!$K$12,1,0,ctPort,1)=$H33)*(OFFSET(Active_Portfolio!$Y$12,1,0,ctPort,1)=0)*OFFSET(Active_Portfolio!$Z$12,1,0,ctPort,1),OFFSET(Active_Portfolio!$AH$12,1,0,ctPort,1)) -> 20668.66233
C34: Final Year | D34: 2030 | H34: Solar Thermal | I34: =SUMPRODUCT((OFFSET(Active_Portfolio!$N$12,1,0,ctPort,1)<=DATE(I$8,12,31))*(OFFSET(Active_Portfolio!$O$12,1,0,ctPort,1)>DATE(I$8,12,31))*(OFFSET(Active_Portfolio!$K$12,1,0,ctPort,1)=$H34)*(OFFSET(Active_Portfolio!$Y$12,1,0,ctPort,1)=0)*OFFSET(Active_Portfolio!$Z$12,1,0,ctPort,1),OFFSET(Active_Portfolio!$AH$12,1,0,ctPort,1)) -> 348.8 | J34: =SUMPRODUCT((OFFSET(Active_Portfolio!$N$12,1,0,ctPort,1)<=DATE(J$8,12,31))*(OFFSET(Active_Portfolio!$O$12,1,0,ctPort,1)>DATE(J$8,12,31))*(OFFSET(Active_Portfolio!$K$12,1,0,ctPort,1)=$H34)*(OFFSET(Active_Portfolio!$Y$12,1,0,ctPort,1)=0)*OFFSET(Active_Portfolio!$Z$12,1,0,ctPort,1),OFFSET(Active_Portfolio!$AH$12,1,0,ctPort,1)) -> 348.8 | K34: =SUMPRODUCT((OFFSET(Active_Portfolio!$N$12,1,0,ctPort,1)<=DATE(K$8,12,31))*(OFFSET(Active_Portfolio!$O$12,1,0,ctPort,1)>DATE(K$8,12,31))*(OFFSET(Active_Portfolio!$K$12,1,0,ctPort,1)=$H34)*(OFFSET(Active_Portfolio!$Y$12,1,0,ctPort,1)=0)*OFFSET(Active_Portfolio!$Z$12,1,0,ctPort,1),OFFSET(Active_Portfolio!$AH$12,1,0,ctPort,1)) -> 1217.36 | L34: =SUMPRODUCT((OFFSET(Active_Portfolio!$N$12,1,0,ctPort,1)<=DATE(L$8,12,31))*(OFFSET(Active_Portfolio!$O$12,1,0,ctPort,1)>DATE(L$8,12,31))*(OFFSET(Active_Portfolio!$K$12,1,0,ctPort,1)=$H34)*(OFFSET(Active_Portfolio!$Y$12,1,0,ctPort,1)=0)*OFFSET(Active_Portfolio!$Z$12,1,0,ctPort,1),OFFSET(Active_Portfolio!$AH$12,1,0,ctPort,1)) -> 1203.56 | M34: =SUMPRODUCT((OFFSET(Active_Portfolio!$N$12,1,0,ctPort,1)<=DATE(M$8,12,31))*(OFFSET(Active_Portfolio!$O$12,1,0,ctPort,1)>DATE(M$8,12,31))*(OFFSET(Active_Portfolio!$K$12,1,0,ctPort,1)=$H34)*(OFFSET(Active_Portfolio!$Y$12,1,0,ctPort,1)=0)*OFFSET(Active_Portfolio!$Z$12,1,0,ctPort,1),OFFSET(Active_Portfolio!$AH$12,1,0,ctPort,1)) -> 1217.36 | N34: =SUMPRODUCT((OFFSET(Active_Portfolio!$N$12,1,0,ctPort,1)<=DATE(N$8,12,31))*(OFFSET(Active_Portfolio!$O$12,1,0,ctPort,1)>DATE(N$8,12,31))*(OFFSET(Active_Portfolio!$K$12,1,0,ctPort,1)=$H34)*(OFFSET(Active_Portfolio!$Y$12,1,0,ctPort,1)=0)*OFFSET(Active_Portfolio!$Z$12,1,0,ctPort,1),OFFSET(Active_Portfolio!$AH$12,1,0,ctPort,1)) -> 1172.36 | O34: =SUMPRODUCT((OFFSET(Active_Portfolio!$N$12,1,0,ctPort,1)<=DATE(O$8,12,31))*(OFFSET(Active_Portfolio!$O$12,1,0,ctPort,1)>DATE(O$8,12,31))*(OFFSET(Active_Portfolio!$K$12,1,0,ctPort,1)=$H34)*(OFFSET(Active_Portfolio!$Y$12,1,0,ctPort,1)=0)*OFFSET(Active_Portfolio!$Z$12,1,0,ctPort,1),OFFSET(Active_Portfolio!$AH$12,1,0,ctPort,1)) -> 1202.36 | P34: =SUMPRODUCT((OFFSET(Active_Portfolio!$N$12,1,0,ctPort,1)<=DATE(P$8,12,31))*(OFFSET(Active_Portfolio!$O$12,1,0,ctPort,1)>DATE(P$8,12,31))*(OFFSET(Active_Portfolio!$K$12,1,0,ctPort,1)=$H34)*(OFFSET(Active_Portfolio!$Y$12,1,0,ctPort,1)=0)*OFFSET(Active_Portfolio!$Z$12,1,0,ctPort,1),OFFSET(Active_Portfolio!$AH$12,1,0,ctPort,1)) -> 1202.36 | Q34: =SUMPRODUCT((OFFSET(Active_Portfolio!$N$12,1,0,ctPort,1)<=DATE(Q$8,12,31))*(OFFSET(Active_Portfolio!$O$12,1,0,ctPort,1)>DATE(Q$8,12,31))*(OFFSET(Active_Portfolio!$K$12,1,0,ctPort,1)=$H34)*(OFFSET(Active_Portfolio!$Y$12,1,0,ctPort,1)=0)*OFFSET(Active_Portfolio!$Z$12,1,0,ctPort,1),OFFSET(Active_Portfolio!$AH$12,1,0,ctPort,1)) -> 1202.36 | R34: =SUMPRODUCT((OFFSET(Active_Portfolio!$N$12,1,0,ctPort,1)<=DATE(R$8,12,31))*(OFFSET(Active_Portfolio!$O$12,1,0,ctPort,1)>DATE(R$8,12,31))*(OFFSET(Active_Portfolio!$K$12,1,0,ctPort,1)=$H34)*(OFFSET(Active_Portfolio!$Y$12,1,0,ctPort,1)=0)*OFFSET(Active_Portfolio!$Z$12,1,0,ctPort,1),OFFSET(Active_Portfolio!$AH$12,1,0,ctPort,1)) -> 1202.36 | S34: =SUMPRODUCT((OFFSET(Active_Portfolio!$N$12,1,0,ctPort,1)<=DATE(S$8,12,31))*(OFFSET(Active_Portfolio!$O$12,1,0,ctPort,1)>DATE(S$8,12,31))*(OFFSET(Active_Portfolio!$K$12,1,0,ctPort,1)=$H34)*(OFFSET(Active_Portfolio!$Y$12,1,0,ctPort,1)=0)*OFFSET(Active_Portfolio!$Z$12,1,0,ctPort,1),OFFSET(Active_Portfolio!$AH$12,1,0,ctPort,1)) -> 1202.36 | T34: =SUMPRODUCT((OFFSET(Active_Portfolio!$N$12,1,0,ctPort,1)<=DATE(T$8,12,31))*(OFFSET(Active_Portfolio!$O$12,1,0,ctPort,1)>DATE(T$8,12,31))*(OFFSET(Active_Portfolio!$K$12,1,0,ctPort,1)=$H34)*(OFFSET(Active_Portfolio!$Y$12,1,0,ctPort,1)=0)*OFFSET(Active_Portfolio!$Z$12,1,0,ctPort,1),OFFSET(Active_Portfolio!$AH$12,1,0,ctPort,1)) -> 1202.36 | U34: =SUMPRODUCT((OFFSET(Active_Portfolio!$N$12,1,0,ctPort,1)<=DATE(U$8,12,31))*(OFFSET(Active_Portfolio!$O$12,1,0,ctPort,1)>DATE(U$8,12,31))*(OFFSET(Active_Portfolio!$K$12,1,0,ctPort,1)=$H34)*(OFFSET(Active_Portfolio!$Y$12,1,0,ctPort,1)=0)*OFFSET(Active_Portfolio!$Z$12,1,0,ctPort,1),OFFSET(Active_Portfolio!$AH$12,1,0,ctPort,1)) -> 1202.36 | V34: =SUMPRODUCT((OFFSET(Active_Portfolio!$N$12,1,0,ctPort,1)<=DATE(V$8,12,31))*(OFFSET(Active_Portfolio!$O$12,1,0,ctPort,1)>DATE(V$8,12,31))*(OFFSET(Active_Portfolio!$K$12,1,0,ctPort,1)=$H34)*(OFFSET(Active_Portfolio!$Y$12,1,0,ctPort,1)=0)*OFFSET(Active_Portfolio!$Z$12,1,0,ctPort,1),OFFSET(Active_Portfolio!$AH$12,1,0,ctPort,1)) -> 1202.36 | W34: =SUMPRODUCT((OFFSET(Active_Portfolio!$N$12,1,0,ctPort,1)<=DATE(W$8,12,31))*(OFFSET(Active_Portfolio!$O$12,1,0,ctPort,1)>DATE(W$8,12,31))*(OFFSET(Active_Portfolio!$K$12,1,0,ctPort,1)=$H34)*(OFFSET(Active_Portfolio!$Y$12,1,0,ctPort,1)=0)*OFFSET(Active_Portfolio!$Z$12,1,0,ctPort,1),OFFSET(Active_Portfolio!$AH$12,1,0,ctPort,1)) -> 1202.36 | X34: =SUMPRODUCT((OFFSET(Active_Portfolio!$N$12,1,0,ctPort,1)<=DATE(X$8,12,31))*(OFFSET(Active_Portfolio!$O$12,1,0,ctPort,1)>DATE(X$8,12,31))*(OFFSET(Active_Portfolio!$K$12,1,0,ctPort,1)=$H34)*(OFFSET(Active_Portfolio!$Y$12,1,0,ctPort,1)=0)*OFFSET(Active_Portfolio!$Z$12,1,0,ctPort,1),OFFSET(Active_Portfolio!$AH$12,1,0,ctPort,1)) -> 1202.36 | Y34: =SUMPRODUCT((OFFSET(Active_Portfolio!$N$12,1,0,ctPort,1)<=DATE(Y$8,12,31))*(OFFSET(Active_Portfolio!$O$12,1,0,ctPort,1)>DATE(Y$8,12,31))*(OFFSET(Active_Portfolio!$K$12,1,0,ctPort,1)=$H34)*(OFFSET(Active_Portfolio!$Y$12,1,0,ctPort,1)=0)*OFFSET(Active_Portfolio!$Z$12,1,0,ctPort,1),OFFSET(Active_Portfolio!$AH$12,1,0,ctPort,1)) -> 1202.36 | Z34: =SUMPRODUCT((OFFSET(Active_Portfolio!$N$12,1,0,ctPort,1)<=DATE(Z$8,12,31))*(OFFSET(Active_Portfolio!$O$12,1,0,ctPort,1)>DATE(Z$8,12,31))*(OFFSET(Active_Portfolio!$K$12,1,0,ctPort,1)=$H34)*(OFFSET(Active_Portfolio!$Y$12,1,0,ctPort,1)=0)*OFFSET(Active_Portfolio!$Z$12,1,0,ctPort,1),OFFSET(Active_Portfolio!$AH$12,1,0,ctPort,1)) -> 1202.36 | AA34: =SUMPRODUCT((OFFSET(Active_Portfolio!$N$12,1,0,ctPort,1)<=DATE(AA$8,12,31))*(OFFSET(Active_Portfolio!$O$12,1,0,ctPort,1)>DATE(AA$8,12,31))*(OFFSET(Active_Portfolio!$K$12,1,0,ctPort,1)=$H34)*(OFFSET(Active_Portfolio!$Y$12,1,0,ctPort,1)=0)*OFFSET(Active_Portfolio!$Z$12,1,0,ctPort,1),OFFSET(Active_Portfolio!$AH$12,1,0,ctPort,1)) -> 1202.36
H35: Wind | I35: =SUMPRODUCT((OFFSET(Active_Portfolio!$N$12,1,0,ctPort,1)<=DATE(I$8,12,31))*(OFFSET(Active_Portfolio!$O$12,1,0,ctPort,1)>DATE(I$8,12,31))*(OFFSET(Active_Portfolio!$K$12,1,0,ctPort,1)=$H35)*(OFFSET(Active_Portfolio!$Y$12,1,0,ctPort,1)=0)*OFFSET(Active_Portfolio!$Z$12,1,0,ctPort,1),OFFSET(Active_Portfolio!$AH$12,1,0,ctPort,1)) -> 6206.343931 | J35: =SUMPRODUCT((OFFSET(Active_Portfolio!$N$12,1,0,ctPort,1)<=DATE(J$8,12,31))*(OFFSET(Active_Portfolio!$O$12,1,0,ctPort,1)>DATE(J$8,12,31))*(OFFSET(Active_Portfolio!$K$12,1,0,ctPort,1)=$H35)*(OFFSET(Active_Portfolio!$Y$12,1,0,ctPort,1)=0)*OFFSET(Active_Portfolio!$Z$12,1,0,ctPort,1),OFFSET(Active_Portfolio!$AH$12,1,0,ctPort,1)) -> 6949.298931 | K35: =SUMPRODUCT((OFFSET(Active_Portfolio!$N$12,1,0,ctPort,1)<=DATE(K$8,12,31))*(OFFSET(Active_Portfolio!$O$12,1,0,ctPort,1)>DATE(K$8,12,31))*(OFFSET(Active_Portfolio!$K$12,1,0,ctPort,1)=$H35)*(OFFSET(Active_Portfolio!$Y$12,1,0,ctPort,1)=0)*OFFSET(Active_Portfolio!$Z$12,1,0,ctPort,1),OFFSET(Active_Portfolio!$AH$12,1,0,ctPort,1)) -> 7197.258931 | L35: =SUMPRODUCT((OFFSET(Active_Portfolio!$N$12,1,0,ctPort,1)<=DATE(L$8,12,31))*(OFFSET(Active_Portfolio!$O$12,1,0,ctPort,1)>DATE(L$8,12,31))*(OFFSET(Active_Portfolio!$K$12,1,0,ctPort,1)=$H35)*(OFFSET(Active_Portfolio!$Y$12,1,0,ctPort,1)=0)*OFFSET(Active_Portfolio!$Z$12,1,0,ctPort,1),OFFSET(Active_Portfolio!$AH$12,1,0,ctPort,1)) -> 7594.908931 | M35: =SUMPRODUCT((OFFSET(Active_Portfolio!$N$12,1,0,ctPort,1)<=DATE(M$8,12,31))*(OFFSET(Active_Portfolio!$O$12,1,0,ctPort,1)>DATE(M$8,12,31))*(OFFSET(Active_Portfolio!$K$12,1,0,ctPort,1)=$H35)*(OFFSET(Active_Portfolio!$Y$12,1,0,ctPort,1)=0)*OFFSET(Active_Portfolio!$Z$12,1,0,ctPort,1),OFFSET(Active_Portfolio!$AH$12,1,0,ctPort,1)) -> 8179.590931 | N35: =SUMPRODUCT((OFFSET(Active_Portfolio!$N$12,1,0,ctPort,1)<=DATE(N$8,12,31))*(OFFSET(Active_Portfolio!$O$12,1,0,ctPort,1)>DATE(N$8,12,31))*(OFFSET(Active_Portfolio!$K$12,1,0,ctPort,1)=$H35)*(OFFSET(Active_Portfolio!$Y$12,1,0,ctPort,1)=0)*OFFSET(Active_Portfolio!$Z$12,1,0,ctPort,1),OFFSET(Active_Portfolio!$AH$12,1,0,ctPort,1)) -> 8602.431437 | O35: =SUMPRODUCT((OFFSET(Active_Portfolio!$N$12,1,0,ctPort,1)<=DATE(O$8,12,31))*(OFFSET(Active_Portfolio!$O$12,1,0,ctPort,1)>DATE(O$8,12,31))*(OFFSET(Active_Portfolio!$K$12,1,0,ctPort,1)=$H35)*(OFFSET(Active_Portfolio!$Y$12,1,0,ctPort,1)=0)*OFFSET(Active_Portfolio!$Z$12,1,0,ctPort,1),OFFSET(Active_Portfolio!$AH$12,1,0,ctPort,1)) -> 9052.448013 | P35: =SUMPRODUCT((OFFSET(Active_Portfolio!$N$12,1,0,ctPort,1)<=DATE(P$8,12,31))*(OFFSET(Active_Portfolio!$O$12,1,0,ctPort,1)>DATE(P$8,12,31))*(OFFSET(Active_Portfolio!$K$12,1,0,ctPort,1)=$H35)*(OFFSET(Active_Portfolio!$Y$12,1,0,ctPort,1)=0)*OFFSET(Active_Portfolio!$Z$12,1,0,ctPort,1),OFFSET(Active_Portfolio!$AH$12,1,0,ctPort,1)) -> 9256.948013 | Q35: =SUMPRODUCT((OFFSET(Active_Portfolio!$N$12,1,0,ctPort,1)<=DATE(Q$8,12,31))*(OFFSET(Active_Portfolio!$O$12,1,0,ctPort,1)>DATE(Q$8,12,31))*(OFFSET(Active_Portfolio!$K$12,1,0,ctPort,1)=$H35)*(OFFSET(Active_Portfolio!$Y$12,1,0,ctPort,1)=0)*OFFSET(Active_Portfolio!$Z$12,1,0,ctPort,1),OFFSET(Active_Portfolio!$AH$12,1,0,ctPort,1)) -> 9826.715102 | R35: =SUMPRODUCT((OFFSET(Active_Portfolio!$N$12,1,0,ctPort,1)<=DATE(R$8,12,31))*(OFFSET(Active_Portfolio!$O$12,1,0,ctPort,1)>DATE(R$8,12,31))*(OFFSET(Active_Portfolio!$K$12,1,0,ctPort,1)=$H35)*(OFFSET(Active_Portfolio!$Y$12,1,0,ctPort,1)=0)*OFFSET(Active_Portfolio!$Z$12,1,0,ctPort,1),OFFSET(Active_Portfolio!$AH$12,1,0,ctPort,1)) -> 9801.715102 | S35: =SUMPRODUCT((OFFSET(Active_Portfolio!$N$12,1,0,ctPort,1)<=DATE(S$8,12,31))*(OFFSET(Active_Portfolio!$O$12,1,0,ctPort,1)>DATE(S$8,12,31))*(OFFSET(Active_Portfolio!$K$12,1,0,ctPort,1)=$H35)*(OFFSET(Active_Portfolio!$Y$12,1,0,ctPort,1)=0)*OFFSET(Active_Portfolio!$Z$12,1,0,ctPort,1),OFFSET(Active_Portfolio!$AH$12,1,0,ctPort,1)) -> 10260.73258 | T35: =SUMPRODUCT((OFFSET(Active_Portfolio!$N$12,1,0,ctPort,1)<=DATE(T$8,12,31))*(OFFSET(Active_Portfolio!$O$12,1,0,ctPort,1)>DATE(T$8,12,31))*(OFFSET(Active_Portfolio!$K$12,1,0,ctPort,1)=$H35)*(OFFSET(Active_Portfolio!$Y$12,1,0,ctPort,1)=0)*OFFSET(Active_Portfolio!$Z$12,1,0,ctPort,1),OFFSET(Active_Portfolio!$AH$12,1,0,ctPort,1)) -> 10183.16376 | U35: =SUMPRODUCT((OFFSET(Active_Portfolio!$N$12,1,0,ctPort,1)<=DATE(U$8,12,31))*(OFFSET(Active_Portfolio!$O$12,1,0,ctPort,1)>DATE(U$8,12,31))*(OFFSET(Active_Portfolio!$K$12,1,0,ctPort,1)=$H35)*(OFFSET(Active_Portfolio!$Y$12,1,0,ctPort,1)=0)*OFFSET(Active_Portfolio!$Z$12,1,0,ctPort,1),OFFSET(Active_Portfolio!$AH$12,1,0,ctPort,1)) -> 10129.74236 | V35: =SUMPRODUCT((OFFSET(Active_Portfolio!$N$12,1,0,ctPort,1)<=DATE(V$8,12,31))*(OFFSET(Active_Portfolio!$O$12,1,0,ctPort,1)>DATE(V$8,12,31))*(OFFSET(Active_Portfolio!$K$12,1,0,ctPort,1)=$H35)*(OFFSET(Active_Portfolio!$Y$12,1,0,ctPort,1)=0)*OFFSET(Active_Portfolio!$Z$12,1,0,ctPort,1),OFFSET(Active_Portfolio!$AH$12,1,0,ctPort,1)) -> 10160.64258 | W35: =SUMPRODUCT((OFFSET(Active_Portfolio!$N$12,1,0,ctPort,1)<=DATE(W$8,12,31))*(OFFSET(Active_Portfolio!$O$12,1,0,ctPort,1)>DATE(W$8,12,31))*(OFFSET(Active_Portfolio!$K$12,1,0,ctPort,1)=$H35)*(OFFSET(Active_Portfolio!$Y$12,1,0,ctPort,1)=0)*OFFSET(Active_Portfolio!$Z$12,1,0,ctPort,1),OFFSET(Active_Portfolio!$AH$12,1,0,ctPort,1)) -> 10210.64258 | X35: =SUMPRODUCT((OFFSET(Active_Portfolio!$N$12,1,0,ctPort,1)<=DATE(X$8,12,31))*(OFFSET(Active_Portfolio!$O$12,1,0,ctPort,1)>DATE(X$8,12,31))*(OFFSET(Active_Portfolio!$K$12,1,0,ctPort,1)=$H35)*(OFFSET(Active_Portfolio!$Y$12,1,0,ctPort,1)=0)*OFFSET(Active_Portfolio!$Z$12,1,0,ctPort,1),OFFSET(Active_Portfolio!$AH$12,1,0,ctPort,1)) -> 10210.64258 | Y35: =SUMPRODUCT((OFFSET(Active_Portfolio!$N$12,1,0,ctPort,1)<=DATE(Y$8,12,31))*(OFFSET(Active_Portfolio!$O$12,1,0,ctPort,1)>DATE(Y$8,12,31))*(OFFSET(Active_Portfolio!$K$12,1,0,ctPort,1)=$H35)*(OFFSET(Active_Portfolio!$Y$12,1,0,ctPort,1)=0)*OFFSET(Active_Portfolio!$Z$12,1,0,ctPort,1),OFFSET(Active_Portfolio!$AH$12,1,0,ctPort,1)) -> 12269.89832 | Z35: =SUMPRODUCT((OFFSET(Active_Portfolio!$N$12,1,0,ctPort,1)<=DATE(Z$8,12,31))*(OFFSET(Active_Portfolio!$O$12,1,0,ctPort,1)>DATE(Z$8,12,31))*(OFFSET(Active_Portfolio!$K$12,1,0,ctPort,1)=$H35)*(OFFSET(Active_Portfolio!$Y$12,1,0,ctPort,1)=0)*OFFSET(Active_Portfolio!$Z$12,1,0,ctPort,1),OFFSET(Active_Portfolio!$AH$12,1,0,ctPort,1)) -> 12874.67925 | AA35: =SUMPRODUCT((OFFSET(Active_Portfolio!$N$12,1,0,ctPort,1)<=DATE(AA$8,12,31))*(OFFSET(Active_Portfolio!$O$12,1,0,ctPort,1)>DATE(AA$8,12,31))*(OFFSET(Active_Portfolio!$K$12,1,0,ctPort,1)=$H35)*(OFFSET(Active_Portfolio!$Y$12,1,0,ctPort,1)=0)*OFFSET(Active_Portfolio!$Z$12,1,0,ctPort,1),OFFSET(Active_Portfolio!$AH$12,1,0,ctPort,1)) -> 13098.51578
H36: Total | I36: =SUM(I29:I35) -> 10278.60916 | J36: 12690.23236 | K36: 16138.60336 | L36: 18150.05336 | M36: 20612.5598 | N36: 21337.77331 | O36: 24082.19548 | P36: 25842.1408 | Q36: 27487.00066 | R36: 29046.99199 | S36: 31250.0883 | T36: 31102.27819 | U36: 31089.66829 | V36: 31177.37404 | W36: 31261.43347 | X36: 32693.65006 | Y36: 35244.30383 | Z36: 37031.30156 | AA36: 38480.59897
H38: Expected Total Renewable Generation by Year (GWh) | R38: Total Renewable Installed Capacity by Year (MW)
B41: OUTPUTS - Current Scenario
C43: Active Scenario | D43: =Scenarios!$J$7 -> Custom...
B46: PORTFOLIO IMPORT & EXPORT
G59: OUTPUTS - New Resources by CREZ
H61: Fully Deliverable Resources by CREZ (MW) | R61: Energy-Only Resources by CREZ (MW)

Sheet Set_Aside
B2: INPUTS - User Specification of Resources | G2: Impact on FCDS Transmission
C4: Resource Type | D4: Geothermal | L4: Existing | M4: Minor | N4: Major 1 | O4: Major 2 | P4: Concep 1 | Q4: Concep 2 | R4: Total
H5: Total Capacity for New Resources (MW) | L5: =INDEX(Tx_Supply!H$14:H$101,MATCH($D$7,Tx_Supply!$B$14:$B$101,0)) -> 800 | M5: =INDEX(Tx_Supply!I$14:I$101,MATCH($D$7,Tx_Supply!$B$14:$B$101,0)) -> 0 | N5: =INDEX(Tx_Supply!J$14:J$101,MATCH($D$7,Tx_Supply!$B$14:$B$101,0)) -> 2450 | O5: =INDEX(Tx_Supply!K$14:K$101,MATCH($D$7,Tx_Supply!$B$14:$B$101,0)) -> 1000 | P5: =INDEX(Tx_Supply!L$14:L$101,MATCH($D$7,Tx_Supply!$B$14:$B$101,0)) -> 1500 | Q5: =INDEX(Tx_Supply!M$14:M$101,MATCH($D$7,Tx_Supply!$B$14:$B$101,0)) -> 1500 | R5: =SUM(L5:Q5) -> 7250
C6: Electrical Area (CREZ) | D6: Riverside East | H6: Allocated to Portfolio (MW) | L6: =INDEX(Tx_Supply!BH$14:BH$101,MATCH($D$7,Tx_Supply!$B$14:$B$101,0)) -> 800 | M6: =INDEX(Tx_Supply!BI$14:BI$101,MATCH($D$7,Tx_Supply!$B$14:$B$101,0)) -> 0 | N6: =INDEX(Tx_Supply!BJ$14:BJ$101,MATCH($D$7,Tx_Supply!$B$14:$B$101,0)) -> 2450 | O6: =INDEX(Tx_Supply!BK$14:BK$101,MATCH($D$7,Tx_Supply!$B$14:$B$101,0)) -> 0 | P6: =INDEX(Tx_Supply!BL$14:BL$101,MATCH($D$7,Tx_Supply!$B$14:$B$101,0)) -> 0 | Q6: =INDEX(Tx_Supply!BM$14:BM$101,MATCH($D$7,Tx_Supply!$B$14:$B$101,0)) -> 0 | R6: =SUM(L6:Q6) -> 3250
C7: Transmission Area | D7: =INDEX(Tx_Mapping!$B$8:$B$107,MATCH(D6,Tx_Mapping!$A$8:$A$107,0)) -> Riverside East & Palm Springs | H7: Allocation of Present User Selection (MW) | L7: =IF($D$12="FCDS",MIN(L$5-L$6,(SUM($AB$35:$AB$134)-SUM($H$7:K7))),0) -> 0 | M7: =IF($D$12="FCDS",MIN(M$5-M$6,(SUM($AB$35:$AB$134)-SUM($H$7:L7))),0) -> 0 | N7: =IF($D$12="FCDS",MIN(N$5-N$6,(SUM($AB$35:$AB$134)-SUM($H$7:M7))),0) -> 0 | O7: =IF($D$12="FCDS",MIN(O$5-O$6,(SUM($AB$35:$AB$134)-SUM($H$7:N7))),0) -> 0 | P7: =IF($D$12="FCDS",MIN(P$5-P$6,(SUM($AB$35:$AB$134)-SUM($H$7:O7))),0) -> 0 | Q7: =IF($D$12="FCDS",MIN(Q$5-Q$6,(SUM($AB$35:$AB$134)-SUM($H$7:P7))),0) -> 0 | R7: =SUM(L7:Q7) -> 0
C8: Energy-Only Zone | D8: =INDEX(Tx_Mapping!$G$8:$G$95,MATCH($D$7,Tx_Mapping!$F$8:$F$95,0)) -> Riverside East & Palm Springs | H8: Incremental Transmission Triggered (MW) | M8: =IF(M$6+M$7>0,M$5,0) -> 0 | N8: 2450 | O8: 0 | P8: 0 | Q8: 0 | R8: 7250
H9: Transmission Cost ($MM) | L9: =INDEX(Tx_Supply!N$14:N$101,MATCH($D$7,Tx_Supply!$B$14:$B$101,0)) -> 0 | M9: =INDEX(Tx_Supply!O$14:O$101,MATCH($D$7,Tx_Supply!$B$14:$B$101,0)) -> 0 | N9: =INDEX(Tx_Supply!P$14:P$101,MATCH($D$7,Tx_Supply!$B$14:$B$101,0)) -> 955 | O9: =INDEX(Tx_Supply!Q$14:Q$101,MATCH($D$7,Tx_Supply!$B$14:$B$101,0)) -> 1800 | P9: =INDEX(Tx_Supply!R$14:R$101,MATCH($D$7,Tx_Supply!$B$14:$B$101,0)) -> 877.9043909 | Q9: =INDEX(Tx_Supply!S$14:S$101,MATCH($D$7,Tx_Supply!$B$14:$B$101,0)) -> 877.9043909 | R9: =SUM(L9:Q9) -> 4510.808782
C10: Contract Start Year | D10: 2025 | H10: Incremental Cost Triggered ($MM) | L10: =IF(L$8=L$5,L9,0) -> 0 | M10: 0 | N10: 955 | O10: 0 | P10: 0 | Q10: 0 | R10: =SUM(L10:Q10) -> 955
C12: Deliverability Type | D12: FCDS
C14: MW of Resource | D14: 2000
C15: Remaining Potential | D15: =SUMPRODUCT((OFFSET(sc_type,1,0,ctProject,1)="New")*(OFFSET(Supply_Curve!$F$17,1,0,ctProject,1)=$D$6)*(OFFSET(Supply_Curve!$J$17,1,0,ctProject,1)=$D$4)*OFFSET(Supply_Curve!$AG$17,1,0,ctProject,1),OFFSET(Supply_Curve!$AH$17,1,0,ctProject,1),OFFSET(Supply_Curve!$AI$17,1,0,ctProject,1)) - SUMPRODUCT((OFFSET(Active_Portfolio!$B$12,1,0,ctPort,1)=4)*(OFFSET(Active_Portfolio!$G$12,1,0,ctPort,1)=$D$6)*(OFFSET(Active_Portfolio!$K$12,1,0,ctPort,1)=$D$4)*OFFSET(Active_Portfolio!$Z$12,1,0,ctPort,1)) -> 0
C16: Transmission Limit | D16: =IF($D$12="FCDS",MAX(0,SUMPRODUCT(Tx_Supply!$H$14:$M$101*(Tx_Supply!$B$14:$B$101=$D$7))-SUMPRODUCT(Tx_Supply!$AM$14:$BF$101*(Tx_Supply!$B$14:$B$101=$D$7)*(Tx_Supply!$AM$12:$BF$12=$D$10))),INDEX(Tx_Supply!$K$220:$K$238,MATCH($D$8,Tx_Supply!$B$220:$B$238,0))) -> 6003.674049
C17: Selected | D17: =MIN($D$14:$D$16) -> 0
B25: Parameters
B26: Resource Count | C26: =COUNTIFS($D$35:$D$134,"<>--") -> 0
B27: Space Count | C27: =COUNTA($B$1:$B$34)+COUNTBLANK($B$1:$B$34) -> 34
B28: Supply Curve Space Count | C28: =COUNTA(Supply_Curve!$A$1:$A$17)+COUNTBLANK(Supply_Curve!$A$1:$A$17) -> 17
B29: Selected Resources | C29: =COUNTIF($AH$35:$AH$134,"<><N/A>") -> 0
B31: Resource Inputs | I31: Project-Specific Cost Multipliers | P31: First Year PPA Price | Y31: Project Selection | AG31: Outputs to Active Portfolio
... 38 more rows

Sheet Active_Portfolio
A1: RPS Portfolio
A2: Count | B2: =MAX(A:A) -> 1689
B4: Categories
B5: 1 = Existing
B6: 2 = Commercial | AC6: Formulas
B7: 3 = Recontracted | AC7: Tech ID | AD7: ELCC Profile | AE7: Energy Value Profile | AF7: Losses | AG7: Degrad. | AH7: Risk Adj | AI7: Unit Cost
B8: 4 = Generic | AC8: =MATCH(IF(ISBLANK($L8),$K8,$K8&" - "&$L8),resources,0) ->  | AD8: =IF(AND($M8="Existing",$K8="Hydro"),"Other",INDEX(Resource_Char!$I$157:$AF$234,IF(ISERROR(MATCH(IF($E8="CA",$G8,$E8),Resource_Char!$E$157:$E$234,0)),1,MATCH(IF($E8="CA",$G8,$E8),Resource_Char!$E$157:$E$234,0)),$AC8)) ->  | AE8: =IF(AND($M8="Existing",$K8="Hydro"),"Other",INDEX(Resource_Char!$I$237:$AF$314,IF(ISERROR(MATCH(IF($E8="CA",$G8,$E8),Resource_Char!$E$237:$E$314,0)),1,MATCH(IF($E8="CA",$G8,$E8),Resource_Char!$E$237:$E$314,0)),$AC8)) ->  | AF8: 0 | AG8: =INDEX(Resource_Char!$I$21:$AF$21,AC8) ->  | AH8: =INDEX(General_Inputs!$F$7:$H$14,MATCH($K8,General_Inputs!$D$7:$D$14,0),$B8) ->  | AI8: =IF(SUM($U8:$W8)<1,0,CHOOSE($B8,INDEX(General_Inputs!$E$159:$G$166,MATCH($K8,General_Inputs!$C$159:$C$166,0),MATCH(1,$U8:$W8,0)),INDEX(tableFixed,$AC8,MAX(1,YEAR($N8)-Resource_Cost!$D$8))/(8.76*$AB8)+INDEX(tableVariable,$AC8,MAX(1,YEAR($N8)-Resource_Cost!$D$8)))) -> 0
A10: Index | B10: Category | C10: Project ID | D10: Project Name | E10: State | F10: County | G10: Electrical Area (CREZ) | H10: Latitude | I10: Longitude | J10: LCR Area | K10: Technology | L10: Subtechnology | M10: Type | N10: Contract Start Date | O10: Contract End Date | P10: Eligible for Recontr? | Q10: Product Content Category | R10: CAISO | S10: Bundled | T10: Deliverability Type | U10: PG&E | V10: SCE | W10: SDG&E | X10: Other CAISO | Y10: Non CAISO | Z10: Contract Capacity | AA10: Annual Energy | AB10: Capacity Factor | AC10: Technology Index | AD10: ELCC Profile | AE10: Energy Value Profile | AF10: Losses | AG10: Degradation | AH10: Risk Adjustment | AI10: Unit Cost
N11: [date] | O11: [date] | P11: [0/1] | Q11: [0/1/2/3] | R11: [0/1] | S11: [0/1] | T11: [0,1] | U11: [%] | V11: [%] | W11: [%] | X11: [%] | Y11: [%] | Z11: [MW] | AA11: [GWh] | AB11: [%] | AF11: [%] | AG11: [%/yr] | AH11: [%] | AI11: [$/MWh]
A13: =ROW()-ROW(index) -> 1 | B13: 1 | C13: PG10009 | D13: Monterey Regional Water | E13: CA | F13: Monterey | G13: Monterey County (Partial) | H13: 36.705827 | I13: -121.768777 | K13: Biogas | L13: Distributed | M13: Existing | N13: 1988-08-26 | O13: 2099-12-31 | P13: 1 | Q13: 0 | R13: 1 | S13: 1 | T13: 1 | U13: 1 | V13: 0 | W13: 0 | X13: 0 | Y13: 0 | Z13: 1.74 | AA13: 0.24 | AB13: 0.015745552 | AC13: 1 | AD13: Baseload | AE13: Baseload | AF13: 0 | AG13: 0 | AH13: 1 | AI13: 59.36561834
A14: 2 | B14: 1 | C14: PG10015 | D14: City Of Watsonville | E14: CA | F14: Santa Cruz | G14: Santa Cruz County | H14: 36.886167 | I14: -121.786127 | K14: Biogas | L14: Distributed | M14: Existing | N14: 1993-01-23 | O14: 2023-01-22 | P14: 1 | Q14: 0 | R14: 1 | S14: 1 | T14: 1 | U14: 1 | V14: 0 | W14: 0 | X14: 0 | Y14: 0 | Z14: 0.55 | AA14: 0.07 | AB14: 0.01452885 | AC14: 1 | AD14: Baseload | AE14: Baseload | AF14: 0 | AG14: 0 | AH14: 1 | AI14: 59.36561834
A15: 3 | B15: 1 | C15: PG10020 | D15: Clover Flat LFG | E15: CA | F15: Napa | G15: Sacramento River | H15: 38.57618398 | I15: -122.5302103 | K15: Biogas | L15: Distributed | M15: Existing | N15: 2014-07-07 | O15: 2024-07-06 | P15: 1 | Q15: 1 | R15: 1 | S15: 1 | T15: 1 | U15: 1 | V15: 0 | W15: 0 | X15: 0 | Y15: 0 | Z15: 0.848 | AA15: 5.747 | AB15: 0.773644137 | AC15: 1 | AD15: Baseload | AE15: Baseload | AF15: 0 | AG15: 0 | AH15: 1 | AI15: 59.36561834
A16: 4 | B16: 1 | C16: PG1013 | D16: Gas Recovery Sys. (American Cyn) | E16: CA | F16: Napa | G16: Sacramento River | H16: 38.174918 | I16: -122.260804 | K16: Biogas | L16: Distributed | M16: Existing | N16: 1986-02-04 | O16: 2016-02-03 | P16: 1 | Q16: 0 | R16: 1 | S16: 1 | T16: 1 | U16: 1 | V16: 0 | W16: 0 | X16: 0 | Y16: 0 | Z16: 1.5 | AA16: 7.785 | AB16: 0.592465753 | AC16: 1 | AD16: Baseload | AE16: Baseload | AF16: 0 | AG16: 0 | AH16: 1 | AI16: 59.36561834
A17: 5 | B17: 1 | C17: PG1016 | D17: Gas Recovery Sys. (Newby Island 2) | E17: CA | F17: Santa Clara | G17: Santa Clara County | H17: 37.454158 | I17: -121.928855 | K17: Biogas | L17: Distributed | M17: Existing | N17: 1984-09-01 | O17: 2014-08-02 | P17: 1 | Q17: 0 | R17: 1 | S17: 1 | T17: 1 | U17: 1 | V17: 0 | W17: 0 | X17: 0 | Y17: 0 | Z17: 4.2 | AA17: 25.952 | AB17: 0.705370733 | AC17: 1 | AD17: Baseload | AE17: Baseload | AF17: 0 | AG17: 0 | AH17: 1 | AI17: 59.36561834
A18: 6 | B18: 1 | C18: PG1024 | D18: Waste Management Renewable Energy | E18: CA | F18: Alameda | G18: Solano | H18: 37.748526 | I18: -121.649871 | K18: Biogas | L18: Distributed | M18: Existing | N18: 1989-05-04 | O18: 2099-12-31 | P18: 1 | Q18: 0 | R18: 1 | S18: 1 | T18: 1 | U18: 1 | V18: 0 | W18: 0 | X18: 0 | Y18: 0 | Z18: 13.2 | AA18: 44.407 | AB18: 0.384037291 | AC18: 1 | AD18: Baseload | AE18: Baseload | AF18: 0 | AG18: 0 | AH18: 1 | AI18: 59.36561834
A19: 7 | B19: 1 | C19: PG1025 | D19: Toro SLO Landfill | E19: CA | F19: San Luis Obispo | G19: Cuyama | H19: 35.199825 | I19: -120.607381 | K19: Biogas | L19: Distributed | M19: Existing | N19: 2013-07-21 | O19: 2033-07-20 | P19: 1 | Q19: 1 | R19: 1 | S19: 1 | T19: 1 | U19: 1 | V19: 0 | W19: 0 | X19: 0 | Y19: 0 | Z19: 1.5 | AA19: 11.2 | AB19: 0.852359209 | AC19: 1 | AD19: Baseload | AE19: Baseload | AF19: 0 | AG19: 0 | AH19: 1 | AI19: 59.36561834
A20: 8 | B20: 1 | C20: PG1029 | D20: Blake's Landing - 80kW Generator | E20: CA | F20: Marin | G20: Marin County | H20: 38.16703 | I20: -122.893108 | K20: Biogas | L20: Distributed | M20: Existing | N20: 2010-11-02 | O20: 2020-11-01 | P20: 1 | Q20: 1 | R20: 1 | S20: 1 | T20: 1 | U20: 1 | V20: 0 | W20: 0 | X20: 0 | Y20: 0 | Z20: 0.08 | AA20: 0.6 | AB20: 0.856164384 | AC20: 1 | AD20: Baseload | AE20: Baseload | AF20: 0 | AG20: 0 | AH20: 1 | AI20: 59.36561834
A21: 9 | B21: 1 | C21: PG1030 | D21: Castelanelli Bros. Biogas | E21: CA | F21: San Joaquin | G21: Solano | H21: 38.0866 | I21: -121.32 | K21: Biogas | L21: Distributed | M21: Existing | N21: 2009-06-17 | O21: 2019-06-16 | P21: 1 | Q21: 0 | R21: 1 | S21: 1 | T21: 1 | U21: 1 | V21: 0 | W21: 0 | X21: 0 | Y21: 0 | Z21: 0.3 | AA21: 1.3 | AB21: 0.494672755 | AC21: 1 | AD21: Baseload | AE21: Baseload | AF21: 0 | AG21: 0 | AH21: 1 | AI21: 59.36561834
A22: 10 | B22: 1 | C22: PG1031 | D22: Santa Maria II | E22: CA | F22: Santa Barbara | G22: Santa Barbara | H22: 34.9482 | I22: -120.38 | K22: Biogas | L22: Distributed | M22: Existing | N22: 2010-09-13 | O22: 2025-09-12 | P22: 1 | Q22: 0 | R22: 1 | S22: 1 | T22: 1 | U22: 1 | V22: 0 | W22: 0 | X22: 0 | Y22: 0 | Z22: 1.42 | AA22: 12.439 | AB22: 0.999983922 | AC22: 1 | AD22: Baseload | AE22: Baseload | AF22: 0 | AG22: 0 | AH22: 1 | AI22: 59.36561834
A23: 11 | B23: 1 | C23: PG1034 | D23: ABEC Bidart-Old River LLC | E23: CA | F23: Kern | G23: Westlands | H23: 35.1696 | I23: -119.1056 | K23: Biogas | L23: Distributed | M23: Existing | N23: 2014-03-10 | O23: 2029-03-09 | P23: 1 | Q23: 1 | R23: 1 | S23: 1 | T23: 1 | U23: 1 | V23: 0 | W23: 0 | X23: 0 | Y23: 0 | Z23: 1.84 | AA23: 12.95 | AB23: 0.803429621 | AC23: 1 | AD23: Baseload | AE23: Baseload | AF23: 0 | AG23: 0 | AH23: 1 | AI23: 59.36561834
A24: 12 | B24: 1 | C24: PG1035 | D24: ABEC Bidart-Stockdale LLC | E24: CA | F24: Kern | G24: Westlands | H24: 35.3548 | I24: -119.2894 | K24: Biogas | L24: Distributed | M24: Existing | N24: 2013-04-06 | O24: 2023-09-11 | P24: 1 | Q24: 1 | R24: 1 | S24: 1 | T24: 1 | U24: 1 | V24: 0 | W24: 0 | X24: 0 | Y24: 0 | Z24: 0.6 | AA24: 1.4 | AB24: 0.266362253 | AC24: 1 | AD24: Baseload | AE24: Baseload | AF24: 0 | AG24: 0 | AH24: 1 | AI24: 59.36561834
A25: 13 | B25: 2 | C25: PG1046 | D25: Potrero Hills Landfill | E25: CA | F25: Solano | G25: Solano | H25: 38.215 | I25: -121.9845 | K25: Biogas | L25: Distributed | M25: New | N25: 2016-02-15 | O25: 2041-02-14 | P25: 1 | Q25: 0 | R25: 1 | S25: 1 | T25: 1 | U25: 1 | V25: 0 | W25: 0 | X25: 0 | Y25: 0 | Z25: 8 | AA25: 56.1 | AB25: 0.800513699 | AC25: 1 | AD25: Baseload | AE25: Baseload | AF25: 0 | AG25: 0 | AH25: 0.84 | AI25: 161.5077599
A26: 14 | B26: 1 | C26: PG1049 | D26: Sunshine Landfill | E26: CA | F26: Los Angeles | G26: Fairmont | H26: 34.335 | I26: -118.519 | K26: Biogas | L26: Distributed | M26: Existing | N26: 2014-09-01 | O26: 2034-08-31 | P26: 1 | Q26: 0 | R26: 1 | S26: 1 | T26: 1 | U26: 1 | V26: 0 | W26: 0 | X26: 0 | Y26: 0 | Z26: 18.96 | AA26: 132.87 | AB26: 0.799989885 | AC26: 1 | AD26: Baseload | AE26: Baseload | AF26: 0 | AG26: 0 | AH26: 1 | AI26: 59.36561834
A27: 15 | B27: 1 | C27: PG2000 | D27: Eel River Power LLC | E27: CA | F27: Humboldt | G27: Humboldt County | H27: 40.48 | I27: -124.104 | K27: Biomass | L27: Large | M27: Existing | N27: 2011-10-01 | O27: 2099-12-31 | P27: 1 | Q27: 0 | R27: 1 | S27: 1 | T27: 1 | U27: 1 | V27: 0 | W27: 0 | X27: 0 | Y27: 0 | Z27: 28.8 | AA27: 113.674 | AB27: 0.450572362 | AC27: 3 | AD27: Baseload | AE27: Baseload | AF27: 0 | AG27: 0 | AH27: 1 | AI27: 97.26597005
A28: 16 | B28: 1 | C28: PG20008 | D28: Sierra Pacific Ind. (Burney) | E28: CA | F28: Shasta | G28: Round Mountain - B | H28: 40.876365 | I28: -121.701786 | K28: Biomass | L28: Large | M28: Existing | N28: 1987-01-01 | O28: 2015-09-08 | P28: 1 | Q28: 0 | R28: 1 | S28: 1 | T28: 1 | U28: 1 | V28: 0 | W28: 0 | X28: 0 | Y28: 0 | Z28: 20 | AA28: 85.089 | AB28: 0.485667808 | AC28: 3 | AD28: Baseload | AE28: Baseload | AF28: 0 | AG28: 0 | AH28: 1 | AI28: 97.26597005
A29: 17 | B29: 1 | C29: PG20009 | D29: Sierra Pacific Ind. (Quincy) | E29: CA | F29: Plumas | G29: Plumas County | H29: 39.9398119 | I29: -120.9131504 | K29: Biomass | L29: Large | M29: Existing | N29: 1987-03-05 | O29: 2015-09-08 | P29: 1 | Q29: 0 | R29: 1 | S29: 1 | T29: 1 | U29: 1 | V29: 0 | W29: 0 | X29: 0 | Y29: 0 | Z29: 20 | AA29: 130.721 | AB29: 0.746124429 | AC29: 3 | AD29: Baseload | AE29: Baseload | AF29: 0 | AG29: 0 | AH29: 1 | AI29: 97.26597005
A30: 18 | B30: 1 | C30: PG2001 | D30: Burney Forest Products | E30: CA | F30: Shasta | G30: Round Mountain - B | H30: 40.879597 | I30: -121.721073 | K30: Biomass | L30: Large | M30: Existing | N30: 1990-01-03 | O30: 2020-01-02 | P30: 1 | Q30: 0 | R30: 1 | S30: 1 | T30: 1 | U30: 1 | V30: 0 | W30: 0 | X30: 0 | Y30: 0 | Z30: 31 | AA30: 212.555 | AB30: 0.782718368 | AC30: 3 | AD30: Baseload | AE30: Baseload | AF30: 0 | AG30: 0 | AH30: 1 | AI30: 97.26597005
A31: 19 | B31: 1 | C31: PG20011 | D31: Sierra Pacific Ind. (Lincoln) | E31: CA | F31: Placer | G31: Placer County (Partial) | H31: 38.8703314 | I31: -121.2990296 | K31: Biomass | L31: Large | M31: Existing | N31: 1987-01-28 | O31: 2015-09-08 | P31: 1 | Q31: 0 | R31: 1 | S31: 1 | T31: 1 | U31: 1 | V31: 0 | W31: 0 | X31: 0 | Y31: 0 | Z31: 7.5 | AA31: 61.766 | AB31: 0.940121766 | AC31: 3 | AD31: Baseload | AE31: Baseload | AF31: 0 | AG31: 0 | AH31: 1 | AI31: 97.26597005
... 38 more rows

Sheet Portfolio_Analytics
A1: Detailed Model Results
D3: Show Snapshot Results for: | E3: 2030
B5: Installed Capacity Portfolio Summary
C7: Total Installed Capacity, All Resources (MW) | AB7: Incremental Installed Capacity, New Resources (MW) | BE7: Total Installed Capacity, All Resources (MW) | BM7: Total FCDS Installed Capacity, All Resources (MW) | BU7: Total EO Installed Capacity, All Resources (MW) | CC7: Incremental Installed Capacity, New Resources (MW) | CK7: Incremental FCDS Installed Capacity, New Resources (MW) | CS7: Incremental EO Installed Capacity, New Resources (MW) | DA7: Incremental Installed Capacity, Generic Resources (MW) | DI7: Incremental FCDS Installed Capacity, Generic Resources (MW) | DQ7: Incremental EO Installed Capacity, Generic Resources (MW) | EB7: Coordinates for Bubble Plots
BB8: CREZ | BE8: Biogas | BF8: Biomass | BG8: Geothermal | BH8: Hydro | BI8: Solar PV | BJ8: Solar Thermal | BK8: Wind | BL8: Total | BM8: Biogas | BN8: Biomass | BO8: Geothermal | BP8: Hydro | BQ8: Solar PV | BR8: Solar Thermal | BS8: Wind | BT8: Total | BU8: Biogas | BV8: Biomass | BW8: Geothermal | BX8: Hydro | BY8: Solar PV | BZ8: Solar Thermal | CA8: Wind | CB8: Total | CC8: Biogas | CD8: Biomass | CE8: Geothermal | CF8: Hydro | CG8: Solar PV | CH8: Solar Thermal | CI8: Wind | CJ8: Total | CK8: Biogas | CL8: Biomass | CM8: Geothermal | CN8: Hydro | CO8: Solar PV | CP8: Solar Thermal | CQ8: Wind | CR8: Total | CS8: Biogas | CT8: Biomass | CU8: Geothermal | CV8: Hydro | CW8: Solar PV | CX8: Solar Thermal | CY8: Wind | CZ8: Total | DA8: Biogas | DB8: Biomass | DC8: Geothermal | DD8: Hydro | DE8: Solar PV | DF8: Solar Thermal | DG8: Wind | DH8: Total | DI8: Biogas | DJ8: Biomass | DK8: Geothermal | DL8: Hydro | DM8: Solar PV | DN8: Solar Thermal | DO8: Wind | DP8: Total | DQ8: Biogas | DR8: Biomass | DS8: Geothermal | DT8: Hydro | DU8: Solar PV | DV8: Solar Thermal | DW8: Wind | DX8: Total | EB8: Latitude | EC8: Longitude | ED8: Calib X | EE8: Calib Y | EF8: X Coord | EG8: Y Coord
BB9: Alameda County (Partial) | BE9: =SUMPRODUCT((OFFSET(Active_Portfolio!$G$12,1,0,ctPort,1)=$BB9)*(OFFSET(Active_Portfolio!$K$12,1,0,ctPort,1)=BE$8)*(OFFSET(Active_Portfolio!$N$12,1,0,ctPort,1)<=DATE($E$3,1,1))*(OFFSET(Active_Portfolio!$O$12,1,0,ctPort,1)>DATE($E$3,1,1))*OFFSET(Active_Portfolio!$Z$12,1,0,ctPort,1),OFFSET(Active_Portfolio!$AH$12,1,0,ctPort,1)) -> 0 | BF9: =SUMPRODUCT((OFFSET(Active_Portfolio!$G$12,1,0,ctPort,1)=$BB9)*(OFFSET(Active_Portfolio!$K$12,1,0,ctPort,1)=BF$8)*(OFFSET(Active_Portfolio!$N$12,1,0,ctPort,1)<=DATE($E$3,1,1))*(OFFSET(Active_Portfolio!$O$12,1,0,ctPort,1)>DATE($E$3,1,1))*OFFSET(Active_Portfolio!$Z$12,1,0,ctPort,1),OFFSET(Active_Portfolio!$AH$12,1,0,ctPort,1)) -> 0 | BG9: =SUMPRODUCT((OFFSET(Active_Portfolio!$G$12,1,0,ctPort,1)=$BB9)*(OFFSET(Active_Portfolio!$K$12,1,0,ctPort,1)=BG$8)*(OFFSET(Active_Portfolio!$N$12,1,0,ctPort,1)<=DATE($E$3,1,1))*(OFFSET(Active_Portfolio!$O$12,1,0,ctPort,1)>DATE($E$3,1,1))*OFFSET(Active_Portfolio!$Z$12,1,0,ctPort,1),OFFSET(Active_Portfolio!$AH$12,1,0,ctPort,1)) -> 0 | BH9: =SUMPRODUCT((OFFSET(Active_Portfolio!$G$12,1,0,ctPort,1)=$BB9)*(OFFSET(Active_Portfolio!$K$12,1,0,ctPort,1)=BH$8)*(OFFSET(Active_Portfolio!$N$12,1,0,ctPort,1)<=DATE($E$3,1,1))*(OFFSET(Active_Portfolio!$O$12,1,0,ctPort,1)>DATE($E$3,1,1))*OFFSET(Active_Portfolio!$Z$12,1,0,ctPort,1),OFFSET(Active_Portfolio!$AH$12,1,0,ctPort,1)) -> 0 | BI9: =SUMPRODUCT((OFFSET(Active_Portfolio!$G$12,1,0,ctPort,1)=$BB9)*(OFFSET(Active_Portfolio!$K$12,1,0,ctPort,1)=BI$8)*(OFFSET(Active_Portfolio!$N$12,1,0,ctPort,1)<=DATE($E$3,1,1))*(OFFSET(Active_Portfolio!$O$12,1,0,ctPort,1)>DATE($E$3,1,1))*OFFSET(Active_Portfolio!$Z$12,1,0,ctPort,1),OFFSET(Active_Portfolio!$AH$12,1,0,ctPort,1)) -> 0 | BJ9: =SUMPRODUCT((OFFSET(Active_Portfolio!$G$12,1,0,ctPort,1)=$BB9)*(OFFSET(Active_Portfolio!$K$12,1,0,ctPort,1)=BJ$8)*(OFFSET(Active_Portfolio!$N$12,1,0,ctPort,1)<=DATE($E$3,1,1))*(OFFSET(Active_Portfolio!$O$12,1,0,ctPort,1)>DATE($E$3,1,1))*OFFSET(Active_Portfolio!$Z$12,1,0,ctPort,1),OFFSET(Active_Portfolio!$AH$12,1,0,ctPort,1)) -> 0 | BK9: =SUMPRODUCT((OFFSET(Active_Portfolio!$G$12,1,0,ctPort,1)=$BB9)*(OFFSET(Active_Portfolio!$K$12,1,0,ctPort,1)=BK$8)*(OFFSET(Active_Portfolio!$N$12,1,0,ctPort,1)<=DATE($E$3,1,1))*(OFFSET(Active_Portfolio!$O$12,1,0,ctPort,1)>DATE($E$3,1,1))*OFFSET(Active_Portfolio!$Z$12,1,0,ctPort,1),OFFSET(Active_Portfolio!$AH$12,1,0,ctPort,1)) -> 0 | BL9: =SUM(BE9:BK9) -> 0 | BM9: =SUMPRODUCT((OFFSET(Active_Portfolio!$T$12,1,0,ctPort,1)=1)*(OFFSET(Active_Portfolio!$G$12,1,0,ctPort,1)=$BB9)*(OFFSET(Active_Portfolio!$K$12,1,0,ctPort,1)=BM$8)*(OFFSET(Active_Portfolio!$N$12,1,0,ctPort,1)<=DATE($E$3,1,1))*(OFFSET(Active_Portfolio!$O$12,1,0,ctPort,1)>DATE($E$3,1,1))*OFFSET(Active_Portfolio!$Z$12,1,0,ctPort,1),OFFSET(Active_Portfolio!$AH$12,1,0,ctPort,1)) -> 0 | BN9: =SUMPRODUCT((OFFSET(Active_Portfolio!$T$12,1,0,ctPort,1)=1)*(OFFSET(Active_Portfolio!$G$12,1,0,ctPort,1)=$BB9)*(OFFSET(Active_Portfolio!$K$12,1,0,ctPort,1)=BN$8)*(OFFSET(Active_Portfolio!$N$12,1,0,ctPort,1)<=DATE($E$3,1,1))*(OFFSET(Active_Portfolio!$O$12,1,0,ctPort,1)>DATE($E$3,1,1))*OFFSET(Active_Portfolio!$Z$12,1,0,ctPort,1),OFFSET(Active_Portfolio!$AH$12,1,0,ctPort,1)) -> 0 | BO9: =SUMPRODUCT((OFFSET(Active_Portfolio!$T$12,1,0,ctPort,1)=1)*(OFFSET(Active_Portfolio!$G$12,1,0,ctPort,1)=$BB9)*(OFFSET(Active_Portfolio!$K$12,1,0,ctPort,1)=BO$8)*(OFFSET(Active_Portfolio!$N$12,1,0,ctPort,1)<=DATE($E$3,1,1))*(OFFSET(Active_Portfolio!$O$12,1,0,ctPort,1)>DATE($E$3,1,1))*OFFSET(Active_Portfolio!$Z$12,1,0,ctPort,1),OFFSET(Active_Portfolio!$AH$12,1,0,ctPort,1)) -> 0 | BP9: =SUMPRODUCT((OFFSET(Active_Portfolio!$T$12,1,0,ctPort,1)=1)*(OFFSET(Active_Portfolio!$G$12,1,0,ctPort,1)=$BB9)*(OFFSET(Active_Portfolio!$K$12,1,0,ctPort,1)=BP$8)*(OFFSET(Active_Portfolio!$N$12,1,0,ctPort,1)<=DATE($E$3,1,1))*(OFFSET(Active_Portfolio!$O$12,1,0,ctPort,1)>DATE($E$3,1,1))*OFFSET(Active_Portfolio!$Z$12,1,0,ctPort,1),OFFSET(Active_Portfolio!$AH$12,1,0,ctPort,1)) -> 0 | BQ9: =SUMPRODUCT((OFFSET(Active_Portfolio!$T$12,1,0,ctPort,1)=1)*(OFFSET(Active_Portfolio!$G$12,1,0,ctPort,1)=$BB9)*(OFFSET(Active_Portfolio!$K$12,1,0,ctPort,1)=BQ$8)*(OFFSET(Active_Portfolio!$N$12,1,0,ctPort,1)<=DATE($E$3,1,1))*(OFFSET(Active_Portfolio!$O$12,1,0,ctPort,1)>DATE($E$3,1,1))*OFFSET(Active_Portfolio!$Z$12,1,0,ctPort,1),OFFSET(Active_Portfolio!$AH$12,1,0,ctPort,1)) -> 0 | BR9: =SUMPRODUCT((OFFSET(Active_Portfolio!$T$12,1,0,ctPort,1)=1)*(OFFSET(Active_Portfolio!$G$12,1,0,ctPort,1)=$BB9)*(OFFSET(Active_Portfolio!$K$12,1,0,ctPort,1)=BR$8)*(OFFSET(Active_Portfolio!$N$12,1,0,ctPort,1)<=DATE($E$3,1,1))*(OFFSET(Active_Portfolio!$O$12,1,0,ctPort,1)>DATE($E$3,1,1))*OFFSET(Active_Portfolio!$Z$12,1,0,ctPort,1),OFFSET(Active_Portfolio!$AH$12,1,0,ctPort,1)) -> 0 | BS9: =SUMPRODUCT((OFFSET(Active_Portfolio!$T$12,1,0,ctPort,1)=1)*(OFFSET(Active_Portfolio!$G$12,1,0,ctPort,1)=$BB9)*(OFFSET(Active_Portfolio!$K$12,1,0,ctPort,1)=BS$8)*(OFFSET(Active_Portfolio!$N$12,1,0,ctPort,1)<=DATE($E$3,1,1))*(OFFSET(Active_Portfolio!$O$12,1,0,ctPort,1)>DATE($E$3,1,1))*OFFSET(Active_Portfolio!$Z$12,1,0,ctPort,1),OFFSET(Active_Portfolio!$AH$12,1,0,ctPort,1)) -> 0 | BT9: =SUM(BM9:BS9) -> 0 | BU9: =SUMPRODUCT((OFFSET(Active_Portfolio!$T$12,1,0,ctPort,1)=0)*(OFFSET(Active_Portfolio!$G$12,1,0,ctPort,1)=$BB9)*(OFFSET(Active_Portfolio!$K$12,1,0,ctPort,1)=BU$8)*(OFFSET(Active_Portfolio!$N$12,1,0,ctPort,1)<=DATE($E$3,1,1))*(OFFSET(Active_Portfolio!$O$12,1,0,ctPort,1)>DATE($E$3,1,1))*OFFSET(Active_Portfolio!$Z$12,1,0,ctPort,1),OFFSET(Active_Portfolio!$AH$12,1,0,ctPort,1)) -> 0 | BV9: =SUMPRODUCT((OFFSET(Active_Portfolio!$T$12,1,0,ctPort,1)=0)*(OFFSET(Active_Portfolio!$G$12,1,0,ctPort,1)=$BB9)*(OFFSET(Active_Portfolio!$K$12,1,0,ctPort,1)=BV$8)*(OFFSET(Active_Portfolio!$N$12,1,0,ctPort,1)<=DATE($E$3,1,1))*(OFFSET(Active_Portfolio!$O$12,1,0,ctPort,1)>DATE($E$3,1,1))*OFFSET(Active_Portfolio!$Z$12,1,0,ctPort,1),OFFSET(Active_Portfolio!$AH$12,1,0,ctPort,1)) -> 0 | BW9: =SUMPRODUCT((OFFSET(Active_Portfolio!$T$12,1,0,ctPort,1)=0)*(OFFSET(Active_Portfolio!$G$12,1,0,ctPort,1)=$BB9)*(OFFSET(Active_Portfolio!$K$12,1,0,ctPort,1)=BW$8)*(OFFSET(Active_Portfolio!$N$12,1,0,ctPort,1)<=DATE($E$3,1,1))*(OFFSET(Active_Portfolio!$O$12,1,0,ctPort,1)>DATE($E$3,1,1))*OFFSET(Active_Portfolio!$Z$12,1,0,ctPort,1),OFFSET(Active_Portfolio!$AH$12,1,0,ctPort,1)) -> 0 | BX9: =SUMPRODUCT((OFFSET(Active_Portfolio!$T$12,1,0,ctPort,1)=0)*(OFFSET(Active_Portfolio!$G$12,1,0,ctPort,1)=$BB9)*(OFFSET(Active_Portfolio!$K$12,1,0,ctPort,1)=BX$8)*(OFFSET(Active_Portfolio!$N$12,1,0,ctPort,1)<=DATE($E$3,1,1))*(OFFSET(Active_Portfolio!$O$12,1,0,ctPort,1)>DATE($E$3,1,1))*OFFSET(Active_Portfolio!$Z$12,1,0,ctPort,1),OFFSET(Active_Portfolio!$AH$12,1,0,ctPort,1)) -> 0 | BY9: =SUMPRODUCT((OFFSET(Active_Portfolio!$T$12,1,0,ctPort,1)=0)*(OFFSET(Active_Portfolio!$G$12,1,0,ctPort,1)=$BB9)*(OFFSET(Active_Portfolio!$K$12,1,0,ctPort,1)=BY$8)*(OFFSET(Active_Portfolio!$N$12,1,0,ctPort,1)<=DATE($E$3,1,1))*(OFFSET(Active_Portfolio!$O$12,1,0,ctPort,1)>DATE($E$3,1,1))*OFFSET(Active_Portfolio!$Z$12,1,0,ctPort,1),OFFSET(Active_Portfolio!$AH$12,1,0,ctPort,1)) -> 0 | BZ9: =SUMPRODUCT((OFFSET(Active_Portfolio!$T$12,1,0,ctPort,1)=0)*(OFFSET(Active_Portfolio!$G$12,1,0,ctPort,1)=$BB9)*(OFFSET(Active_Portfolio!$K$12,1,0,ctPort,1)=BZ$8)*(OFFSET(Active_Portfolio!$N$12,1,0,ctPort,1)<=DATE($E$3,1,1))*(OFFSET(Active_Portfolio!$O$12,1,0,ctPort,1)>DATE($E$3,1,1))*OFFSET(Active_Portfolio!$Z$12,1,0,ctPort,1),OFFSET(Active_Portfolio!$AH$12,1,0,ctPort,1)) -> 0 | CA9: =SUMPRODUCT((OFFSET(Active_Portfolio!$T$12,1,0,ctPort,1)=0)*(OFFSET(Active_Portfolio!$G$12,1,0,ctPort,1)=$BB9)*(OFFSET(Active_Portfolio!$K$12,1,0,ctPort,1)=CA$8)*(OFFSET(Active_Portfolio!$N$12,1,0,ctPort,1)<=DATE($E$3,1,1))*(OFFSET(Active_Portfolio!$O$12,1,0,ctPort,1)>DATE($E$3,1,1))*OFFSET(Active_Portfolio!$Z$12,1,0,ctPort,1),OFFSET(Active_Portfolio!$AH$12,1,0,ctPort,1)) -> 0 | CB9: =SUM(BU9:CA9) -> 0 | CC9: =SUMPRODUCT((OFFSET(Active_Portfolio!$M$12,1,0,ctPort,1)="New")*(OFFSET(Active_Portfolio!$G$12,1,0,ctPort,1)=$BB9)*(OFFSET(Active_Portfolio!$K$12,1,0,ctPort,1)=CC$8)*(OFFSET(Active_Portfolio!$N$12,1,0,ctPort,1)<=DATE($E$3,1,1))*(OFFSET(Active_Portfolio!$O$12,1,0,ctPort,1)>DATE($E$3,1,1))*OFFSET(Active_Portfolio!$Z$12,1,0,ctPort,1),OFFSET(Active_Portfolio!$AH$12,1,0,ctPort,1)) -> 0 | CD9: =SUMPRODUCT((OFFSET(Active_Portfolio!$M$12,1,0,ctPort,1)="New")*(OFFSET(Active_Portfolio!$G$12,1,0,ctPort,1)=$BB9)*(OFFSET(Active_Portfolio!$K$12,1,0,ctPort,1)=CD$8)*(OFFSET(Active_Portfolio!$N$12,1,0,ctPort,1)<=DATE($E$3,1,1))*(OFFSET(Active_Portfolio!$O$12,1,0,ctPort,1)>DATE($E$3,1,1))*OFFSET(Active_Portfolio!$Z$12,1,0,ctPort,1),OFFSET(Active_Portfolio!$AH$12,1,0,ctPort,1)) -> 0 | CE9: =SUMPRODUCT((OFFSET(Active_Portfolio!$M$12,1,0,ctPort,1)="New")*(OFFSET(Active_Portfolio!$G$12,1,0,ctPort,1)=$BB9)*(OFFSET(Active_Portfolio!$K$12,1,0,ctPort,1)=CE$8)*(OFFSET(Active_Portfolio!$N$12,1,0,ctPort,1)<=DATE($E$3,1,1))*(OFFSET(Active_Portfolio!$O$12,1,0,ctPort,1)>DATE($E$3,1,1))*OFFSET(Active_Portfolio!$Z$12,1,0,ctPort,1),OFFSET(Active_Portfolio!$AH$12,1,0,ctPort,1)) -> 0 | CF9: =SUMPRODUCT((OFFSET(Active_Portfolio!$M$12,1,0,ctPort,1)="New")*(OFFSET(Active_Portfolio!$G$12,1,0,ctPort,1)=$BB9)*(OFFSET(Active_Portfolio!$K$12,1,0,ctPort,1)=CF$8)*(OFFSET(Active_Portfolio!$N$12,1,0,ctPort,1)<=DATE($E$3,1,1))*(OFFSET(Active_Portfolio!$O$12,1,0,ctPort,1)>DATE($E$3,1,1))*OFFSET(Active_Portfolio!$Z$12,1,0,ctPort,1),OFFSET(Active_Portfolio!$AH$12,1,0,ctPort,1)) -> 0 | CG9: =SUMPRODUCT((OFFSET(Active_Portfolio!$M$12,1,0,ctPort,1)="New")*(OFFSET(Active_Portfolio!$G$12,1,0,ctPort,1)=$BB9)*(OFFSET(Active_Portfolio!$K$12,1,0,ctPort,1)=CG$8)*(OFFSET(Active_Portfolio!$N$12,1,0,ctPort,1)<=DATE($E$3,1,1))*(OFFSET(Active_Portfolio!$O$12,1,0,ctPort,1)>DATE($E$3,1,1))*OFFSET(Active_Portfolio!$Z$12,1,0,ctPort,1),OFFSET(Active_Portfolio!$AH$12,1,0,ctPort,1)) -> 0 | CH9: =SUMPRODUCT((OFFSET(Active_Portfolio!$M$12,1,0,ctPort,1)="New")*(OFFSET(Active_Portfolio!$G$12,1,0,ctPort,1)=$BB9)*(OFFSET(Active_Portfolio!$K$12,1,0,ctPort,1)=CH$8)*(OFFSET(Active_Portfolio!$N$12,1,0,ctPort,1)<=DATE($E$3,1,1))*(OFFSET(Active_Portfolio!$O$12,1,0,ctPort,1)>DATE($E$3,1,1))*OFFSET(Active_Portfolio!$Z$12,1,0,ctPort,1),OFFSET(Active_Portfolio!$AH$12,1,0,ctPort,1)) -> 0 | CI9: =SUMPRODUCT((OFFSET(Active_Portfolio!$M$12,1,0,ctPort,1)="New")*(OFFSET(Active_Portfolio!$G$12,1,0,ctPort,1)=$BB9)*(OFFSET(Active_Portfolio!$K$12,1,0,ctPort,1)=CI$8)*(OFFSET(Active_Portfolio!$N$12,1,0,ctPort,1)<=DATE($E$3,1,1))*(OFFSET(Active_Portfolio!$O$12,1,0,ctPort,1)>DATE($E$3,1,1))*OFFSET(Active_Portfolio!$Z$12,1,0,ctPort,1),OFFSET(Active_Portfolio!$AH$12,1,0,ctPort,1)) -> 0 | CJ9: =SUM(CC9:CI9) -> 0 | CK9: =SUMPRODUCT((OFFSET(Active_Portfolio!$T$12,1,0,ctPort,1)=1)*(OFFSET(Active_Portfolio!$M$12,1,0,ctPort,1)="New")*(OFFSET(Active_Portfolio!$G$12,1,0,ctPort,1)=$BB9)*(OFFSET(Active_Portfolio!$K$12,1,0,ctPort,1)=CK$8)*(OFFSET(Active_Portfolio!$N$12,1,0,ctPort,1)<=DATE($E$3,1,1))*(OFFSET(Active_Portfolio!$O$12,1,0,ctPort,1)>DATE($E$3,1,1))*OFFSET(Active_Portfolio!$Z$12,1,0,ctPort,1),OFFSET(Active_Portfolio!$AH$12,1,0,ctPort,1)) -> 0 | CL9: =SUMPRODUCT((OFFSET(Active_Portfolio!$T$12,1,0,ctPort,1)=1)*(OFFSET(Active_Portfolio!$M$12,1,0,ctPort,1)="New")*(OFFSET(Active_Portfolio!$G$12,1,0,ctPort,1)=$BB9)*(OFFSET(Active_Portfolio!$K$12,1,0,ctPort,1)=CL$8)*(OFFSET(Active_Portfolio!$N$12,1,0,ctPort,1)<=DATE($E$3,1,1))*(OFFSET(Active_Portfolio!$O$12,1,0,ctPort,1)>DATE($E$3,1,1))*OFFSET(Active_Portfolio!$Z$12,1,0,ctPort,1),OFFSET(Active_Portfolio!$AH$12,1,0,ctPort,1)) -> 0 | CM9: =SUMPRODUCT((OFFSET(Active_Portfolio!$T$12,1,0,ctPort,1)=1)*(OFFSET(Active_Portfolio!$M$12,1,0,ctPort,1)="New")*(OFFSET(Active_Portfolio!$G$12,1,0,ctPort,1)=$BB9)*(OFFSET(Active_Portfolio!$K$12,1,0,ctPort,1)=CM$8)*(OFFSET(Active_Portfolio!$N$12,1,0,ctPort,1)<=DATE($E$3,1,1))*(OFFSET(Active_Portfolio!$O$12,1,0,ctPort,1)>DATE($E$3,1,1))*OFFSET(Active_Portfolio!$Z$12,1,0,ctPort,1),OFFSET(Active_Portfolio!$AH$12,1,0,ctPort,1)) -> 0 | CN9: =SUMPRODUCT((OFFSET(Active_Portfolio!$T$12,1,0,ctPort,1)=1)*(OFFSET(Active_Portfolio!$M$12,1,0,ctPort,1)="New")*(OFFSET(Active_Portfolio!$G$12,1,0,ctPort,1)=$BB9)*(OFFSET(Active_Portfolio!$K$12,1,0,ctPort,1)=CN$8)*(OFFSET(Active_Portfolio!$N$12,1,0,ctPort,1)<=DATE($E$3,1,1))*(OFFSET(Active_Portfolio!$O$12,1,0,ctPort,1)>DATE($E$3,1,1))*OFFSET(Active_Portfolio!$Z$12,1,0,ctPort,1),OFFSET(Active_Portfolio!$AH$12,1,0,ctPort,1)) -> 0 | CO9: =SUMPRODUCT((OFFSET(Active_Portfolio!$T$12,1,0,ctPort,1)=1)*(OFFSET(Active_Portfolio!$M$12,1,0,ctPort,1)="New")*(OFFSET(Active_Portfolio!$G$12,1,0,ctPort,1)=$BB9)*(OFFSET(Active_Portfolio!$K$12,1,0,ctPort,1)=CO$8)*(OFFSET(Active_Portfolio!$N$12,1,0,ctPort,1)<=DATE($E$3,1,1))*(OFFSET(Active_Portfolio!$O$12,1,0,ctPort,1)>DATE($E$3,1,1))*OFFSET(Active_Portfolio!$Z$12,1,0,ctPort,1),OFFSET(Active_Portfolio!$AH$12,1,0,ctPort,1)) -> 0 | CP9: =SUMPRODUCT((OFFSET(Active_Portfolio!$T$12,1,0,ctPort,1)=1)*(OFFSET(Active_Portfolio!$M$12,1,0,ctPort,1)="New")*(OFFSET(Active_Portfolio!$G$12,1,0,ctPort,1)=$BB9)*(OFFSET(Active_Portfolio!$K$12,1,0,ctPort,1)=CP$8)*(OFFSET(Active_Portfolio!$N$12,1,0,ctPort,1)<=DATE($E$3,1,1))*(OFFSET(Active_Portfolio!$O$12,1,0,ctPort,1)>DATE($E$3,1,1))*OFFSET(Active_Portfolio!$Z$12,1,0,ctPort,1),OFFSET(Active_Portfolio!$AH$12,1,0,ctPort,1)) -> 0 | CQ9: =SUMPRODUCT((OFFSET(Active_Portfolio!$T$12,1,0,ctPort,1)=1)*(OFFSET(Active_Portfolio!$M$12,1,0,ctPort,1)="New")*(OFFSET(Active_Portfolio!$G$12,1,0,ctPort,1)=$BB9)*(OFFSET(Active_Portfolio!$K$12,1,0,ctPort,1)=CQ$8)*(OFFSET(Active_Portfolio!$N$12,1,0,ctPort,1)<=DATE($E$3,1,1))*(OFFSET(Active_Portfolio!$O$12,1,0,ctPort,1)>DATE($E$3,1,1))*OFFSET(Active_Portfolio!$Z$12,1,0,ctPort,1),OFFSET(Active_Portfolio!$AH$12,1,0,ctPort,1)) -> 0 | CR9: =SUM(CK9:CQ9) -> 0 | CS9: =SUMPRODUCT((OFFSET(Active_Portfolio!$T$12,1,0,ctPort,1)=0)*(OFFSET(Active_Portfolio!$M$12,1,0,ctPort,1)="New")*(OFFSET(Active_Portfolio!$G$12,1,0,ctPort,1)=$BB9)*(OFFSET(Active_Portfolio!$K$12,1,0,ctPort,1)=CS$8)*(OFFSET(Active_Portfolio!$N$12,1,0,ctPort,1)<=DATE($E$3,1,1))*(OFFSET(Active_Portfolio!$O$12,1,0,ctPort,1)>DATE($E$3,1,1))*OFFSET(Active_Portfolio!$Z$12,1,0,ctPort,1),OFFSET(Active_Portfolio!$AH$12,1,0,ctPort,1)) -> 0 | CT9: =SUMPRODUCT((OFFSET(Active_Portfolio!$T$12,1,0,ctPort,1)=0)*(OFFSET(Active_Portfolio!$M$12,1,0,ctPort,1)="New")*(OFFSET(Active_Portfolio!$G$12,1,0,ctPort,1)=$BB9)*(OFFSET(Active_Portfolio!$K$12,1,0,ctPort,1)=CT$8)*(OFFSET(Active_Portfolio!$N$12,1,0,ctPort,1)<=DATE($E$3,1,1))*(OFFSET(Active_Portfolio!$O$12,1,0,ctPort,1)>DATE($E$3,1,1))*OFFSET(Active_Portfolio!$Z$12,1,0,ctPort,1),OFFSET(Active_Portfolio!$AH$12,1,0,ctPort,1)) -> 0 | CU9: =SUMPRODUCT((OFFSET(Active_Portfolio!$T$12,1,0,ctPort,1)=0)*(OFFSET(Active_Portfolio!$M$12,1,0,ctPort,1)="New")*(OFFSET(Active_Portfolio!$G$12,1,0,ctPort,1)=$BB9)*(OFFSET(Active_Portfolio!$K$12,1,0,ctPort,1)=CU$8)*(OFFSET(Active_Portfolio!$N$12,1,0,ctPort,1)<=DATE($E$3,1,1))*(OFFSET(Active_Portfolio!$O$12,1,0,ctPort,1)>DATE($E$3,1,1))*OFFSET(Active_Portfolio!$Z$12,1,0,ctPort,1),OFFSET(Active_Portfolio!$AH$12,1,0,ctPort,1)) -> 0 | CV9: =SUMPRODUCT((OFFSET(Active_Portfolio!$T$12,1,0,ctPort,1)=0)*(OFFSET(Active_Portfolio!$M$12,1,0,ctPort,1)="New")*(OFFSET(Active_Portfolio!$G$12,1,0,ctPort,1)=$BB9)*(OFFSET(Active_Portfolio!$K$12,1,0,ctPort,1)=CV$8)*(OFFSET(Active_Portfolio!$N$12,1,0,ctPort,1)<=DATE($E$3,1,1))*(OFFSET(Active_Portfolio!$O$12,1,0,ctPort,1)>DATE($E$3,1,1))*OFFSET(Active_Portfolio!$Z$12,1,0,ctPort,1),OFFSET(Active_Portfolio!$AH$12,1,0,ctPort,1)) -> 0 | CW9: =SUMPRODUCT((OFFSET(Active_Portfolio!$T$12,1,0,ctPort,1)=0)*(OFFSET(Active_Portfolio!$M$12,1,0,ctPort,1)="New")*(OFFSET(Active_Portfolio!$G$12,1,0,ctPort,1)=$BB9)*(OFFSET(Active_Portfolio!$K$12,1,0,ctPort,1)=CW$8)*(OFFSET(Active_Portfolio!$N$12,1,0,ctPort,1)<=DATE($E$3,1,1))*(OFFSET(Active_Portfolio!$O$12,1,0,ctPort,1)>DATE($E$3,1,1))*OFFSET(Active_Portfolio!$Z$12,1,0,ctPort,1),OFFSET(Active_Portfolio!$AH$12,1,0,ctPort,1)) -> 0 | CX9: =SUMPRODUCT((OFFSET(Active_Portfolio!$T$12,1,0,ctPort,1)=0)*(OFFSET(Active_Portfolio!$M$12,1,0,ctPort,1)="New")*(OFFSET(Active_Portfolio!$G$12,1,0,ctPort,1)=$BB9)*(OFFSET(Active_Portfolio!$K$12,1,0,ctPort,1)=CX$8)*(OFFSET(Active_Portfolio!$N$12,1,0,ctPort,1)<=DATE($E$3,1,1))*(OFFSET(Active_Portfolio!$O$12,1,0,ctPort,1)>DATE($E$3,1,1))*OFFSET(Active_Portfolio!$Z$12,1,0,ctPort,1),OFFSET(Active_Portfolio!$AH$12,1,0,ctPort,1)) -> 0 | CY9: =SUMPRODUCT((OFFSET(Active_Portfolio!$T$12,1,0,ctPort,1)=0)*(OFFSET(Active_Portfolio!$M$12,1,0,ctPort,1)="New")*(OFFSET(Active_Portfolio!$G$12,1,0,ctPort,1)=$BB9)*(OFFSET(Active_Portfolio!$K$12,1,0,ctPort,1)=CY$8)*(OFFSET(Active_Portfolio!$N$12,1,0,ctPort,1)<=DATE($E$3,1,1))*(OFFSET(Active_Portfolio!$O$12,1,0,ctPort,1)>DATE($E$3,1,1))*OFFSET(Active_Portfolio!$Z$12,1,0,ctPort,1),OFFSET(Active_Portfolio!$AH$12,1,0,ctPort,1)) -> 0 | CZ9: =SUM(CS9:CY9) -> 0 | DA9: =SUMPRODUCT((OFFSET(Active_Portfolio!$B$12,1,0,ctPort,1)=4)*(OFFSET(Active_Portfolio!$G$12,1,0,ctPort,1)=$BB9)*(OFFSET(Active_Portfolio!$K$12,1,0,ctPort,1)=DA$8)*(OFFSET(Active_Portfolio!$N$12,1,0,ctPort,1)<=DATE($E$3,1,1))*(OFFSET(Active_Portfolio!$O$12,1,0,ctPort,1)>DATE($E$3,1,1))*OFFSET(Active_Portfolio!$Z$12,1,0,ctPort,1),OFFSET(Active_Portfolio!$AH$12,1,0,ctPort,1)) -> 0 | DB9: =SUMPRODUCT((OFFSET(Active_Portfolio!$B$12,1,0,ctPort,1)=4)*(OFFSET(Active_Portfolio!$G$12,1,0,ctPort,1)=$BB9)*(OFFSET(Active_Portfolio!$K$12,1,0,ctPort,1)=DB$8)*(OFFSET(Active_Portfolio!$N$12,1,0,ctPort,1)<=DATE($E$3,1,1))*(OFFSET(Active_Portfolio!$O$12,1,0,ctPort,1)>DATE($E$3,1,1))*OFFSET(Active_Portfolio!$Z$12,1,0,ctPort,1),OFFSET(Active_Portfolio!$AH$12,1,0,ctPort,1)) -> 0 | DC9: =SUMPRODUCT((OFFSET(Active_Portfolio!$B$12,1,0,ctPort,1)=4)*(OFFSET(Active_Portfolio!$G$12,1,0,ctPort,1)=$BB9)*(OFFSET(Active_Portfolio!$K$12,1,0,ctPort,1)=DC$8)*(OFFSET(Active_Portfolio!$N$12,1,0,ctPort,1)<=DATE($E$3,1,1))*(OFFSET(Active_Portfolio!$O$12,1,0,ctPort,1)>DATE($E$3,1,1))*OFFSET(Active_Portfolio!$Z$12,1,0,ctPort,1),OFFSET(Active_Portfolio!$AH$12,1,0,ctPort,1)) -> 0 | DD9: =SUMPRODUCT((OFFSET(Active_Portfolio!$B$12,1,0,ctPort,1)=4)*(OFFSET(Active_Portfolio!$G$12,1,0,ctPort,1)=$BB9)*(OFFSET(Active_Portfolio!$K$12,1,0,ctPort,1)=DD$8)*(OFFSET(Active_Portfolio!$N$12,1,0,ctPort,1)<=DATE($E$3,1,1))*(OFFSET(Active_Portfolio!$O$12,1,0,ctPort,1)>DATE($E$3,1,1))*OFFSET(Active_Portfolio!$Z$12,1,0,ctPort,1),OFFSET(Active_Portfolio!$AH$12,1,0,ctPort,1)) -> 0 | DE9: =SUMPRODUCT((OFFSET(Active_Portfolio!$B$12,1,0,ctPort,1)=4)*(OFFSET(Active_Portfolio!$G$12,1,0,ctPort,1)=$BB9)*(OFFSET(Active_Portfolio!$K$12,1,0,ctPort,1)=DE$8)*(OFFSET(Active_Portfolio!$N$12,1,0,ctPort,1)<=DATE($E$3,1,1))*(OFFSET(Active_Portfolio!$O$12,1,0,ctPort,1)>DATE($E$3,1,1))*OFFSET(Active_Portfolio!$Z$12,1,0,ctPort,1),OFFSET(Active_Portfolio!$AH$12,1,0,ctPort,1)) -> 0 | DF9: =SUMPRODUCT((OFFSET(Active_Portfolio!$B$12,1,0,ctPort,1)=4)*(OFFSET(Active_Portfolio!$G$12,1,0,ctPort,1)=$BB9)*(OFFSET(Active_Portfolio!$K$12,1,0,ctPort,1)=DF$8)*(OFFSET(Active_Portfolio!$N$12,1,0,ctPort,1)<=DATE($E$3,1,1))*(OFFSET(Active_Portfolio!$O$12,1,0,ctPort,1)>DATE($E$3,1,1))*OFFSET(Active_Portfolio!$Z$12,1,0,ctPort,1),OFFSET(Active_Portfolio!$AH$12,1,0,ctPort,1)) -> 0 | DG9: =SUMPRODUCT((OFFSET(Active_Portfolio!$B$12,1,0,ctPort,1)=4)*(OFFSET(Active_Portfolio!$G$12,1,0,ctPort,1)=$BB9)*(OFFSET(Active_Portfolio!$K$12,1,0,ctPort,1)=DG$8)*(OFFSET(Active_Portfolio!$N$12,1,0,ctPort,1)<=DATE($E$3,1,1))*(OFFSET(Active_Portfolio!$O$12,1,0,ctPort,1)>DATE($E$3,1,1))*OFFSET(Active_Portfolio!$Z$12,1,0,ctPort,1),OFFSET(Active_Portfolio!$AH$12,1,0,ctPort,1)) -> 0 | DH9: =SUM(DA9:DG9) -> 0 | DI9: =SUMPRODUCT((OFFSET(Active_Portfolio!$T$12,1,0,ctPort,1)=1)*(OFFSET(Active_Portfolio!$B$12,1,0,ctPort,1)=4)*(OFFSET(Active_Portfolio!$G$12,1,0,ctPort,1)=$BB9)*(OFFSET(Active_Portfolio!$K$12,1,0,ctPort,1)=DI$8)*(OFFSET(Active_Portfolio!$N$12,1,0,ctPort,1)<=DATE($E$3,1,1))*(OFFSET(Active_Portfolio!$O$12,1,0,ctPort,1)>DATE($E$3,1,1))*OFFSET(Active_Portfolio!$Z$12,1,0,ctPort,1),OFFSET(Active_Portfolio!$AH$12,1,0,ctPort,1)) -> 0 | DJ9: =SUMPRODUCT((OFFSET(Active_Portfolio!$T$12,1,0,ctPort,1)=1)*(OFFSET(Active_Portfolio!$B$12,1,0,ctPort,1)=4)*(OFFSET(Active_Portfolio!$G$12,1,0,ctPort,1)=$BB9)*(OFFSET(Active_Portfolio!$K$12,1,0,ctPort,1)=DJ$8)*(OFFSET(Active_Portfolio!$N$12,1,0,ctPort,1)<=DATE($E$3,1,1))*(OFFSET(Active_Portfolio!$O$12,1,0,ctPort,1)>DATE($E$3,1,1))*OFFSET(Active_Portfolio!$Z$12,1,0,ctPort,1),OFFSET(Active_Portfolio!$AH$12,1,0,ctPort,1)) -> 0 | DK9: =SUMPRODUCT((OFFSET(Active_Portfolio!$T$12,1,0,ctPort,1)=1)*(OFFSET(Active_Portfolio!$B$12,1,0,ctPort,1)=4)*(OFFSET(Active_Portfolio!$G$12,1,0,ctPort,1)=$BB9)*(OFFSET(Active_Portfolio!$K$12,1,0,ctPort,1)=DK$8)*(OFFSET(Active_Portfolio!$N$12,1,0,ctPort,1)<=DATE($E$3,1,1))*(OFFSET(Active_Portfolio!$O$12,1,0,ctPort,1)>DATE($E$3,1,1))*OFFSET(Active_Portfolio!$Z$12,1,0,ctPort,1),OFFSET(Active_Portfolio!$AH$12,1,0,ctPort,1)) -> 0 | DL9: =SUMPRODUCT((OFFSET(Active_Portfolio!$T$12,1,0,ctPort,1)=1)*(OFFSET(Active_Portfolio!$B$12,1,0,ctPort,1)=4)*(OFFSET(Active_Portfolio!$G$12,1,0,ctPort,1)=$BB9)*(OFFSET(Active_Portfolio!$K$12,1,0,ctPort,1)=DL$8)*(OFFSET(Active_Portfolio!$N$12,1,0,ctPort,1)<=DATE($E$3,1,1))*(OFFSET(Active_Portfolio!$O$12,1,0,ctPort,1)>DATE($E$3,1,1))*OFFSET(Active_Portfolio!$Z$12,1,0,ctPort,1),OFFSET(Active_Portfolio!$AH$12,1,0,ctPort,1)) -> 0 | DM9: =SUMPRODUCT((OFFSET(Active_Portfolio!$T$12,1,0,ctPort,1)=1)*(OFFSET(Active_Portfolio!$B$12,1,0,ctPort,1)=4)*(OFFSET(Active_Portfolio!$G$12,1,0,ctPort,1)=$BB9)*(OFFSET(Active_Portfolio!$K$12,1,0,ctPort,1)=DM$8)*(OFFSET(Active_Portfolio!$N$12,1,0,ctPort,1)<=DATE($E$3,1,1))*(OFFSET(Active_Portfolio!$O$12,1,0,ctPort,1)>DATE($E$3,1,1))*OFFSET(Active_Portfolio!$Z$12,1,0,ctPort,1),OFFSET(Active_Portfolio!$AH$12,1,0,ctPort,1)) -> 0 | DN9: =SUMPRODUCT((OFFSET(Active_Portfolio!$T$12,1,0,ctPort,1)=1)*(OFFSET(Active_Portfolio!$B$12,1,0,ctPort,1)=4)*(OFFSET(Active_Portfolio!$G$12,1,0,ctPort,1)=$BB9)*(OFFSET(Active_Portfolio!$K$12,1,0,ctPort,1)=DN$8)*(OFFSET(Active_Portfolio!$N$12,1,0,ctPort,1)<=DATE($E$3,1,1))*(OFFSET(Active_Portfolio!$O$12,1,0,ctPort,1)>DATE($E$3,1,1))*OFFSET(Active_Portfolio!$Z$12,1,0,ctPort,1),OFFSET(Active_Portfolio!$AH$12,1,0,ctPort,1)) -> 0 | DO9: =SUMPRODUCT((OFFSET(Active_Portfolio!$T$12,1,0,ctPort,1)=1)*(OFFSET(Active_Portfolio!$B$12,1,0,ctPort,1)=4)*(OFFSET(Active_Portfolio!$G$12,1,0,ctPort,1)=$BB9)*(OFFSET(Active_Portfolio!$K$12,1,0,ctPort,1)=DO$8)*(OFFSET(Active_Portfolio!$N$12,1,0,ctPort,1)<=DATE($E$3,1,1))*(OFFSET(Active_Portfolio!$O$12,1,0,ctPort,1)>DATE($E$3,1,1))*OFFSET(Active_Portfolio!$Z$12,1,0,ctPort,1),OFFSET(Active_Portfolio!$AH$12,1,0,ctPort,1)) -> 0 | DP9: =SUM(DI9:DO9) -> 0 | DQ9: =SUMPRODUCT((OFFSET(Active_Portfolio!$T$12,1,0,ctPort,1)=0)*(OFFSET(Active_Portfolio!$B$12,1,0,ctPort,1)=4)*(OFFSET(Active_Portfolio!$G$12,1,0,ctPort,1)=$BB9)*(OFFSET(Active_Portfolio!$K$12,1,0,ctPort,1)=DQ$8)*(OFFSET(Active_Portfolio!$N$12,1,0,ctPort,1)<=DATE($E$3,1,1))*(OFFSET(Active_Portfolio!$O$12,1,0,ctPort,1)>DATE($E$3,1,1))*OFFSET(Active_Portfolio!$Z$12,1,0,ctPort,1),OFFSET(Active_Portfolio!$AH$12,1,0,ctPort,1)) -> 0 | DR9: =SUMPRODUCT((OFFSET(Active_Portfolio!$T$12,1,0,ctPort,1)=0)*(OFFSET(Active_Portfolio!$B$12,1,0,ctPort,1)=4)*(OFFSET(Active_Portfolio!$G$12,1,0,ctPort,1)=$BB9)*(OFFSET(Active_Portfolio!$K$12,1,0,ctPort,1)=DR$8)*(OFFSET(Active_Portfolio!$N$12,1,0,ctPort,1)<=DATE($E$3,1,1))*(OFFSET(Active_Portfolio!$O$12,1,0,ctPort,1)>DATE($E$3,1,1))*OFFSET(Active_Portfolio!$Z$12,1,0,ctPort,1),OFFSET(Active_Portfolio!$AH$12,1,0,ctPort,1)) -> 0 | DS9: =SUMPRODUCT((OFFSET(Active_Portfolio!$T$12,1,0,ctPort,1)=0)*(OFFSET(Active_Portfolio!$B$12,1,0,ctPort,1)=4)*(OFFSET(Active_Portfolio!$G$12,1,0,ctPort,1)=$BB9)*(OFFSET(Active_Portfolio!$K$12,1,0,ctPort,1)=DS$8)*(OFFSET(Active_Portfolio!$N$12,1,0,ctPort,1)<=DATE($E$3,1,1))*(OFFSET(Active_Portfolio!$O$12,1,0,ctPort,1)>DATE($E$3,1,1))*OFFSET(Active_Portfolio!$Z$12,1,0,ctPort,1),OFFSET(Active_Portfolio!$AH$12,1,0,ctPort,1)) -> 0 | DT9: =SUMPRODUCT((OFFSET(Active_Portfolio!$T$12,1,0,ctPort,1)=0)*(OFFSET(Active_Portfolio!$B$12,1,0,ctPort,1)=4)*(OFFSET(Active_Portfolio!$G$12,1,0,ctPort,1)=$BB9)*(OFFSET(Active_Portfolio!$K$12,1,0,ctPort,1)=DT$8)*(OFFSET(Active_Portfolio!$N$12,1,0,ctPort,1)<=DATE($E$3,1,1))*(OFFSET(Active_Portfolio!$O$12,1,0,ctPort,1)>DATE($E$3,1,1))*OFFSET(Active_Portfolio!$Z$12,1,0,ctPort,1),OFFSET(Active_Portfolio!$AH$12,1,0,ctPort,1)) -> 0 | DU9: =SUMPRODUCT((OFFSET(Active_Portfolio!$T$12,1,0,ctPort,1)=0)*(OFFSET(Active_Portfolio!$B$12,1,0,ctPort,1)=4)*(OFFSET(Active_Portfolio!$G$12,1,0,ctPort,1)=$BB9)*(OFFSET(Active_Portfolio!$K$12,1,0,ctPort,1)=DU$8)*(OFFSET(Active_Portfolio!$N$12,1,0,ctPort,1)<=DATE($E$3,1,1))*(OFFSET(Active_Portfolio!$O$12,1,0,ctPort,1)>DATE($E$3,1,1))*OFFSET(Active_Portfolio!$Z$12,1,0,ctPort,1),OFFSET(Active_Portfolio!$AH$12,1,0,ctPort,1)) -> 0 | DV9: =SUMPRODUCT((OFFSET(Active_Portfolio!$T$12,1,0,ctPort,1)=0)*(OFFSET(Active_Portfolio!$B$12,1,0,ctPort,1)=4)*(OFFSET(Active_Portfolio!$G$12,1,0,ctPort,1)=$BB9)*(OFFSET(Active_Portfolio!$K$12,1,0,ctPort,1)=DV$8)*(OFFSET(Active_Portfolio!$N$12,1,0,ctPort,1)<=DATE($E$3,1,1))*(OFFSET(Active_Portfolio!$O$12,1,0,ctPort,1)>DATE($E$3,1,1))*OFFSET(Active_Portfolio!$Z$12,1,0,ctPort,1),OFFSET(Active_Portfolio!$AH$12,1,0,ctPort,1)) -> 0 | DW9: =SUMPRODUCT((OFFSET(Active_Portfolio!$T$12,1,0,ctPort,1)=0)*(OFFSET(Active_Portfolio!$B$12,1,0,ctPort,1)=4)*(OFFSET(Active_Portfolio!$G$12,1,0,ctPort,1)=$BB9)*(OFFSET(Active_Portfolio!$K$12,1,0,ctPort,1)=DW$8)*(OFFSET(Active_Portfolio!$N$12,1,0,ctPort,1)<=DATE($E$3,1,1))*(OFFSET(Active_Portfolio!$O$12,1,0,ctPort,1)>DATE($E$3,1,1))*OFFSET(Active_Portfolio!$Z$12,1,0,ctPort,1),OFFSET(Active_Portfolio!$AH$12,1,0,ctPort,1)) -> 0 | DX9: =SUM(DQ9:DW9) -> 0 | EF9: =EB9+ED9/10 -> 0 | EG9: =EC9+EE9/10 -> 0
BB10: Alpine County | BE10: =SUMPRODUCT((OFFSET(Active_Portfolio!$G$12,1,0,ctPort,1)=$BB10)*(OFFSET(Active_Portfolio!$K$12,1,0,ctPort,1)=BE$8)*(OFFSET(Active_Portfolio!$N$12,1,0,ctPort,1)<=DATE($E$3,1,1))*(OFFSET(Active_Portfolio!$O$12,1,0,ctPort,1)>DATE($E$3,1,1))*OFFSET(Active_Portfolio!$Z$12,1,0,ctPort,1),OFFSET(Active_Portfolio!$AH$12,1,0,ctPort,1)) -> 0 | BF10: =SUMPRODUCT((OFFSET(Active_Portfolio!$G$12,1,0,ctPort,1)=$BB10)*(OFFSET(Active_Portfolio!$K$12,1,0,ctPort,1)=BF$8)*(OFFSET(Active_Portfolio!$N$12,1,0,ctPort,1)<=DATE($E$3,1,1))*(OFFSET(Active_Portfolio!$O$12,1,0,ctPort,1)>DATE($E$3,1,1))*OFFSET(Active_Portfolio!$Z$12,1,0,ctPort,1),OFFSET(Active_Portfolio!$AH$12,1,0,ctPort,1)) -> 0 | BG10: =SUMPRODUCT((OFFSET(Active_Portfolio!$G$12,1,0,ctPort,1)=$BB10)*(OFFSET(Active_Portfolio!$K$12,1,0,ctPort,1)=BG$8)*(OFFSET(Active_Portfolio!$N$12,1,0,ctPort,1)<=DATE($E$3,1,1))*(OFFSET(Active_Portfolio!$O$12,1,0,ctPort,1)>DATE($E$3,1,1))*OFFSET(Active_Portfolio!$Z$12,1,0,ctPort,1),OFFSET(Active_Portfolio!$AH$12,1,0,ctPort,1)) -> 0 | BH10: =SUMPRODUCT((OFFSET(Active_Portfolio!$G$12,1,0,ctPort,1)=$BB10)*(OFFSET(Active_Portfolio!$K$12,1,0,ctPort,1)=BH$8)*(OFFSET(Active_Portfolio!$N$12,1,0,ctPort,1)<=DATE($E$3,1,1))*(OFFSET(Active_Portfolio!$O$12,1,0,ctPort,1)>DATE($E$3,1,1))*OFFSET(Active_Portfolio!$Z$12,1,0,ctPort,1),OFFSET(Active_Portfolio!$AH$12,1,0,ctPort,1)) -> 0 | BI10: =SUMPRODUCT((OFFSET(Active_Portfolio!$G$12,1,0,ctPort,1)=$BB10)*(OFFSET(Active_Portfolio!$K$12,1,0,ctPort,1)=BI$8)*(OFFSET(Active_Portfolio!$N$12,1,0,ctPort,1)<=DATE($E$3,1,1))*(OFFSET(Active_Portfolio!$O$12,1,0,ctPort,1)>DATE($E$3,1,1))*OFFSET(Active_Portfolio!$Z$12,1,0,ctPort,1),OFFSET(Active_Portfolio!$AH$12,1,0,ctPort,1)) -> 0 | BJ10: =SUMPRODUCT((OFFSET(Active_Portfolio!$G$12,1,0,ctPort,1)=$BB10)*(OFFSET(Active_Portfolio!$K$12,1,0,ctPort,1)=BJ$8)*(OFFSET(Active_Portfolio!$N$12,1,0,ctPort,1)<=DATE($E$3,1,1))*(OFFSET(Active_Portfolio!$O$12,1,0,ctPort,1)>DATE($E$3,1,1))*OFFSET(Active_Portfolio!$Z$12,1,0,ctPort,1),OFFSET(Active_Portfolio!$AH$12,1,0,ctPort,1)) -> 0 | BK10: =SUMPRODUCT((OFFSET(Active_Portfolio!$G$12,1,0,ctPort,1)=$BB10)*(OFFSET(Active_Portfolio!$K$12,1,0,ctPort,1)=BK$8)*(OFFSET(Active_Portfolio!$N$12,1,0,ctPort,1)<=DATE($E$3,1,1))*(OFFSET(Active_Portfolio!$O$12,1,0,ctPort,1)>DATE($E$3,1,1))*OFFSET(Active_Portfolio!$Z$12,1,0,ctPort,1),OFFSET(Active_Portfolio!$AH$12,1,0,ctPort,1)) -> 0 | BL10: 0 | BM10: =SUMPRODUCT((OFFSET(Active_Portfolio!$T$12,1,0,ctPort,1)=1)*(OFFSET(Active_Portfolio!$G$12,1,0,ctPort,1)=$BB10)*(OFFSET(Active_Portfolio!$K$12,1,0,ctPort,1)=BM$8)*(OFFSET(Active_Portfolio!$N$12,1,0,ctPort,1)<=DATE($E$3,1,1))*(OFFSET(Active_Portfolio!$O$12,1,0,ctPort,1)>DATE($E$3,1,1))*OFFSET(Active_Portfolio!$Z$12,1,0,ctPort,1),OFFSET(Active_Portfolio!$AH$12,1,0,ctPort,1)) -> 0 | BN10: =SUMPRODUCT((OFFSET(Active_Portfolio!$T$12,1,0,ctPort,1)=1)*(OFFSET(Active_Portfolio!$G$12,1,0,ctPort,1)=$BB10)*(OFFSET(Active_Portfolio!$K$12,1,0,ctPort,1)=BN$8)*(OFFSET(Active_Portfolio!$N$12,1,0,ctPort,1)<=DATE($E$3,1,1))*(OFFSET(Active_Portfolio!$O$12,1,0,ctPort,1)>DATE($E$3,1,1))*OFFSET(Active_Portfolio!$Z$12,1,0,ctPort,1),OFFSET(Active_Portfolio!$AH$12,1,0,ctPort,1)) -> 0 | BO10: =SUMPRODUCT((OFFSET(Active_Portfolio!$T$12,1,0,ctPort,1)=1)*(OFFSET(Active_Portfolio!$G$12,1,0,ctPort,1)=$BB10)*(OFFSET(Active_Portfolio!$K$12,1,0,ctPort,1)=BO$8)*(OFFSET(Active_Portfolio!$N$12,1,0,ctPort,1)<=DATE($E$3,1,1))*(OFFSET(Active_Portfolio!$O$12,1,0,ctPort,1)>DATE($E$3,1,1))*OFFSET(Active_Portfolio!$Z$12,1,0,ctPort,1),OFFSET(Active_Portfolio!$AH$12,1,0,ctPort,1)) -> 0 | BP10: =SUMPRODUCT((OFFSET(Active_Portfolio!$T$12,1,0,ctPort,1)=1)*(OFFSET(Active_Portfolio!$G$12,1,0,ctPort,1)=$BB10)*(OFFSET(Active_Portfolio!$K$12,1,0,ctPort,1)=BP$8)*(OFFSET(Active_Portfolio!$N$12,1,0,ctPort,1)<=DATE($E$3,1,1))*(OFFSET(Active_Portfolio!$O$12,1,0,ctPort,1)>DATE($E$3,1,1))*OFFSET(Active_Portfolio!$Z$12,1,0,ctPort,1),OFFSET(Active_Portfolio!$AH$12,1,0,ctPort,1)) -> 0 | BQ10: =SUMPRODUCT((OFFSET(Active_Portfolio!$T$12,1,0,ctPort,1)=1)*(OFFSET(Active_Portfolio!$G$12,1,0,ctPort,1)=$BB10)*(OFFSET(Active_Portfolio!$K$12,1,0,ctPort,1)=BQ$8)*(OFFSET(Active_Portfolio!$N$12,1,0,ctPort,1)<=DATE($E$3,1,1))*(OFFSET(Active_Portfolio!$O$12,1,0,ctPort,1)>DATE($E$3,1,1))*OFFSET(Active_Portfolio!$Z$12,1,0,ctPort,1),OFFSET(Active_Portfolio!$AH$12,1,0,ctPort,1)) -> 0 | BR10: =SUMPRODUCT((OFFSET(Active_Portfolio!$T$12,1,0,ctPort,1)=1)*(OFFSET(Active_Portfolio!$G$12,1,0,ctPort,1)=$BB10)*(OFFSET(Active_Portfolio!$K$12,1,0,ctPort,1)=BR$8)*(OFFSET(Active_Portfolio!$N$12,1,0,ctPort,1)<=DATE($E$3,1,1))*(OFFSET(Active_Portfolio!$O$12,1,0,ctPort,1)>DATE($E$3,1,1))*OFFSET(Active_Portfolio!$Z$12,1,0,ctPort,1),OFFSET(Active_Portfolio!$AH$12,1,0,ctPort,1)) -> 0 | BS10: =SUMPRODUCT((OFFSET(Active_Portfolio!$T$12,1,0,ctPort,1)=1)*(OFFSET(Active_Portfolio!$G$12,1,0,ctPort,1)=$BB10)*(OFFSET(Active_Portfolio!$K$12,1,0,ctPort,1)=BS$8)*(OFFSET(Active_Portfolio!$N$12,1,0,ctPort,1)<=DATE($E$3,1,1))*(OFFSET(Active_Portfolio!$O$12,1,0,ctPort,1)>DATE($E$3,1,1))*OFFSET(Active_Portfolio!$Z$12,1,0,ctPort,1),OFFSET(Active_Portfolio!$AH$12,1,0,ctPort,1)) -> 0 | BT10: 0 | BU10: =SUMPRODUCT((OFFSET(Active_Portfolio!$T$12,1,0,ctPort,1)=0)*(OFFSET(Active_Portfolio!$G$12,1,0,ctPort,1)=$BB10)*(OFFSET(Active_Portfolio!$K$12,1,0,ctPort,1)=BU$8)*(OFFSET(Active_Portfolio!$N$12,1,0,ctPort,1)<=DATE($E$3,1,1))*(OFFSET(Active_Portfolio!$O$12,1,0,ctPort,1)>DATE($E$3,1,1))*OFFSET(Active_Portfolio!$Z$12,1,0,ctPort,1),OFFSET(Active_Portfolio!$AH$12,1,0,ctPort,1)) -> 0 | BV10: =SUMPRODUCT((OFFSET(Active_Portfolio!$T$12,1,0,ctPort,1)=0)*(OFFSET(Active_Portfolio!$G$12,1,0,ctPort,1)=$BB10)*(OFFSET(Active_Portfolio!$K$12,1,0,ctPort,1)=BV$8)*(OFFSET(Active_Portfolio!$N$12,1,0,ctPort,1)<=DATE($E$3,1,1))*(OFFSET(Active_Portfolio!$O$12,1,0,ctPort,1)>DATE($E$3,1,1))*OFFSET(Active_Portfolio!$Z$12,1,0,ctPort,1),OFFSET(Active_Portfolio!$AH$12,1,0,ctPort,1)) -> 0 | BW10: =SUMPRODUCT((OFFSET(Active_Portfolio!$T$12,1,0,ctPort,1)=0)*(OFFSET(Active_Portfolio!$G$12,1,0,ctPort,1)=$BB10)*(OFFSET(Active_Portfolio!$K$12,1,0,ctPort,1)=BW$8)*(OFFSET(Active_Portfolio!$N$12,1,0,ctPort,1)<=DATE($E$3,1,1))*(OFFSET(Active_Portfolio!$O$12,1,0,ctPort,1)>DATE($E$3,1,1))*OFFSET(Active_Portfolio!$Z$12,1,0,ctPort,1),OFFSET(Active_Portfolio!$AH$12,1,0,ctPort,1)) -> 0 | BX10: =SUMPRODUCT((OFFSET(Active_Portfolio!$T$12,1,0,ctPort,1)=0)*(OFFSET(Active_Portfolio!$G$12,1,0,ctPort,1)=$BB10)*(OFFSET(Active_Portfolio!$K$12,1,0,ctPort,1)=BX$8)*(OFFSET(Active_Portfolio!$N$12,1,0,ctPort,1)<=DATE($E$3,1,1))*(OFFSET(Active_Portfolio!$O$12,1,0,ctPort,1)>DATE($E$3,1,1))*OFFSET(Active_Portfolio!$Z$12,1,0,ctPort,1),OFFSET(Active_Portfolio!$AH$12,1,0,ctPort,1)) -> 0 | BY10: =SUMPRODUCT((OFFSET(Active_Portfolio!$T$12,1,0,ctPort,1)=0)*(OFFSET(Active_Portfolio!$G$12,1,0,ctPort,1)=$BB10)*(OFFSET(Active_Portfolio!$K$12,1,0,ctPort,1)=BY$8)*(OFFSET(Active_Portfolio!$N$12,1,0,ctPort,1)<=DATE($E$3,1,1))*(OFFSET(Active_Portfolio!$O$12,1,0,ctPort,1)>DATE($E$3,1,1))*OFFSET(Active_Portfolio!$Z$12,1,0,ctPort,1),OFFSET(Active_Portfolio!$AH$12,1,0,ctPort,1)) -> 0 | BZ10: =SUMPRODUCT((OFFSET(Active_Portfolio!$T$12,1,0,ctPort,1)=0)*(OFFSET(Active_Portfolio!$G$12,1,0,ctPort,1)=$BB10)*(OFFSET(Active_Portfolio!$K$12,1,0,ctPort,1)=BZ$8)*(OFFSET(Active_Portfolio!$N$12,1,0,ctPort,1)<=DATE($E$3,1,1))*(OFFSET(Active_Portfolio!$O$12,1,0,ctPort,1)>DATE($E$3,1,1))*OFFSET(Active_Portfolio!$Z$12,1,0,ctPort,1),OFFSET(Active_Portfolio!$AH$12,1,0,ctPort,1)) -> 0 | CA10: =SUMPRODUCT((OFFSET(Active_Portfolio!$T$12,1,0,ctPort,1)=0)*(OFFSET(Active_Portfolio!$G$12,1,0,ctPort,1)=$BB10)*(OFFSET(Active_Portfolio!$K$12,1,0,ctPort,1)=CA$8)*(OFFSET(Active_Portfolio!$N$12,1,0,ctPort,1)<=DATE($E$3,1,1))*(OFFSET(Active_Portfolio!$O$12,1,0,ctPort,1)>DATE($E$3,1,1))*OFFSET(Active_Portfolio!$Z$12,1,0,ctPort,1),OFFSET(Active_Portfolio!$AH$12,1,0,ctPort,1)) -> 0 | CB10: 0 | CC10: =SUMPRODUCT((OFFSET(Active_Portfolio!$M$12,1,0,ctPort,1)="New")*(OFFSET(Active_Portfolio!$G$12,1,0,ctPort,1)=$BB10)*(OFFSET(Active_Portfolio!$K$12,1,0,ctPort,1)=CC$8)*(OFFSET(Active_Portfolio!$N$12,1,0,ctPort,1)<=DATE($E$3,1,1))*(OFFSET(Active_Portfolio!$O$12,1,0,ctPort,1)>DATE($E$3,1,1))*OFFSET(Active_Portfolio!$Z$12,1,0,ctPort,1),OFFSET(Active_Portfolio!$AH$12,1,0,ctPort,1)) -> 0 | CD10: =SUMPRODUCT((OFFSET(Active_Portfolio!$M$12,1,0,ctPort,1)="New")*(OFFSET(Active_Portfolio!$G$12,1,0,ctPort,1)=$BB10)*(OFFSET(Active_Portfolio!$K$12,1,0,ctPort,1)=CD$8)*(OFFSET(Active_Portfolio!$N$12,1,0,ctPort,1)<=DATE($E$3,1,1))*(OFFSET(Active_Portfolio!$O$12,1,0,ctPort,1)>DATE($E$3,1,1))*OFFSET(Active_Portfolio!$Z$12,1,0,ctPort,1),OFFSET(Active_Portfolio!$AH$12,1,0,ctPort,1)) -> 0 | CE10: =SUMPRODUCT((OFFSET(Active_Portfolio!$M$12,1,0,ctPort,1)="New")*(OFFSET(Active_Portfolio!$G$12,1,0,ctPort,1)=$BB10)*(OFFSET(Active_Portfolio!$K$12,1,0,ctPort,1)=CE$8)*(OFFSET(Active_Portfolio!$N$12,1,0,ctPort,1)<=DATE($E$3,1,1))*(OFFSET(Active_Portfolio!$O$12,1,0,ctPort,1)>DATE($E$3,1,1))*OFFSET(Active_Portfolio!$Z$12,1,0,ctPort,1),OFFSET(Active_Portfolio!$AH$12,1,0,ctPort,1)) -> 0 | CF10: =SUMPRODUCT((OFFSET(Active_Portfolio!$M$12,1,0,ctPort,1)="New")*(OFFSET(Active_Portfolio!$G$12,1,0,ctPort,1)=$BB10)*(OFFSET(Active_Portfolio!$K$12,1,0,ctPort,1)=CF$8)*(OFFSET(Active_Portfolio!$N$12,1,0,ctPort,1)<=DATE($E$3,1,1))*(OFFSET(Active_Portfolio!$O$12,1,0,ctPort,1)>DATE($E$3,1,1))*OFFSET(Active_Portfolio!$Z$12,1,0,ctPort,1),OFFSET(Active_Portfolio!$AH$12,1,0,ctPort,1)) -> 0 | CG10: =SUMPRODUCT((OFFSET(Active_Portfolio!$M$12,1,0,ctPort,1)="New")*(OFFSET(Active_Portfolio!$G$12,1,0,ctPort,1)=$BB10)*(OFFSET(Active_Portfolio!$K$12,1,0,ctPort,1)=CG$8)*(OFFSET(Active_Portfolio!$N$12,1,0,ctPort,1)<=DATE($E$3,1,1))*(OFFSET(Active_Portfolio!$O$12,1,0,ctPort,1)>DATE($E$3,1,1))*OFFSET(Active_Portfolio!$Z$12,1,0,ctPort,1),OFFSET(Active_Portfolio!$AH$12,1,0,ctPort,1)) -> 0 | CH10: =SUMPRODUCT((OFFSET(Active_Portfolio!$M$12,1,0,ctPort,1)="New")*(OFFSET(Active_Portfolio!$G$12,1,0,ctPort,1)=$BB10)*(OFFSET(Active_Portfolio!$K$12,1,0,ctPort,1)=CH$8)*(OFFSET(Active_Portfolio!$N$12,1,0,ctPort,1)<=DATE($E$3,1,1))*(OFFSET(Active_Portfolio!$O$12,1,0,ctPort,1)>DATE($E$3,1,1))*OFFSET(Active_Portfolio!$Z$12,1,0,ctPort,1),OFFSET(Active_Portfolio!$AH$12,1,0,ctPort,1)) -> 0 | CI10: =SUMPRODUCT((OFFSET(Active_Portfolio!$M$12,1,0,ctPort,1)="New")*(OFFSET(Active_Portfolio!$G$12,1,0,ctPort,1)=$BB10)*(OFFSET(Active_Portfolio!$K$12,1,0,ctPort,1)=CI$8)*(OFFSET(Active_Portfolio!$N$12,1,0,ctPort,1)<=DATE($E$3,1,1))*(OFFSET(Active_Portfolio!$O$12,1,0,ctPort,1)>DATE($E$3,1,1))*OFFSET(Active_Portfolio!$Z$12,1,0,ctPort,1),OFFSET(Active_Portfolio!$AH$12,1,0,ctPort,1)) -> 0 | CJ10: 0 | CK10: =SUMPRODUCT((OFFSET(Active_Portfolio!$T$12,1,0,ctPort,1)=1)*(OFFSET(Active_Portfolio!$M$12,1,0,ctPort,1)="New")*(OFFSET(Active_Portfolio!$G$12,1,0,ctPort,1)=$BB10)*(OFFSET(Active_Portfolio!$K$12,1,0,ctPort,1)=CK$8)*(OFFSET(Active_Portfolio!$N$12,1,0,ctPort,1)<=DATE($E$3,1,1))*(OFFSET(Active_Portfolio!$O$12,1,0,ctPort,1)>DATE($E$3,1,1))*OFFSET(Active_Portfolio!$Z$12,1,0,ctPort,1),OFFSET(Active_Portfolio!$AH$12,1,0,ctPort,1)) -> 0 | CL10: =SUMPRODUCT((OFFSET(Active_Portfolio!$T$12,1,0,ctPort,1)=1)*(OFFSET(Active_Portfolio!$M$12,1,0,ctPort,1)="New")*(OFFSET(Active_Portfolio!$G$12,1,0,ctPort,1)=$BB10)*(OFFSET(Active_Portfolio!$K$12,1,0,ctPort,1)=CL$8)*(OFFSET(Active_Portfolio!$N$12,1,0,ctPort,1)<=DATE($E$3,1,1))*(OFFSET(Active_Portfolio!$O$12,1,0,ctPort,1)>DATE($E$3,1,1))*OFFSET(Active_Portfolio!$Z$12,1,0,ctPort,1),OFFSET(Active_Portfolio!$AH$12,1,0,ctPort,1)) -> 0 | CM10: =SUMPRODUCT((OFFSET(Active_Portfolio!$T$12,1,0,ctPort,1)=1)*(OFFSET(Active_Portfolio!$M$12,1,0,ctPort,1)="New")*(OFFSET(Active_Portfolio!$G$12,1,0,ctPort,1)=$BB10)*(OFFSET(Active_Portfolio!$K$12,1,0,ctPort,1)=CM$8)*(OFFSET(Active_Portfolio!$N$12,1,0,ctPort,1)<=DATE($E$3,1,1))*(OFFSET(Active_Portfolio!$O$12,1,0,ctPort,1)>DATE($E$3,1,1))*OFFSET(Active_Portfolio!$Z$12,1,0,ctPort,1),OFFSET(Active_Portfolio!$AH$12,1,0,ctPort,1)) -> 0 | CN10: =SUMPRODUCT((OFFSET(Active_Portfolio!$T$12,1,0,ctPort,1)=1)*(OFFSET(Active_Portfolio!$M$12,1,0,ctPort,1)="New")*(OFFSET(Active_Portfolio!$G$12,1,0,ctPort,1)=$BB10)*(OFFSET(Active_Portfolio!$K$12,1,0,ctPort,1)=CN$8)*(OFFSET(Active_Portfolio!$N$12,1,0,ctPort,1)<=DATE($E$3,1,1))*(OFFSET(Active_Portfolio!$O$12,1,0,ctPort,1)>DATE($E$3,1,1))*OFFSET(Active_Portfolio!$Z$12,1,0,ctPort,1),OFFSET(Active_Portfolio!$AH$12,1,0,ctPort,1)) -> 0 | CO10: =SUMPRODUCT((OFFSET(Active_Portfolio!$T$12,1,0,ctPort,1)=1)*(OFFSET(Active_Portfolio!$M$12,1,0,ctPort,1)="New")*(OFFSET(Active_Portfolio!$G$12,1,0,ctPort,1)=$BB10)*(OFFSET(Active_Portfolio!$K$12,1,0,ctPort,1)=CO$8)*(OFFSET(Active_Portfolio!$N$12,1,0,ctPort,1)<=DATE($E$3,1,1))*(OFFSET(Active_Portfolio!$O$12,1,0,ctPort,1)>DATE($E$3,1,1))*OFFSET(Active_Portfolio!$Z$12,1,0,ctPort,1),OFFSET(Active_Portfolio!$AH$12,1,0,ctPort,1)) -> 0 | CP10: =SUMPRODUCT((OFFSET(Active_Portfolio!$T$12,1,0,ctPort,1)=1)*(OFFSET(Active_Portfolio!$M$12,1,0,ctPort,1)="New")*(OFFSET(Active_Portfolio!$G$12,1,0,ctPort,1)=$BB10)*(OFFSET(Active_Portfolio!$K$12,1,0,ctPort,1)=CP$8)*(OFFSET(Active_Portfolio!$N$12,1,0,ctPort,1)<=DATE($E$3,1,1))*(OFFSET(Active_Portfolio!$O$12,1,0,ctPort,1)>DATE($E$3,1,1))*OFFSET(Active_Portfolio!$Z$12,1,0,ctPort,1),OFFSET(Active_Portfolio!$AH$12,1,0,ctPort,1)) -> 0 | CQ10: =SUMPRODUCT((OFFSET(Active_Portfolio!$T$12,1,0,ctPort,1)=1)*(OFFSET(Active_Portfolio!$M$12,1,0,ctPort,1)="New")*(OFFSET(Active_Portfolio!$G$12,1,0,ctPort,1)=$BB10)*(OFFSET(Active_Portfolio!$K$12,1,0,ctPort,1)=CQ$8)*(OFFSET(Active_Portfolio!$N$12,1,0,ctPort,1)<=DATE($E$3,1,1))*(OFFSET(Active_Portfolio!$O$12,1,0,ctPort,1)>DATE($E$3,1,1))*OFFSET(Active_Portfolio!$Z$12,1,0,ctPort,1),OFFSET(Active_Portfolio!$AH$12,1,0,ctPort,1)) -> 0 | CR10: 0 | CS10: =SUMPRODUCT((OFFSET(Active_Portfolio!$T$12,1,0,ctPort,1)=0)*(OFFSET(Active_Portfolio!$M$12,1,0,ctPort,1)="New")*(OFFSET(Active_Portfolio!$G$12,1,0,ctPort,1)=$BB10)*(OFFSET(Active_Portfolio!$K$12,1,0,ctPort,1)=CS$8)*(OFFSET(Active_Portfolio!$N$12,1,0,ctPort,1)<=DATE($E$3,1,1))*(OFFSET(Active_Portfolio!$O$12,1,0,ctPort,1)>DATE($E$3,1,1))*OFFSET(Active_Portfolio!$Z$12,1,0,ctPort,1),OFFSET(Active_Portfolio!$AH$12,1,0,ctPort,1)) -> 0 | CT10: =SUMPRODUCT((OFFSET(Active_Portfolio!$T$12,1,0,ctPort,1)=0)*(OFFSET(Active_Portfolio!$M$12,1,0,ctPort,1)="New")*(OFFSET(Active_Portfolio!$G$12,1,0,ctPort,1)=$BB10)*(OFFSET(Active_Portfolio!$K$12,1,0,ctPort,1)=CT$8)*(OFFSET(Active_Portfolio!$N$12,1,0,ctPort,1)<=DATE($E$3,1,1))*(OFFSET(Active_Portfolio!$O$12,1,0,ctPort,1)>DATE($E$3,1,1))*OFFSET(Active_Portfolio!$Z$12,1,0,ctPort,1),OFFSET(Active_Portfolio!$AH$12,1,0,ctPort,1)) -> 0 | CU10: =SUMPRODUCT((OFFSET(Active_Portfolio!$T$12,1,0,ctPort,1)=0)*(OFFSET(Active_Portfolio!$M$12,1,0,ctPort,1)="New")*(OFFSET(Active_Portfolio!$G$12,1,0,ctPort,1)=$BB10)*(OFFSET(Active_Portfolio!$K$12,1,0,ctPort,1)=CU$8)*(OFFSET(Active_Portfolio!$N$12,1,0,ctPort,1)<=DATE($E$3,1,1))*(OFFSET(Active_Portfolio!$O$12,1,0,ctPort,1)>DATE($E$3,1,1))*OFFSET(Active_Portfolio!$Z$12,1,0,ctPort,1),OFFSET(Active_Portfolio!$AH$12,1,0,ctPort,1)) -> 0 | CV10: =SUMPRODUCT((OFFSET(Active_Portfolio!$T$12,1,0,ctPort,1)=0)*(OFFSET(Active_Portfolio!$M$12,1,0,ctPort,1)="New")*(OFFSET(Active_Portfolio!$G$12,1,0,ctPort,1)=$BB10)*(OFFSET(Active_Portfolio!$K$12,1,0,ctPort,1)=CV$8)*(OFFSET(Active_Portfolio!$N$12,1,0,ctPort,1)<=DATE($E$3,1,1))*(OFFSET(Active_Portfolio!$O$12,1,0,ctPort,1)>DATE($E$3,1,1))*OFFSET(Active_Portfolio!$Z$12,1,0,ctPort,1),OFFSET(Active_Portfolio!$AH$12,1,0,ctPort,1)) -> 0 | CW10: =SUMPRODUCT((OFFSET(Active_Portfolio!$T$12,1,0,ctPort,1)=0)*(OFFSET(Active_Portfolio!$M$12,1,0,ctPort,1)="New")*(OFFSET(Active_Portfolio!$G$12,1,0,ctPort,1)=$BB10)*(OFFSET(Active_Portfolio!$K$12,1,0,ctPort,1)=CW$8)*(OFFSET(Active_Portfolio!$N$12,1,0,ctPort,1)<=DATE($E$3,1,1))*(OFFSET(Active_Portfolio!$O$12,1,0,ctPort,1)>DATE($E$3,1,1))*OFFSET(Active_Portfolio!$Z$12,1,0,ctPort,1),OFFSET(Active_Portfolio!$AH$12,1,0,ctPort,1)) -> 0 | CX10: =SUMPRODUCT((OFFSET(Active_Portfolio!$T$12,1,0,ctPort,1)=0)*(OFFSET(Active_Portfolio!$M$12,1,0,ctPort,1)="New")*(OFFSET(Active_Portfolio!$G$12,1,0,ctPort,1)=$BB10)*(OFFSET(Active_Portfolio!$K$12,1,0,ctPort,1)=CX$8)*(OFFSET(Active_Portfolio!$N$12,1,0,ctPort,1)<=DATE($E$3,1,1))*(OFFSET(Active_Portfolio!$O$12,1,0,ctPort,1)>DATE($E$3,1,1))*OFFSET(Active_Portfolio!$Z$12,1,0,ctPort,1),OFFSET(Active_Portfolio!$AH$12,1,0,ctPort,1)) -> 0 | CY10: =SUMPRODUCT((OFFSET(Active_Portfolio!$T$12,1,0,ctPort,1)=0)*(OFFSET(Active_Portfolio!$M$12,1,0,ctPort,1)="New")*(OFFSET(Active_Portfolio!$G$12,1,0,ctPort,1)=$BB10)*(OFFSET(Active_Portfolio!$K$12,1,0,ctPort,1)=CY$8)*(OFFSET(Active_Portfolio!$N$12,1,0,ctPort,1)<=DATE($E$3,1,1))*(OFFSET(Active_Portfolio!$O$12,1,0,ctPort,1)>DATE($E$3,1,1))*OFFSET(Active_Portfolio!$Z$12,1,0,ctPort,1),OFFSET(Active_Portfolio!$AH$12,1,0,ctPort,1)) -> 0 | CZ10: 0 | DA10: =SUMPRODUCT((OFFSET(Active_Portfolio!$B$12,1,0,ctPort,1)=4)*(OFFSET(Active_Portfolio!$G$12,1,0,ctPort,1)=$BB10)*(OFFSET(Active_Portfolio!$K$12,1,0,ctPort,1)=DA$8)*(OFFSET(Active_Portfolio!$N$12,1,0,ctPort,1)<=DATE($E$3,1,1))*(OFFSET(Active_Portfolio!$O$12,1,0,ctPort,1)>DATE($E$3,1,1))*OFFSET(Active_Portfolio!$Z$12,1,0,ctPort,1),OFFSET(Active_Portfolio!$AH$12,1,0,ctPort,1)) -> 0 | DB10: =SUMPRODUCT((OFFSET(Active_Portfolio!$B$12,1,0,ctPort,1)=4)*(OFFSET(Active_Portfolio!$G$12,1,0,ctPort,1)=$BB10)*(OFFSET(Active_Portfolio!$K$12,1,0,ctPort,1)=DB$8)*(OFFSET(Active_Portfolio!$N$12,1,0,ctPort,1)<=DATE($E$3,1,1))*(OFFSET(Active_Portfolio!$O$12,1,0,ctPort,1)>DATE($E$3,1,1))*OFFSET(Active_Portfolio!$Z$12,1,0,ctPort,1),OFFSET(Active_Portfolio!$AH$12,1,0,ctPort,1)) -> 0 | DC10: =SUMPRODUCT((OFFSET(Active_Portfolio!$B$12,1,0,ctPort,1)=4)*(OFFSET(Active_Portfolio!$G$12,1,0,ctPort,1)=$BB10)*(OFFSET(Active_Portfolio!$K$12,1,0,ctPort,1)=DC$8)*(OFFSET(Active_Portfolio!$N$12,1,0,ctPort,1)<=DATE($E$3,1,1))*(OFFSET(Active_Portfolio!$O$12,1,0,ctPort,1)>DATE($E$3,1,1))*OFFSET(Active_Portfolio!$Z$12,1,0,ctPort,1),OFFSET(Active_Portfolio!$AH$12,1,0,ctPort,1)) -> 0 | DD10: =SUMPRODUCT((OFFSET(Active_Portfolio!$B$12,1,0,ctPort,1)=4)*(OFFSET(Active_Portfolio!$G$12,1,0,ctPort,1)=$BB10)*(OFFSET(Active_Portfolio!$K$12,1,0,ctPort,1)=DD$8)*(OFFSET(Active_Portfolio!$N$12,1,0,ctPort,1)<=DATE($E$3,1,1))*(OFFSET(Active_Portfolio!$O$12,1,0,ctPort,1)>DATE($E$3,1,1))*OFFSET(Active_Portfolio!$Z$12,1,0,ctPort,1),OFFSET(Active_Portfolio!$AH$12,1,0,ctPort,1)) -> 0 | DE10: =SUMPRODUCT((OFFSET(Active_Portfolio!$B$12,1,0,ctPort,1)=4)*(OFFSET(Active_Portfolio!$G$12,1,0,ctPort,1)=$BB10)*(OFFSET(Active_Portfolio!$K$12,1,0,ctPort,1)=DE$8)*(OFFSET(Active_Portfolio!$N$12,1,0,ctPort,1)<=DATE($E$3,1,1))*(OFFSET(Active_Portfolio!$O$12,1,0,ctPort,1)>DATE($E$3,1,1))*OFFSET(Active_Portfolio!$Z$12,1,0,ctPort,1),OFFSET(Active_Portfolio!$AH$12,1,0,ctPort,1)) -> 0 | DF10: =SUMPRODUCT((OFFSET(Active_Portfolio!$B$12,1,0,ctPort,1)=4)*(OFFSET(Active_Portfolio!$G$12,1,0,ctPort,1)=$BB10)*(OFFSET(Active_Portfolio!$K$12,1,0,ctPort,1)=DF$8)*(OFFSET(Active_Portfolio!$N$12,1,0,ctPort,1)<=DATE($E$3,1,1))*(OFFSET(Active_Portfolio!$O$12,1,0,ctPort,1)>DATE($E$3,1,1))*OFFSET(Active_Portfolio!$Z$12,1,0,ctPort,1),OFFSET(Active_Portfolio!$AH$12,1,0,ctPort,1)) -> 0 | DG10: =SUMPRODUCT((OFFSET(Active_Portfolio!$B$12,1,0,ctPort,1)=4)*(OFFSET(Active_Portfolio!$G$12,1,0,ctPort,1)=$BB10)*(OFFSET(Active_Portfolio!$K$12,1,0,ctPort,1)=DG$8)*(OFFSET(Active_Portfolio!$N$12,1,0,ctPort,1)<=DATE($E$3,1,1))*(OFFSET(Active_Portfolio!$O$12,1,0,ctPort,1)>DATE($E$3,1,1))*OFFSET(Active_Portfolio!$Z$12,1,0,ctPort,1),OFFSET(Active_Portfolio!$AH$12,1,0,ctPort,1)) -> 0 | DH10: 0 | DI10: =SUMPRODUCT((OFFSET(Active_Portfolio!$T$12,1,0,ctPort,1)=1)*(OFFSET(Active_Portfolio!$B$12,1,0,ctPort,1)=4)*(OFFSET(Active_Portfolio!$G$12,1,0,ctPort,1)=$BB10)*(OFFSET(Active_Portfolio!$K$12,1,0,ctPort,1)=DI$8)*(OFFSET(Active_Portfolio!$N$12,1,0,ctPort,1)<=DATE($E$3,1,1))*(OFFSET(Active_Portfolio!$O$12,1,0,ctPort,1)>DATE($E$3,1,1))*OFFSET(Active_Portfolio!$Z$12,1,0,ctPort,1),OFFSET(Active_Portfolio!$AH$12,1,0,ctPort,1)) -> 0 | DJ10: =SUMPRODUCT((OFFSET(Active_Portfolio!$T$12,1,0,ctPort,1)=1)*(OFFSET(Active_Portfolio!$B$12,1,0,ctPort,1)=4)*(OFFSET(Active_Portfolio!$G$12,1,0,ctPort,1)=$BB10)*(OFFSET(Active_Portfolio!$K$12,1,0,ctPort,1)=DJ$8)*(OFFSET(Active_Portfolio!$N$12,1,0,ctPort,1)<=DATE($E$3,1,1))*(OFFSET(Active_Portfolio!$O$12,1,0,ctPort,1)>DATE($E$3,1,1))*OFFSET(Active_Portfolio!$Z$12,1,0,ctPort,1),OFFSET(Active_Portfolio!$AH$12,1,0,ctPort,1)) -> 0 | DK10: =SUMPRODUCT((OFFSET(Active_Portfolio!$T$12,1,0,ctPort,1)=1)*(OFFSET(Active_Portfolio!$B$12,1,0,ctPort,1)=4)*(OFFSET(Active_Portfolio!$G$12,1,0,ctPort,1)=$BB10)*(OFFSET(Active_Portfolio!$K$12,1,0,ctPort,1)=DK$8)*(OFFSET(Active_Portfolio!$N$12,1,0,ctPort,1)<=DATE($E$3,1,1))*(OFFSET(Active_Portfolio!$O$12,1,0,ctPort,1)>DATE($E$3,1,1))*OFFSET(Active_Portfolio!$Z$12,1,0,ctPort,1),OFFSET(Active_Portfolio!$AH$12,1,0,ctPort,1)) -> 0 | DL10: =SUMPRODUCT((OFFSET(Active_Portfolio!$T$12,1,0,ctPort,1)=1)*(OFFSET(Active_Portfolio!$B$12,1,0,ctPort,1)=4)*(OFFSET(Active_Portfolio!$G$12,1,0,ctPort,1)=$BB10)*(OFFSET(Active_Portfolio!$K$12,1,0,ctPort,1)=DL$8)*(OFFSET(Active_Portfolio!$N$12,1,0,ctPort,1)<=DATE($E$3,1,1))*(OFFSET(Active_Portfolio!$O$12,1,0,ctPort,1)>DATE($E$3,1,1))*OFFSET(Active_Portfolio!$Z$12,1,0,ctPort,1),OFFSET(Active_Portfolio!$AH$12,1,0,ctPort,1)) -> 0 | DM10: =SUMPRODUCT((OFFSET(Active_Portfolio!$T$12,1,0,ctPort,1)=1)*(OFFSET(Active_Portfolio!$B$12,1,0,ctPort,1)=4)*(OFFSET(Active_Portfolio!$G$12,1,0,ctPort,1)=$BB10)*(OFFSET(Active_Portfolio!$K$12,1,0,ctPort,1)=DM$8)*(OFFSET(Active_Portfolio!$N$12,1,0,ctPort,1)<=DATE($E$3,1,1))*(OFFSET(Active_Portfolio!$O$12,1,0,ctPort,1)>DATE($E$3,1,1))*OFFSET(Active_Portfolio!$Z$12,1,0,ctPort,1),OFFSET(Active_Portfolio!$AH$12,1,0,ctPort,1)) -> 0 | DN10: =SUMPRODUCT((OFFSET(Active_Portfolio!$T$12,1,0,ctPort,1)=1)*(OFFSET(Active_Portfolio!$B$12,1,0,ctPort,1)=4)*(OFFSET(Active_Portfolio!$G$12,1,0,ctPort,1)=$BB10)*(OFFSET(Active_Portfolio!$K$12,1,0,ctPort,1)=DN$8)*(OFFSET(Active_Portfolio!$N$12,1,0,ctPort,1)<=DATE($E$3,1,1))*(OFFSET(Active_Portfolio!$O$12,1,0,ctPort,1)>DATE($E$3,1,1))*OFFSET(Active_Portfolio!$Z$12,1,0,ctPort,1),OFFSET(Active_Portfolio!$AH$12,1,0,ctPort,1)) -> 0 | DO10: =SUMPRODUCT((OFFSET(Active_Portfolio!$T$12,1,0,ctPort,1)=1)*(OFFSET(Active_Portfolio!$B$12,1,0,ctPort,1)=4)*(OFFSET(Active_Portfolio!$G$12,1,0,ctPort,1)=$BB10)*(OFFSET(Active_Portfolio!$K$12,1,0,ctPort,1)=DO$8)*(OFFSET(Active_Portfolio!$N$12,1,0,ctPort,1)<=DATE($E$3,1,1))*(OFFSET(Active_Portfolio!$O$12,1,0,ctPort,1)>DATE($E$3,1,1))*OFFSET(Active_Portfolio!$Z$12,1,0,ctPort,1),OFFSET(Active_Portfolio!$AH$12,1,0,ctPort,1)) -> 0 | DP10: 0 | DQ10: =SUMPRODUCT((OFFSET(Active_Portfolio!$T$12,1,0,ctPort,1)=0)*(OFFSET(Active_Portfolio!$B$12,1,0,ctPort,1)=4)*(OFFSET(Active_Portfolio!$G$12,1,0,ctPort,1)=$BB10)*(OFFSET(Active_Portfolio!$K$12,1,0,ctPort,1)=DQ$8)*(OFFSET(Active_Portfolio!$N$12,1,0,ctPort,1)<=DATE($E$3,1,1))*(OFFSET(Active_Portfolio!$O$12,1,0,ctPort,1)>DATE($E$3,1,1))*OFFSET(Active_Portfolio!$Z$12,1,0,ctPort,1),OFFSET(Active_Portfolio!$AH$12,1,0,ctPort,1)) -> 0 | DR10: =SUMPRODUCT((OFFSET(Active_Portfolio!$T$12,1,0,ctPort,1)=0)*(OFFSET(Active_Portfolio!$B$12,1,0,ctPort,1)=4)*(OFFSET(Active_Portfolio!$G$12,1,0,ctPort,1)=$BB10)*(OFFSET(Active_Portfolio!$K$12,1,0,ctPort,1)=DR$8)*(OFFSET(Active_Portfolio!$N$12,1,0,ctPort,1)<=DATE($E$3,1,1))*(OFFSET(Active_Portfolio!$O$12,1,0,ctPort,1)>DATE($E$3,1,1))*OFFSET(Active_Portfolio!$Z$12,1,0,ctPort,1),OFFSET(Active_Portfolio!$AH$12,1,0,ctPort,1)) -> 0 | DS10: =SUMPRODUCT((OFFSET(Active_Portfolio!$T$12,1,0,ctPort,1)=0)*(OFFSET(Active_Portfolio!$B$12,1,0,ctPort,1)=4)*(OFFSET(Active_Portfolio!$G$12,1,0,ctPort,1)=$BB10)*(OFFSET(Active_Portfolio!$K$12,1,0,ctPort,1)=DS$8)*(OFFSET(Active_Portfolio!$N$12,1,0,ctPort,1)<=DATE($E$3,1,1))*(OFFSET(Active_Portfolio!$O$12,1,0,ctPort,1)>DATE($E$3,1,1))*OFFSET(Active_Portfolio!$Z$12,1,0,ctPort,1),OFFSET(Active_Portfolio!$AH$12,1,0,ctPort,1)) -> 0 | DT10: =SUMPRODUCT((OFFSET(Active_Portfolio!$T$12,1,0,ctPort,1)=0)*(OFFSET(Active_Portfolio!$B$12,1,0,ctPort,1)=4)*(OFFSET(Active_Portfolio!$G$12,1,0,ctPort,1)=$BB10)*(OFFSET(Active_Portfolio!$K$12,1,0,ctPort,1)=DT$8)*(OFFSET(Active_Portfolio!$N$12,1,0,ctPort,1)<=DATE($E$3,1,1))*(OFFSET(Active_Portfolio!$O$12,1,0,ctPort,1)>DATE($E$3,1,1))*OFFSET(Active_Portfolio!$Z$12,1,0,ctPort,1),OFFSET(Active_Portfolio!$AH$12,1,0,ctPort,1)) -> 0 | DU10: =SUMPRODUCT((OFFSET(Active_Portfolio!$T$12,1,0,ctPort,1)=0)*(OFFSET(Active_Portfolio!$B$12,1,0,ctPort,1)=4)*(OFFSET(Active_Portfolio!$G$12,1,0,ctPort,1)=$BB10)*(OFFSET(Active_Portfolio!$K$12,1,0,ctPort,1)=DU$8)*(OFFSET(Active_Portfolio!$N$12,1,0,ctPort,1)<=DATE($E$3,1,1))*(OFFSET(Active_Portfolio!$O$12,1,0,ctPort,1)>DATE($E$3,1,1))*OFFSET(Active_Portfolio!$Z$12,1,0,ctPort,1),OFFSET(Active_Portfolio!$AH$12,1,0,ctPort,1)) -> 0 | DV10: =SUMPRODUCT((OFFSET(Active_Portfolio!$T$12,1,0,ctPort,1)=0)*(OFFSET(Active_Portfolio!$B$12,1,0,ctPort,1)=4)*(OFFSET(Active_Portfolio!$G$12,1,0,ctPort,1)=$BB10)*(OFFSET(Active_Portfolio!$K$12,1,0,ctPort,1)=DV$8)*(OFFSET(Active_Portfolio!$N$12,1,0,ctPort,1)<=DATE($E$3,1,1))*(OFFSET(Active_Portfolio!$O$12,1,0,ctPort,1)>DATE($E$3,1,1))*OFFSET(Active_Portfolio!$Z$12,1,0,ctPort,1),OFFSET(Active_Portfolio!$AH$12,1,0,ctPort,1)) -> 0 | DW10: =SUMPRODUCT((OFFSET(Active_Portfolio!$T$12,1,0,ctPort,1)=0)*(OFFSET(Active_Portfolio!$B$12,1,0,ctPort,1)=4)*(OFFSET(Active_Portfolio!$G$12,1,0,ctPort,1)=$BB10)*(OFFSET(Active_Portfolio!$K$12,1,0,ctPort,1)=DW$8)*(OFFSET(Active_Portfolio!$N$12,1,0,ctPort,1)<=DATE($E$3,1,1))*(OFFSET(Active_Portfolio!$O$12,1,0,ctPort,1)>DATE($E$3,1,1))*OFFSET(Active_Portfolio!$Z$12,1,0,ctPort,1),OFFSET(Active_Portfolio!$AH$12,1,0,ctPort,1)) -> 0 | DX10: 0 | EF10: 0 | EG10: 0
BB11: Amador County | BE11: =SUMPRODUCT((OFFSET(Active_Portfolio!$G$12,1,0,ctPort,1)=$BB11)*(OFFSET(Active_Portfolio!$K$12,1,0,ctPort,1)=BE$8)*(OFFSET(Active_Portfolio!$N$12,1,0,ctPort,1)<=DATE($E$3,1,1))*(OFFSET(Active_Portfolio!$O$12,1,0,ctPort,1)>DATE($E$3,1,1))*OFFSET(Active_Portfolio!$Z$12,1,0,ctPort,1),OFFSET(Active_Portfolio!$AH$12,1,0,ctPort,1)) -> 0 | BF11: =SUMPRODUCT((OFFSET(Active_Portfolio!$G$12,1,0,ctPort,1)=$BB11)*(OFFSET(Active_Portfolio!$K$12,1,0,ctPort,1)=BF$8)*(OFFSET(Active_Portfolio!$N$12,1,0,ctPort,1)<=DATE($E$3,1,1))*(OFFSET(Active_Portfolio!$O$12,1,0,ctPort,1)>DATE($E$3,1,1))*OFFSET(Active_Portfolio!$Z$12,1,0,ctPort,1),OFFSET(Active_Portfolio!$AH$12,1,0,ctPort,1)) -> 0 | BG11: =SUMPRODUCT((OFFSET(Active_Portfolio!$G$12,1,0,ctPort,1)=$BB11)*(OFFSET(Active_Portfolio!$K$12,1,0,ctPort,1)=BG$8)*(OFFSET(Active_Portfolio!$N$12,1,0,ctPort,1)<=DATE($E$3,1,1))*(OFFSET(Active_Portfolio!$O$12,1,0,ctPort,1)>DATE($E$3,1,1))*OFFSET(Active_Portfolio!$Z$12,1,0,ctPort,1),OFFSET(Active_Portfolio!$AH$12,1,0,ctPort,1)) -> 0 | BH11: =SUMPRODUCT((OFFSET(Active_Portfolio!$G$12,1,0,ctPort,1)=$BB11)*(OFFSET(Active_Portfolio!$K$12,1,0,ctPort,1)=BH$8)*(OFFSET(Active_Portfolio!$N$12,1,0,ctPort,1)<=DATE($E$3,1,1))*(OFFSET(Active_Portfolio!$O$12,1,0,ctPort,1)>DATE($E$3,1,1))*OFFSET(Active_Portfolio!$Z$12,1,0,ctPort,1),OFFSET(Active_Portfolio!$AH$12,1,0,ctPort,1)) -> 14.955 | BI11: =SUMPRODUCT((OFFSET(Active_Portfolio!$G$12,1,0,ctPort,1)=$BB11)*(OFFSET(Active_Portfolio!$K$12,1,0,ctPort,1)=BI$8)*(OFFSET(Active_Portfolio!$N$12,1,0,ctPort,1)<=DATE($E$3,1,1))*(OFFSET(Active_Portfolio!$O$12,1,0,ctPort,1)>DATE($E$3,1,1))*OFFSET(Active_Portfolio!$Z$12,1,0,ctPort,1),OFFSET(Active_Portfolio!$AH$12,1,0,ctPort,1)) -> 0 | BJ11: =SUMPRODUCT((OFFSET(Active_Portfolio!$G$12,1,0,ctPort,1)=$BB11)*(OFFSET(Active_Portfolio!$K$12,1,0,ctPort,1)=BJ$8)*(OFFSET(Active_Portfolio!$N$12,1,0,ctPort,1)<=DATE($E$3,1,1))*(OFFSET(Active_Portfolio!$O$12,1,0,ctPort,1)>DATE($E$3,1,1))*OFFSET(Active_Portfolio!$Z$12,1,0,ctPort,1),OFFSET(Active_Portfolio!$AH$12,1,0,ctPort,1)) -> 0 | BK11: =SUMPRODUCT((OFFSET(Active_Portfolio!$G$12,1,0,ctPort,1)=$BB11)*(OFFSET(Active_Portfolio!$K$12,1,0,ctPort,1)=BK$8)*(OFFSET(Active_Portfolio!$N$12,1,0,ctPort,1)<=DATE($E$3,1,1))*(OFFSET(Active_Portfolio!$O$12,1,0,ctPort,1)>DATE($E$3,1,1))*OFFSET(Active_Portfolio!$Z$12,1,0,ctPort,1),OFFSET(Active_Portfolio!$AH$12,1,0,ctPort,1)) -> 0 | BL11: 14.955 | BM11: =SUMPRODUCT((OFFSET(Active_Portfolio!$T$12,1,0,ctPort,1)=1)*(OFFSET(Active_Portfolio!$G$12,1,0,ctPort,1)=$BB11)*(OFFSET(Active_Portfolio!$K$12,1,0,ctPort,1)=BM$8)*(OFFSET(Active_Portfolio!$N$12,1,0,ctPort,1)<=DATE($E$3,1,1))*(OFFSET(Active_Portfolio!$O$12,1,0,ctPort,1)>DATE($E$3,1,1))*OFFSET(Active_Portfolio!$Z$12,1,0,ctPort,1),OFFSET(Active_Portfolio!$AH$12,1,0,ctPort,1)) -> 0 | BN11: =SUMPRODUCT((OFFSET(Active_Portfolio!$T$12,1,0,ctPort,1)=1)*(OFFSET(Active_Portfolio!$G$12,1,0,ctPort,1)=$BB11)*(OFFSET(Active_Portfolio!$K$12,1,0,ctPort,1)=BN$8)*(OFFSET(Active_Portfolio!$N$12,1,0,ctPort,1)<=DATE($E$3,1,1))*(OFFSET(Active_Portfolio!$O$12,1,0,ctPort,1)>DATE($E$3,1,1))*OFFSET(Active_Portfolio!$Z$12,1,0,ctPort,1),OFFSET(Active_Portfolio!$AH$12,1,0,ctPort,1)) -> 0 | BO11: =SUMPRODUCT((OFFSET(Active_Portfolio!$T$12,1,0,ctPort,1)=1)*(OFFSET(Active_Portfolio!$G$12,1,0,ctPort,1)=$BB11)*(OFFSET(Active_Portfolio!$K$12,1,0,ctPort,1)=BO$8)*(OFFSET(Active_Portfolio!$N$12,1,0,ctPort,1)<=DATE($E$3,1,1))*(OFFSET(Active_Portfolio!$O$12,1,0,ctPort,1)>DATE($E$3,1,1))*OFFSET(Active_Portfolio!$Z$12,1,0,ctPort,1),OFFSET(Active_Portfolio!$AH$12,1,0,ctPort,1)) -> 0 | BP11: =SUMPRODUCT((OFFSET(Active_Portfolio!$T$12,1,0,ctPort,1)=1)*(OFFSET(Active_Portfolio!$G$12,1,0,ctPort,1)=$BB11)*(OFFSET(Active_Portfolio!$K$12,1,0,ctPort,1)=BP$8)*(OFFSET(Active_Portfolio!$N$12,1,0,ctPort,1)<=DATE($E$3,1,1))*(OFFSET(Active_Portfolio!$O$12,1,0,ctPort,1)>DATE($E$3,1,1))*OFFSET(Active_Portfolio!$Z$12,1,0,ctPort,1),OFFSET(Active_Portfolio!$AH$12,1,0,ctPort,1)) -> 14.955 | BQ11: =SUMPRODUCT((OFFSET(Active_Portfolio!$T$12,1,0,ctPort,1)=1)*(OFFSET(Active_Portfolio!$G$12,1,0,ctPort,1)=$BB11)*(OFFSET(Active_Portfolio!$K$12,1,0,ctPort,1)=BQ$8)*(OFFSET(Active_Portfolio!$N$12,1,0,ctPort,1)<=DATE($E$3,1,1))*(OFFSET(Active_Portfolio!$O$12,1,0,ctPort,1)>DATE($E$3,1,1))*OFFSET(Active_Portfolio!$Z$12,1,0,ctPort,1),OFFSET(Active_Portfolio!$AH$12,1,0,ctPort,1)) -> 0 | BR11: =SUMPRODUCT((OFFSET(Active_Portfolio!$T$12,1,0,ctPort,1)=1)*(OFFSET(Active_Portfolio!$G$12,1,0,ctPort,1)=$BB11)*(OFFSET(Active_Portfolio!$K$12,1,0,ctPort,1)=BR$8)*(OFFSET(Active_Portfolio!$N$12,1,0,ctPort,1)<=DATE($E$3,1,1))*(OFFSET(Active_Portfolio!$O$12,1,0,ctPort,1)>DATE($E$3,1,1))*OFFSET(Active_Portfolio!$Z$12,1,0,ctPort,1),OFFSET(Active_Portfolio!$AH$12,1,0,ctPort,1)) -> 0 | BS11: =SUMPRODUCT((OFFSET(Active_Portfolio!$T$12,1,0,ctPort,1)=1)*(OFFSET(Active_Portfolio!$G$12,1,0,ctPort,1)=$BB11)*(OFFSET(Active_Portfolio!$K$12,1,0,ctPort,1)=BS$8)*(OFFSET(Active_Portfolio!$N$12,1,0,ctPort,1)<=DATE($E$3,1,1))*(OFFSET(Active_Portfolio!$O$12,1,0,ctPort,1)>DATE($E$3,1,1))*OFFSET(Active_Portfolio!$Z$12,1,0,ctPort,1),OFFSET(Active_Portfolio!$AH$12,1,0,ctPort,1)) -> 0 | BT11: 14.955 | BU11: =SUMPRODUCT((OFFSET(Active_Portfolio!$T$12,1,0,ctPort,1)=0)*(OFFSET(Active_Portfolio!$G$12,1,0,ctPort,1)=$BB11)*(OFFSET(Active_Portfolio!$K$12,1,0,ctPort,1)=BU$8)*(OFFSET(Active_Portfolio!$N$12,1,0,ctPort,1)<=DATE($E$3,1,1))*(OFFSET(Active_Portfolio!$O$12,1,0,ctPort,1)>DATE($E$3,1,1))*OFFSET(Active_Portfolio!$Z$12,1,0,ctPort,1),OFFSET(Active_Portfolio!$AH$12,1,0,ctPort,1)) -> 0 | BV11: =SUMPRODUCT((OFFSET(Active_Portfolio!$T$12,1,0,ctPort,1)=0)*(OFFSET(Active_Portfolio!$G$12,1,0,ctPort,1)=$BB11)*(OFFSET(Active_Portfolio!$K$12,1,0,ctPort,1)=BV$8)*(OFFSET(Active_Portfolio!$N$12,1,0,ctPort,1)<=DATE($E$3,1,1))*(OFFSET(Active_Portfolio!$O$12,1,0,ctPort,1)>DATE($E$3,1,1))*OFFSET(Active_Portfolio!$Z$12,1,0,ctPort,1),OFFSET(Active_Portfolio!$AH$12,1,0,ctPort,1)) -> 0 | BW11: =SUMPRODUCT((OFFSET(Active_Portfolio!$T$12,1,0,ctPort,1)=0)*(OFFSET(Active_Portfolio!$G$12,1,0,ctPort,1)=$BB11)*(OFFSET(Active_Portfolio!$K$12,1,0,ctPort,1)=BW$8)*(OFFSET(Active_Portfolio!$N$12,1,0,ctPort,1)<=DATE($E$3,1,1))*(OFFSET(Active_Portfolio!$O$12,1,0,ctPort,1)>DATE($E$3,1,1))*OFFSET(Active_Portfolio!$Z$12,1,0,ctPort,1),OFFSET(Active_Portfolio!$AH$12,1,0,ctPort,1)) -> 0 | BX11: =SUMPRODUCT((OFFSET(Active_Portfolio!$T$12,1,0,ctPort,1)=0)*(OFFSET(Active_Portfolio!$G$12,1,0,ctPort,1)=$BB11)*(OFFSET(Active_Portfolio!$K$12,1,0,ctPort,1)=BX$8)*(OFFSET(Active_Portfolio!$N$12,1,0,ctPort,1)<=DATE($E$3,1,1))*(OFFSET(Active_Portfolio!$O$12,1,0,ctPort,1)>DATE($E$3,1,1))*OFFSET(Active_Portfolio!$Z$12,1,0,ctPort,1),OFFSET(Active_Portfolio!$AH$12,1,0,ctPort,1)) -> 0 | BY11: =SUMPRODUCT((OFFSET(Active_Portfolio!$T$12,1,0,ctPort,1)=0)*(OFFSET(Active_Portfolio!$G$12,1,0,ctPort,1)=$BB11)*(OFFSET(Active_Portfolio!$K$12,1,0,ctPort,1)=BY$8)*(OFFSET(Active_Portfolio!$N$12,1,0,ctPort,1)<=DATE($E$3,1,1))*(OFFSET(Active_Portfolio!$O$12,1,0,ctPort,1)>DATE($E$3,1,1))*OFFSET(Active_Portfolio!$Z$12,1,0,ctPort,1),OFFSET(Active_Portfolio!$AH$12,1,0,ctPort,1)) -> 0 | BZ11: =SUMPRODUCT((OFFSET(Active_Portfolio!$T$12,1,0,ctPort,1)=0)*(OFFSET(Active_Portfolio!$G$12,1,0,ctPort,1)=$BB11)*(OFFSET(Active_Portfolio!$K$12,1,0,ctPort,1)=BZ$8)*(OFFSET(Active_Portfolio!$N$12,1,0,ctPort,1)<=DATE($E$3,1,1))*(OFFSET(Active_Portfolio!$O$12,1,0,ctPort,1)>DATE($E$3,1,1))*OFFSET(Active_Portfolio!$Z$12,1,0,ctPort,1),OFFSET(Active_Portfolio!$AH$12,1,0,ctPort,1)) -> 0 | CA11: =SUMPRODUCT((OFFSET(Active_Portfolio!$T$12,1,0,ctPort,1)=0)*(OFFSET(Active_Portfolio!$G$12,1,0,ctPort,1)=$BB11)*(OFFSET(Active_Portfolio!$K$12,1,0,ctPort,1)=CA$8)*(OFFSET(Active_Portfolio!$N$12,1,0,ctPort,1)<=DATE($E$3,1,1))*(OFFSET(Active_Portfolio!$O$12,1,0,ctPort,1)>DATE($E$3,1,1))*OFFSET(Active_Portfolio!$Z$12,1,0,ctPort,1),OFFSET(Active_Portfolio!$AH$12,1,0,ctPort,1)) -> 0 | CB11: 0 | CC11: =SUMPRODUCT((OFFSET(Active_Portfolio!$M$12,1,0,ctPort,1)="New")*(OFFSET(Active_Portfolio!$G$12,1,0,ctPort,1)=$BB11)*(OFFSET(Active_Portfolio!$K$12,1,0,ctPort,1)=CC$8)*(OFFSET(Active_Portfolio!$N$12,1,0,ctPort,1)<=DATE($E$3,1,1))*(OFFSET(Active_Portfolio!$O$12,1,0,ctPort,1)>DATE($E$3,1,1))*OFFSET(Active_Portfolio!$Z$12,1,0,ctPort,1),OFFSET(Active_Portfolio!$AH$12,1,0,ctPort,1)) -> 0 | CD11: =SUMPRODUCT((OFFSET(Active_Portfolio!$M$12,1,0,ctPort,1)="New")*(OFFSET(Active_Portfolio!$G$12,1,0,ctPort,1)=$BB11)*(OFFSET(Active_Portfolio!$K$12,1,0,ctPort,1)=CD$8)*(OFFSET(Active_Portfolio!$N$12,1,0,ctPort,1)<=DATE($E$3,1,1))*(OFFSET(Active_Portfolio!$O$12,1,0,ctPort,1)>DATE($E$3,1,1))*OFFSET(Active_Portfolio!$Z$12,1,0,ctPort,1),OFFSET(Active_Portfolio!$AH$12,1,0,ctPort,1)) -> 0 | CE11: =SUMPRODUCT((OFFSET(Active_Portfolio!$M$12,1,0,ctPort,1)="New")*(OFFSET(Active_Portfolio!$G$12,1,0,ctPort,1)=$BB11)*(OFFSET(Active_Portfolio!$K$12,1,0,ctPort,1)=CE$8)*(OFFSET(Active_Portfolio!$N$12,1,0,ctPort,1)<=DATE($E$3,1,1))*(OFFSET(Active_Portfolio!$O$12,1,0,ctPort,1)>DATE($E$3,1,1))*OFFSET(Active_Portfolio!$Z$12,1,0,ctPort,1),OFFSET(Active_Portfolio!$AH$12,1,0,ctPort,1)) -> 0 | CF11: =SUMPRODUCT((OFFSET(Active_Portfolio!$M$12,1,0,ctPort,1)="New")*(OFFSET(Active_Portfolio!$G$12,1,0,ctPort,1)=$BB11)*(OFFSET(Active_Portfolio!$K$12,1,0,ctPort,1)=CF$8)*(OFFSET(Active_Portfolio!$N$12,1,0,ctPort,1)<=DATE($E$3,1,1))*(OFFSET(Active_Portfolio!$O$12,1,0,ctPort,1)>DATE($E$3,1,1))*OFFSET(Active_Portfolio!$Z$12,1,0,ctPort,1),OFFSET(Active_Portfolio!$AH$12,1,0,ctPort,1)) -> 0 | CG11: =SUMPRODUCT((OFFSET(Active_Portfolio!$M$12,1,0,ctPort,1)="New")*(OFFSET(Active_Portfolio!$G$12,1,0,ctPort,1)=$BB11)*(OFFSET(Active_Portfolio!$K$12,1,0,ctPort,1)=CG$8)*(OFFSET(Active_Portfolio!$N$12,1,0,ctPort,1)<=DATE($E$3,1,1))*(OFFSET(Active_Portfolio!$O$12,1,0,ctPort,1)>DATE($E$3,1,1))*OFFSET(Active_Portfolio!$Z$12,1,0,ctPort,1),OFFSET(Active_Portfolio!$AH$12,1,0,ctPort,1)) -> 0 | CH11: =SUMPRODUCT((OFFSET(Active_Portfolio!$M$12,1,0,ctPort,1)="New")*(OFFSET(Active_Portfolio!$G$12,1,0,ctPort,1)=$BB11)*(OFFSET(Active_Portfolio!$K$12,1,0,ctPort,1)=CH$8)*(OFFSET(Active_Portfolio!$N$12,1,0,ctPort,1)<=DATE($E$3,1,1))*(OFFSET(Active_Portfolio!$O$12,1,0,ctPort,1)>DATE($E$3,1,1))*OFFSET(Active_Portfolio!$Z$12,1,0,ctPort,1),OFFSET(Active_Portfolio!$AH$12,1,0,ctPort,1)) -> 0 | CI11: =SUMPRODUCT((OFFSET(Active_Portfolio!$M$12,1,0,ctPort,1)="New")*(OFFSET(Active_Portfolio!$G$12,1,0,ctPort,1)=$BB11)*(OFFSET(Active_Portfolio!$K$12,1,0,ctPort,1)=CI$8)*(OFFSET(Active_Portfolio!$N$12,1,0,ctPort,1)<=DATE($E$3,1,1))*(OFFSET(Active_Portfolio!$O$12,1,0,ctPort,1)>DATE($E$3,1,1))*OFFSET(Active_Portfolio!$Z$12,1,0,ctPort,1),OFFSET(Active_Portfolio!$AH$12,1,0,ctPort,1)) -> 0 | CJ11: 0 | CK11: =SUMPRODUCT((OFFSET(Active_Portfolio!$T$12,1,0,ctPort,1)=1)*(OFFSET(Active_Portfolio!$M$12,1,0,ctPort,1)="New")*(OFFSET(Active_Portfolio!$G$12,1,0,ctPort,1)=$BB11)*(OFFSET(Active_Portfolio!$K$12,1,0,ctPort,1)=CK$8)*(OFFSET(Active_Portfolio!$N$12,1,0,ctPort,1)<=DATE($E$3,1,1))*(OFFSET(Active_Portfolio!$O$12,1,0,ctPort,1)>DATE($E$3,1,1))*OFFSET(Active_Portfolio!$Z$12,1,0,ctPort,1),OFFSET(Active_Portfolio!$AH$12,1,0,ctPort,1)) -> 0 | CL11: =SUMPRODUCT((OFFSET(Active_Portfolio!$T$12,1,0,ctPort,1)=1)*(OFFSET(Active_Portfolio!$M$12,1,0,ctPort,1)="New")*(OFFSET(Active_Portfolio!$G$12,1,0,ctPort,1)=$BB11)*(OFFSET(Active_Portfolio!$K$12,1,0,ctPort,1)=CL$8)*(OFFSET(Active_Portfolio!$N$12,1,0,ctPort,1)<=DATE($E$3,1,1))*(OFFSET(Active_Portfolio!$O$12,1,0,ctPort,1)>DATE($E$3,1,1))*OFFSET(Active_Portfolio!$Z$12,1,0,ctPort,1),OFFSET(Active_Portfolio!$AH$12,1,0,ctPort,1)) -> 0 | CM11: =SUMPRODUCT((OFFSET(Active_Portfolio!$T$12,1,0,ctPort,1)=1)*(OFFSET(Active_Portfolio!$M$12,1,0,ctPort,1)="New")*(OFFSET(Active_Portfolio!$G$12,1,0,ctPort,1)=$BB11)*(OFFSET(Active_Portfolio!$K$12,1,0,ctPort,1)=CM$8)*(OFFSET(Active_Portfolio!$N$12,1,0,ctPort,1)<=DATE($E$3,1,1))*(OFFSET(Active_Portfolio!$O$12,1,0,ctPort,1)>DATE($E$3,1,1))*OFFSET(Active_Portfolio!$Z$12,1,0,ctPort,1),OFFSET(Active_Portfolio!$AH$12,1,0,ctPort,1)) -> 0 | CN11: =SUMPRODUCT((OFFSET(Active_Portfolio!$T$12,1,0,ctPort,1)=1)*(OFFSET(Active_Portfolio!$M$12,1,0,ctPort,1)="New")*(OFFSET(Active_Portfolio!$G$12,1,0,ctPort,1)=$BB11)*(OFFSET(Active_Portfolio!$K$12,1,0,ctPort,1)=CN$8)*(OFFSET(Active_Portfolio!$N$12,1,0,ctPort,1)<=DATE($E$3,1,1))*(OFFSET(Active_Portfolio!$O$12,1,0,ctPort,1)>DATE($E$3,1,1))*OFFSET(Active_Portfolio!$Z$12,1,0,ctPort,1),OFFSET(Active_Portfolio!$AH$12,1,0,ctPort,1)) -> 0 | CO11: =SUMPRODUCT((OFFSET(Active_Portfolio!$T$12,1,0,ctPort,1)=1)*(OFFSET(Active_Portfolio!$M$12,1,0,ctPort,1)="New")*(OFFSET(Active_Portfolio!$G$12,1,0,ctPort,1)=$BB11)*(OFFSET(Active_Portfolio!$K$12,1,0,ctPort,1)=CO$8)*(OFFSET(Active_Portfolio!$N$12,1,0,ctPort,1)<=DATE($E$3,1,1))*(OFFSET(Active_Portfolio!$O$12,1,0,ctPort,1)>DATE($E$3,1,1))*OFFSET(Active_Portfolio!$Z$12,1,0,ctPort,1),OFFSET(Active_Portfolio!$AH$12,1,0,ctPort,1)) -> 0 | CP11: =SUMPRODUCT((OFFSET(Active_Portfolio!$T$12,1,0,ctPort,1)=1)*(OFFSET(Active_Portfolio!$M$12,1,0,ctPort,1)="New")*(OFFSET(Active_Portfolio!$G$12,1,0,ctPort,1)=$BB11)*(OFFSET(Active_Portfolio!$K$12,1,0,ctPort,1)=CP$8)*(OFFSET(Active_Portfolio!$N$12,1,0,ctPort,1)<=DATE($E$3,1,1))*(OFFSET(Active_Portfolio!$O$12,1,0,ctPort,1)>DATE($E$3,1,1))*OFFSET(Active_Portfolio!$Z$12,1,0,ctPort,1),OFFSET(Active_Portfolio!$AH$12,1,0,ctPort,1)) -> 0 | CQ11: =SUMPRODUCT((OFFSET(Active_Portfolio!$T$12,1,0,ctPort,1)=1)*(OFFSET(Active_Portfolio!$M$12,1,0,ctPort,1)="New")*(OFFSET(Active_Portfolio!$G$12,1,0,ctPort,1)=$BB11)*(OFFSET(Active_Portfolio!$K$12,1,0,ctPort,1)=CQ$8)*(OFFSET(Active_Portfolio!$N$12,1,0,ctPort,1)<=DATE($E$3,1,1))*(OFFSET(Active_Portfolio!$O$12,1,0,ctPort,1)>DATE($E$3,1,1))*OFFSET(Active_Portfolio!$Z$12,1,0,ctPort,1),OFFSET(Active_Portfolio!$AH$12,1,0,ctPort,1)) -> 0 | CR11: 0 | CS11: =SUMPRODUCT((OFFSET(Active_Portfolio!$T$12,1,0,ctPort,1)=0)*(OFFSET(Active_Portfolio!$M$12,1,0,ctPort,1)="New")*(OFFSET(Active_Portfolio!$G$12,1,0,ctPort,1)=$BB11)*(OFFSET(Active_Portfolio!$K$12,1,0,ctPort,1)=CS$8)*(OFFSET(Active_Portfolio!$N$12,1,0,ctPort,1)<=DATE($E$3,1,1))*(OFFSET(Active_Portfolio!$O$12,1,0,ctPort,1)>DATE($E$3,1,1))*OFFSET(Active_Portfolio!$Z$12,1,0,ctPort,1),OFFSET(Active_Portfolio!$AH$12,1,0,ctPort,1)) -> 0 | CT11: =SUMPRODUCT((OFFSET(Active_Portfolio!$T$12,1,0,ctPort,1)=0)*(OFFSET(Active_Portfolio!$M$12,1,0,ctPort,1)="New")*(OFFSET(Active_Portfolio!$G$12,1,0,ctPort,1)=$BB11)*(OFFSET(Active_Portfolio!$K$12,1,0,ctPort,1)=CT$8)*(OFFSET(Active_Portfolio!$N$12,1,0,ctPort,1)<=DATE($E$3,1,1))*(OFFSET(Active_Portfolio!$O$12,1,0,ctPort,1)>DATE($E$3,1,1))*OFFSET(Active_Portfolio!$Z$12,1,0,ctPort,1),OFFSET(Active_Portfolio!$AH$12,1,0,ctPort,1)) -> 0 | CU11: =SUMPRODUCT((OFFSET(Active_Portfolio!$T$12,1,0,ctPort,1)=0)*(OFFSET(Active_Portfolio!$M$12,1,0,ctPort,1)="New")*(OFFSET(Active_Portfolio!$G$12,1,0,ctPort,1)=$BB11)*(OFFSET(Active_Portfolio!$K$12,1,0,ctPort,1)=CU$8)*(OFFSET(Active_Portfolio!$N$12,1,0,ctPort,1)<=DATE($E$3,1,1))*(OFFSET(Active_Portfolio!$O$12,1,0,ctPort,1)>DATE($E$3,1,1))*OFFSET(Active_Portfolio!$Z$12,1,0,ctPort,1),OFFSET(Active_Portfolio!$AH$12,1,0,ctPort,1)) -> 0 | CV11: =SUMPRODUCT((OFFSET(Active_Portfolio!$T$12,1,0,ctPort,1)=0)*(OFFSET(Active_Portfolio!$M$12,1,0,ctPort,1)="New")*(OFFSET(Active_Portfolio!$G$12,1,0,ctPort,1)=$BB11)*(OFFSET(Active_Portfolio!$K$12,1,0,ctPort,1)=CV$8)*(OFFSET(Active_Portfolio!$N$12,1,0,ctPort,1)<=DATE($E$3,1,1))*(OFFSET(Active_Portfolio!$O$12,1,0,ctPort,1)>DATE($E$3,1,1))*OFFSET(Active_Portfolio!$Z$12,1,0,ctPort,1),OFFSET(Active_Portfolio!$AH$12,1,0,ctPort,1)) -> 0 | CW11: =SUMPRODUCT((OFFSET(Active_Portfolio!$T$12,1,0,ctPort,1)=0)*(OFFSET(Active_Portfolio!$M$12,1,0,ctPort,1)="New")*(OFFSET(Active_Portfolio!$G$12,1,0,ctPort,1)=$BB11)*(OFFSET(Active_Portfolio!$K$12,1,0,ctPort,1)=CW$8)*(OFFSET(Active_Portfolio!$N$12,1,0,ctPort,1)<=DATE($E$3,1,1))*(OFFSET(Active_Portfolio!$O$12,1,0,ctPort,1)>DATE($E$3,1,1))*OFFSET(Active_Portfolio!$Z$12,1,0,ctPort,1),OFFSET(Active_Portfolio!$AH$12,1,0,ctPort,1)) -> 0 | CX11: =SUMPRODUCT((OFFSET(Active_Portfolio!$T$12,1,0,ctPort,1)=0)*(OFFSET(Active_Portfolio!$M$12,1,0,ctPort,1)="New")*(OFFSET(Active_Portfolio!$G$12,1,0,ctPort,1)=$BB11)*(OFFSET(Active_Portfolio!$K$12,1,0,ctPort,1)=CX$8)*(OFFSET(Active_Portfolio!$N$12,1,0,ctPort,1)<=DATE($E$3,1,1))*(OFFSET(Active_Portfolio!$O$12,1,0,ctPort,1)>DATE($E$3,1,1))*OFFSET(Active_Portfolio!$Z$12,1,0,ctPort,1),OFFSET(Active_Portfolio!$AH$12,1,0,ctPort,1)) -> 0 | CY11: =SUMPRODUCT((OFFSET(Active_Portfolio!$T$12,1,0,ctPort,1)=0)*(OFFSET(Active_Portfolio!$M$12,1,0,ctPort,1)="New")*(OFFSET(Active_Portfolio!$G$12,1,0,ctPort,1)=$BB11)*(OFFSET(Active_Portfolio!$K$12,1,0,ctPort,1)=CY$8)*(OFFSET(Active_Portfolio!$N$12,1,0,ctPort,1)<=DATE($E$3,1,1))*(OFFSET(Active_Portfolio!$O$12,1,0,ctPort,1)>DATE($E$3,1,1))*OFFSET(Active_Portfolio!$Z$12,1,0,ctPort,1),OFFSET(Active_Portfolio!$AH$12,1,0,ctPort,1)) -> 0 | CZ11: 0 | DA11: =SUMPRODUCT((OFFSET(Active_Portfolio!$B$12,1,0,ctPort,1)=4)*(OFFSET(Active_Portfolio!$G$12,1,0,ctPort,1)=$BB11)*(OFFSET(Active_Portfolio!$K$12,1,0,ctPort,1)=DA$8)*(OFFSET(Active_Portfolio!$N$12,1,0,ctPort,1)<=DATE($E$3,1,1))*(OFFSET(Active_Portfolio!$O$12,1,0,ctPort,1)>DATE($E$3,1,1))*OFFSET(Active_Portfolio!$Z$12,1,0,ctPort,1),OFFSET(Active_Portfolio!$AH$12,1,0,ctPort,1)) -> 0 | DB11: =SUMPRODUCT((OFFSET(Active_Portfolio!$B$12,1,0,ctPort,1)=4)*(OFFSET(Active_Portfolio!$G$12,1,0,ctPort,1)=$BB11)*(OFFSET(Active_Portfolio!$K$12,1,0,ctPort,1)=DB$8)*(OFFSET(Active_Portfolio!$N$12,1,0,ctPort,1)<=DATE($E$3,1,1))*(OFFSET(Active_Portfolio!$O$12,1,0,ctPort,1)>DATE($E$3,1,1))*OFFSET(Active_Portfolio!$Z$12,1,0,ctPort,1),OFFSET(Active_Portfolio!$AH$12,1,0,ctPort,1)) -> 0 | DC11: =SUMPRODUCT((OFFSET(Active_Portfolio!$B$12,1,0,ctPort,1)=4)*(OFFSET(Active_Portfolio!$G$12,1,0,ctPort,1)=$BB11)*(OFFSET(Active_Portfolio!$K$12,1,0,ctPort,1)=DC$8)*(OFFSET(Active_Portfolio!$N$12,1,0,ctPort,1)<=DATE($E$3,1,1))*(OFFSET(Active_Portfolio!$O$12,1,0,ctPort,1)>DATE($E$3,1,1))*OFFSET(Active_Portfolio!$Z$12,1,0,ctPort,1),OFFSET(Active_Portfolio!$AH$12,1,0,ctPort,1)) -> 0 | DD11: =SUMPRODUCT((OFFSET(Active_Portfolio!$B$12,1,0,ctPort,1)=4)*(OFFSET(Active_Portfolio!$G$12,1,0,ctPort,1)=$BB11)*(OFFSET(Active_Portfolio!$K$12,1,0,ctPort,1)=DD$8)*(OFFSET(Active_Portfolio!$N$12,1,0,ctPort,1)<=DATE($E$3,1,1))*(OFFSET(Active_Portfolio!$O$12,1,0,ctPort,1)>DATE($E$3,1,1))*OFFSET(Active_Portfolio!$Z$12,1,0,ctPort,1),OFFSET(Active_Portfolio!$AH$12,1,0,ctPort,1)) -> 0 | DE11: =SUMPRODUCT((OFFSET(Active_Portfolio!$B$12,1,0,ctPort,1)=4)*(OFFSET(Active_Portfolio!$G$12,1,0,ctPort,1)=$BB11)*(OFFSET(Active_Portfolio!$K$12,1,0,ctPort,1)=DE$8)*(OFFSET(Active_Portfolio!$N$12,1,0,ctPort,1)<=DATE($E$3,1,1))*(OFFSET(Active_Portfolio!$O$12,1,0,ctPort,1)>DATE($E$3,1,1))*OFFSET(Active_Portfolio!$Z$12,1,0,ctPort,1),OFFSET(Active_Portfolio!$AH$12,1,0,ctPort,1)) -> 0 | DF11: =SUMPRODUCT((OFFSET(Active_Portfolio!$B$12,1,0,ctPort,1)=4)*(OFFSET(Active_Portfolio!$G$12,1,0,ctPort,1)=$BB11)*(OFFSET(Active_Portfolio!$K$12,1,0,ctPort,1)=DF$8)*(OFFSET(Active_Portfolio!$N$12,1,0,ctPort,1)<=DATE($E$3,1,1))*(OFFSET(Active_Portfolio!$O$12,1,0,ctPort,1)>DATE($E$3,1,1))*OFFSET(Active_Portfolio!$Z$12,1,0,ctPort,1),OFFSET(Active_Portfolio!$AH$12,1,0,ctPort,1)) -> 0 | DG11: =SUMPRODUCT((OFFSET(Active_Portfolio!$B$12,1,0,ctPort,1)=4)*(OFFSET(Active_Portfolio!$G$12,1,0,ctPort,1)=$BB11)*(OFFSET(Active_Portfolio!$K$12,1,0,ctPort,1)=DG$8)*(OFFSET(Active_Portfolio!$N$12,1,0,ctPort,1)<=DATE($E$3,1,1))*(OFFSET(Active_Portfolio!$O$12,1,0,ctPort,1)>DATE($E$3,1,1))*OFFSET(Active_Portfolio!$Z$12,1,0,ctPort,1),OFFSET(Active_Portfolio!$AH$12,1,0,ctPort,1)) -> 0 | DH11: 0 | DI11: =SUMPRODUCT((OFFSET(Active_Portfolio!$T$12,1,0,ctPort,1)=1)*(OFFSET(Active_Portfolio!$B$12,1,0,ctPort,1)=4)*(OFFSET(Active_Portfolio!$G$12,1,0,ctPort,1)=$BB11)*(OFFSET(Active_Portfolio!$K$12,1,0,ctPort,1)=DI$8)*(OFFSET(Active_Portfolio!$N$12,1,0,ctPort,1)<=DATE($E$3,1,1))*(OFFSET(Active_Portfolio!$O$12,1,0,ctPort,1)>DATE($E$3,1,1))*OFFSET(Active_Portfolio!$Z$12,1,0,ctPort,1),OFFSET(Active_Portfolio!$AH$12,1,0,ctPort,1)) -> 0 | DJ11: =SUMPRODUCT((OFFSET(Active_Portfolio!$T$12,1,0,ctPort,1)=1)*(OFFSET(Active_Portfolio!$B$12,1,0,ctPort,1)=4)*(OFFSET(Active_Portfolio!$G$12,1,0,ctPort,1)=$BB11)*(OFFSET(Active_Portfolio!$K$12,1,0,ctPort,1)=DJ$8)*(OFFSET(Active_Portfolio!$N$12,1,0,ctPort,1)<=DATE($E$3,1,1))*(OFFSET(Active_Portfolio!$O$12,1,0,ctPort,1)>DATE($E$3,1,1))*OFFSET(Active_Portfolio!$Z$12,1,0,ctPort,1),OFFSET(Active_Portfolio!$AH$12,1,0,ctPort,1)) -> 0 | DK11: =SUMPRODUCT((OFFSET(Active_Portfolio!$T$12,1,0,ctPort,1)=1)*(OFFSET(Active_Portfolio!$B$12,1,0,ctPort,1)=4)*(OFFSET(Active_Portfolio!$G$12,1,0,ctPort,1)=$BB11)*(OFFSET(Active_Portfolio!$K$12,1,0,ctPort,1)=DK$8)*(OFFSET(Active_Portfolio!$N$12,1,0,ctPort,1)<=DATE($E$3,1,1))*(OFFSET(Active_Portfolio!$O$12,1,0,ctPort,1)>DATE($E$3,1,1))*OFFSET(Active_Portfolio!$Z$12,1,0,ctPort,1),OFFSET(Active_Portfolio!$AH$12,1,0,ctPort,1)) -> 0 | DL11: =SUMPRODUCT((OFFSET(Active_Portfolio!$T$12,1,0,ctPort,1)=1)*(OFFSET(Active_Portfolio!$B$12,1,0,ctPort,1)=4)*(OFFSET(Active_Portfolio!$G$12,1,0,ctPort,1)=$BB11)*(OFFSET(Active_Portfolio!$K$12,1,0,ctPort,1)=DL$8)*(OFFSET(Active_Portfolio!$N$12,1,0,ctPort,1)<=DATE($E$3,1,1))*(OFFSET(Active_Portfolio!$O$12,1,0,ctPort,1)>DATE($E$3,1,1))*OFFSET(Active_Portfolio!$Z$12,1,0,ctPort,1),OFFSET(Active_Portfolio!$AH$12,1,0,ctPort,1)) -> 0 | DM11: =SUMPRODUCT((OFFSET(Active_Portfolio!$T$12,1,0,ctPort,1)=1)*(OFFSET(Active_Portfolio!$B$12,1,0,ctPort,1)=4)*(OFFSET(Active_Portfolio!$G$12,1,0,ctPort,1)=$BB11)*(OFFSET(Active_Portfolio!$K$12,1,0,ctPort,1)=DM$8)*(OFFSET(Active_Portfolio!$N$12,1,0,ctPort,1)<=DATE($E$3,1,1))*(OFFSET(Active_Portfolio!$O$12,1,0,ctPort,1)>DATE($E$3,1,1))*OFFSET(Active_Portfolio!$Z$12,1,0,ctPort,1),OFFSET(Active_Portfolio!$AH$12,1,0,ctPort,1)) -> 0 | DN11: =SUMPRODUCT((OFFSET(Active_Portfolio!$T$12,1,0,ctPort,1)=1)*(OFFSET(Active_Portfolio!$B$12,1,0,ctPort,1)=4)*(OFFSET(Active_Portfolio!$G$12,1,0,ctPort,1)=$BB11)*(OFFSET(Active_Portfolio!$K$12,1,0,ctPort,1)=DN$8)*(OFFSET(Active_Portfolio!$N$12,1,0,ctPort,1)<=DATE($E$3,1,1))*(OFFSET(Active_Portfolio!$O$12,1,0,ctPort,1)>DATE($E$3,1,1))*OFFSET(Active_Portfolio!$Z$12,1,0,ctPort,1),OFFSET(Active_Portfolio!$AH$12,1,0,ctPort,1)) -> 0 | DO11: =SUMPRODUCT((OFFSET(Active_Portfolio!$T$12,1,0,ctPort,1)=1)*(OFFSET(Active_Portfolio!$B$12,1,0,ctPort,1)=4)*(OFFSET(Active_Portfolio!$G$12,1,0,ctPort,1)=$BB11)*(OFFSET(Active_Portfolio!$K$12,1,0,ctPort,1)=DO$8)*(OFFSET(Active_Portfolio!$N$12,1,0,ctPort,1)<=DATE($E$3,1,1))*(OFFSET(Active_Portfolio!$O$12,1,0,ctPort,1)>DATE($E$3,1,1))*OFFSET(Active_Portfolio!$Z$12,1,0,ctPort,1),OFFSET(Active_Portfolio!$AH$12,1,0,ctPort,1)) -> 0 | DP11: 0 | DQ11: =SUMPRODUCT((OFFSET(Active_Portfolio!$T$12,1,0,ctPort,1)=0)*(OFFSET(Active_Portfolio!$B$12,1,0,ctPort,1)=4)*(OFFSET(Active_Portfolio!$G$12,1,0,ctPort,1)=$BB11)*(OFFSET(Active_Portfolio!$K$12,1,0,ctPort,1)=DQ$8)*(OFFSET(Active_Portfolio!$N$12,1,0,ctPort,1)<=DATE($E$3,1,1))*(OFFSET(Active_Portfolio!$O$12,1,0,ctPort,1)>DATE($E$3,1,1))*OFFSET(Active_Portfolio!$Z$12,1,0,ctPort,1),OFFSET(Active_Portfolio!$AH$12,1,0,ctPort,1)) -> 0 | DR11: =SUMPRODUCT((OFFSET(Active_Portfolio!$T$12,1,0,ctPort,1)=0)*(OFFSET(Active_Portfolio!$B$12,1,0,ctPort,1)=4)*(OFFSET(Active_Portfolio!$G$12,1,0,ctPort,1)=$BB11)*(OFFSET(Active_Portfolio!$K$12,1,0,ctPort,1)=DR$8)*(OFFSET(Active_Portfolio!$N$12,1,0,ctPort,1)<=DATE($E$3,1,1))*(OFFSET(Active_Portfolio!$O$12,1,0,ctPort,1)>DATE($E$3,1,1))*OFFSET(Active_Portfolio!$Z$12,1,0,ctPort,1),OFFSET(Active_Portfolio!$AH$12,1,0,ctPort,1)) -> 0 | DS11: =SUMPRODUCT((OFFSET(Active_Portfolio!$T$12,1,0,ctPort,1)=0)*(OFFSET(Active_Portfolio!$B$12,1,0,ctPort,1)=4)*(OFFSET(Active_Portfolio!$G$12,1,0,ctPort,1)=$BB11)*(OFFSET(Active_Portfolio!$K$12,1,0,ctPort,1)=DS$8)*(OFFSET(Active_Portfolio!$N$12,1,0,ctPort,1)<=DATE($E$3,1,1))*(OFFSET(Active_Portfolio!$O$12,1,0,ctPort,1)>DATE($E$3,1,1))*OFFSET(Active_Portfolio!$Z$12,1,0,ctPort,1),OFFSET(Active_Portfolio!$AH$12,1,0,ctPort,1)) -> 0 | DT11: =SUMPRODUCT((OFFSET(Active_Portfolio!$T$12,1,0,ctPort,1)=0)*(OFFSET(Active_Portfolio!$B$12,1,0,ctPort,1)=4)*(OFFSET(Active_Portfolio!$G$12,1,0,ctPort,1)=$BB11)*(OFFSET(Active_Portfolio!$K$12,1,0,ctPort,1)=DT$8)*(OFFSET(Active_Portfolio!$N$12,1,0,ctPort,1)<=DATE($E$3,1,1))*(OFFSET(Active_Portfolio!$O$12,1,0,ctPort,1)>DATE($E$3,1,1))*OFFSET(Active_Portfolio!$Z$12,1,0,ctPort,1),OFFSET(Active_Portfolio!$AH$12,1,0,ctPort,1)) -> 0 | DU11: =SUMPRODUCT((OFFSET(Active_Portfolio!$T$12,1,0,ctPort,1)=0)*(OFFSET(Active_Portfolio!$B$12,1,0,ctPort,1)=4)*(OFFSET(Active_Portfolio!$G$12,1,0,ctPort,1)=$BB11)*(OFFSET(Active_Portfolio!$K$12,1,0,ctPort,1)=DU$8)*(OFFSET(Active_Portfolio!$N$12,1,0,ctPort,1)<=DATE($E$3,1,1))*(OFFSET(Active_Portfolio!$O$12,1,0,ctPort,1)>DATE($E$3,1,1))*OFFSET(Active_Portfolio!$Z$12,1,0,ctPort,1),OFFSET(Active_Portfolio!$AH$12,1,0,ctPort,1)) -> 0 | DV11: =SUMPRODUCT((OFFSET(Active_Portfolio!$T$12,1,0,ctPort,1)=0)*(OFFSET(Active_Portfolio!$B$12,1,0,ctPort,1)=4)*(OFFSET(Active_Portfolio!$G$12,1,0,ctPort,1)=$BB11)*(OFFSET(Active_Portfolio!$K$12,1,0,ctPort,1)=DV$8)*(OFFSET(Active_Portfolio!$N$12,1,0,ctPort,1)<=DATE($E$3,1,1))*(OFFSET(Active_Portfolio!$O$12,1,0,ctPort,1)>DATE($E$3,1,1))*OFFSET(Active_Portfolio!$Z$12,1,0,ctPort,1),OFFSET(Active_Portfolio!$AH$12,1,0,ctPort,1)) -> 0 | DW11: =SUMPRODUCT((OFFSET(Active_Portfolio!$T$12,1,0,ctPort,1)=0)*(OFFSET(Active_Portfolio!$B$12,1,0,ctPort,1)=4)*(OFFSET(Active_Portfolio!$G$12,1,0,ctPort,1)=$BB11)*(OFFSET(Active_Portfolio!$K$12,1,0,ctPort,1)=DW$8)*(OFFSET(Active_Portfolio!$N$12,1,0,ctPort,1)<=DATE($E$3,1,1))*(OFFSET(Active_Portfolio!$O$12,1,0,ctPort,1)>DATE($E$3,1,1))*OFFSET(Active_Portfolio!$Z$12,1,0,ctPort,1),OFFSET(Active_Portfolio!$AH$12,1,0,ctPort,1)) -> 0 | DX11: 0 | EB11: -120.55 | EC11: 38.47 | EF11: -120.55 | EG11: 38.47
O12: CREZ | R12: Biogas | S12: Biomass | T12: Geothermal | U12: Hydro | V12: Solar PV | W12: Solar Thermal | X12: Wind | Y12: Total | AN12: CREZ | AQ12: Biogas | AR12: Biomass | AS12: Geothermal | AT12: Hydro | AU12: Solar PV | AV12: Solar Thermal | AW12: Wind | AX12: Total | BB12: Barstow | BE12: =SUMPRODUCT((OFFSET(Active_Portfolio!$G$12,1,0,ctPort,1)=$BB12)*(OFFSET(Active_Portfolio!$K$12,1,0,ctPort,1)=BE$8)*(OFFSET(Active_Portfolio!$N$12,1,0,ctPort,1)<=DATE($E$3,1,1))*(OFFSET(Active_Portfolio!$O$12,1,0,ctPort,1)>DATE($E$3,1,1))*OFFSET(Active_Portfolio!$Z$12,1,0,ctPort,1),OFFSET(Active_Portfolio!$AH$12,1,0,ctPort,1)) -> 0 | BF12: =SUMPRODUCT((OFFSET(Active_Portfolio!$G$12,1,0,ctPort,1)=$BB12)*(OFFSET(Active_Portfolio!$K$12,1,0,ctPort,1)=BF$8)*(OFFSET(Active_Portfolio!$N$12,1,0,ctPort,1)<=DATE($E$3,1,1))*(OFFSET(Active_Portfolio!$O$12,1,0,ctPort,1)>DATE($E$3,1,1))*OFFSET(Active_Portfolio!$Z$12,1,0,ctPort,1),OFFSET(Active_Portfolio!$AH$12,1,0,ctPort,1)) -> 0 | BG12: =SUMPRODUCT((OFFSET(Active_Portfolio!$G$12,1,0,ctPort,1)=$BB12)*(OFFSET(Active_Portfolio!$K$12,1,0,ctPort,1)=BG$8)*(OFFSET(Active_Portfolio!$N$12,1,0,ctPort,1)<=DATE($E$3,1,1))*(OFFSET(Active_Portfolio!$O$12,1,0,ctPort,1)>DATE($E$3,1,1))*OFFSET(Active_Portfolio!$Z$12,1,0,ctPort,1),OFFSET(Active_Portfolio!$AH$12,1,0,ctPort,1)) -> 0 | BH12: =SUMPRODUCT((OFFSET(Active_Portfolio!$G$12,1,0,ctPort,1)=$BB12)*(OFFSET(Active_Portfolio!$K$12,1,0,ctPort,1)=BH$8)*(OFFSET(Active_Portfolio!$N$12,1,0,ctPort,1)<=DATE($E$3,1,1))*(OFFSET(Active_Portfolio!$O$12,1,0,ctPort,1)>DATE($E$3,1,1))*OFFSET(Active_Portfolio!$Z$12,1,0,ctPort,1),OFFSET(Active_Portfolio!$AH$12,1,0,ctPort,1)) -> 0 | BI12: =SUMPRODUCT((OFFSET(Active_Portfolio!$G$12,1,0,ctPort,1)=$BB12)*(OFFSET(Active_Portfolio!$K$12,1,0,ctPort,1)=BI$8)*(OFFSET(Active_Portfolio!$N$12,1,0,ctPort,1)<=DATE($E$3,1,1))*(OFFSET(Active_Portfolio!$O$12,1,0,ctPort,1)>DATE($E$3,1,1))*OFFSET(Active_Portfolio!$Z$12,1,0,ctPort,1),OFFSET(Active_Portfolio!$AH$12,1,0,ctPort,1)) -> 19.292 | BJ12: =SUMPRODUCT((OFFSET(Active_Portfolio!$G$12,1,0,ctPort,1)=$BB12)*(OFFSET(Active_Portfolio!$K$12,1,0,ctPort,1)=BJ$8)*(OFFSET(Active_Portfolio!$N$12,1,0,ctPort,1)<=DATE($E$3,1,1))*(OFFSET(Active_Portfolio!$O$12,1,0,ctPort,1)>DATE($E$3,1,1))*OFFSET(Active_Portfolio!$Z$12,1,0,ctPort,1),OFFSET(Active_Portfolio!$AH$12,1,0,ctPort,1)) -> 0 | BK12: =SUMPRODUCT((OFFSET(Active_Portfolio!$G$12,1,0,ctPort,1)=$BB12)*(OFFSET(Active_Portfolio!$K$12,1,0,ctPort,1)=BK$8)*(OFFSET(Active_Portfolio!$N$12,1,0,ctPort,1)<=DATE($E$3,1,1))*(OFFSET(Active_Portfolio!$O$12,1,0,ctPort,1)>DATE($E$3,1,1))*OFFSET(Active_Portfolio!$Z$12,1,0,ctPort,1),OFFSET(Active_Portfolio!$AH$12,1,0,ctPort,1)) -> 174.72 | BL12: 194.012 | BM12: =SUMPRODUCT((OFFSET(Active_Portfolio!$T$12,1,0,ctPort,1)=1)*(OFFSET(Active_Portfolio!$G$12,1,0,ctPort,1)=$BB12)*(OFFSET(Active_Portfolio!$K$12,1,0,ctPort,1)=BM$8)*(OFFSET(Active_Portfolio!$N$12,1,0,ctPort,1)<=DATE($E$3,1,1))*(OFFSET(Active_Portfolio!$O$12,1,0,ctPort,1)>DATE($E$3,1,1))*OFFSET(Active_Portfolio!$Z$12,1,0,ctPort,1),OFFSET(Active_Portfolio!$AH$12,1,0,ctPort,1)) -> 0 | BN12: =SUMPRODUCT((OFFSET(Active_Portfolio!$T$12,1,0,ctPort,1)=1)*(OFFSET(Active_Portfolio!$G$12,1,0,ctPort,1)=$BB12)*(OFFSET(Active_Portfolio!$K$12,1,0,ctPort,1)=BN$8)*(OFFSET(Active_Portfolio!$N$12,1,0,ctPort,1)<=DATE($E$3,1,1))*(OFFSET(Active_Portfolio!$O$12,1,0,ctPort,1)>DATE($E$3,1,1))*OFFSET(Active_Portfolio!$Z$12,1,0,ctPort,1),OFFSET(Active_Portfolio!$AH$12,1,0,ctPort,1)) -> 0 | BO12: =SUMPRODUCT((OFFSET(Active_Portfolio!$T$12,1,0,ctPort,1)=1)*(OFFSET(Active_Portfolio!$G$12,1,0,ctPort,1)=$BB12)*(OFFSET(Active_Portfolio!$K$12,1,0,ctPort,1)=BO$8)*(OFFSET(Active_Portfolio!$N$12,1,0,ctPort,1)<=DATE($E$3,1,1))*(OFFSET(Active_Portfolio!$O$12,1,0,ctPort,1)>DATE($E$3,1,1))*OFFSET(Active_Portfolio!$Z$12,1,0,ctPort,1),OFFSET(Active_Portfolio!$AH$12,1,0,ctPort,1)) -> 0 | BP12: =SUMPRODUCT((OFFSET(Active_Portfolio!$T$12,1,0,ctPort,1)=1)*(OFFSET(Active_Portfolio!$G$12,1,0,ctPort,1)=$BB12)*(OFFSET(Active_Portfolio!$K$12,1,0,ctPort,1)=BP$8)*(OFFSET(Active_Portfolio!$N$12,1,0,ctPort,1)<=DATE($E$3,1,1))*(OFFSET(Active_Portfolio!$O$12,1,0,ctPort,1)>DATE($E$3,1,1))*OFFSET(Active_Portfolio!$Z$12,1,0,ctPort,1),OFFSET(Active_Portfolio!$AH$12,1,0,ctPort,1)) -> 0 | BQ12: =SUMPRODUCT((OFFSET(Active_Portfolio!$T$12,1,0,ctPort,1)=1)*(OFFSET(Active_Portfolio!$G$12,1,0,ctPort,1)=$BB12)*(OFFSET(Active_Portfolio!$K$12,1,0,ctPort,1)=BQ$8)*(OFFSET(Active_Portfolio!$N$12,1,0,ctPort,1)<=DATE($E$3,1,1))*(OFFSET(Active_Portfolio!$O$12,1,0,ctPort,1)>DATE($E$3,1,1))*OFFSET(Active_Portfolio!$Z$12,1,0,ctPort,1),OFFSET(Active_Portfolio!$AH$12,1,0,ctPort,1)) -> 19.292 | BR12: =SUMPRODUCT((OFFSET(Active_Portfolio!$T$12,1,0,ctPort,1)=1)*(OFFSET(Active_Portfolio!$G$12,1,0,ctPort,1)=$BB12)*(OFFSET(Active_Portfolio!$K$12,1,0,ctPort,1)=BR$8)*(OFFSET(Active_Portfolio!$N$12,1,0,ctPort,1)<=DATE($E$3,1,1))*(OFFSET(Active_Portfolio!$O$12,1,0,ctPort,1)>DATE($E$3,1,1))*OFFSET(Active_Portfolio!$Z$12,1,0,ctPort,1),OFFSET(Active_Portfolio!$AH$12,1,0,ctPort,1)) -> 0 | BS12: =SUMPRODUCT((OFFSET(Active_Portfolio!$T$12,1,0,ctPort,1)=1)*(OFFSET(Active_Portfolio!$G$12,1,0,ctPort,1)=$BB12)*(OFFSET(Active_Portfolio!$K$12,1,0,ctPort,1)=BS$8)*(OFFSET(Active_Portfolio!$N$12,1,0,ctPort,1)<=DATE($E$3,1,1))*(OFFSET(Active_Portfolio!$O$12,1,0,ctPort,1)>DATE($E$3,1,1))*OFFSET(Active_Portfolio!$Z$12,1,0,ctPort,1),OFFSET(Active_Portfolio!$AH$12,1,0,ctPort,1)) -> 174.72 | BT12: 194.012 | BU12: =SUMPRODUCT((OFFSET(Active_Portfolio!$T$12,1,0,ctPort,1)=0)*(OFFSET(Active_Portfolio!$G$12,1,0,ctPort,1)=$BB12)*(OFFSET(Active_Portfolio!$K$12,1,0,ctPort,1)=BU$8)*(OFFSET(Active_Portfolio!$N$12,1,0,ctPort,1)<=DATE($E$3,1,1))*(OFFSET(Active_Portfolio!$O$12,1,0,ctPort,1)>DATE($E$3,1,1))*OFFSET(Active_Portfolio!$Z$12,1,0,ctPort,1),OFFSET(Active_Portfolio!$AH$12,1,0,ctPort,1)) -> 0 | BV12: =SUMPRODUCT((OFFSET(Active_Portfolio!$T$12,1,0,ctPort,1)=0)*(OFFSET(Active_Portfolio!$G$12,1,0,ctPort,1)=$BB12)*(OFFSET(Active_Portfolio!$K$12,1,0,ctPort,1)=BV$8)*(OFFSET(Active_Portfolio!$N$12,1,0,ctPort,1)<=DATE($E$3,1,1))*(OFFSET(Active_Portfolio!$O$12,1,0,ctPort,1)>DATE($E$3,1,1))*OFFSET(Active_Portfolio!$Z$12,1,0,ctPort,1),OFFSET(Active_Portfolio!$AH$12,1,0,ctPort,1)) -> 0 | BW12: =SUMPRODUCT((OFFSET(Active_Portfolio!$T$12,1,0,ctPort,1)=0)*(OFFSET(Active_Portfolio!$G$12,1,0,ctPort,1)=$BB12)*(OFFSET(Active_Portfolio!$K$12,1,0,ctPort,1)=BW$8)*(OFFSET(Active_Portfolio!$N$12,1,0,ctPort,1)<=DATE($E$3,1,1))*(OFFSET(Active_Portfolio!$O$12,1,0,ctPort,1)>DATE($E$3,1,1))*OFFSET(Active_Portfolio!$Z$12,1,0,ctPort,1),OFFSET(Active_Portfolio!$AH$12,1,0,ctPort,1)) -> 0 | BX12: =SUMPRODUCT((OFFSET(Active_Portfolio!$T$12,1,0,ctPort,1)=0)*(OFFSET(Active_Portfolio!$G$12,1,0,ctPort,1)=$BB12)*(OFFSET(Active_Portfolio!$K$12,1,0,ctPort,1)=BX$8)*(OFFSET(Active_Portfolio!$N$12,1,0,ctPort,1)<=DATE($E$3,1,1))*(OFFSET(Active_Portfolio!$O$12,1,0,ctPort,1)>DATE($E$3,1,1))*OFFSET(Active_Portfolio!$Z$12,1,0,ctPort,1),OFFSET(Active_Portfolio!$AH$12,1,0,ctPort,1)) -> 0 | BY12: =SUMPRODUCT((OFFSET(Active_Portfolio!$T$12,1,0,ctPort,1)=0)*(OFFSET(Active_Portfolio!$G$12,1,0,ctPort,1)=$BB12)*(OFFSET(Active_Portfolio!$K$12,1,0,ctPort,1)=BY$8)*(OFFSET(Active_Portfolio!$N$12,1,0,ctPort,1)<=DATE($E$3,1,1))*(OFFSET(Active_Portfolio!$O$12,1,0,ctPort,1)>DATE($E$3,1,1))*OFFSET(Active_Portfolio!$Z$12,1,0,ctPort,1),OFFSET(Active_Portfolio!$AH$12,1,0,ctPort,1)) -> 0 | BZ12: =SUMPRODUCT((OFFSET(Active_Portfolio!$T$12,1,0,ctPort,1)=0)*(OFFSET(Active_Portfolio!$G$12,1,0,ctPort,1)=$BB12)*(OFFSET(Active_Portfolio!$K$12,1,0,ctPort,1)=BZ$8)*(OFFSET(Active_Portfolio!$N$12,1,0,ctPort,1)<=DATE($E$3,1,1))*(OFFSET(Active_Portfolio!$O$12,1,0,ctPort,1)>DATE($E$3,1,1))*OFFSET(Active_Portfolio!$Z$12,1,0,ctPort,1),OFFSET(Active_Portfolio!$AH$12,1,0,ctPort,1)) -> 0 | CA12: =SUMPRODUCT((OFFSET(Active_Portfolio!$T$12,1,0,ctPort,1)=0)*(OFFSET(Active_Portfolio!$G$12,1,0,ctPort,1)=$BB12)*(OFFSET(Active_Portfolio!$K$12,1,0,ctPort,1)=CA$8)*(OFFSET(Active_Portfolio!$N$12,1,0,ctPort,1)<=DATE($E$3,1,1))*(OFFSET(Active_Portfolio!$O$12,1,0,ctPort,1)>DATE($E$3,1,1))*OFFSET(Active_Portfolio!$Z$12,1,0,ctPort,1),OFFSET(Active_Portfolio!$AH$12,1,0,ctPort,1)) -> 0 | CB12: 0 | CC12: =SUMPRODUCT((OFFSET(Active_Portfolio!$M$12,1,0,ctPort,1)="New")*(OFFSET(Active_Portfolio!$G$12,1,0,ctPort,1)=$BB12)*(OFFSET(Active_Portfolio!$K$12,1,0,ctPort,1)=CC$8)*(OFFSET(Active_Portfolio!$N$12,1,0,ctPort,1)<=DATE($E$3,1,1))*(OFFSET(Active_Portfolio!$O$12,1,0,ctPort,1)>DATE($E$3,1,1))*OFFSET(Active_Portfolio!$Z$12,1,0,ctPort,1),OFFSET(Active_Portfolio!$AH$12,1,0,ctPort,1)) -> 0 | CD12: =SUMPRODUCT((OFFSET(Active_Portfolio!$M$12,1,0,ctPort,1)="New")*(OFFSET(Active_Portfolio!$G$12,1,0,ctPort,1)=$BB12)*(OFFSET(Active_Portfolio!$K$12,1,0,ctPort,1)=CD$8)*(OFFSET(Active_Portfolio!$N$12,1,0,ctPort,1)<=DATE($E$3,1,1))*(OFFSET(Active_Portfolio!$O$12,1,0,ctPort,1)>DATE($E$3,1,1))*OFFSET(Active_Portfolio!$Z$12,1,0,ctPort,1),OFFSET(Active_Portfolio!$AH$12,1,0,ctPort,1)) -> 0 | CE12: =SUMPRODUCT((OFFSET(Active_Portfolio!$M$12,1,0,ctPort,1)="New")*(OFFSET(Active_Portfolio!$G$12,1,0,ctPort,1)=$BB12)*(OFFSET(Active_Portfolio!$K$12,1,0,ctPort,1)=CE$8)*(OFFSET(Active_Portfolio!$N$12,1,0,ctPort,1)<=DATE($E$3,1,1))*(OFFSET(Active_Portfolio!$O$12,1,0,ctPort,1)>DATE($E$3,1,1))*OFFSET(Active_Portfolio!$Z$12,1,0,ctPort,1),OFFSET(Active_Portfolio!$AH$12,1,0,ctPort,1)) -> 0 | CF12: =SUMPRODUCT((OFFSET(Active_Portfolio!$M$12,1,0,ctPort,1)="New")*(OFFSET(Active_Portfolio!$G$12,1,0,ctPort,1)=$BB12)*(OFFSET(Active_Portfolio!$K$12,1,0,ctPort,1)=CF$8)*(OFFSET(Active_Portfolio!$N$12,1,0,ctPort,1)<=DATE($E$3,1,1))*(OFFSET(Active_Portfolio!$O$12,1,0,ctPort,1)>DATE($E$3,1,1))*OFFSET(Active_Portfolio!$Z$12,1,0,ctPort,1),OFFSET(Active_Portfolio!$AH$12,1,0,ctPort,1)) -> 0 | CG12: =SUMPRODUCT((OFFSET(Active_Portfolio!$M$12,1,0,ctPort,1)="New")*(OFFSET(Active_Portfolio!$G$12,1,0,ctPort,1)=$BB12)*(OFFSET(Active_Portfolio!$K$12,1,0,ctPort,1)=CG$8)*(OFFSET(Active_Portfolio!$N$12,1,0,ctPort,1)<=DATE($E$3,1,1))*(OFFSET(Active_Portfolio!$O$12,1,0,ctPort,1)>DATE($E$3,1,1))*OFFSET(Active_Portfolio!$Z$12,1,0,ctPort,1),OFFSET(Active_Portfolio!$AH$12,1,0,ctPort,1)) -> 16.8 | CH12: =SUMPRODUCT((OFFSET(Active_Portfolio!$M$12,1,0,ctPort,1)="New")*(OFFSET(Active_Portfolio!$G$12,1,0,ctPort,1)=$BB12)*(OFFSET(Active_Portfolio!$K$12,1,0,ctPort,1)=CH$8)*(OFFSET(Active_Portfolio!$N$12,1,0,ctPort,1)<=DATE($E$3,1,1))*(OFFSET(Active_Portfolio!$O$12,1,0,ctPort,1)>DATE($E$3,1,1))*OFFSET(Active_Portfolio!$Z$12,1,0,ctPort,1),OFFSET(Active_Portfolio!$AH$12,1,0,ctPort,1)) -> 0 | CI12: =SUMPRODUCT((OFFSET(Active_Portfolio!$M$12,1,0,ctPort,1)="New")*(OFFSET(Active_Portfolio!$G$12,1,0,ctPort,1)=$BB12)*(OFFSET(Active_Portfolio!$K$12,1,0,ctPort,1)=CI$8)*(OFFSET(Active_Portfolio!$N$12,1,0,ctPort,1)<=DATE($E$3,1,1))*(OFFSET(Active_Portfolio!$O$12,1,0,ctPort,1)>DATE($E$3,1,1))*OFFSET(Active_Portfolio!$Z$12,1,0,ctPort,1),OFFSET(Active_Portfolio!$AH$12,1,0,ctPort,1)) -> 174.72 | CJ12: 191.52 | CK12: =SUMPRODUCT((OFFSET(Active_Portfolio!$T$12,1,0,ctPort,1)=1)*(OFFSET(Active_Portfolio!$M$12,1,0,ctPort,1)="New")*(OFFSET(Active_Portfolio!$G$12,1,0,ctPort,1)=$BB12)*(OFFSET(Active_Portfolio!$K$12,1,0,ctPort,1)=CK$8)*(OFFSET(Active_Portfolio!$N$12,1,0,ctPort,1)<=DATE($E$3,1,1))*(OFFSET(Active_Portfolio!$O$12,1,0,ctPort,1)>DATE($E$3,1,1))*OFFSET(Active_Portfolio!$Z$12,1,0,ctPort,1),OFFSET(Active_Portfolio!$AH$12,1,0,ctPort,1)) -> 0 | CL12: =SUMPRODUCT((OFFSET(Active_Portfolio!$T$12,1,0,ctPort,1)=1)*(OFFSET(Active_Portfolio!$M$12,1,0,ctPort,1)="New")*(OFFSET(Active_Portfolio!$G$12,1,0,ctPort,1)=$BB12)*(OFFSET(Active_Portfolio!$K$12,1,0,ctPort,1)=CL$8)*(OFFSET(Active_Portfolio!$N$12,1,0,ctPort,1)<=DATE($E$3,1,1))*(OFFSET(Active_Portfolio!$O$12,1,0,ctPort,1)>DATE($E$3,1,1))*OFFSET(Active_Portfolio!$Z$12,1,0,ctPort,1),OFFSET(Active_Portfolio!$AH$12,1,0,ctPort,1)) -> 0 | CM12: =SUMPRODUCT((OFFSET(Active_Portfolio!$T$12,1,0,ctPort,1)=1)*(OFFSET(Active_Portfolio!$M$12,1,0,ctPort,1)="New")*(OFFSET(Active_Portfolio!$G$12,1,0,ctPort,1)=$BB12)*(OFFSET(Active_Portfolio!$K$12,1,0,ctPort,1)=CM$8)*(OFFSET(Active_Portfolio!$N$12,1,0,ctPort,1)<=DATE($E$3,1,1))*(OFFSET(Active_Portfolio!$O$12,1,0,ctPort,1)>DATE($E$3,1,1))*OFFSET(Active_Portfolio!$Z$12,1,0,ctPort,1),OFFSET(Active_Portfolio!$AH$12,1,0,ctPort,1)) -> 0 | CN12: =SUMPRODUCT((OFFSET(Active_Portfolio!$T$12,1,0,ctPort,1)=1)*(OFFSET(Active_Portfolio!$M$12,1,0,ctPort,1)="New")*(OFFSET(Active_Portfolio!$G$12,1,0,ctPort,1)=$BB12)*(OFFSET(Active_Portfolio!$K$12,1,0,ctPort,1)=CN$8)*(OFFSET(Active_Portfolio!$N$12,1,0,ctPort,1)<=DATE($E$3,1,1))*(OFFSET(Active_Portfolio!$O$12,1,0,ctPort,1)>DATE($E$3,1,1))*OFFSET(Active_Portfolio!$Z$12,1,0,ctPort,1),OFFSET(Active_Portfolio!$AH$12,1,0,ctPort,1)) -> 0 | CO12: =SUMPRODUCT((OFFSET(Active_Portfolio!$T$12,1,0,ctPort,1)=1)*(OFFSET(Active_Portfolio!$M$12,1,0,ctPort,1)="New")*(OFFSET(Active_Portfolio!$G$12,1,0,ctPort,1)=$BB12)*(OFFSET(Active_Portfolio!$K$12,1,0,ctPort,1)=CO$8)*(OFFSET(Active_Portfolio!$N$12,1,0,ctPort,1)<=DATE($E$3,1,1))*(OFFSET(Active_Portfolio!$O$12,1,0,ctPort,1)>DATE($E$3,1,1))*OFFSET(Active_Portfolio!$Z$12,1,0,ctPort,1),OFFSET(Active_Portfolio!$AH$12,1,0,ctPort,1)) -> 16.8 | CP12: =SUMPRODUCT((OFFSET(Active_Portfolio!$T$12,1,0,ctPort,1)=1)*(OFFSET(Active_Portfolio!$M$12,1,0,ctPort,1)="New")*(OFFSET(Active_Portfolio!$G$12,1,0,ctPort,1)=$BB12)*(OFFSET(Active_Portfolio!$K$12,1,0,ctPort,1)=CP$8)*(OFFSET(Active_Portfolio!$N$12,1,0,ctPort,1)<=DATE($E$3,1,1))*(OFFSET(Active_Portfolio!$O$12,1,0,ctPort,1)>DATE($E$3,1,1))*OFFSET(Active_Portfolio!$Z$12,1,0,ctPort,1),OFFSET(Active_Portfolio!$AH$12,1,0,ctPort,1)) -> 0 | CQ12: =SUMPRODUCT((OFFSET(Active_Portfolio!$T$12,1,0,ctPort,1)=1)*(OFFSET(Active_Portfolio!$M$12,1,0,ctPort,1)="New")*(OFFSET(Active_Portfolio!$G$12,1,0,ctPort,1)=$BB12)*(OFFSET(Active_Portfolio!$K$12,1,0,ctPort,1)=CQ$8)*(OFFSET(Active_Portfolio!$N$12,1,0,ctPort,1)<=DATE($E$3,1,1))*(OFFSET(Active_Portfolio!$O$12,1,0,ctPort,1)>DATE($E$3,1,1))*OFFSET(Active_Portfolio!$Z$12,1,0,ctPort,1),OFFSET(Active_Portfolio!$AH$12,1,0,ctPort,1)) -> 174.72 | CR12: 191.52 | CS12: =SUMPRODUCT((OFFSET(Active_Portfolio!$T$12,1,0,ctPort,1)=0)*(OFFSET(Active_Portfolio!$M$12,1,0,ctPort,1)="New")*(OFFSET(Active_Portfolio!$G$12,1,0,ctPort,1)=$BB12)*(OFFSET(Active_Portfolio!$K$12,1,0,ctPort,1)=CS$8)*(OFFSET(Active_Portfolio!$N$12,1,0,ctPort,1)<=DATE($E$3,1,1))*(OFFSET(Active_Portfolio!$O$12,1,0,ctPort,1)>DATE($E$3,1,1))*OFFSET(Active_Portfolio!$Z$12,1,0,ctPort,1),OFFSET(Active_Portfolio!$AH$12,1,0,ctPort,1)) -> 0 | CT12: =SUMPRODUCT((OFFSET(Active_Portfolio!$T$12,1,0,ctPort,1)=0)*(OFFSET(Active_Portfolio!$M$12,1,0,ctPort,1)="New")*(OFFSET(Active_Portfolio!$G$12,1,0,ctPort,1)=$BB12)*(OFFSET(Active_Portfolio!$K$12,1,0,ctPort,1)=CT$8)*(OFFSET(Active_Portfolio!$N$12,1,0,ctPort,1)<=DATE($E$3,1,1))*(OFFSET(Active_Portfolio!$O$12,1,0,ctPort,1)>DATE($E$3,1,1))*OFFSET(Active_Portfolio!$Z$12,1,0,ctPort,1),OFFSET(Active_Portfolio!$AH$12,1,0,ctPort,1)) -> 0 | CU12: =SUMPRODUCT((OFFSET(Active_Portfolio!$T$12,1,0,ctPort,1)=0)*(OFFSET(Active_Portfolio!$M$12,1,0,ctPort,1)="New")*(OFFSET(Active_Portfolio!$G$12,1,0,ctPort,1)=$BB12)*(OFFSET(Active_Portfolio!$K$12,1,0,ctPort,1)=CU$8)*(OFFSET(Active_Portfolio!$N$12,1,0,ctPort,1)<=DATE($E$3,1,1))*(OFFSET(Active_Portfolio!$O$12,1,0,ctPort,1)>DATE($E$3,1,1))*OFFSET(Active_Portfolio!$Z$12,1,0,ctPort,1),OFFSET(Active_Portfolio!$AH$12,1,0,ctPort,1)) -> 0 | CV12: =SUMPRODUCT((OFFSET(Active_Portfolio!$T$12,1,0,ctPort,1)=0)*(OFFSET(Active_Portfolio!$M$12,1,0,ctPort,1)="New")*(OFFSET(Active_Portfolio!$G$12,1,0,ctPort,1)=$BB12)*(OFFSET(Active_Portfolio!$K$12,1,0,ctPort,1)=CV$8)*(OFFSET(Active_Portfolio!$N$12,1,0,ctPort,1)<=DATE($E$3,1,1))*(OFFSET(Active_Portfolio!$O$12,1,0,ctPort,1)>DATE($E$3,1,1))*OFFSET(Active_Portfolio!$Z$12,1,0,ctPort,1),OFFSET(Active_Portfolio!$AH$12,1,0,ctPort,1)) -> 0 | CW12: =SUMPRODUCT((OFFSET(Active_Portfolio!$T$12,1,0,ctPort,1)=0)*(OFFSET(Active_Portfolio!$M$12,1,0,ctPort,1)="New")*(OFFSET(Active_Portfolio!$G$12,1,0,ctPort,1)=$BB12)*(OFFSET(Active_Portfolio!$K$12,1,0,ctPort,1)=CW$8)*(OFFSET(Active_Portfolio!$N$12,1,0,ctPort,1)<=DATE($E$3,1,1))*(OFFSET(Active_Portfolio!$O$12,1,0,ctPort,1)>DATE($E$3,1,1))*OFFSET(Active_Portfolio!$Z$12,1,0,ctPort,1),OFFSET(Active_Portfolio!$AH$12,1,0,ctPort,1)) -> 0 | CX12: =SUMPRODUCT((OFFSET(Active_Portfolio!$T$12,1,0,ctPort,1)=0)*(OFFSET(Active_Portfolio!$M$12,1,0,ctPort,1)="New")*(OFFSET(Active_Portfolio!$G$12,1,0,ctPort,1)=$BB12)*(OFFSET(Active_Portfolio!$K$12,1,0,ctPort,1)=CX$8)*(OFFSET(Active_Portfolio!$N$12,1,0,ctPort,1)<=DATE($E$3,1,1))*(OFFSET(Active_Portfolio!$O$12,1,0,ctPort,1)>DATE($E$3,1,1))*OFFSET(Active_Portfolio!$Z$12,1,0,ctPort,1),OFFSET(Active_Portfolio!$AH$12,1,0,ctPort,1)) -> 0 | CY12: =SUMPRODUCT((OFFSET(Active_Portfolio!$T$12,1,0,ctPort,1)=0)*(OFFSET(Active_Portfolio!$M$12,1,0,ctPort,1)="New")*(OFFSET(Active_Portfolio!$G$12,1,0,ctPort,1)=$BB12)*(OFFSET(Active_Portfolio!$K$12,1,0,ctPort,1)=CY$8)*(OFFSET(Active_Portfolio!$N$12,1,0,ctPort,1)<=DATE($E$3,1,1))*(OFFSET(Active_Portfolio!$O$12,1,0,ctPort,1)>DATE($E$3,1,1))*OFFSET(Active_Portfolio!$Z$12,1,0,ctPort,1),OFFSET(Active_Portfolio!$AH$12,1,0,ctPort,1)) -> 0 | CZ12: 0 | DA12: =SUMPRODUCT((OFFSET(Active_Portfolio!$B$12,1,0,ctPort,1)=4)*(OFFSET(Active_Portfolio!$G$12,1,0,ctPort,1)=$BB12)*(OFFSET(Active_Portfolio!$K$12,1,0,ctPort,1)=DA$8)*(OFFSET(Active_Portfolio!$N$12,1,0,ctPort,1)<=DATE($E$3,1,1))*(OFFSET(Active_Portfolio!$O$12,1,0,ctPort,1)>DATE($E$3,1,1))*OFFSET(Active_Portfolio!$Z$12,1,0,ctPort,1),OFFSET(Active_Portfolio!$AH$12,1,0,ctPort,1)) -> 0 | DB12: =SUMPRODUCT((OFFSET(Active_Portfolio!$B$12,1,0,ctPort,1)=4)*(OFFSET(Active_Portfolio!$G$12,1,0,ctPort,1)=$BB12)*(OFFSET(Active_Portfolio!$K$12,1,0,ctPort,1)=DB$8)*(OFFSET(Active_Portfolio!$N$12,1,0,ctPort,1)<=DATE($E$3,1,1))*(OFFSET(Active_Portfolio!$O$12,1,0,ctPort,1)>DATE($E$3,1,1))*OFFSET(Active_Portfolio!$Z$12,1,0,ctPort,1),OFFSET(Active_Portfolio!$AH$12,1,0,ctPort,1)) -> 0 | DC12: =SUMPRODUCT((OFFSET(Active_Portfolio!$B$12,1,0,ctPort,1)=4)*(OFFSET(Active_Portfolio!$G$12,1,0,ctPort,1)=$BB12)*(OFFSET(Active_Portfolio!$K$12,1,0,ctPort,1)=DC$8)*(OFFSET(Active_Portfolio!$N$12,1,0,ctPort,1)<=DATE($E$3,1,1))*(OFFSET(Active_Portfolio!$O$12,1,0,ctPort,1)>DATE($E$3,1,1))*OFFSET(Active_Portfolio!$Z$12,1,0,ctPort,1),OFFSET(Active_Portfolio!$AH$12,1,0,ctPort,1)) -> 0 | DD12: =SUMPRODUCT((OFFSET(Active_Portfolio!$B$12,1,0,ctPort,1)=4)*(OFFSET(Active_Portfolio!$G$12,1,0,ctPort,1)=$BB12)*(OFFSET(Active_Portfolio!$K$12,1,0,ctPort,1)=DD$8)*(OFFSET(Active_Portfolio!$N$12,1,0,ctPort,1)<=DATE($E$3,1,1))*(OFFSET(Active_Portfolio!$O$12,1,0,ctPort,1)>DATE($E$3,1,1))*OFFSET(Active_Portfolio!$Z$12,1,0,ctPort,1),OFFSET(Active_Portfolio!$AH$12,1,0,ctPort,1)) -> 0 | DE12: =SUMPRODUCT((OFFSET(Active_Portfolio!$B$12,1,0,ctPort,1)=4)*(OFFSET(Active_Portfolio!$G$12,1,0,ctPort,1)=$BB12)*(OFFSET(Active_Portfolio!$K$12,1,0,ctPort,1)=DE$8)*(OFFSET(Active_Portfolio!$N$12,1,0,ctPort,1)<=DATE($E$3,1,1))*(OFFSET(Active_Portfolio!$O$12,1,0,ctPort,1)>DATE($E$3,1,1))*OFFSET(Active_Portfolio!$Z$12,1,0,ctPort,1),OFFSET(Active_Portfolio!$AH$12,1,0,ctPort,1)) -> 0 | DF12: =SUMPRODUCT((OFFSET(Active_Portfolio!$B$12,1,0,ctPort,1)=4)*(OFFSET(Active_Portfolio!$G$12,1,0,ctPort,1)=$BB12)*(OFFSET(Active_Portfolio!$K$12,1,0,ctPort,1)=DF$8)*(OFFSET(Active_Portfolio!$N$12,1,0,ctPort,1)<=DATE($E$3,1,1))*(OFFSET(Active_Portfolio!$O$12,1,0,ctPort,1)>DATE($E$3,1,1))*OFFSET(Active_Portfolio!$Z$12,1,0,ctPort,1),OFFSET(Active_Portfolio!$AH$12,1,0,ctPort,1)) -> 0 | DG12: =SUMPRODUCT((OFFSET(Active_Portfolio!$B$12,1,0,ctPort,1)=4)*(OFFSET(Active_Portfolio!$G$12,1,0,ctPort,1)=$BB12)*(OFFSET(Active_Portfolio!$K$12,1,0,ctPort,1)=DG$8)*(OFFSET(Active_Portfolio!$N$12,1,0,ctPort,1)<=DATE($E$3,1,1))*(OFFSET(Active_Portfolio!$O$12,1,0,ctPort,1)>DATE($E$3,1,1))*OFFSET(Active_Portfolio!$Z$12,1,0,ctPort,1),OFFSET(Active_Portfolio!$AH$12,1,0,ctPort,1)) -> 174.72 | DH12: 174.72 | DI12: =SUMPRODUCT((OFFSET(Active_Portfolio!$T$12,1,0,ctPort,1)=1)*(OFFSET(Active_Portfolio!$B$12,1,0,ctPort,1)=4)*(OFFSET(Active_Portfolio!$G$12,1,0,ctPort,1)=$BB12)*(OFFSET(Active_Portfolio!$K$12,1,0,ctPort,1)=DI$8)*(OFFSET(Active_Portfolio!$N$12,1,0,ctPort,1)<=DATE($E$3,1,1))*(OFFSET(Active_Portfolio!$O$12,1,0,ctPort,1)>DATE($E$3,1,1))*OFFSET(Active_Portfolio!$Z$12,1,0,ctPort,1),OFFSET(Active_Portfolio!$AH$12,1,0,ctPort,1)) -> 0 | DJ12: =SUMPRODUCT((OFFSET(Active_Portfolio!$T$12,1,0,ctPort,1)=1)*(OFFSET(Active_Portfolio!$B$12,1,0,ctPort,1)=4)*(OFFSET(Active_Portfolio!$G$12,1,0,ctPort,1)=$BB12)*(OFFSET(Active_Portfolio!$K$12,1,0,ctPort,1)=DJ$8)*(OFFSET(Active_Portfolio!$N$12,1,0,ctPort,1)<=DATE($E$3,1,1))*(OFFSET(Active_Portfolio!$O$12,1,0,ctPort,1)>DATE($E$3,1,1))*OFFSET(Active_Portfolio!$Z$12,1,0,ctPort,1),OFFSET(Active_Portfolio!$AH$12,1,0,ctPort,1)) -> 0 | DK12: =SUMPRODUCT((OFFSET(Active_Portfolio!$T$12,1,0,ctPort,1)=1)*(OFFSET(Active_Portfolio!$B$12,1,0,ctPort,1)=4)*(OFFSET(Active_Portfolio!$G$12,1,0,ctPort,1)=$BB12)*(OFFSET(Active_Portfolio!$K$12,1,0,ctPort,1)=DK$8)*(OFFSET(Active_Portfolio!$N$12,1,0,ctPort,1)<=DATE($E$3,1,1))*(OFFSET(Active_Portfolio!$O$12,1,0,ctPort,1)>DATE($E$3,1,1))*OFFSET(Active_Portfolio!$Z$12,1,0,ctPort,1),OFFSET(Active_Portfolio!$AH$12,1,0,ctPort,1)) -> 0 | DL12: =SUMPRODUCT((OFFSET(Active_Portfolio!$T$12,1,0,ctPort,1)=1)*(OFFSET(Active_Portfolio!$B$12,1,0,ctPort,1)=4)*(OFFSET(Active_Portfolio!$G$12,1,0,ctPort,1)=$BB12)*(OFFSET(Active_Portfolio!$K$12,1,0,ctPort,1)=DL$8)*(OFFSET(Active_Portfolio!$N$12,1,0,ctPort,1)<=DATE($E$3,1,1))*(OFFSET(Active_Portfolio!$O$12,1,0,ctPort,1)>DATE($E$3,1,1))*OFFSET(Active_Portfolio!$Z$12,1,0,ctPort,1),OFFSET(Active_Portfolio!$AH$12,1,0,ctPort,1)) -> 0 | DM12: =SUMPRODUCT((OFFSET(Active_Portfolio!$T$12,1,0,ctPort,1)=1)*(OFFSET(Active_Portfolio!$B$12,1,0,ctPort,1)=4)*(OFFSET(Active_Portfolio!$G$12,1,0,ctPort,1)=$BB12)*(OFFSET(Active_Portfolio!$K$12,1,0,ctPort,1)=DM$8)*(OFFSET(Active_Portfolio!$N$12,1,0,ctPort,1)<=DATE($E$3,1,1))*(OFFSET(Active_Portfolio!$O$12,1,0,ctPort,1)>DATE($E$3,1,1))*OFFSET(Active_Portfolio!$Z$12,1,0,ctPort,1),OFFSET(Active_Portfolio!$AH$12,1,0,ctPort,1)) -> 0 | DN12: =SUMPRODUCT((OFFSET(Active_Portfolio!$T$12,1,0,ctPort,1)=1)*(OFFSET(Active_Portfolio!$B$12,1,0,ctPort,1)=4)*(OFFSET(Active_Portfolio!$G$12,1,0,ctPort,1)=$BB12)*(OFFSET(Active_Portfolio!$K$12,1,0,ctPort,1)=DN$8)*(OFFSET(Active_Portfolio!$N$12,1,0,ctPort,1)<=DATE($E$3,1,1))*(OFFSET(Active_Portfolio!$O$12,1,0,ctPort,1)>DATE($E$3,1,1))*OFFSET(Active_Portfolio!$Z$12,1,0,ctPort,1),OFFSET(Active_Portfolio!$AH$12,1,0,ctPort,1)) -> 0 | DO12: =SUMPRODUCT((OFFSET(Active_Portfolio!$T$12,1,0,ctPort,1)=1)*(OFFSET(Active_Portfolio!$B$12,1,0,ctPort,1)=4)*(OFFSET(Active_Portfolio!$G$12,1,0,ctPort,1)=$BB12)*(OFFSET(Active_Portfolio!$K$12,1,0,ctPort,1)=DO$8)*(OFFSET(Active_Portfolio!$N$12,1,0,ctPort,1)<=DATE($E$3,1,1))*(OFFSET(Active_Portfolio!$O$12,1,0,ctPort,1)>DATE($E$3,1,1))*OFFSET(Active_Portfolio!$Z$12,1,0,ctPort,1),OFFSET(Active_Portfolio!$AH$12,1,0,ctPort,1)) -> 174.72 | DP12: 174.72 | DQ12: =SUMPRODUCT((OFFSET(Active_Portfolio!$T$12,1,0,ctPort,1)=0)*(OFFSET(Active_Portfolio!$B$12,1,0,ctPort,1)=4)*(OFFSET(Active_Portfolio!$G$12,1,0,ctPort,1)=$BB12)*(OFFSET(Active_Portfolio!$K$12,1,0,ctPort,1)=DQ$8)*(OFFSET(Active_Portfolio!$N$12,1,0,ctPort,1)<=DATE($E$3,1,1))*(OFFSET(Active_Portfolio!$O$12,1,0,ctPort,1)>DATE($E$3,1,1))*OFFSET(Active_Portfolio!$Z$12,1,0,ctPort,1),OFFSET(Active_Portfolio!$AH$12,1,0,ctPort,1)) -> 0 | DR12: =SUMPRODUCT((OFFSET(Active_Portfolio!$T$12,1,0,ctPort,1)=0)*(OFFSET(Active_Portfolio!$B$12,1,0,ctPort,1)=4)*(OFFSET(Active_Portfolio!$G$12,1,0,ctPort,1)=$BB12)*(OFFSET(Active_Portfolio!$K$12,1,0,ctPort,1)=DR$8)*(OFFSET(Active_Portfolio!$N$12,1,0,ctPort,1)<=DATE($E$3,1,1))*(OFFSET(Active_Portfolio!$O$12,1,0,ctPort,1)>DATE($E$3,1,1))*OFFSET(Active_Portfolio!$Z$12,1,0,ctPort,1),OFFSET(Active_Portfolio!$AH$12,1,0,ctPort,1)) -> 0 | DS12: =SUMPRODUCT((OFFSET(Active_Portfolio!$T$12,1,0,ctPort,1)=0)*(OFFSET(Active_Portfolio!$B$12,1,0,ctPort,1)=4)*(OFFSET(Active_Portfolio!$G$12,1,0,ctPort,1)=$BB12)*(OFFSET(Active_Portfolio!$K$12,1,0,ctPort,1)=DS$8)*(OFFSET(Active_Portfolio!$N$12,1,0,ctPort,1)<=DATE($E$3,1,1))*(OFFSET(Active_Portfolio!$O$12,1,0,ctPort,1)>DATE($E$3,1,1))*OFFSET(Active_Portfolio!$Z$12,1,0,ctPort,1),OFFSET(Active_Portfolio!$AH$12,1,0,ctPort,1)) -> 0 | DT12: =SUMPRODUCT((OFFSET(Active_Portfolio!$T$12,1,0,ctPort,1)=0)*(OFFSET(Active_Portfolio!$B$12,1,0,ctPort,1)=4)*(OFFSET(Active_Portfolio!$G$12,1,0,ctPort,1)=$BB12)*(OFFSET(Active_Portfolio!$K$12,1,0,ctPort,1)=DT$8)*(OFFSET(Active_Portfolio!$N$12,1,0,ctPort,1)<=DATE($E$3,1,1))*(OFFSET(Active_Portfolio!$O$12,1,0,ctPort,1)>DATE($E$3,1,1))*OFFSET(Active_Portfolio!$Z$12,1,0,ctPort,1),OFFSET(Active_Portfolio!$AH$12,1,0,ctPort,1)) -> 0 | DU12: =SUMPRODUCT((OFFSET(Active_Portfolio!$T$12,1,0,ctPort,1)=0)*(OFFSET(Active_Portfolio!$B$12,1,0,ctPort,1)=4)*(OFFSET(Active_Portfolio!$G$12,1,0,ctPort,1)=$BB12)*(OFFSET(Active_Portfolio!$K$12,1,0,ctPort,1)=DU$8)*(OFFSET(Active_Portfolio!$N$12,1,0,ctPort,1)<=DATE($E$3,1,1))*(OFFSET(Active_Portfolio!$O$12,1,0,ctPort,1)>DATE($E$3,1,1))*OFFSET(Active_Portfolio!$Z$12,1,0,ctPort,1),OFFSET(Active_Portfolio!$AH$12,1,0,ctPort,1)) -> 0 | DV12: =SUMPRODUCT((OFFSET(Active_Portfolio!$T$12,1,0,ctPort,1)=0)*(OFFSET(Active_Portfolio!$B$12,1,0,ctPort,1)=4)*(OFFSET(Active_Portfolio!$G$12,1,0,ctPort,1)=$BB12)*(OFFSET(Active_Portfolio!$K$12,1,0,ctPort,1)=DV$8)*(OFFSET(Active_Portfolio!$N$12,1,0,ctPort,1)<=DATE($E$3,1,1))*(OFFSET(Active_Portfolio!$O$12,1,0,ctPort,1)>DATE($E$3,1,1))*OFFSET(Active_Portfolio!$Z$12,1,0,ctPort,1),OFFSET(Active_Portfolio!$AH$12,1,0,ctPort,1)) -> 0 | DW12: =SUMPRODUCT((OFFSET(Active_Portfolio!$T$12,1,0,ctPort,1)=0)*(OFFSET(Active_Portfolio!$B$12,1,0,ctPort,1)=4)*(OFFSET(Active_Portfolio!$G$12,1,0,ctPort,1)=$BB12)*(OFFSET(Active_Portfolio!$K$12,1,0,ctPort,1)=DW$8)*(OFFSET(Active_Portfolio!$N$12,1,0,ctPort,1)<=DATE($E$3,1,1))*(OFFSET(Active_Portfolio!$O$12,1,0,ctPort,1)>DATE($E$3,1,1))*OFFSET(Active_Portfolio!$Z$12,1,0,ctPort,1),OFFSET(Active_Portfolio!$AH$12,1,0,ctPort,1)) -> 0 | DX12: 0 | EB12: -117.03 | EC12: 34.86 | EF12: -117.03 | EG12: 34.86
